Workbook

Sheet Load Forecast
A1: Rate Class | B1: 2017 kWh | C1: Profile Applied | T1: Straight | AA1: Straight
T2: Residential | AA2: Residential
A3: Residential | B3: 1068671798 | C3: Residential | E3: Residential | T3: Residential Count | AA3: Residential Count
A4: GS < 50 kW | B4: 371911862.8 | C4: GS<50 | E4: Residential Count | T4: GS<50 | AA4: GS<50
A5: GS > 50 - 4,999 kW | B5: 1469047929 | C5: GS>50 Total | E5: GS<50 | T5: GS<50 Count | AA5: GS<50 Count
A6: Wholesale Market Participant | B6: 17602117.15 | C6: GS>50 Demand | E6: GS<50 Count | T6: GS>50 Non-demand | AA6: GS>50 Non-demand
A7: Co-Generation | B7: 34191554.81 | C7: CoGen | E7: GS>50 Non-demand | T7: GS>50 Non-demand Count | AA7: GS>50 Non-demand Count
A8: Standby | B8: 0 | C8: CoGen | E8: GS>50 Non-demand Count | T8: GS>50 Demand | AA8: GS>50 Demand
A9: Large Use | B9: 82923504.7 | C9: Large User | E9: GS>50 Demand | T9: GS>50 Demand Count | AA9: GS>50 Demand Count
A10: Street Lights | B10: 19502488 | C10: Street Lighting | E10: GS>50 Demand Count | T10: GS>50 Total | AA10: GS>50 Total
A11: Sentinel Lights | B11: 706221 | C11: Street Lighting | E11: GS>50 Total | T11: GS>50 Demand Load Profile | AA11: GS>50 Demand Load Profile
A12: Unmetered Scattered Load - 24 Hour | B12: 4464035 | C12: Straight | E12: GS>50 Demand Load Profile | T12: Large User | AA12: Large User
A13: Unmetered Scattered Load - 12 Hour | B13: 1000000 | C13: Street Lighting | E13: Large User | T13: Large User Count | AA13: Large User Count
A14: Total | B14: =SUM(B3:B13) -> 3070021511 | C14: System Total Load | E14: Large User Count | T14: CoGen | AA14: CoGen
E15: CoGen | T15: Street Lighting | AA15: Street Lighting
B16: 3070021511 | E16: Street Lighting | T16: System Total Load | AA16: System Total Load
B17: =B14-B16 -> 0 | E17: System Total Load | T17: FIT Generation | AA17: FIT Generation
E18: FIT Generation | T18: FIT Count | AA18: FIT Count
E19: FIT Count | T19: MicroFIT Generation | AA19: MicroFIT Generation
E20: MicroFIT Generation | T20: MicroFIT Count | AA20: MicroFIT Count
E21: MicroFIT Count

Sheet Forecast Max Demand PT
A3: Max of Value
B4: Residential | C4: GS < 50 kW | D4: GS > 50 - 4,999 kW | E4: Wholesale Market Participant | F4: Co-Generation | G4: Standby | H4: Large Use | I4: Street Lights | J4: Sentinel Lights | K4: Unmetered Scattered Load - 24 Hour | L4: Unmetered Scattered Load - 12 Hour | M4: Total
A5: 1 | B5: 215369.756 | C5: 62993.55049 | D5: 223436.0647 | E5: 3027.778523 | F5: 6474.565728 | G5: 12900 | H5: 10575.76677 | I5: 4545.772941 | J5: 164.6108082 | K5: 508.5348704 | L5: 233.0868216 | M5: 496509.9287
A6: 2 | B6: 213689.3251 | C6: 65920.07299 | D6: 224179.5454 | E6: 3032.235896 | F6: 7390.066134 | G6: 12900 | H6: 10561.6565 | I6: 4552.817514 | J6: 164.8659052 | K6: 508.5348704 | L6: 233.4480356 | M6: 489776.4175
A7: 3 | B7: 199919.6491 | C7: 62367.07525 | D7: 219950.5625 | E7: 2886.030142 | F7: 7282.1302 | G7: 12900 | H7: 10605.05765 | I7: 4552.817514 | J7: 164.8659052 | K7: 508.5348704 | L7: 233.4480356 | M7: 470213.3133
A8: 4 | B8: 158595.7708 | C8: 57671.93929 | D8: 211990.282 | E8: 2670.68699 | F8: 9790.523914 | G8: 12900 | H8: 12747.27531 | I8: 4554.257293 | J8: 164.9180423 | K8: 508.5348704 | L8: 233.5218611 | M8: 410601.0774
A9: 5 | B9: 196590.9442 | C9: 66690.31373 | D9: 244433.3029 | E9: 3025.074373 | F9: 12377.95192 | G9: 12900 | H9: 14685.27529 | I9: 4561.408705 | J9: 165.177008 | K9: 508.5348704 | L9: 233.8885533 | M9: 502188.9716
A10: 6 | B10: 207120.3607 | C10: 68219.59856 | D10: 248548.5435 | E10: 3104.587663 | F10: 10629.45846 | G10: 12900 | H10: 15163.15109 | I10: 4561.408705 | J10: 165.177008 | K10: 508.5348704 | L10: 233.8885533 | M10: 524962.0359
A11: 7 | B11: 264178.6007 | C11: 75780.41642 | D11: 253344.9353 | E11: 3240.300811 | F11: 12932.43317 | G11: 12900 | H11: 15009.41556 | I11: 4562.848477 | J11: 165.2291448 | K11: 508.5348704 | L11: 233.9623784 | M11: 599325.0493
A12: 8 | B12: 267206.725 | C12: 74273.38902 | D12: 256240.5362 | E12: 3212.170898 | F12: 12269.46233 | G12: 12900 | H12: 15391.99631 | I12: 4562.848477 | J12: 165.2291448 | K12: 508.5348704 | L12: 233.9623784 | M12: 603547.8085
A13: 9 | B13: 304461.4246 | C13: 75863.48764 | D13: 268634.6686 | E13: 3262.800193 | F13: 13562.91101 | G13: 12900 | H13: 16422.43373 | I13: 4562.848477 | J13: 165.2291448 | K13: 508.5348704 | L13: 233.9623784 | M13: 609328.6885
A14: 10 | B14: 171691.3476 | C14: 54526.81622 | D14: 216366.5691 | E14: 2463.518899 | F14: 10325.68401 | G14: 12900 | H14: 13635.25006 | I14: 4562.848477 | J14: 165.2291448 | K14: 508.5348704 | L14: 233.9623784 | M14: 399487.0908
A15: 11 | B15: 190841.1388 | C15: 55931.69788 | D15: 219243.1957 | E15: 2488.831328 | F15: 9241.868339 | G15: 12900 | H15: 10709.68282 | I15: 4562.848477 | J15: 165.2291448 | K15: 508.5348704 | L15: 233.9623784 | M15: 434621.5911
A16: 12 | B16: 192098.5528 | C16: 55111.85381 | D16: 204033.7755 | E16: 2411.493551 | F16: 8758.745002 | G16: 12900 | H16: 10245.95934 | I16: 4562.848477 | J16: 165.2291448 | K16: 508.5348704 | L16: 233.9623784 | M16: 443028.8993
A19: 1 NCP | B19: =MAX(B4:B15) -> 304461.4246 | C19: 75863.48764 | D19: 268634.6686 | E19: 3262.800193 | F19: 13562.91101 | G19: 12900 | H19: 16422.43373 | I19: 4562.848477 | J19: 165.2291448 | K19: 508.5348704 | L19: 233.9623784 | M19: =SUM(B19:L19) -> 700578.3006
A20: 4 NCP | B20: =SUM(LARGE(B4:B15,1),LARGE(B4:B15,2),LARGE(B4:B15,3),LARGE(B4:B15,4)) -> 1051216.506 | C20: 294136.8916 | D20: 1026768.684 | E20: 12819.85957 | F20: 51142.75844 | G20: 51600 | H20: 61986.99669 | I20: 18251.39391 | J20: 660.9165793 | K20: 2034.139482 | L20: 935.8495135 | M20: =SUM(B20:L20) -> 2571553.996
A21: 12 NCP | B21: =SUM((B4:B16)) -> 2581763.595 | C21: 775350.2113 | D21: 2790401.981 | E21: 34825.50927 | F21: 121035.8002 | G21: 154800 | H21: 155752.9204 | I21: 54705.57353 | J21: 1980.989546 | K21: 6102.418445 | L21: 2805.056131 | M21: 6679524.056
A23: 1 NCP | B23: =B19 -> 304461.4246 | C23: =C19 -> 75863.48764 | E23: =SUM(D19:E19) -> 271897.4688 | F23: 13562.91101 | G23: 12900 | H23: 16422.43373 | I23: 4562.848477 | J23: 165.2291448 | L23: =SUM(K19:L19) -> 742.4972488 | M23: =SUM(B23:L23) -> 700578.3006
A24: 4 NCP | B24: =B20 -> 1051216.506 | C24: 294136.8916 | E24: =SUM(D20:E20) -> 1039588.543 | F24: 51142.75844 | G24: 51600 | H24: 61986.99669 | I24: 18251.39391 | J24: 660.9165793 | L24: =SUM(K20:L20) -> 2969.988995 | M24: =SUM(B24:L24) -> 2571553.996
A25: 12 NCP | B25: 2581763.595 | C25: 775350.2113 | E25: 2825227.491 | F25: 121035.8002 | G25: 154800 | H25: 155752.9204 | I25: 54705.57353 | J25: 1980.989546 | L25: 8907.474576 | M25: 6679524.056

Sheet Forecast CP Table
A1: Month | B1: Day | C1: Hour | D1: DateRef | E1: Residential | F1: GS < 50 kW | G1: GS > 50 - 4,999 kW | H1: Wholesale Market Participant | I1: Co-Generation | J1: Standby | K1: Large Use | L1: Street Lights | M1: Sentinel Lights | N1: Unmetered Scattered Load - 24 Hour | O1: Unmetered Scattered Load - 12 Hour | P1: Total
A2: 1 | B2: 8 | C2: 18 | D2: Y010818 | E2: 194339.3076 | F2: 60096.38486 | G2: 208877.7405 | H2: 2848.862558 | I2: 2716.1563 | J2: 12900 | K2: 9679.471409 | L2: 4545.772941 | M2: 164.6108082 | N2: 508.5348704 | O2: 233.0868216 | P2: 496509.9287
A3: 2 | B3: 19 | C3: 20 | D3: Y021920 | E3: 202706.4482 | F3: 57824.55682 | G3: 199604.0522 | H3: 2671.75654 | I3: 143.3861172 | J3: 12900 | K3: 8866.551327 | L3: 4552.817514 | M3: 164.8659052 | N3: 508.5348704 | O3: 233.4480356 | P3: 489776.4175
A4: 3 | B4: 5 | C4: 20 | D4: Y030520 | E4: 189127.5439 | F4: 55346.096 | G4: 195635.1387 | H4: 2554.040804 | I4: 73.73927248 | J4: 12900 | K4: 9517.088241 | L4: 4552.817514 | M4: 164.8659052 | N4: 508.5348704 | O4: 233.4480356 | P4: 470213.3133
A5: 4 | B5: 8 | C5: 20 | D5: Y040820 | E5: 158595.7708 | F5: 45436.457 | G5: 176420.6817 | H5: 2180.648215 | I5: 1288.089585 | J5: 12900 | K5: 8718.197979 | L5: 4554.257293 | M5: 164.9180423 | N5: 508.5348704 | O5: 233.5218611 | P5: 410601.0774
A6: 5 | B6: 26 | C6: 17 | D6: Y052617 | E6: 186721.3656 | F6: 59136.06275 | G6: 219830.7084 | H6: 2710.445275 | I6: 6990.301985 | J6: 12900 | K6: 13741.948 | L6: 45.61408758 | M6: 1.6517701 | N6: 508.5348704 | O6: 2.338885561 | P6: 502188.9716
A7: 6 | B7: 15 | C7: 15 | D7: Y061515 | E7: 173242.4671 | F7: 67409.98469 | G7: 243630.2878 | H7: 3066.382655 | I7: 9819.493736 | J7: 12900 | K7: 14735.28028 | L7: 45.61408758 | M7: 1.6517701 | N7: 508.5348704 | O7: 2.338885561 | P7: 524962.0359
A8: 7 | B8: 29 | C8: 15 | D8: Y072915 | E8: 238757.9118 | F8: 75656.2434 | G8: 248186.1319 | H8: 3211.298834 | I8: 6999.148102 | J8: 12900 | K8: 13456.16002 | L8: 45.6284876 | M8: 1.652291551 | N8: 508.5348704 | O8: 2.339623929 | P8: 599325.0493
A9: 8 | B9: 17 | C9: 16 | D9: Y081716 | E9: 254020.688 | F9: 71529.92487 | G9: 244487.851 | H9: 3077.492701 | I9: 3762.321139 | J9: 12900 | K9: 13611.37552 | L9: 45.6284876 | M9: 1.652291551 | N9: 508.5348704 | O9: 2.339623929 | P9: 603547.8085
A10: 9 | B10: 8 | C10: 16 | D10: Y090816 | E10: 247260.0009 | F10: 72409.00157 | G10: 253031.0662 | H10: 3102.732247 | I10: 4424.990503 | J10: 12900 | K10: 16042.74178 | L10: 45.6284876 | M10: 1.652291551 | N10: 508.5348704 | O10: 2.339623929 | P10: 609328.6885
A11: 10 | B11: 28 | C11: 18 | D11: Y102818 | E11: 138656.4526 | F11: 45185.26787 | G11: 181340.1414 | H11: 2037.129728 | I11: 5456.352122 | J11: 12900 | K11: 9188.515012 | L11: 4243.449094 | M11: 153.6631051 | N11: 508.5348704 | O11: 217.5850124 | P11: 399487.0908
A12: 11 | B12: 23 | C12: 18 | D12: Y112318 | E12: 165227.3212 | F12: 51071.22779 | G12: 186071.2048 | H12: 2180.836572 | I12: 2386.885082 | J12: 12900 | K12: 9713.540677 | L12: 4562.848477 | M12: 165.2291448 | N12: 508.5348704 | O12: 233.9623784 | P12: 434621.5911
A13: 12 | B13: 7 | C13: 18 | D13: Y120718 | E13: 171341.5105 | F13: 51408.02646 | G13: 188135.9178 | H13: 2235.808407 | I13: 2382.587294 | J13: 12900 | K13: 9554.473922 | L13: 4562.848477 | M13: 165.2291448 | N13: 508.5348704 | O13: 233.9623784 | P13: 443028.8993
A17: 1 CP | E17: =SUMIF(($P2:$P13),609328.688483596,(E2:E13)) -> 247260.0009 | F17: 72409.00157 | G17: 253031.0662 | H17: 3102.732247 | I17: 4424.990503 | J17: 12900 | K17: 16042.74178 | L17: 45.6284876 | M17: 1.652291551 | N17: 508.5348704 | O17: 2.339623929 | P17: =MAX(P2:P13) -> 609328.6885
A19: 4 CPa | E19: =SUMIF(($P2:$P13),609328.688483596,(E2:E13)) -> 247260.0009 | F19: 72409.00157 | G19: 253031.0662 | H19: 3102.732247 | I19: 4424.990503 | J19: 12900 | K19: 16042.74178 | L19: 45.6284876 | M19: 1.652291551 | N19: 508.5348704 | O19: 2.339623929 | P19: =LARGE(P2:P13,1) -> 609328.6885
A20: 4 CPb | E20: =SUMIF(($P2:$P13),603547.808469508,(E2:E13)) -> 254020.688 | F20: 71529.92487 | G20: 244487.851 | H20: 3077.492701 | I20: 3762.321139 | J20: 12900 | K20: 13611.37552 | L20: 45.6284876 | M20: 1.652291551 | N20: 508.5348704 | O20: 2.339623929 | P20: =LARGE(P2:P13,2) -> 603547.8085
A21: 4 CPc | E21: =SUMIF(($P2:$P13),599325.049279432,(E2:E13)) -> 238757.9118 | F21: 75656.2434 | G21: 248186.1319 | H21: 3211.298834 | I21: 6999.148102 | J21: 12900 | K21: 13456.16002 | L21: 45.6284876 | M21: 1.652291551 | N21: 508.5348704 | O21: 2.339623929 | P21: =LARGE(P2:P13,3) -> 599325.0493
A22: 4 CPd | E22: =SUMIF(($P2:$P13),524962.035882879,(E2:E13)) -> 173242.4671 | F22: 67409.98469 | G22: 243630.2878 | H22: 3066.382655 | I22: 9819.493736 | J22: 12900 | K22: 14735.28028 | L22: 45.61408758 | M22: 1.6517701 | N22: 508.5348704 | O22: 2.338885561 | P22: =LARGE(P2:P13,4) -> 524962.0359
A23: Total 4 CP | E23: =SUM((E19:E22)) -> 913281.0678 | F23: 287005.1545 | G23: 989335.3369 | H23: 12457.90644 | I23: 25005.95348 | J23: 51600 | K23: 57845.5576 | L23: 182.4995504 | M23: 6.608644751 | N23: 2034.139482 | O23: 9.357757347 | P23: 2337163.582
A25: 12 CP | E25: =SUM((E2:E13)) -> 2319996.788 | F25: 712509.2341 | G25: 2545250.922 | H25: 31877.43454 | I25: 46443.45124 | J25: 154800 | K25: 136825.3442 | L25: 31802.92495 | M25: 1151.64247 | N25: 6102.418445 | O25: 1630.711166 | P25: 5983590.872
A28: 1 CP | E28: =E17 -> 247260.0009 | F28: =F17 -> 72409.00157 | H28: =SUM(G17:H17) -> 256133.7984 | I28: 4424.990503 | J28: 12900 | K28: 16042.74178 | L28: 45.6284876 | M28: 1.652291551 | O28: =SUM(N17:O17) -> 510.8744944 | P28: =SUM(E28:O28) -> 609728.6885
A29: 4 CP | E29: =E23 -> 913281.0678 | F29: =F23 -> 287005.1545 | H29: =SUM(G23:H23) -> 1001793.243 | I29: 25005.95348 | J29: 51600 | K29: 57845.5576 | L29: 182.4995504 | M29: 6.608644751 | O29: =SUM(N23:O23) -> 2043.497239 | P29: =SUM(E29:O29) -> 2338763.582
A30: 12 CP | E30: =E25 -> 2319996.788 | F30: =F25 -> 712509.2341 | H30: =SUM(G25:H25) -> 2577128.357 | I30: 46443.45124 | J30: 154800 | K30: 136825.3442 | L30: 31802.92495 | M30: 1151.64247 | O30: =SUM(N25:O25) -> 7733.129611 | P30: 5988390.872

Sheet Forecast Profile kWh
A1: Month | B1: Day | C1: Hour | D1: DateRef | E1: Residential | F1: GS < 50 kW | G1: GS > 50 - 4,999 kW | H1: Wholesale Market Participant | I1: Co-Generation | J1: Standby | K1: Large Use | L1: Street Lights | M1: Sentinel Lights | N1: Unmetered Scattered Load - 24 Hour | O1: Unmetered Scattered Load - 12 Hour | P1: Total
A2: 1 | B2: 1 | C2: 1 | D2: =DateRef(A2,B2,C2) -> Y010101 | E2: =Profile!B2/1077.03117593519*1068671798.45635 -> 138467.8239 | F2: =Profile!D2/390.985647863949*371911862.77167 -> 39265.98482 | G2: =Profile!J2/1427.26553695905*1469047929.49924 -> 127901.2667 | H2: =Profile!H2/358.09551901307*17602117.1513547 -> 1800.502883 | I2: =Profile!N2/499.485398604002*34191554.8115063 -> 396.4463413 | J2: 12900 | K2: =Profile!L2/119.908945705601*82923504.6960988 -> 6830.713451 | L2: =Profile!O2/25.515728944797*19502488 -> 4545.772941 | M2: =Profile!O2/25.515728944797*706221 -> 164.6108082 | N2: 508.5348704 | O2: =Profile!O2/25.515728944797*1000000 -> 233.0868216 | P2: =SUM(E2:O2) -> 333014.7436
A3: 1 | B3: 1 | C3: 2 | D3: Y010102 | E3: =Profile!B3/1077.03117593519*1068671798.45635 -> 126876.7158 | F3: =Profile!D3/390.985647863949*371911862.77167 -> 38501.1046 | G3: =Profile!J3/1427.26553695905*1469047929.49924 -> 125775.0614 | H3: =Profile!H3/358.09551901307*17602117.1513547 -> 1768.299521 | I3: =Profile!N3/499.485398604002*34191554.8115063 -> 396.2779455 | J3: 12900 | K3: =Profile!L3/119.908945705601*82923504.6960988 -> 6786.665993 | L3: =Profile!O3/25.515728944797*19502488 -> 4545.772941 | M3: =Profile!O3/25.515728944797*706221 -> 164.6108082 | N3: 508.5348704 | O3: =Profile!O3/25.515728944797*1000000 -> 233.0868216 | P3: =SUM(E3:O3) -> 318456.1308
A4: 1 | B4: 1 | C4: 3 | D4: Y010103 | E4: =Profile!B4/1077.03117593519*1068671798.45635 -> 116715.0595 | F4: =Profile!D4/390.985647863949*371911862.77167 -> 37557.41292 | G4: =Profile!J4/1427.26553695905*1469047929.49924 -> 123504.4392 | H4: =Profile!H4/358.09551901307*17602117.1513547 -> 1730.9186 | I4: =Profile!N4/499.485398604002*34191554.8115063 -> 400.7605586 | J4: 12900 | K4: =Profile!L4/119.908945705601*82923504.6960988 -> 6720.447782 | L4: =Profile!O4/25.515728944797*19502488 -> 4545.772941 | M4: =Profile!O4/25.515728944797*706221 -> 164.6108082 | N4: 508.5348704 | O4: =Profile!O4/25.515728944797*1000000 -> 233.0868216 | P4: 304981.044
A5: 1 | B5: 1 | C5: 4 | D5: Y010104 | E5: =Profile!B5/1077.03117593519*1068671798.45635 -> 109854.5416 | F5: =Profile!D5/390.985647863949*371911862.77167 -> 37060.81289 | G5: =Profile!J5/1427.26553695905*1469047929.49924 -> 123524.7415 | H5: =Profile!H5/358.09551901307*17602117.1513547 -> 1720.139628 | I5: =Profile!N5/499.485398604002*34191554.8115063 -> 410.2211147 | J5: 12900 | K5: =Profile!L5/119.908945705601*82923504.6960988 -> 6725.470919 | L5: =Profile!O5/25.515728944797*19502488 -> 4545.772941 | M5: =Profile!O5/25.515728944797*706221 -> 164.6108082 | N5: 508.5348704 | O5: =Profile!O5/25.515728944797*1000000 -> 233.0868216 | P5: 297647.933
A6: 1 | B6: 1 | C6: 5 | D6: Y010105 | E6: =Profile!B6/1077.03117593519*1068671798.45635 -> 107316.6583 | F6: =Profile!D6/390.985647863949*371911862.77167 -> 36738.20891 | G6: =Profile!J6/1427.26553695905*1469047929.49924 -> 123517.6987 | H6: =Profile!H6/358.09551901307*17602117.1513547 -> 1713.118767 | I6: =Profile!N6/499.485398604002*34191554.8115063 -> 406.3159759 | J6: 12900 | K6: =Profile!L6/119.908945705601*82923504.6960988 -> 6815.291511 | L6: =Profile!O6/25.515728944797*19502488 -> 4545.772941 | M6: =Profile!O6/25.515728944797*706221 -> 164.6108082 | N6: 508.5348704 | O6: =Profile!O6/25.515728944797*1000000 -> 233.0868216 | P6: 294859.2977
A7: 1 | B7: 1 | C7: 6 | D7: Y010106 | E7: =Profile!B7/1077.03117593519*1068671798.45635 -> 107753.2342 | F7: =Profile!D7/390.985647863949*371911862.77167 -> 36743.1408 | G7: =Profile!J7/1427.26553695905*1469047929.49924 -> 125034.1193 | H7: =Profile!H7/358.09551901307*17602117.1513547 -> 1724.231097 | I7: =Profile!N7/499.485398604002*34191554.8115063 -> 417.1236981 | J7: 12900 | K7: =Profile!L7/119.908945705601*82923504.6960988 -> 7109.839644 | L7: =Profile!O7/25.515728944797*19502488 -> 4545.772941 | M7: =Profile!O7/25.515728944797*706221 -> 164.6108082 | N7: 508.5348704 | O7: =Profile!O7/25.515728944797*1000000 -> 233.0868216 | P7: 297133.6943
A8: 1 | B8: 1 | C8: 7 | D8: Y010107 | E8: =Profile!B8/1077.03117593519*1068671798.45635 -> 109833.1867 | F8: =Profile!D8/390.985647863949*371911862.77167 -> 37184.16366 | G8: =Profile!J8/1427.26553695905*1469047929.49924 -> 130811.8657 | H8: =Profile!H8/358.09551901307*17602117.1513547 -> 1776.124219 | I8: =Profile!N8/499.485398604002*34191554.8115063 -> 409.3405281 | J8: 12900 | K8: =Profile!L8/119.908945705601*82923504.6960988 -> 7401.053754 | L8: =Profile!O8/25.515728944797*19502488 -> 3591.160626 | M8: =Profile!O8/25.515728944797*706221 -> 130.0425386 | N8: 508.5348704 | O8: =Profile!O8/25.515728944797*1000000 -> 184.1385892 | P8: 304729.6112
A9: 1 | B9: 1 | C9: 8 | D9: Y010108 | E9: =Profile!B9/1077.03117593519*1068671798.45635 -> 113828.486 | F9: =Profile!D9/390.985647863949*371911862.77167 -> 37336.68296 | G9: =Profile!J9/1427.26553695905*1469047929.49924 -> 133097.1389 | H9: =Profile!H9/358.09551901307*17602117.1513547 -> 1796.191893 | I9: =Profile!N9/499.485398604002*34191554.8115063 -> 415.7272454 | J9: 12900 | K9: =Profile!L9/119.908945705601*82923504.6960988 -> 7637.616108 | L9: =Profile!O9/25.515728944797*19502488 -> 227.2886486 | M9: =Profile!O9/25.515728944797*706221 -> 8.230540466 | N9: 508.5348704 | O9: =Profile!O9/25.515728944797*1000000 -> 11.65434116 | P9: 307767.5516
A10: 1 | B10: 1 | C10: 9 | D10: Y010109 | E10: =Profile!B10/1077.03117593519*1068671798.45635 -> 123736.5182 | F10: =Profile!D10/390.985647863949*371911862.77167 -> 35744.28734 | G10: =Profile!J10/1427.26553695905*1469047929.49924 -> 131087.3402 | H10: =Profile!H10/358.09551901307*17602117.1513547 -> 1746.522694 | I10: =Profile!N10/499.485398604002*34191554.8115063 -> 411.9157511 | J10: 12900 | K10: =Profile!L10/119.908945705601*82923504.6960988 -> 7553.441248 | L10: =Profile!O10/25.515728944797*19502488 -> 45.45772818 | M10: =Profile!O10/25.515728944797*706221 -> 1.646108038 | N10: 508.5348704 | O10: =Profile!O10/25.515728944797*1000000 -> 2.330868153 | P10: 313737.995
A11: 1 | B11: 1 | C11: 10 | D11: Y010110 | E11: =Profile!B11/1077.03117593519*1068671798.45635 -> 137595.4121 | F11: =Profile!D11/390.985647863949*371911862.77167 -> 35456.74053 | G11: =Profile!J11/1427.26553695905*1469047929.49924 -> 131276.2793 | H11: =Profile!H11/358.09551901307*17602117.1513547 -> 1741.538926 | I11: =Profile!N11/499.485398604002*34191554.8115063 -> 427.2545515 | J11: 12900 | K11: =Profile!L11/119.908945705601*82923504.6960988 -> 7549.595629 | L11: =Profile!O11/25.515728944797*19502488 -> 45.45772818 | M11: =Profile!O11/25.515728944797*706221 -> 1.646108038 | N11: 508.5348704 | O11: =Profile!O11/25.515728944797*1000000 -> 2.330868153 | P11: 327504.7906
A12: 1 | B12: 1 | C12: 11 | D12: Y010111 | E12: =Profile!B12/1077.03117593519*1068671798.45635 -> 149224.2485 | F12: =Profile!D12/390.985647863949*371911862.77167 -> 35963.20562 | G12: =Profile!J12/1427.26553695905*1469047929.49924 -> 132675.9608 | H12: =Profile!H12/358.09551901307*17602117.1513547 -> 1762.829409 | I12: =Profile!N12/499.485398604002*34191554.8115063 -> 450.2303051 | J12: 12900 | K12: =Profile!L12/119.908945705601*82923504.6960988 -> 7576.18022 | L12: =Profile!O12/25.515728944797*19502488 -> 45.45772818 | M12: =Profile!O12/25.515728944797*706221 -> 1.646108038 | N12: 508.5348704 | O12: =Profile!O12/25.515728944797*1000000 -> 2.330868153 | P12: 341110.6244
A13: 1 | B13: 1 | C13: 12 | D13: Y010112 | E13: =Profile!B13/1077.03117593519*1068671798.45635 -> 157051.9047 | F13: =Profile!D13/390.985647863949*371911862.77167 -> 36662.28538 | G13: =Profile!J13/1427.26553695905*1469047929.49924 -> 133682.7238 | H13: =Profile!H13/358.09551901307*17602117.1513547 -> 1785.472037 | I13: =Profile!N13/499.485398604002*34191554.8115063 -> 415.1916647 | J13: 12900 | K13: =Profile!L13/119.908945705601*82923504.6960988 -> 7536.118737 | L13: =Profile!O13/25.515728944797*19502488 -> 45.45772818 | M13: =Profile!O13/25.515728944797*706221 -> 1.646108038 | N13: 508.5348704 | O13: =Profile!O13/25.515728944797*1000000 -> 2.330868153 | P13: 350591.6658
A14: 1 | B14: 1 | C14: 13 | D14: Y010113 | E14: =Profile!B14/1077.03117593519*1068671798.45635 -> 164453.1701 | F14: =Profile!D14/390.985647863949*371911862.77167 -> 37066.36158 | G14: =Profile!J14/1427.26553695905*1469047929.49924 -> 134211.9353 | H14: =Profile!H14/358.09551901307*17602117.1513547 -> 1798.124167 | I14: =Profile!N14/499.485398604002*34191554.8115063 -> 417.0218392 | J14: 12900 | K14: =Profile!L14/119.908945705601*82923504.6960988 -> 7525.556426 | L14: =Profile!O14/25.515728944797*19502488 -> 45.45772818 | M14: =Profile!O14/25.515728944797*706221 -> 1.646108038 | N14: 508.5348704 | O14: =Profile!O14/25.515728944797*1000000 -> 2.330868153 | P14: 358930.139
A15: 1 | B15: 1 | C15: 14 | D15: Y010114 | E15: =Profile!B15/1077.03117593519*1068671798.45635 -> 169513.7465 | F15: =Profile!D15/390.985647863949*371911862.77167 -> 37218.21743 | G15: =Profile!J15/1427.26553695905*1469047929.49924 -> 134564.1602 | H15: =Profile!H15/358.09551901307*17602117.1513547 -> 1804.066264 | I15: =Profile!N15/499.485398604002*34191554.8115063 -> 424.8715461 | J15: 12900 | K15: =Profile!L15/119.908945705601*82923504.6960988 -> 7508.997415 | L15: =Profile!O15/25.515728944797*19502488 -> 45.45772818 | M15: =Profile!O15/25.515728944797*706221 -> 1.646108038 | N15: 508.5348704 | O15: =Profile!O15/25.515728944797*1000000 -> 2.330868153 | P15: 364492.029
A16: 1 | B16: 1 | C16: 15 | D16: Y010115 | E16: =Profile!B16/1077.03117593519*1068671798.45635 -> 170041.2883 | F16: =Profile!D16/390.985647863949*371911862.77167 -> 37273.45299 | G16: =Profile!J16/1427.26553695905*1469047929.49924 -> 134082.8764 | H16: =Profile!H16/358.09551901307*17602117.1513547 -> 1801.690518 | I16: =Profile!N16/499.485398604002*34191554.8115063 -> 416.8041569 | J16: 12900 | K16: =Profile!L16/119.908945705601*82923504.6960988 -> 7527.790976 | L16: =Profile!O16/25.515728944797*19502488 -> 45.45772818 | M16: =Profile!O16/25.515728944797*706221 -> 1.646108038 | N16: 508.5348704 | O16: =Profile!O16/25.515728944797*1000000 -> 2.330868153 | P16: 364601.8729
A17: 1 | B17: 1 | C17: 16 | D17: Y010116 | E17: =Profile!B17/1077.03117593519*1068671798.45635 -> 171810.6117 | F17: =Profile!D17/390.985647863949*371911862.77167 -> 37212.06997 | G17: =Profile!J17/1427.26553695905*1469047929.49924 -> 133635.4897 | H17: =Profile!H17/358.09551901307*17602117.1513547 -> 1797.120529 | I17: =Profile!N17/499.485398604002*34191554.8115063 -> 426.4207871 | J17: 12900 | K17: =Profile!L17/119.908945705601*82923504.6960988 -> 7572.208977 | L17: =Profile!O17/25.515728944797*19502488 -> 45.45772818 | M17: =Profile!O17/25.515728944797*706221 -> 1.646108038 | N17: 508.5348704 | O17: =Profile!O17/25.515728944797*1000000 -> 2.330868153 | P17: 365911.8912
A18: 1 | B18: 1 | C18: 17 | D18: Y010117 | E18: =Profile!B18/1077.03117593519*1068671798.45635 -> 182048.8993 | F18: =Profile!D18/390.985647863949*371911862.77167 -> 38728.3991 | G18: =Profile!J18/1427.26553695905*1469047929.49924 -> 136045.4567 | H18: =Profile!H18/358.09551901307*17602117.1513547 -> 1847.917314 | I18: =Profile!N18/499.485398604002*34191554.8115063 -> 424.4411101 | J18: 12900 | K18: =Profile!L18/119.908945705601*82923504.6960988 -> 7622.484746 | L18: =Profile!O18/25.515728944797*19502488 -> 2227.428735 | M18: =Profile!O18/25.515728944797*706221 -> 80.6592958 | N18: 508.5348704 | O18: =Profile!O18/25.515728944797*1000000 -> 114.2125422 | P18: 382548.4337
A19: 1 | B19: 1 | C19: 18 | D19: Y010118 | E19: =Profile!B19/1077.03117593519*1068671798.45635 -> 197429.2602 | F19: =Profile!D19/390.985647863949*371911862.77167 -> 42432.21061 | G19: =Profile!J19/1427.26553695905*1469047929.49924 -> 139655.0837 | H19: =Profile!H19/358.09551901307*17602117.1513547 -> 1955.54089 | I19: =Profile!N19/499.485398604002*34191554.8115063 -> 441.9279833 | J19: 12900 | K19: =Profile!L19/119.908945705601*82923504.6960988 -> 7647.994852 | L19: =Profile!O19/25.515728944797*19502488 -> 4545.772941 | M19: =Profile!O19/25.515728944797*706221 -> 164.6108082 | N19: 508.5348704 | O19: =Profile!O19/25.515728944797*1000000 -> 233.0868216 | P19: 407914.0236
A20: 1 | B20: 1 | C20: 19 | D20: Y010119 | E20: =Profile!B20/1077.03117593519*1068671798.45635 -> 193370.8726 | F20: =Profile!D20/390.985647863949*371911862.77167 -> 42321.67344 | G20: =Profile!J20/1427.26553695905*1469047929.49924 -> 137694.8235 | H20: =Profile!H20/358.09551901307*17602117.1513547 -> 1938.833974 | I20: =Profile!N20/499.485398604002*34191554.8115063 -> 427.3695535 | J20: 12900 | K20: =Profile!L20/119.908945705601*82923504.6960988 -> 7534.139943 | L20: =Profile!O20/25.515728944797*19502488 -> 4545.772941 | M20: =Profile!O20/25.515728944797*706221 -> 164.6108082 | N20: 508.5348704 | O20: =Profile!O20/25.515728944797*1000000 -> 233.0868216 | P20: 401639.7184
A21: 1 | B21: 1 | C21: 20 | D21: Y010120 | E21: =Profile!B21/1077.03117593519*1068671798.45635 -> 187868.6079 | F21: =Profile!D21/390.985647863949*371911862.77167 -> 41812.65252 | G21: =Profile!J21/1427.26553695905*1469047929.49924 -> 135464.6724 | H21: =Profile!H21/358.09551901307*17602117.1513547 -> 1911.403315 | I21: =Profile!N21/499.485398604002*34191554.8115063 -> 427.7753462 | J21: 12900 | K21: =Profile!L21/119.908945705601*82923504.6960988 -> 7447.410735 | L21: =Profile!O21/25.515728944797*19502488 -> 4545.772941 | M21: =Profile!O21/25.515728944797*706221 -> 164.6108082 | N21: 508.5348704 | O21: =Profile!O21/25.515728944797*1000000 -> 233.0868216 | P21: 393284.5276
A22: 1 | B22: 1 | C22: 21 | D22: Y010121 | E22: =Profile!B22/1077.03117593519*1068671798.45635 -> 182169.6855 | F22: =Profile!D22/390.985647863949*371911862.77167 -> 41178.22522 | G22: =Profile!J22/1427.26553695905*1469047929.49924 -> 134202.1402 | H22: =Profile!H22/358.09551901307*17602117.1513547 -> 1888.301058 | I22: =Profile!N22/499.485398604002*34191554.8115063 -> 458.7650952 | J22: 12900 | K22: =Profile!L22/119.908945705601*82923504.6960988 -> 7368.210175 | L22: =Profile!O22/25.515728944797*19502488 -> 4545.772941 | M22: =Profile!O22/25.515728944797*706221 -> 164.6108082 | N22: 508.5348704 | O22: =Profile!O22/25.515728944797*1000000 -> 233.0868216 | P22: 385617.3327
A23: 1 | B23: 1 | C23: 22 | D23: Y010122 | E23: =Profile!B23/1077.03117593519*1068671798.45635 -> 172624.132 | F23: =Profile!D23/390.985647863949*371911862.77167 -> 40136.8714 | G23: =Profile!J23/1427.26553695905*1469047929.49924 -> 132988.8865 | H23: =Profile!H23/358.09551901307*17602117.1513547 -> 1856.648885 | I23: =Profile!N23/499.485398604002*34191554.8115063 -> 437.6318377 | J23: 12900 | K23: =Profile!L23/119.908945705601*82923504.6960988 -> 7327.480786 | L23: =Profile!O23/25.515728944797*19502488 -> 4545.772941 | M23: =Profile!O23/25.515728944797*706221 -> 164.6108082 | N23: 508.5348704 | O23: =Profile!O23/25.515728944797*1000000 -> 233.0868216 | P23: 373723.6568
A24: 1 | B24: 1 | C24: 23 | D24: Y010123 | E24: =Profile!B24/1077.03117593519*1068671798.45635 -> 156241.6375 | F24: =Profile!D24/390.985647863949*371911862.77167 -> 39017.75541 | G24: =Profile!J24/1427.26553695905*1469047929.49924 -> 130335.7791 | H24: =Profile!H24/358.09551901307*17602117.1513547 -> 1812.845726 | I24: =Profile!N24/499.485398604002*34191554.8115063 -> 434.686144 | J24: 12900 | K24: =Profile!L24/119.908945705601*82923504.6960988 -> 7187.312564 | L24: =Profile!O24/25.515728944797*19502488 -> 4545.772941 | M24: =Profile!O24/25.515728944797*706221 -> 164.6108082 | N24: 508.5348704 | O24: =Profile!O24/25.515728944797*1000000 -> 233.0868216 | P24: 353382.0219
A25: 1 | B25: 1 | C25: 24 | D25: Y010124 | E25: =Profile!B25/1077.03117593519*1068671798.45635 -> 135032.6955 | F25: =Profile!D25/390.985647863949*371911862.77167 -> 37677.0593 | G25: =Profile!J25/1427.26553695905*1469047929.49924 -> 127781.2091 | H25: =Profile!H25/358.09551901307*17602117.1513547 -> 1765.19099 | I25: =Profile!N25/499.485398604002*34191554.8115063 -> 477.9712481 | J25: 12900 | K25: =Profile!L25/119.908945705601*82923504.6960988 -> 6845.761313 | L25: =Profile!O25/25.515728944797*19502488 -> 4545.772941 | M25: =Profile!O25/25.515728944797*706221 -> 164.6108082 | N25: 508.5348704 | O25: =Profile!O25/25.515728944797*1000000 -> 233.0868216 | P25: 327931.8929
A26: 1 | B26: 2 | C26: 1 | D26: Y010201 | E26: =Profile!B26/1077.03117593519*1068671798.45635 -> 117323.4263 | F26: =Profile!D26/390.985647863949*371911862.77167 -> 36598.37193 | G26: =Profile!J26/1427.26553695905*1469047929.49924 -> 126355.1864 | H26: =Profile!H26/358.09551901307*17602117.1513547 -> 1732.061497 | I26: =Profile!N26/499.485398604002*34191554.8115063 -> 389.607009 | J26: 12900 | K26: =Profile!L26/119.908945705601*82923504.6960988 -> 6737.420401 | L26: =Profile!O26/25.515728944797*19502488 -> 4545.772941 | M26: =Profile!O26/25.515728944797*706221 -> 164.6108082 | N26: 508.5348704 | O26: =Profile!O26/25.515728944797*1000000 -> 233.0868216 | P26: 307488.079
A27: 1 | B27: 2 | C27: 2 | D27: Y010202 | E27: =Profile!B27/1077.03117593519*1068671798.45635 -> 105600.6872 | F27: =Profile!D27/390.985647863949*371911862.77167 -> 35820.55383 | G27: =Profile!J27/1427.26553695905*1469047929.49924 -> 124675.1231 | H27: =Profile!H27/358.09551901307*17602117.1513547 -> 1702.709314 | I27: =Profile!N27/499.485398604002*34191554.8115063 -> 384.2659882 | J27: 12900 | K27: =Profile!L27/119.908945705601*82923504.6960988 -> 6752.565723 | L27: =Profile!O27/25.515728944797*19502488 -> 4545.772941 | M27: =Profile!O27/25.515728944797*706221 -> 164.6108082 | N27: 508.5348704 | O27: =Profile!O27/25.515728944797*1000000 -> 233.0868216 | P27: 293287.9106
A28: 1 | B28: 2 | C28: 3 | D28: Y010203 | E28: =Profile!B28/1077.03117593519*1068671798.45635 -> 99796.12693 | F28: =Profile!D28/390.985647863949*371911862.77167 -> 35622.95857 | G28: =Profile!J28/1427.26553695905*1469047929.49924 -> 123534.7856 | H28: =Profile!H28/358.09551901307*17602117.1513547 -> 1690.002505 | I28: =Profile!N28/499.485398604002*34191554.8115063 -> 391.967014 | J28: 12900 | K28: =Profile!L28/119.908945705601*82923504.6960988 -> 6676.73249 | L28: =Profile!O28/25.515728944797*19502488 -> 4545.772941 | M28: =Profile!O28/25.515728944797*706221 -> 164.6108082 | N28: 508.5348704 | O28: =Profile!O28/25.515728944797*1000000 -> 233.0868216 | P28: 286064.5785
A29: 1 | B29: 2 | C29: 4 | D29: Y010204 | E29: =Profile!B29/1077.03117593519*1068671798.45635 -> 96388.69439 | F29: =Profile!D29/390.985647863949*371911862.77167 -> 35267.72144 | G29: =Profile!J29/1427.26553695905*1469047929.49924 -> 123422.0386 | H29: =Profile!H29/358.09551901307*17602117.1513547 -> 1681.394362 | I29: =Profile!N29/499.485398604002*34191554.8115063 -> 399.9621162 | J29: 12900 | K29: =Profile!L29/119.908945705601*82923504.6960988 -> 6695.708278 | L29: =Profile!O29/25.515728944797*19502488 -> 4545.772941 | M29: =Profile!O29/25.515728944797*706221 -> 164.6108082 | N29: 508.5348704 | O29: =Profile!O29/25.515728944797*1000000 -> 233.0868216 | P29: 282207.5246
A30: 1 | B30: 2 | C30: 5 | D30: Y010205 | E30: =Profile!B30/1077.03117593519*1068671798.45635 -> 95807.83499 | F30: =Profile!D30/390.985647863949*371911862.77167 -> 35411.39867 | G30: =Profile!J30/1427.26553695905*1469047929.49924 -> 124678.7517 | H30: =Profile!H30/358.09551901307*17602117.1513547 -> 1693.906156 | I30: =Profile!N30/499.485398604002*34191554.8115063 -> 397.6867198 | J30: 12900 | K30: =Profile!L30/119.908945705601*82923504.6960988 -> 6800.315879 | L30: =Profile!O30/25.515728944797*19502488 -> 4545.772941 | M30: =Profile!O30/25.515728944797*706221 -> 164.6108082 | N30: 508.5348704 | O30: =Profile!O30/25.515728944797*1000000 -> 233.0868216 | P30: 283141.8995
A31: 1 | B31: 2 | C31: 6 | D31: Y010206 | E31: =Profile!B31/1077.03117593519*1068671798.45635 -> 98613.54851 | F31: =Profile!D31/390.985647863949*371911862.77167 -> 35903.55121 | G31: =Profile!J31/1427.26553695905*1469047929.49924 -> 128602.5345 | H31: =Profile!H31/358.09551901307*17602117.1513547 -> 1738.142935 | I31: =Profile!N31/499.485398604002*34191554.8115063 -> 408.5034779 | J31: 12900 | K31: =Profile!L31/119.908945705601*82923504.6960988 -> 7053.222347 | L31: =Profile!O31/25.515728944797*19502488 -> 4545.772941 | M31: =Profile!O31/25.515728944797*706221 -> 164.6108082 | N31: 508.5348704 | O31: =Profile!O31/25.515728944797*1000000 -> 233.0868216 | P31: 290671.5085
A32: 1 | B32: 2 | C32: 7 | D32: Y010207 | E32: =Profile!B32/1077.03117593519*1068671798.45635 -> 105910.1712 | F32: =Profile!D32/390.985647863949*371911862.77167 -> 37876.02596 | G32: =Profile!J32/1427.26553695905*1469047929.49924 -> 140937.1176 | H32: =Profile!H32/358.09551901307*17602117.1513547 -> 1877.68429 | I32: =Profile!N32/499.485398604002*34191554.8115063 -> 421.3105918 | J32: 12900 | K32: =Profile!L32/119.908945705601*82923504.6960988 -> 7383.817741 | L32: =Profile!O32/25.515728944797*19502488 -> 3591.160626 | M32: =Profile!O32/25.515728944797*706221 -> 130.0425386 | N32: 508.5348704 | O32: =Profile!O32/25.515728944797*1000000 -> 184.1385892 | P32: 311720.004
A33: 1 | B33: 2 | C33: 8 | D33: Y010208 | E33: =Profile!B33/1077.03117593519*1068671798.45635 -> 113590.4245 | F33: =Profile!D33/390.985647863949*371911862.77167 -> 41209.17907 | G33: =Profile!J33/1427.26553695905*1469047929.49924 -> 153636.2101 | H33: =Profile!H33/358.09551901307*17602117.1513547 -> 2050.292073 | I33: =Profile!N33/499.485398604002*34191554.8115063 -> 418.0338567 | J33: 12900 | K33: =Profile!L33/119.908945705601*82923504.6960988 -> 7741.692318 | L33: =Profile!O33/25.515728944797*19502488 -> 227.2886486 | M33: =Profile!O33/25.515728944797*706221 -> 8.230540466 | N33: 508.5348704 | O33: =Profile!O33/25.515728944797*1000000 -> 11.65434116 | P33: 332301.5403
A34: 1 | B34: 2 | C34: 9 | D34: Y010209 | E34: =Profile!B34/1077.03117593519*1068671798.45635 -> 120401.621 | F34: =Profile!D34/390.985647863949*371911862.77167 -> 43150.21976 | G34: =Profile!J34/1427.26553695905*1469047929.49924 -> 158044.8673 | H34: =Profile!H34/358.09551901307*17602117.1513547 -> 2128.76864 | I34: =Profile!N34/499.485398604002*34191554.8115063 -> 419.2454847 | J34: 12900 | K34: =Profile!L34/119.908945705601*82923504.6960988 -> 7760.28374 | L34: =Profile!O34/25.515728944797*19502488 -> 45.45772818 | M34: =Profile!O34/25.515728944797*706221 -> 1.646108038 | N34: 508.5348704 | O34: =Profile!O34/25.515728944797*1000000 -> 2.330868153 | P34: 345362.9755
A35: 1 | B35: 2 | C35: 10 | D35: Y010210 | E35: =Profile!B35/1077.03117593519*1068671798.45635 -> 122869.0594 | F35: =Profile!D35/390.985647863949*371911862.77167 -> 46457.20825 | G35: =Profile!J35/1427.26553695905*1469047929.49924 -> 161737.9862 | H35: =Profile!H35/358.09551901307*17602117.1513547 -> 2227.132676 | I35: =Profile!N35/499.485398604002*34191554.8115063 -> 421.4945949 | J35: 12900 | K35: =Profile!L35/119.908945705601*82923504.6960988 -> 7813.124809 | L35: =Profile!O35/25.515728944797*19502488 -> 45.45772818 | M35: =Profile!O35/25.515728944797*706221 -> 1.646108038 | N35: 508.5348704 | O35: =Profile!O35/25.515728944797*1000000 -> 2.330868153 | P35: 354983.9754
A36: 1 | B36: 2 | C36: 11 | D36: Y010211 | E36: =Profile!B36/1077.03117593519*1068671798.45635 -> 126302.5974 | F36: =Profile!D36/390.985647863949*371911862.77167 -> 49967.99649 | G36: =Profile!J36/1427.26553695905*1469047929.49924 -> 166118.5585 | H36: =Profile!H36/358.09551901307*17602117.1513547 -> 2338.217278 | I36: =Profile!N36/499.485398604002*34191554.8115063 -> 425.9870653 | J36: 12900 | K36: =Profile!L36/119.908945705601*82923504.6960988 -> 7863.082649 | L36: =Profile!O36/25.515728944797*19502488 -> 45.45772818 | M36: =Profile!O36/25.515728944797*706221 -> 1.646108038 | N36: 508.5348704 | O36: =Profile!O36/25.515728944797*1000000 -> 2.330868153 | P36: 366474.409
A37: 1 | B37: 2 | C37: 12 | D37: Y010212 | E37: =Profile!B37/1077.03117593519*1068671798.45635 -> 131758.3774 | F37: =Profile!D37/390.985647863949*371911862.77167 -> 51287.86334 | G37: =Profile!J37/1427.26553695905*1469047929.49924 -> 167029.9484 | H37: =Profile!H37/358.09551901307*17602117.1513547 -> 2371.918452 | I37: =Profile!N37/499.485398604002*34191554.8115063 -> 419.5124536 | J37: 12900 | K37: =Profile!L37/119.908945705601*82923504.6960988 -> 7860.532512 | L37: =Profile!O37/25.515728944797*19502488 -> 45.45772818 | M37: =Profile!O37/25.515728944797*706221 -> 1.646108038 | N37: 508.5348704 | O37: =Profile!O37/25.515728944797*1000000 -> 2.330868153 | P37: 374186.1222
A38: 1 | B38: 2 | C38: 13 | D38: Y010213 | E38: =Profile!B38/1077.03117593519*1068671798.45635 -> 135126.8015 | F38: =Profile!D38/390.985647863949*371911862.77167 -> 51180.43425 | G38: =Profile!J38/1427.26553695905*1469047929.49924 -> 165813.4905 | H38: =Profile!H38/358.09551901307*17602117.1513547 -> 2355.483135 | I38: =Profile!N38/499.485398604002*34191554.8115063 -> 409.8030003 | J38: 12900 | K38: =Profile!L38/119.908945705601*82923504.6960988 -> 7885.940039 | L38: =Profile!O38/25.515728944797*19502488 -> 45.45772818 | M38: =Profile!O38/25.515728944797*706221 -> 1.646108038 | N38: 508.5348704 | O38: =Profile!O38/25.515728944797*1000000 -> 2.330868153 | P38: 376229.922
A39: 1 | B39: 2 | C39: 14 | D39: Y010214 | E39: =Profile!B39/1077.03117593519*1068671798.45635 -> 131678.1924 | F39: =Profile!D39/390.985647863949*371911862.77167 -> 50889.14108 | G39: =Profile!J39/1427.26553695905*1469047929.49924 -> 165029.351 | H39: =Profile!H39/358.09551901307*17602117.1513547 -> 2342.686957 | I39: =Profile!N39/499.485398604002*34191554.8115063 -> 422.0876766 | J39: 12900 | K39: =Profile!L39/119.908945705601*82923504.6960988 -> 7875.720635 | L39: =Profile!O39/25.515728944797*19502488 -> 45.45772818 | M39: =Profile!O39/25.515728944797*706221 -> 1.646108038 | N39: 508.5348704 | O39: =Profile!O39/25.515728944797*1000000 -> 2.330868153 | P39: 371695.1494
A40: 1 | B40: 2 | C40: 15 | D40: Y010215 | E40: =Profile!B40/1077.03117593519*1068671798.45635 -> 129252.396 | F40: =Profile!D40/390.985647863949*371911862.77167 -> 50284.61076 | G40: =Profile!J40/1427.26553695905*1469047929.49924 -> 163812.7235 | H40: =Profile!H40/358.09551901307*17602117.1513547 -> 2320.050894 | I40: =Profile!N40/499.485398604002*34191554.8115063 -> 411.4245283 | J40: 12900 | K40: =Profile!L40/119.908945705601*82923504.6960988 -> 7929.539437 | L40: =Profile!O40/25.515728944797*19502488 -> 45.45772818 | M40: =Profile!O40/25.515728944797*706221 -> 1.646108038 | N40: 508.5348704 | O40: =Profile!O40/25.515728944797*1000000 -> 2.330868153 | P40: 367468.7148
A41: 1 | B41: 2 | C41: 16 | D41: Y010216 | E41: =Profile!B41/1077.03117593519*1068671798.45635 -> 133361.0758 | F41: =Profile!D41/390.985647863949*371911862.77167 -> 49435.71966 | G41: =Profile!J41/1427.26553695905*1469047929.49924 -> 160982.5819 | H41: =Profile!H41/358.09551901307*17602117.1513547 -> 2274.815585 | I41: =Profile!N41/499.485398604002*34191554.8115063 -> 376.2889577 | J41: 12900 | K41: =Profile!L41/119.908945705601*82923504.6960988 -> 7930.233945 | L41: =Profile!O41/25.515728944797*19502488 -> 45.45772818 | M41: =Profile!O41/25.515728944797*706221 -> 1.646108038 | N41: 508.5348704 | O41: =Profile!O41/25.515728944797*1000000 -> 2.330868153 | P41: 367818.6854
A42: 1 | B42: 2 | C42: 17 | D42: Y010217 | E42: =Profile!B42/1077.03117593519*1068671798.45635 -> 150069.587 | F42: =Profile!D42/390.985647863949*371911862.77167 -> 50212.17866 | G42: =Profile!J42/1427.26553695905*1469047929.49924 -> 162391.6237 | H42: =Profile!H42/358.09551901307*17602117.1513547 -> 2299.486873 | I42: =Profile!N42/499.485398604002*34191554.8115063 -> 69.55648601 | J42: 12900 | K42: =Profile!L42/119.908945705601*82923504.6960988 -> 7953.235363 | L42: =Profile!O42/25.515728944797*19502488 -> 2227.428735 | M42: =Profile!O42/25.515728944797*706221 -> 80.6592958 | N42: 508.5348704 | O42: =Profile!O42/25.515728944797*1000000 -> 114.2125422 | P42: 388826.5035
A43: 1 | B43: 2 | C43: 18 | D43: Y010218 | E43: =Profile!B43/1077.03117593519*1068671798.45635 -> 173777.8115 | F43: =Profile!D43/390.985647863949*371911862.77167 -> 51138.52681 | G43: =Profile!J43/1427.26553695905*1469047929.49924 -> 164291.7461 | H43: =Profile!H43/358.09551901307*17602117.1513547 -> 2333.590017 | I43: =Profile!N43/499.485398604002*34191554.8115063 -> 69.91052784 | J43: 12900 | K43: =Profile!L43/119.908945705601*82923504.6960988 -> 7885.092882 | L43: =Profile!O43/25.515728944797*19502488 -> 4545.772941 | M43: =Profile!O43/25.515728944797*706221 -> 164.6108082 | N43: 508.5348704 | O43: =Profile!O43/25.515728944797*1000000 -> 233.0868216 | P43: 417848.6833
A44: 1 | B44: 2 | C44: 19 | D44: Y010219 | E44: =Profile!B44/1077.03117593519*1068671798.45635 -> 176611.4402 | F44: =Profile!D44/390.985647863949*371911862.77167 -> 49383.06311 | G44: =Profile!J44/1427.26553695905*1469047929.49924 -> 160184.7619 | H44: =Profile!H44/358.09551901307*17602117.1513547 -> 2264.870965 | I44: =Profile!N44/499.485398604002*34191554.8115063 -> 67.89881455 | J44: 12900 | K44: =Profile!L44/119.908945705601*82923504.6960988 -> 7618.215443 | L44: =Profile!O44/25.515728944797*19502488 -> 4545.772941 | M44: =Profile!O44/25.515728944797*706221 -> 164.6108082 | N44: 508.5348704 | O44: =Profile!O44/25.515728944797*1000000 -> 233.0868216 | P44: 414482.2559
A45: 1 | B45: 2 | C45: 20 | D45: Y010220 | E45: =Profile!B45/1077.03117593519*1068671798.45635 -> 175231.0438 | F45: =Profile!D45/390.985647863949*371911862.77167 -> 48047.60061 | G45: =Profile!J45/1427.26553695905*1469047929.49924 -> 156104.1968 | H45: =Profile!H45/358.09551901307*17602117.1513547 -> 2205.829759 | I45: =Profile!N45/499.485398604002*34191554.8115063 -> 68.88126008 | J45: 12900 | K45: =Profile!L45/119.908945705601*82923504.6960988 -> 7526.866723 | L45: =Profile!O45/25.515728944797*19502488 -> 4545.772941 | M45: =Profile!O45/25.515728944797*706221 -> 164.6108082 | N45: 508.5348704 | O45: =Profile!O45/25.515728944797*1000000 -> 233.0868216 | P45: 407536.4244
A46: 1 | B46: 2 | C46: 21 | D46: Y010221 | E46: =Profile!B46/1077.03117593519*1068671798.45635 -> 173799.3484 | F46: =Profile!D46/390.985647863949*371911862.77167 -> 46230.22043 | G46: =Profile!J46/1427.26553695905*1469047929.49924 -> 152955.1645 | H46: =Profile!H46/358.09551901307*17602117.1513547 -> 2141.981065 | I46: =Profile!N46/499.485398604002*34191554.8115063 -> 70.38121453 | J46: 12900 | K46: =Profile!L46/119.908945705601*82923504.6960988 -> 7417.441259 | L46: =Profile!O46/25.515728944797*19502488 -> 4545.772941 | M46: =Profile!O46/25.515728944797*706221 -> 164.6108082 | N46: 508.5348704 | O46: =Profile!O46/25.515728944797*1000000 -> 233.0868216 | P46: 400966.5424
A47: 1 | B47: 2 | C47: 22 | D47: Y010222 | E47: =Profile!B47/1077.03117593519*1068671798.45635 -> 167400.8992 | F47: =Profile!D47/390.985647863949*371911862.77167 -> 43391.46964 | G47: =Profile!J47/1427.26553695905*1469047929.49924 -> 147546.7431 | H47: =Profile!H47/358.09551901307*17602117.1513547 -> 2040.702089 | I47: =Profile!N47/499.485398604002*34191554.8115063 -> 69.9713146 | J47: 12900 | K47: =Profile!L47/119.908945705601*82923504.6960988 -> 7403.591429 | L47: =Profile!O47/25.515728944797*19502488 -> 4545.772941 | M47: =Profile!O47/25.515728944797*706221 -> 164.6108082 | N47: 508.5348704 | O47: =Profile!O47/25.515728944797*1000000 -> 233.0868216 | P47: 386205.3822
A48: 1 | B48: 2 | C48: 23 | D48: Y010223 | E48: =Profile!B48/1077.03117593519*1068671798.45635 -> 155075.1937 | F48: =Profile!D48/390.985647863949*371911862.77167 -> 40922.33658 | G48: =Profile!J48/1427.26553695905*1469047929.49924 -> 140423.8686 | H48: =Profile!H48/358.09551901307*17602117.1513547 -> 1934.486488 | I48: =Profile!N48/499.485398604002*34191554.8115063 -> 68.73422183 | J48: 12900 | K48: =Profile!L48/119.908945705601*82923504.6960988 -> 7273.185813 | L48: =Profile!O48/25.515728944797*19502488 -> 4545.772941 | M48: =Profile!O48/25.515728944797*706221 -> 164.6108082 | N48: 508.5348704 | O48: =Profile!O48/25.515728944797*1000000 -> 233.0868216 | P48: 364049.8109
A49: 1 | B49: 2 | C49: 24 | D49: Y010224 | E49: =Profile!B49/1077.03117593519*1068671798.45635 -> 135360.5687 | F49: =Profile!D49/390.985647863949*371911862.77167 -> 38735.43608 | G49: =Profile!J49/1427.26553695905*1469047929.49924 -> 134838.9802 | H49: =Profile!H49/358.09551901307*17602117.1513547 -> 1844.451314 | I49: =Profile!N49/499.485398604002*34191554.8115063 -> 67.8248847 | J49: 12900 | K49: =Profile!L49/119.908945705601*82923504.6960988 -> 6906.650445 | L49: =Profile!O49/25.515728944797*19502488 -> 4545.772941 | M49: =Profile!O49/25.515728944797*706221 -> 164.6108082 | N49: 508.5348704 | O49: =Profile!O49/25.515728944797*1000000 -> 233.0868216 | P49: 336105.9171
A50: 1 | B50: 3 | C50: 1 | D50: Y010301 | E50: =Profile!B50/1077.03117593519*1068671798.45635 -> 118953.7851 | F50: =Profile!D50/390.985647863949*371911862.77167 -> 37825.47676 | G50: =Profile!J50/1427.26553695905*1469047929.49924 -> 130823.9205 | H50: =Profile!H50/358.09551901307*17602117.1513547 -> 1789.631666 | I50: =Profile!N50/499.485398604002*34191554.8115063 -> 89.0706799 | J50: 12900 | K50: =Profile!L50/119.908945705601*82923504.6960988 -> 6774.372592 | L50: =Profile!O50/25.515728944797*19502488 -> 4545.772941 | M50: =Profile!O50/25.515728944797*706221 -> 164.6108082 | N50: 508.5348704 | O50: =Profile!O50/25.515728944797*1000000 -> 233.0868216 | P50: 314608.2627
A51: 1 | B51: 3 | C51: 2 | D51: Y010302 | E51: =Profile!B51/1077.03117593519*1068671798.45635 -> 107815.6092 | F51: =Profile!D51/390.985647863949*371911862.77167 -> 36964.57303 | G51: =Profile!J51/1427.26553695905*1469047929.49924 -> 128826.4662 | H51: =Profile!H51/358.09551901307*17602117.1513547 -> 1755.894278 | I51: =Profile!N51/499.485398604002*34191554.8115063 -> 568.541061 | J51: 12900 | K51: =Profile!L51/119.908945705601*82923504.6960988 -> 6739.208695 | L51: =Profile!O51/25.515728944797*19502488 -> 4545.772941 | M51: =Profile!O51/25.515728944797*706221 -> 164.6108082 | N51: 508.5348704 | O51: =Profile!O51/25.515728944797*1000000 -> 233.0868216 | P51: 301022.2979
A52: 1 | B52: 3 | C52: 3 | D52: Y010303 | E52: =Profile!B52/1077.03117593519*1068671798.45635 -> 100914.406 | F52: =Profile!D52/390.985647863949*371911862.77167 -> 36418.22226 | G52: =Profile!J52/1427.26553695905*1469047929.49924 -> 127328.2359 | H52: =Profile!H52/358.09551901307*17602117.1513547 -> 1733.035542 | I52: =Profile!N52/499.485398604002*34191554.8115063 -> 560.3258121 | J52: 12900 | K52: =Profile!L52/119.908945705601*82923504.6960988 -> 6701.916646 | L52: =Profile!O52/25.515728944797*19502488 -> 4545.772941 | M52: =Profile!O52/25.515728944797*706221 -> 164.6108082 | N52: 508.5348704 | O52: =Profile!O52/25.515728944797*1000000 -> 233.0868216 | P52: 292008.1476
A53: 1 | B53: 3 | C53: 4 | D53: Y010304 | E53: =Profile!B53/1077.03117593519*1068671798.45635 -> 96939.5594 | F53: =Profile!D53/390.985647863949*371911862.77167 -> 35801.96091 | G53: =Profile!J53/1427.26553695905*1469047929.49924 -> 126784.7956 | H53: =Profile!H53/358.09551901307*17602117.1513547 -> 1715.657088 | I53: =Profile!N53/499.485398604002*34191554.8115063 -> 553.3575133 | J53: 12900 | K53: =Profile!L53/119.908945705601*82923504.6960988 -> 6707.017585 | L53: =Profile!O53/25.515728944797*19502488 -> 4545.772941 | M53: =Profile!O53/25.515728944797*706221 -> 164.6108082 | N53: 508.5348704 | O53: =Profile!O53/25.515728944797*1000000 -> 233.0868216 | P53: 286854.3536
A54: 1 | B54: 3 | C54: 5 | D54: Y010305 | E54: =Profile!B54/1077.03117593519*1068671798.45635 -> 96190.37201 | F54: =Profile!D54/390.985647863949*371911862.77167 -> 35716.713 | G54: =Profile!J54/1427.26553695905*1469047929.49924 -> 126529.642 | H54: =Profile!H54/358.09551901307*17602117.1513547 -> 1711.877534 | I54: =Profile!N54/499.485398604002*34191554.8115063 -> 544.466217 | J54: 12900 | K54: =Profile!L54/119.908945705601*82923504.6960988 -> 6779.991816 | L54: =Profile!O54/25.515728944797*19502488 -> 4545.772941 | M54: =Profile!O54/25.515728944797*706221 -> 164.6108082 | N54: 508.5348704 | O54: =Profile!O54/25.515728944797*1000000 -> 233.0868216 | P54: 285825.068
A55: 1 | B55: 3 | C55: 6 | D55: Y010306 | E55: =Profile!B55/1077.03117593519*1068671798.45635 -> 97586.98272 | F55: =Profile!D55/390.985647863949*371911862.77167 -> 35758.06199 | G55: =Profile!J55/1427.26553695905*1469047929.49924 -> 128453.0686 | H55: =Profile!H55/358.09551901307*17602117.1513547 -> 1726.930176 | I55: =Profile!N55/499.485398604002*34191554.8115063 -> 404.549874 | J55: 12900 | K55: =Profile!L55/119.908945705601*82923504.6960988 -> 6856.823696 | L55: =Profile!O55/25.515728944797*19502488 -> 4545.772941 | M55: =Profile!O55/25.515728944797*706221 -> 164.6108082 | N55: 508.5348704 | O55: =Profile!O55/25.515728944797*1000000 -> 233.0868216 | P55: 289138.4226
A56: 1 | B56: 3 | C56: 7 | D56: Y010307 | E56: =Profile!B56/1077.03117593519*1068671798.45635 -> 101804.298 | F56: =Profile!D56/390.985647863949*371911862.77167 -> 36343.28643 | G56: =Profile!J56/1427.26553695905*1469047929.49924 -> 133397.8552 | H56: =Profile!H56/358.09551901307*17602117.1513547 -> 1778.114044 | I56: =Profile!N56/499.485398604002*34191554.8115063 -> 398.3537313 | J56: 12900 | K56: =Profile!L56/119.908945705601*82923504.6960988 -> 6942.955159 | L56: =Profile!O56/25.515728944797*19502488 -> 3591.160626 | M56: =Profile!O56/25.515728944797*706221 -> 130.0425386 | N56: 508.5348704 | O56: =Profile!O56/25.515728944797*1000000 -> 184.1385892 | P56: 297978.7392
A57: 1 | B57: 3 | C57: 8 | D57: Y010308 | E57: =Profile!B57/1077.03117593519*1068671798.45635 -> 109726.7679 | F57: =Profile!D57/390.985647863949*371911862.77167 -> 37464.91381 | G57: =Profile!J57/1427.26553695905*1469047929.49924 -> 139825.1921 | H57: =Profile!H57/358.09551901307*17602117.1513547 -> 1852.101151 | I57: =Profile!N57/499.485398604002*34191554.8115063 -> 407.7953943 | J57: 12900 | K57: =Profile!L57/119.908945705601*82923504.6960988 -> 7076.543837 | L57: =Profile!O57/25.515728944797*19502488 -> 227.2886486 | M57: =Profile!O57/25.515728944797*706221 -> 8.230540466 | N57: 508.5348704 | O57: =Profile!O57/25.515728944797*1000000 -> 11.65434116 | P57: 310009.0226
A58: 1 | B58: 3 | C58: 9 | D58: Y010309 | E58: =Profile!B58/1077.03117593519*1068671798.45635 -> 122904.0372 | F58: =Profile!D58/390.985647863949*371911862.77167 -> 38862.60981 | G58: =Profile!J58/1427.26553695905*1469047929.49924 -> 142977.9377 | H58: =Profile!H58/358.09551901307*17602117.1513547 -> 1905.398762 | I58: =Profile!N58/499.485398604002*34191554.8115063 -> 406.579659 | J58: 12900 | K58: =Profile!L58/119.908945705601*82923504.6960988 -> 7120.610911 | L58: =Profile!O58/25.515728944797*19502488 -> 45.45772818 | M58: =Profile!O58/25.515728944797*706221 -> 1.646108038 | N58: 508.5348704 | O58: =Profile!O58/25.515728944797*1000000 -> 2.330868153 | P58: 327635.1436
A59: 1 | B59: 3 | C59: 10 | D59: Y010310 | E59: =Profile!B59/1077.03117593519*1068671798.45635 -> 135630.7925 | F59: =Profile!D59/390.985647863949*371911862.77167 -> 42169.34477 | G59: =Profile!J59/1427.26553695905*1469047929.49924 -> 147782.451 | H59: =Profile!H59/358.09551901307*17602117.1513547 -> 2012.742448 | I59: =Profile!N59/499.485398604002*34191554.8115063 -> 397.5889681 | J59: 12900 | K59: =Profile!L59/119.908945705601*82923504.6960988 -> 7173.125156 | L59: =Profile!O59/25.515728944797*19502488 -> 45.45772818 | M59: =Profile!O59/25.515728944797*706221 -> 1.646108038 | N59: 508.5348704 | O59: =Profile!O59/25.515728944797*1000000 -> 2.330868153 | P59: 348624.0144
A60: 1 | B60: 3 | C60: 11 | D60: Y010311 | E60: =Profile!B60/1077.03117593519*1068671798.45635 -> 146407.5809 | F60: =Profile!D60/390.985647863949*371911862.77167 -> 44492.73572 | G60: =Profile!J60/1427.26553695905*1469047929.49924 -> 151038.3361 | H60: =Profile!H60/358.09551901307*17602117.1513547 -> 2087.346617 | I60: =Profile!N60/499.485398604002*34191554.8115063 -> 409.7019629 | J60: 12900 | K60: =Profile!L60/119.908945705601*82923504.6960988 -> 7236.864173 | L60: =Profile!O60/25.515728944797*19502488 -> 45.45772818 | M60: =Profile!O60/25.515728944797*706221 -> 1.646108038 | N60: 508.5348704 | O60: =Profile!O60/25.515728944797*1000000 -> 2.330868153 | P60: 365130.5351
A61: 1 | B61: 3 | C61: 12 | D61: Y010312 | E61: =Profile!B61/1077.03117593519*1068671798.45635 -> 155982.2603 | F61: =Profile!D61/390.985647863949*371911862.77167 -> 45621.44583 | G61: =Profile!J61/1427.26553695905*1469047929.49924 -> 152227.7431 | H61: =Profile!H61/358.09551901307*17602117.1513547 -> 2120.809738 | I61: =Profile!N61/499.485398604002*34191554.8115063 -> 396.6525234 | J61: 12900 | K61: =Profile!L61/119.908945705601*82923504.6960988 -> 7318.279371 | L61: =Profile!O61/25.515728944797*19502488 -> 45.45772818 | M61: =Profile!O61/25.515728944797*706221 -> 1.646108038 | N61: 508.5348704 | O61: =Profile!O61/25.515728944797*1000000 -> 2.330868153 | P61: 377125.1604
A62: 1 | B62: 3 | C62: 13 | D62: Y010313 | E62: =Profile!B62/1077.03117593519*1068671798.45635 -> 163147.4301 | F62: =Profile!D62/390.985647863949*371911862.77167 -> 45723.75898 | G62: =Profile!J62/1427.26553695905*1469047929.49924 -> 152671.7033 | H62: =Profile!H62/358.09551901307*17602117.1513547 -> 2126.252381 | I62: =Profile!N62/499.485398604002*34191554.8115063 -> 407.1916338 | J62: 12900 | K62: =Profile!L62/119.908945705601*82923504.6960988 -> 7298.635264 | L62: =Profile!O62/25.515728944797*19502488 -> 45.45772818 | M62: =Profile!O62/25.515728944797*706221 -> 1.646108038 | N62: 508.5348704 | O62: =Profile!O62/25.515728944797*1000000 -> 2.330868153 | P62: 384832.9413
A63: 1 | B63: 3 | C63: 14 | D63: Y010314 | E63: =Profile!B63/1077.03117593519*1068671798.45635 -> 164887.28 | F63: =Profile!D63/390.985647863949*371911862.77167 -> 45433.10595 | G63: =Profile!J63/1427.26553695905*1469047929.49924 -> 152717.5127 | H63: =Profile!H63/358.09551901307*17602117.1513547 -> 2120.226827 | I63: =Profile!N63/499.485398604002*34191554.8115063 -> 399.0421004 | J63: 12900 | K63: =Profile!L63/119.908945705601*82923504.6960988 -> 7312.526228 | L63: =Profile!O63/25.515728944797*19502488 -> 45.45772818 | M63: =Profile!O63/25.515728944797*706221 -> 1.646108038 | N63: 508.5348704 | O63: =Profile!O63/25.515728944797*1000000 -> 2.330868153 | P63: 386327.6634
A64: 1 | B64: 3 | C64: 15 | D64: Y010315 | E64: =Profile!B64/1077.03117593519*1068671798.45635 -> 165058.3961 | F64: =Profile!D64/390.985647863949*371911862.77167 -> 44812.82705 | G64: =Profile!J64/1427.26553695905*1469047929.49924 -> 152000.8671 | H64: =Profile!H64/358.09551901307*17602117.1513547 -> 2100.454978 | I64: =Profile!N64/499.485398604002*34191554.8115063 -> 405.8329675 | J64: 12900 | K64: =Profile!L64/119.908945705601*82923504.6960988 -> 7335.603707 | L64: =Profile!O64/25.515728944797*19502488 -> 45.45772818 | M64: =Profile!O64/25.515728944797*706221 -> 1.646108038 | N64: 508.5348704 | O64: =Profile!O64/25.515728944797*1000000 -> 2.330868153 | P64: 385171.9515
A65: 1 | B65: 3 | C65: 16 | D65: Y010316 | E65: =Profile!B65/1077.03117593519*1068671798.45635 -> 167940.998 | F65: =Profile!D65/390.985647863949*371911862.77167 -> 44727.47745 | G65: =Profile!J65/1427.26553695905*1469047929.49924 -> 152108.4934 | H65: =Profile!H65/358.09551901307*17602117.1513547 -> 2095.900886 | I65: =Profile!N65/499.485398604002*34191554.8115063 -> 1024.970795 | J65: 12900 | K65: =Profile!L65/119.908945705601*82923504.6960988 -> 7300.904721 | L65: =Profile!O65/25.515728944797*19502488 -> 45.45772818 | M65: =Profile!O65/25.515728944797*706221 -> 1.646108038 | N65: 508.5348704 | O65: =Profile!O65/25.515728944797*1000000 -> 2.330868153 | P65: 388656.7148
A66: 1 | B66: 3 | C66: 17 | D66: =DateRef(A66,B66,C66) -> Y010317 | E66: =Profile!B66/1077.03117593519*1068671798.45635 -> 179116.645 | F66: =Profile!D66/390.985647863949*371911862.77167 -> 45748.35728 | G66: =Profile!J66/1427.26553695905*1469047929.49924 -> 153304.4189 | H66: =Profile!H66/358.09551901307*17602117.1513547 -> 2126.976655 | I66: =Profile!N66/499.485398604002*34191554.8115063 -> 6474.565728 | J66: 12900 | K66: =Profile!L66/119.908945705601*82923504.6960988 -> 7242.92502 | L66: =Profile!O66/25.515728944797*19502488 -> 2227.428735 | M66: =Profile!O66/25.515728944797*706221 -> 80.6592958 | N66: 508.5348704 | O66: =Profile!O66/25.515728944797*1000000 -> 114.2125422 | P66: 409844.724
A67: 1 | B67: 3 | C67: 18 | D67: Y010318 | E67: =Profile!B67/1077.03117593519*1068671798.45635 -> 193875.086 | F67: =Profile!D67/390.985647863949*371911862.77167 -> 47468.83442 | G67: =Profile!J67/1427.26553695905*1469047929.49924 -> 155251.3002 | H67: =Profile!H67/358.09551901307*17602117.1513547 -> 2178.996942 | I67: =Profile!N67/499.485398604002*34191554.8115063 -> 6332.168628 | J67: 12900 | K67: =Profile!L67/119.908945705601*82923504.6960988 -> 7399.485232 | L67: =Profile!O67/25.515728944797*19502488 -> 4545.772941 | M67: =Profile!O67/25.515728944797*706221 -> 164.6108082 | N67: 508.5348704 | O67: =Profile!O67/25.515728944797*1000000 -> 233.0868216 | P67: =SUM(E67:O67) -> 430857.8768
A68: 1 | B68: 3 | C68: 19 | D68: Y010319 | E68: =Profile!B68/1077.03117593519*1068671798.45635 -> 189890.1327 | F68: =Profile!D68/390.985647863949*371911862.77167 -> 45765.55244 | G68: =Profile!J68/1427.26553695905*1469047929.49924 -> 150838.7049 | H68: =Profile!H68/358.09551901307*17602117.1513547 -> 2109.492544 | I68: =Profile!N68/499.485398604002*34191554.8115063 -> 6163.197855 | J68: 12900 | K68: =Profile!L68/119.908945705601*82923504.6960988 -> 7312.317398 | L68: =Profile!O68/25.515728944797*19502488 -> 4545.772941 | M68: =Profile!O68/25.515728944797*706221 -> 164.6108082 | N68: 508.5348704 | O68: =Profile!O68/25.515728944797*1000000 -> 233.0868216 | P68: 420431.4032
A69: 1 | B69: 3 | C69: 20 | D69: Y010320 | E69: =Profile!B69/1077.03117593519*1068671798.45635 -> 180590.7716 | F69: =Profile!D69/390.985647863949*371911862.77167 -> 44421.15863 | G69: =Profile!J69/1427.26553695905*1469047929.49924 -> 148238.9716 | H69: =Profile!H69/358.09551901307*17602117.1513547 -> 2061.061267 | I69: =Profile!N69/499.485398604002*34191554.8115063 -> 5993.494355 | J69: 12900 | K69: =Profile!L69/119.908945705601*82923504.6960988 -> 7226.978885 | L69: =Profile!O69/25.515728944797*19502488 -> 4545.772941 | M69: =Profile!O69/25.515728944797*706221 -> 164.6108082 | N69: 508.5348704 | O69: =Profile!O69/25.515728944797*1000000 -> 233.0868216 | P69: 406884.4417
A70: 1 | B70: 3 | C70: 21 | D70: Y010321 | E70: =Profile!B70/1077.03117593519*1068671798.45635 -> 171796.0789 | F70: =Profile!D70/390.985647863949*371911862.77167 -> 43068.09899 | G70: =Profile!J70/1427.26553695905*1469047929.49924 -> 144144.1678 | H70: =Profile!H70/358.09551901307*17602117.1513547 -> 2001.546861 | I70: =Profile!N70/499.485398604002*34191554.8115063 -> 4431.162823 | J70: 12900 | K70: =Profile!L70/119.908945705601*82923504.6960988 -> 7143.942531 | L70: =Profile!O70/25.515728944797*19502488 -> 4545.772941 | M70: =Profile!O70/25.515728944797*706221 -> 164.6108082 | N70: 508.5348704 | O70: =Profile!O70/25.515728944797*1000000 -> 233.0868216 | P70: 390937.0034
A71: 1 | B71: 3 | C71: 22 | D71: Y010322 | E71: =Profile!B71/1077.03117593519*1068671798.45635 -> 162908.6123 | F71: =Profile!D71/390.985647863949*371911862.77167 -> 41527.48421 | G71: =Profile!J71/1427.26553695905*1469047929.49924 -> 139758.9771 | H71: =Profile!H71/358.09551901307*17602117.1513547 -> 1935.809278 | I71: =Profile!N71/499.485398604002*34191554.8115063 -> 2039.883844 | J71: 12900 | K71: =Profile!L71/119.908945705601*82923504.6960988 -> 7122.83799 | L71: =Profile!O71/25.515728944797*19502488 -> 4545.772941 | M71: =Profile!O71/25.515728944797*706221 -> 164.6108082 | N71: 508.5348704 | O71: =Profile!O71/25.515728944797*1000000 -> 233.0868216 | P71: 373645.6102
A72: 1 | B72: 3 | C72: 23 | D72: Y010323 | E72: =Profile!B72/1077.03117593519*1068671798.45635 -> 149115.1931 | F72: =Profile!D72/390.985647863949*371911862.77167 -> 39506.37479 | G72: =Profile!J72/1427.26553695905*1469047929.49924 -> 134128.7491 | H72: =Profile!H72/358.09551901307*17602117.1513547 -> 1850.549118 | I72: =Profile!N72/499.485398604002*34191554.8115063 -> 2023.323558 | J72: 12900 | K72: =Profile!L72/119.908945705601*82923504.6960988 -> 7022.373666 | L72: =Profile!O72/25.515728944797*19502488 -> 4545.772941 | M72: =Profile!O72/25.515728944797*706221 -> 164.6108082 | N72: 508.5348704 | O72: =Profile!O72/25.515728944797*1000000 -> 233.0868216 | P72: 351998.5688
A73: 1 | B73: 3 | C73: 24 | D73: Y010324 | E73: =Profile!B73/1077.03117593519*1068671798.45635 -> 130677.1335 | F73: =Profile!D73/390.985647863949*371911862.77167 -> 37692.51021 | G73: =Profile!J73/1427.26553695905*1469047929.49924 -> 130016.5479 | H73: =Profile!H73/358.09551901307*17602117.1513547 -> 1780.868962 | I73: =Profile!N73/499.485398604002*34191554.8115063 -> 2026.326753 | J73: 12900 | K73: =Profile!L73/119.908945705601*82923504.6960988 -> 6783.380374 | L73: =Profile!O73/25.515728944797*19502488 -> 4545.772941 | M73: =Profile!O73/25.515728944797*706221 -> 164.6108082 | N73: 508.5348704 | O73: =Profile!O73/25.515728944797*1000000 -> 233.0868216 | P73: 327328.7731
A74: 1 | B74: 4 | C74: 1 | D74: Y010401 | E74: =Profile!B74/1077.03117593519*1068671798.45635 -> 113303.6908 | F74: =Profile!D74/390.985647863949*371911862.77167 -> 36239.87139 | G74: =Profile!J74/1427.26553695905*1469047929.49924 -> 126398.1231 | H74: =Profile!H74/358.09551901307*17602117.1513547 -> 1722.634947 | I74: =Profile!N74/499.485398604002*34191554.8115063 -> 1975.550091 | J74: 12900 | K74: =Profile!L74/119.908945705601*82923504.6960988 -> 6637.190105 | L74: =Profile!O74/25.515728944797*19502488 -> 4545.772941 | M74: =Profile!O74/25.515728944797*706221 -> 164.6108082 | N74: 508.5348704 | O74: =Profile!O74/25.515728944797*1000000 -> 233.0868216 | P74: 304629.0659
A75: 1 | B75: 4 | C75: 2 | D75: Y010402 | E75: =Profile!B75/1077.03117593519*1068671798.45635 -> 101329.3343 | F75: =Profile!D75/390.985647863949*371911862.77167 -> 35495.23429 | G75: =Profile!J75/1427.26553695905*1469047929.49924 -> 125560.8617 | H75: =Profile!H75/358.09551901307*17602117.1513547 -> 1700.226286 | I75: =Profile!N75/499.485398604002*34191554.8115063 -> 1931.201219 | J75: 12900 | K75: =Profile!L75/119.908945705601*82923504.6960988 -> 6632.649081 | L75: =Profile!O75/25.515728944797*19502488 -> 4545.772941 | M75: =Profile!O75/25.515728944797*706221 -> 164.6108082 | N75: 508.5348704 | O75: =Profile!O75/25.515728944797*1000000 -> 233.0868216 | P75: 291001.5123
A76: 1 | B76: 4 | C76: 3 | D76: Y010403 | E76: =Profile!B76/1077.03117593519*1068671798.45635 -> 93515.47284 | F76: =Profile!D76/390.985647863949*371911862.77167 -> 34788.00178 | G76: =Profile!J76/1427.26553695905*1469047929.49924 -> 123432.919 | H76: =Profile!H76/358.09551901307*17602117.1513547 -> 1669.122803 | I76: =Profile!N76/499.485398604002*34191554.8115063 -> 1980.860718 | J76: 12900 | K76: =Profile!L76/119.908945705601*82923504.6960988 -> 6565.911265 | L76: =Profile!O76/25.515728944797*19502488 -> 4545.772941 | M76: =Profile!O76/25.515728944797*706221 -> 164.6108082 | N76: 508.5348704 | O76: =Profile!O76/25.515728944797*1000000 -> 233.0868216 | P76: 280304.2939
A77: 1 | B77: 4 | C77: 4 | D77: Y010404 | E77: =Profile!B77/1077.03117593519*1068671798.45635 -> 89312.47279 | F77: =Profile!D77/390.985647863949*371911862.77167 -> 34091.19505 | G77: =Profile!J77/1427.26553695905*1469047929.49924 -> 122396.1625 | H77: =Profile!H77/358.09551901307*17602117.1513547 -> 1646.40099 | I77: =Profile!N77/499.485398604002*34191554.8115063 -> 2008.487481 | J77: 12900 | K77: =Profile!L77/119.908945705601*82923504.6960988 -> 6562.946793 | L77: =Profile!O77/25.515728944797*19502488 -> 4545.772941 | M77: =Profile!O77/25.515728944797*706221 -> 164.6108082 | N77: 508.5348704 | O77: =Profile!O77/25.515728944797*1000000 -> 233.0868216 | P77: 274369.6711
A78: 1 | B78: 4 | C78: 5 | D78: Y010405 | E78: =Profile!B78/1077.03117593519*1068671798.45635 -> 87560.18873 | F78: =Profile!D78/390.985647863949*371911862.77167 -> 33972.53241 | G78: =Profile!J78/1427.26553695905*1469047929.49924 -> 122471.4016 | H78: =Profile!H78/358.09551901307*17602117.1513547 -> 1644.322359 | I78: =Profile!N78/499.485398604002*34191554.8115063 -> 2084.02982 | J78: 12900 | K78: =Profile!L78/119.908945705601*82923504.6960988 -> 6649.171359 | L78: =Profile!O78/25.515728944797*19502488 -> 4545.772941 | M78: =Profile!O78/25.515728944797*706221 -> 164.6108082 | N78: 508.5348704 | O78: =Profile!O78/25.515728944797*1000000 -> 233.0868216 | P78: 272733.6517
A79: 1 | B79: 4 | C79: 6 | D79: Y010406 | E79: =Profile!B79/1077.03117593519*1068671798.45635 -> 88974.45067 | F79: =Profile!D79/390.985647863949*371911862.77167 -> 34027.47509 | G79: =Profile!J79/1427.26553695905*1469047929.49924 -> 124479.1312 | H79: =Profile!H79/358.09551901307*17602117.1513547 -> 1660.206679 | I79: =Profile!N79/499.485398604002*34191554.8115063 -> 2347.695692 | J79: 12900 | K79: =Profile!L79/119.908945705601*82923504.6960988 -> 6723.438202 | L79: =Profile!O79/25.515728944797*19502488 -> 4545.772941 | M79: =Profile!O79/25.515728944797*706221 -> 164.6108082 | N79: 508.5348704 | O79: =Profile!O79/25.515728944797*1000000 -> 233.0868216 | P79: 276564.403
A80: 1 | B80: 4 | C80: 7 | D80: Y010407 | E80: =Profile!B80/1077.03117593519*1068671798.45635 -> 93071.8948 | F80: =Profile!D80/390.985647863949*371911862.77167 -> 34641.33944 | G80: =Profile!J80/1427.26553695905*1469047929.49924 -> 128776.3678 | H80: =Profile!H80/358.09551901307*17602117.1513547 -> 1705.074898 | I80: =Profile!N80/499.485398604002*34191554.8115063 -> 2482.318658 | J80: 12900 | K80: =Profile!L80/119.908945705601*82923504.6960988 -> 6888.946164 | L80: =Profile!O80/25.515728944797*19502488 -> 3591.160626 | M80: =Profile!O80/25.515728944797*706221 -> 130.0425386 | N80: 508.5348704 | O80: =Profile!O80/25.515728944797*1000000 -> 184.1385892 | P80: 284879.8184
A81: 1 | B81: 4 | C81: 8 | D81: Y010408 | E81: =Profile!B81/1077.03117593519*1068671798.45635 -> 100991.7508 | F81: =Profile!D81/390.985647863949*371911862.77167 -> 35099.02649 | G81: =Profile!J81/1427.26553695905*1469047929.49924 -> 132565.8801 | H81: =Profile!H81/358.09551901307*17602117.1513547 -> 1742.730271 | I81: =Profile!N81/499.485398604002*34191554.8115063 -> 2194.20665 | J81: 12900 | K81: =Profile!L81/119.908945705601*82923504.6960988 -> 7014.302536 | L81: =Profile!O81/25.515728944797*19502488 -> 227.2886486 | M81: =Profile!O81/25.515728944797*706221 -> 8.230540466 | N81: 508.5348704 | O81: =Profile!O81/25.515728944797*1000000 -> 11.65434116 | P81: 293263.6052
A82: 1 | B82: 4 | C82: 9 | D82: Y010409 | E82: =Profile!B82/1077.03117593519*1068671798.45635 -> 114347.0416 | F82: =Profile!D82/390.985647863949*371911862.77167 -> 34249.2502 | G82: =Profile!J82/1427.26553695905*1469047929.49924 -> 135322.1756 | H82: =Profile!H82/358.09551901307*17602117.1513547 -> 1744.125831 | I82: =Profile!N82/499.485398604002*34191554.8115063 -> 2132.232081 | J82: 12900 | K82: =Profile!L82/119.908945705601*82923504.6960988 -> 7066.669967 | L82: =Profile!O82/25.515728944797*19502488 -> 45.45772818 | M82: =Profile!O82/25.515728944797*706221 -> 1.646108038 | N82: 508.5348704 | O82: =Profile!O82/25.515728944797*1000000 -> 2.330868153 | P82: 308319.4649
A83: 1 | B83: 4 | C83: 10 | D83: Y010410 | E83: =Profile!B83/1077.03117593519*1068671798.45635 -> 128872.2374 | F83: =Profile!D83/390.985647863949*371911862.77167 -> 35332.99443 | G83: =Profile!J83/1427.26553695905*1469047929.49924 -> 138073.2585 | H83: =Profile!H83/358.09551901307*17602117.1513547 -> 1787.814025 | I83: =Profile!N83/499.485398604002*34191554.8115063 -> 2160.499568 | J83: 12900 | K83: =Profile!L83/119.908945705601*82923504.6960988 -> 7050.241044 | L83: =Profile!O83/25.515728944797*19502488 -> 45.45772818 | M83: =Profile!O83/25.515728944797*706221 -> 1.646108038 | N83: 508.5348704 | O83: =Profile!O83/25.515728944797*1000000 -> 2.330868153 | P83: 326735.0146
A84: 1 | B84: 4 | C84: 11 | D84: Y010411 | E84: =Profile!B84/1077.03117593519*1068671798.45635 -> 139273.8098 | F84: =Profile!D84/390.985647863949*371911862.77167 -> 37468.03179 | G84: =Profile!J84/1427.26553695905*1469047929.49924 -> 141188.1421 | H84: =Profile!H84/358.09551901307*17602117.1513547 -> 1857.22058 | I84: =Profile!N84/499.485398604002*34191554.8115063 -> 2377.753103 | J84: 12900 | K84: =Profile!L84/119.908945705601*82923504.6960988 -> 7114.03411 | L84: =Profile!O84/25.515728944797*19502488 -> 45.45772818 | M84: =Profile!O84/25.515728944797*706221 -> 1.646108038 | N84: 508.5348704 | O84: =Profile!O84/25.515728944797*1000000 -> 2.330868153 | P84: 342736.9611
A85: 1 | B85: 4 | C85: 12 | D85: Y010412 | E85: =Profile!B85/1077.03117593519*1068671798.45635 -> 150528.163 | F85: =Profile!D85/390.985647863949*371911862.77167 -> 40028.771 | G85: =Profile!J85/1427.26553695905*1469047929.49924 -> 144628.9882 | H85: =Profile!H85/358.09551901307*17602117.1513547 -> 1938.289648 | I85: =Profile!N85/499.485398604002*34191554.8115063 -> 2226.837642 | J85: 12900 | K85: =Profile!L85/119.908945705601*82923504.6960988 -> 7211.106922 | L85: =Profile!O85/25.515728944797*19502488 -> 45.45772818 | M85: =Profile!O85/25.515728944797*706221 -> 1.646108038 | N85: 508.5348704 | O85: =Profile!O85/25.515728944797*1000000 -> 2.330868153 | P85: 360020.1259
A86: 1 | B86: 4 | C86: 13 | D86: Y010413 | E86: =Profile!B86/1077.03117593519*1068671798.45635 -> 160143.7179 | F86: =Profile!D86/390.985647863949*371911862.77167 -> 40835.1485 | G86: =Profile!J86/1427.26553695905*1469047929.49924 -> 146046.3661 | H86: =Profile!H86/358.09551901307*17602117.1513547 -> 1966.280164 | I86: =Profile!N86/499.485398604002*34191554.8115063 -> 2185.33589 | J86: 12900 | K86: =Profile!L86/119.908945705601*82923504.6960988 -> 7257.587977 | L86: =Profile!O86/25.515728944797*19502488 -> 45.45772818 | M86: =Profile!O86/25.515728944797*706221 -> 1.646108038 | N86: 508.5348704 | O86: =Profile!O86/25.515728944797*1000000 -> 2.330868153 | P86: 371892.4061
A87: 1 | B87: 4 | C87: 14 | D87: Y010414 | E87: =Profile!B87/1077.03117593519*1068671798.45635 -> 162027.342 | F87: =Profile!D87/390.985647863949*371911862.77167 -> 40782.11658 | G87: =Profile!J87/1427.26553695905*1469047929.49924 -> 146941.6049 | H87: =Profile!H87/358.09551901307*17602117.1513547 -> 1971.674641 | I87: =Profile!N87/499.485398604002*34191554.8115063 -> 2115.883727 | J87: 12900 | K87: =Profile!L87/119.908945705601*82923504.6960988 -> 7313.005227 | L87: =Profile!O87/25.515728944797*19502488 -> 45.45772818 | M87: =Profile!O87/25.515728944797*706221 -> 1.646108038 | N87: 508.5348704 | O87: =Profile!O87/25.515728944797*1000000 -> 2.330868153 | P87: 374609.5966
A88: 1 | B88: 4 | C88: 15 | D88: Y010415 | E88: =Profile!B88/1077.03117593519*1068671798.45635 -> 166877.0194 | F88: =Profile!D88/390.985647863949*371911862.77167 -> 40979.43841 | G88: =Profile!J88/1427.26553695905*1469047929.49924 -> 147873.4652 | H88: =Profile!H88/358.09551901307*17602117.1513547 -> 1982.858356 | I88: =Profile!N88/499.485398604002*34191554.8115063 -> 1978.715931 | J88: 12900 | K88: =Profile!L88/119.908945705601*82923504.6960988 -> 7397.653758 | L88: =Profile!O88/25.515728944797*19502488 -> 45.45772818 | M88: =Profile!O88/25.515728944797*706221 -> 1.646108038 | N88: 508.5348704 | O88: =Profile!O88/25.515728944797*1000000 -> 2.330868153 | P88: 380547.1206
A89: 1 | B89: 4 | C89: 16 | D89: Y010416 | E89: =Profile!B89/1077.03117593519*1068671798.45635 -> 171287.6427 | F89: =Profile!D89/390.985647863949*371911862.77167 -> 40990.95033 | G89: =Profile!J89/1427.26553695905*1469047929.49924 -> 147632.4594 | H89: =Profile!H89/358.09551901307*17602117.1513547 -> 1981.358009 | I89: =Profile!N89/499.485398604002*34191554.8115063 -> 1958.54294 | J89: 12900 | K89: =Profile!L89/119.908945705601*82923504.6960988 -> 7446.702836 | L89: =Profile!O89/25.515728944797*19502488 -> 45.45772818 | M89: =Profile!O89/25.515728944797*706221 -> 1.646108038 | N89: 508.5348704 | O89: =Profile!O89/25.515728944797*1000000 -> 2.330868153 | P89: 384755.6258
A90: 1 | B90: 4 | C90: 17 | D90: Y010417 | E90: =Profile!B90/1077.03117593519*1068671798.45635 -> 188512.3924 | F90: =Profile!D90/390.985647863949*371911862.77167 -> 43221.05348 | G90: =Profile!J90/1427.26553695905*1469047929.49924 -> 150693.8506 | H90: =Profile!H90/358.09551901307*17602117.1513547 -> 2052.600353 | I90: =Profile!N90/499.485398604002*34191554.8115063 -> 1926.857429 | J90: 12900 | K90: =Profile!L90/119.908945705601*82923504.6960988 -> 7533.492825 | L90: =Profile!O90/25.515728944797*19502488 -> 2227.428735 | M90: =Profile!O90/25.515728944797*706221 -> 80.6592958 | N90: 508.5348704 | O90: =Profile!O90/25.515728944797*1000000 -> 114.2125422 | P90: 409771.0825
A91: 1 | B91: 4 | C91: 18 | D91: Y010418 | E91: =Profile!B91/1077.03117593519*1068671798.45635 -> 205127.8392 | F91: =Profile!D91/390.985647863949*371911862.77167 -> 44560.7598 | G91: =Profile!J91/1427.26553695905*1469047929.49924 -> 151733.7685 | H91: =Profile!H91/358.09551901307*17602117.1513547 -> 2089.604102 | I91: =Profile!N91/499.485398604002*34191554.8115063 -> 1883.474574 | J91: 12900 | K91: =Profile!L91/119.908945705601*82923504.6960988 -> 7662.28983 | L91: =Profile!O91/25.515728944797*19502488 -> 4545.772941 | M91: =Profile!O91/25.515728944797*706221 -> 164.6108082 | N91: 508.5348704 | O91: =Profile!O91/25.515728944797*1000000 -> 233.0868216 | P91: 431409.7415
A92: 1 | B92: 4 | C92: 19 | D92: Y010419 | E92: =Profile!B92/1077.03117593519*1068671798.45635 -> 203416.1596 | F92: =Profile!D92/390.985647863949*371911862.77167 -> 43458.04721 | G92: =Profile!J92/1427.26553695905*1469047929.49924 -> 150595.8105 | H92: =Profile!H92/358.09551901307*17602117.1513547 -> 2057.216646 | I92: =Profile!N92/499.485398604002*34191554.8115063 -> 1768.674664 | J92: 12900 | K92: =Profile!L92/119.908945705601*82923504.6960988 -> 7596.094665 | L92: =Profile!O92/25.515728944797*19502488 -> 4545.772941 | M92: =Profile!O92/25.515728944797*706221 -> 164.6108082 | N92: 508.5348704 | O92: =Profile!O92/25.515728944797*1000000 -> 233.0868216 | P92: 427244.0087
A93: 1 | B93: 4 | C93: 20 | D93: Y010420 | E93: =Profile!B93/1077.03117593519*1068671798.45635 -> 197338.3441 | F93: =Profile!D93/390.985647863949*371911862.77167 -> 43169.96979 | G93: =Profile!J93/1427.26553695905*1469047929.49924 -> 149348.5622 | H93: =Profile!H93/358.09551901307*17602117.1513547 -> 2041.842085 | I93: =Profile!N93/499.485398604002*34191554.8115063 -> 1576.290308 | J93: 12900 | K93: =Profile!L93/119.908945705601*82923504.6960988 -> 7576.328554 | L93: =Profile!O93/25.515728944797*19502488 -> 4545.772941 | M93: =Profile!O93/25.515728944797*706221 -> 164.6108082 | N93: 508.5348704 | O93: =Profile!O93/25.515728944797*1000000 -> 233.0868216 | P93: 419403.3425
A94: 1 | B94: 4 | C94: 21 | D94: Y010421 | E94: =Profile!B94/1077.03117593519*1068671798.45635 -> 194214.0596 | F94: =Profile!D94/390.985647863949*371911862.77167 -> 42608.49952 | G94: =Profile!J94/1427.26553695905*1469047929.49924 -> 149430.3012 | H94: =Profile!H94/358.09551901307*17602117.1513547 -> 2030.135681 | I94: =Profile!N94/499.485398604002*34191554.8115063 -> 1494.288143 | J94: 12900 | K94: =Profile!L94/119.908945705601*82923504.6960988 -> 7518.181694 | L94: =Profile!O94/25.515728944797*19502488 -> 4545.772941 | M94: =Profile!O94/25.515728944797*706221 -> 164.6108082 | N94: 508.5348704 | O94: =Profile!O94/25.515728944797*1000000 -> 233.0868216 | P94: 415647.4713
A95: 1 | B95: 4 | C95: 22 | D95: Y010422 | E95: =Profile!B95/1077.03117593519*1068671798.45635 -> 180285.5356 | F95: =Profile!D95/390.985647863949*371911862.77167 -> 41223.48639 | G95: =Profile!J95/1427.26553695905*1469047929.49924 -> 148788.0148 | H95: =Profile!H95/358.09551901307*17602117.1513547 -> 1995.200723 | I95: =Profile!N95/499.485398604002*34191554.8115063 -> 815.9785095 | J95: 12900 | K95: =Profile!L95/119.908945705601*82923504.6960988 -> 7472.642841 | L95: =Profile!O95/25.515728944797*19502488 -> 4545.772941 | M95: =Profile!O95/25.515728944797*706221 -> 164.6108082 | N95: 508.5348704 | O95: =Profile!O95/25.515728944797*1000000 -> 233.0868216 | P95: 398932.8643
A96: 1 | B96: 4 | C96: 23 | D96: Y010423 | E96: =Profile!B96/1077.03117593519*1068671798.45635 -> 159779.494 | F96: =Profile!D96/390.985647863949*371911862.77167 -> 39672.76074 | G96: =Profile!J96/1427.26553695905*1469047929.49924 -> 147034.4345 | H96: =Profile!H96/358.09551901307*17602117.1513547 -> 1948.515999 | I96: =Profile!N96/499.485398604002*34191554.8115063 -> 413.4288486 | J96: 12900 | K96: =Profile!L96/119.908945705601*82923504.6960988 -> 7461.266739 | L96: =Profile!O96/25.515728944797*19502488 -> 4545.772941 | M96: =Profile!O96/25.515728944797*706221 -> 164.6108082 | N96: 508.5348704 | O96: =Profile!O96/25.515728944797*1000000 -> 233.0868216 | P96: 374661.9063
A97: 1 | B97: 4 | C97: 24 | D97: Y010424 | E97: =Profile!B97/1077.03117593519*1068671798.45635 -> 136229.7321 | F97: =Profile!D97/390.985647863949*371911862.77167 -> 38732.30793 | G97: =Profile!J97/1427.26553695905*1469047929.49924 -> 145550.5225 | H97: =Profile!H97/358.09551901307*17602117.1513547 -> 1917.233698 | I97: =Profile!N97/499.485398604002*34191554.8115063 -> 393.8160816 | J97: 12900 | K97: =Profile!L97/119.908945705601*82923504.6960988 -> 7173.509005 | L97: =Profile!O97/25.515728944797*19502488 -> 4545.772941 | M97: =Profile!O97/25.515728944797*706221 -> 164.6108082 | N97: 508.5348704 | O97: =Profile!O97/25.515728944797*1000000 -> 233.0868216 | P97: 348349.1268
A98: 1 | B98: 5 | C98: 1 | D98: Y010501 | E98: =Profile!B98/1077.03117593519*1068671798.45635 -> 118080.3507 | F98: =Profile!D98/390.985647863949*371911862.77167 -> 37643.16427 | G98: =Profile!J98/1427.26553695905*1469047929.49924 -> 145181.2351 | H98: =Profile!H98/358.09551901307*17602117.1513547 -> 1891.762572 | I98: =Profile!N98/499.485398604002*34191554.8115063 -> 406.4482282 | J98: 12900 | K98: =Profile!L98/119.908945705601*82923504.6960988 -> 7116.231981 | L98: =Profile!O98/25.515728944797*19502488 -> 4545.772941 | M98: =Profile!O98/25.515728944797*706221 -> 164.6108082 | N98: 508.5348704 | O98: =Profile!O98/25.515728944797*1000000 -> 233.0868216 | P98: 328671.1982
A99: 1 | B99: 5 | C99: 2 | D99: Y010502 | E99: =Profile!B99/1077.03117593519*1068671798.45635 -> 109534.5448 | F99: =Profile!D99/390.985647863949*371911862.77167 -> 37749.28852 | G99: =Profile!J99/1427.26553695905*1469047929.49924 -> 145544.6573 | H99: =Profile!H99/358.09551901307*17602117.1513547 -> 1896.698352 | I99: =Profile!N99/499.485398604002*34191554.8115063 -> 397.9824392 | J99: 12900 | K99: =Profile!L99/119.908945705601*82923504.6960988 -> 7024.288746 | L99: =Profile!O99/25.515728944797*19502488 -> 4545.772941 | M99: =Profile!O99/25.515728944797*706221 -> 164.6108082 | N99: 508.5348704 | O99: =Profile!O99/25.515728944797*1000000 -> 233.0868216 | P99: 320499.4656
A100: 1 | B100: 5 | C100: 3 | D100: Y010503 | E100: =Profile!B100/1077.03117593519*1068671798.45635 -> 104673.9582 | F100: =Profile!D100/390.985647863949*371911862.77167 -> 37080.38795 | G100: =Profile!J100/1427.26553695905*1469047929.49924 -> 144048.8239 | H100: =Profile!H100/358.09551901307*17602117.1513547 -> 1871.140923 | I100: =Profile!N100/499.485398604002*34191554.8115063 -> 432.5963937 | J100: 12900 | K100: =Profile!L100/119.908945705601*82923504.6960988 -> 6957.353349 | L100: =Profile!O100/25.515728944797*19502488 -> 4545.772941 | M100: =Profile!O100/25.515728944797*706221 -> 164.6108082 | N100: 508.5348704 | O100: =Profile!O100/25.515728944797*1000000 -> 233.0868216 | P100: 313416.2661
A101: 1 | B101: 5 | C101: 4 | D101: Y010504 | E101: =Profile!B101/1077.03117593519*1068671798.45635 -> 101973.3135 | F101: =Profile!D101/390.985647863949*371911862.77167 -> 36888.63793 | G101: =Profile!J101/1427.26553695905*1469047929.49924 -> 145494.5615 | H101: =Profile!H101/358.09551901307*17602117.1513547 -> 1877.56186 | I101: =Profile!N101/499.485398604002*34191554.8115063 -> 413.5216716 | J101: 12900 | K101: =Profile!L101/119.908945705601*82923504.6960988 -> 6933.051532 | L101: =Profile!O101/25.515728944797*19502488 -> 4545.772941 | M101: =Profile!O101/25.515728944797*706221 -> 164.6108082 | N101: 508.5348704 | O101: =Profile!O101/25.515728944797*1000000 -> 233.0868216 | P101: 311932.6534
A102: 1 | B102: 5 | C102: 5 | D102: Y010505 | E102: =Profile!B102/1077.03117593519*1068671798.45635 -> 103914.0759 | F102: =Profile!D102/390.985647863949*371911862.77167 -> 37283.64404 | G102: =Profile!J102/1427.26553695905*1469047929.49924 -> 148950.4142 | H102: =Profile!H102/358.09551901307*17602117.1513547 -> 1912.601459 | I102: =Profile!N102/499.485398604002*34191554.8115063 -> 403.3596034 | J102: 12900 | K102: =Profile!L102/119.908945705601*82923504.6960988 -> 7006.65985 | L102: =Profile!O102/25.515728944797*19502488 -> 4545.772941 | M102: =Profile!O102/25.515728944797*706221 -> 164.6108082 | N102: 508.5348704 | O102: =Profile!O102/25.515728944797*1000000 -> 233.0868216 | P102: 317822.7605
A103: 1 | B103: 5 | C103: 6 | D103: Y010506 | E103: =Profile!B103/1077.03117593519*1068671798.45635 -> 110819.3683 | F103: =Profile!D103/390.985647863949*371911862.77167 -> 38156.8528 | G103: =Profile!J103/1427.26553695905*1469047929.49924 -> 157270.4031 | H103: =Profile!H103/358.09551901307*17602117.1513547 -> 1995.667033 | I103: =Profile!N103/499.485398604002*34191554.8115063 -> 412.5006183 | J103: 12900 | K103: =Profile!L103/119.908945705601*82923504.6960988 -> 7360.804029 | L103: =Profile!O103/25.515728944797*19502488 -> 4545.772941 | M103: =Profile!O103/25.515728944797*706221 -> 164.6108082 | N103: 508.5348704 | O103: =Profile!O103/25.515728944797*1000000 -> 233.0868216 | P103: 334367.6013
A104: 1 | B104: 5 | C104: 7 | D104: Y010507 | E104: =Profile!B104/1077.03117593519*1068671798.45635 -> 129175.7965 | F104: =Profile!D104/390.985647863949*371911862.77167 -> 41068.90295 | G104: =Profile!J104/1427.26553695905*1469047929.49924 -> 175314.0429 | H104: =Profile!H104/358.09551901307*17602117.1513547 -> 2201.143672 | I104: =Profile!N104/499.485398604002*34191554.8115063 -> 417.5779559 | J104: 12900 | K104: =Profile!L104/119.908945705601*82923504.6960988 -> 7926.766003 | L104: =Profile!O104/25.515728944797*19502488 -> 3591.160626 | M104: =Profile!O104/25.515728944797*706221 -> 130.0425386 | N104: 508.5348704 | O104: =Profile!O104/25.515728944797*1000000 -> 184.1385892 | P104: 373418.1066
A105: 1 | B105: 5 | C105: 8 | D105: Y010508 | E105: =Profile!B105/1077.03117593519*1068671798.45635 -> 145760.5198 | F105: =Profile!D105/390.985647863949*371911862.77167 -> 46688.81852 | G105: =Profile!J105/1427.26553695905*1469047929.49924 -> 195591.0967 | H105: =Profile!H105/358.09551901307*17602117.1513547 -> 2480.060783 | I105: =Profile!N105/499.485398604002*34191554.8115063 -> 428.4694653 | J105: 12900 | K105: =Profile!L105/119.908945705601*82923504.6960988 -> 8458.594467 | L105: =Profile!O105/25.515728944797*19502488 -> 227.2886486 | M105: =Profile!O105/25.515728944797*706221 -> 8.230540466 | N105: 508.5348704 | O105: =Profile!O105/25.515728944797*1000000 -> 11.65434116 | P105: 413063.2682
A106: 1 | B106: 5 | C106: 9 | D106: Y010509 | E106: =Profile!B106/1077.03117593519*1068671798.45635 -> 141660.8458 | F106: =Profile!D106/390.985647863949*371911862.77167 -> 51459.09689 | G106: =Profile!J106/1427.26553695905*1469047929.49924 -> 206893.2066 | H106: =Profile!H106/358.09551901307*17602117.1513547 -> 2667.693423 | I106: =Profile!N106/499.485398604002*34191554.8115063 -> 430.06635 | J106: 12900 | K106: =Profile!L106/119.908945705601*82923504.6960988 -> 8935.960863 | L106: =Profile!O106/25.515728944797*19502488 -> 45.45772818 | M106: =Profile!O106/25.515728944797*706221 -> 1.646108038 | N106: 508.5348704 | O106: =Profile!O106/25.515728944797*1000000 -> 2.330868153 | P106: 425504.8395
A107: 1 | B107: 5 | C107: 10 | D107: Y010510 | E107: =Profile!B107/1077.03117593519*1068671798.45635 -> 135617.8251 | F107: =Profile!D107/390.985647863949*371911862.77167 -> 57262.44646 | G107: =Profile!J107/1427.26553695905*1469047929.49924 -> 211731.7841 | H107: =Profile!H107/358.09551901307*17602117.1513547 -> 2832.200516 | I107: =Profile!N107/499.485398604002*34191554.8115063 -> 422.5181126 | J107: 12900 | K107: =Profile!L107/119.908945705601*82923504.6960988 -> 9508.22148 | L107: =Profile!O107/25.515728944797*19502488 -> 45.45772818 | M107: =Profile!O107/25.515728944797*706221 -> 1.646108038 | N107: 508.5348704 | O107: =Profile!O107/25.515728944797*1000000 -> 2.330868153 | P107: 430832.9653
A108: 1 | B108: 5 | C108: 11 | D108: Y010511 | E108: =Profile!B108/1077.03117593519*1068671798.45635 -> 134954.58 | F108: =Profile!D108/390.985647863949*371911862.77167 -> 60239.75441 | G108: =Profile!J108/1427.26553695905*1469047929.49924 -> 216150.2219 | H108: =Profile!H108/358.09551901307*17602117.1513547 -> 2928.799449 | I108: =Profile!N108/499.485398604002*34191554.8115063 -> 427.5568424 | J108: 12900 | K108: =Profile!L108/119.908945705601*82923504.6960988 -> 9812.211969 | L108: =Profile!O108/25.515728944797*19502488 -> 45.45772818 | M108: =Profile!O108/25.515728944797*706221 -> 1.646108038 | N108: 508.5348704 | O108: =Profile!O108/25.515728944797*1000000 -> 2.330868153 | P108: 437971.0941
A109: 1 | B109: 5 | C109: 12 | D109: Y010512 | E109: =Profile!B109/1077.03117593519*1068671798.45635 -> 136470.3167 | F109: =Profile!D109/390.985647863949*371911862.77167 -> 61230.94971 | G109: =Profile!J109/1427.26553695905*1469047929.49924 -> 214957.1321 | H109: =Profile!H109/358.09551901307*17602117.1513547 -> 2938.431349 | I109: =Profile!N109/499.485398604002*34191554.8115063 -> 456.6925952 | J109: 12900 | K109: =Profile!L109/119.908945705601*82923504.6960988 -> 9921.361629 | L109: =Profile!O109/25.515728944797*19502488 -> 45.45772818 | M109: =Profile!O109/25.515728944797*706221 -> 1.646108038 | N109: 508.5348704 | O109: =Profile!O109/25.515728944797*1000000 -> 2.330868153 | P109: 439432.8537
A110: 1 | B110: 5 | C110: 13 | D110: Y010513 | E110: =Profile!B110/1077.03117593519*1068671798.45635 -> 137351.5026 | F110: =Profile!D110/390.985647863949*371911862.77167 -> 61239.03814 | G110: =Profile!J110/1427.26553695905*1469047929.49924 -> 214494.7323 | H110: =Profile!H110/358.09551901307*17602117.1513547 -> 2930.933652 | I110: =Profile!N110/499.485398604002*34191554.8115063 -> 128.0727815 | J110: 12900 | K110: =Profile!L110/119.908945705601*82923504.6960988 -> 9994.67595 | L110: =Profile!O110/25.515728944797*19502488 -> 45.45772818 | M110: =Profile!O110/25.515728944797*706221 -> 1.646108038 | N110: 508.5348704 | O110: =Profile!O110/25.515728944797*1000000 -> 2.330868153 | P110: 439596.9251
A111: 1 | B111: 5 | C111: 14 | D111: Y010514 | E111: =Profile!B111/1077.03117593519*1068671798.45635 -> 134605.0505 | F111: =Profile!D111/390.985647863949*371911862.77167 -> 61025.45231 | G111: =Profile!J111/1427.26553695905*1469047929.49924 -> 215834.8443 | H111: =Profile!H111/358.09551901307*17602117.1513547 -> 2936.406546 | I111: =Profile!N111/499.485398604002*34191554.8115063 -> 69.33469647 | J111: 12900 | K111: =Profile!L111/119.908945705601*82923504.6960988 -> 9969.370453 | L111: =Profile!O111/25.515728944797*19502488 -> 45.45772818 | M111: =Profile!O111/25.515728944797*706221 -> 1.646108038 | N111: 508.5348704 | O111: =Profile!O111/25.515728944797*1000000 -> 2.330868153 | P111: 437898.4284
A112: 1 | B112: 5 | C112: 15 | D112: Y010515 | E112: =Profile!B112/1077.03117593519*1068671798.45635 -> 134183.0618 | F112: =Profile!D112/390.985647863949*371911862.77167 -> 60567.34174 | G112: =Profile!J112/1427.26553695905*1469047929.49924 -> 212119.8884 | H112: =Profile!H112/358.09551901307*17602117.1513547 -> 2896.132467 | I112: =Profile!N112/499.485398604002*34191554.8115063 -> 70.25060514 | J112: 12900 | K112: =Profile!L112/119.908945705601*82923504.6960988 -> 10071.19521 | L112: =Profile!O112/25.515728944797*19502488 -> 45.45772818 | M112: =Profile!O112/25.515728944797*706221 -> 1.646108038 | N112: 508.5348704 | O112: =Profile!O112/25.515728944797*1000000 -> 2.330868153 | P112: 433365.8399
A113: 1 | B113: 5 | C113: 16 | D113: Y010516 | E113: =Profile!B113/1077.03117593519*1068671798.45635 -> 141966.9582 | F113: =Profile!D113/390.985647863949*371911862.77167 -> 59810.1026 | G113: =Profile!J113/1427.26553695905*1469047929.49924 -> 209300.0401 | H113: =Profile!H113/358.09551901307*17602117.1513547 -> 2852.812732 | I113: =Profile!N113/499.485398604002*34191554.8115063 -> 77.34047748 | J113: 12900 | K113: =Profile!L113/119.908945705601*82923504.6960988 -> 10012.76426 | L113: =Profile!O113/25.515728944797*19502488 -> 45.45772818 | M113: =Profile!O113/25.515728944797*706221 -> 1.646108038 | N113: 508.5348704 | O113: =Profile!O113/25.515728944797*1000000 -> 2.330868153 | P113: 437477.988
A114: 1 | B114: 5 | C114: 17 | D114: Y010517 | E114: =Profile!B114/1077.03117593519*1068671798.45635 -> 162568.7801 | F114: =Profile!D114/390.985647863949*371911862.77167 -> 58379.2035 | G114: =Profile!J114/1427.26553695905*1469047929.49924 -> 205967.2098 | H114: =Profile!H114/358.09551901307*17602117.1513547 -> 2793.215111 | I114: =Profile!N114/499.485398604002*34191554.8115063 -> 70.45103717 | J114: 12900 | K114: =Profile!L114/119.908945705601*82923504.6960988 -> 9800.971748 | L114: =Profile!O114/25.515728944797*19502488 -> 2227.428735 | M114: =Profile!O114/25.515728944797*706221 -> 80.6592958 | N114: 508.5348704 | O114: =Profile!O114/25.515728944797*1000000 -> 114.2125422 | P114: 455410.6667
A115: 1 | B115: 5 | C115: 18 | D115: Y010518 | E115: =Profile!B115/1077.03117593519*1068671798.45635 -> 197599.9424 | F115: =Profile!D115/390.985647863949*371911862.77167 -> 58105.54729 | G115: =Profile!J115/1427.26553695905*1469047929.49924 -> 204157.9797 | H115: =Profile!H115/358.09551901307*17602117.1513547 -> 2773.406154 | I115: =Profile!N115/499.485398604002*34191554.8115063 -> 70.21856887 | J115: 12900 | K115: =Profile!L115/119.908945705601*82923504.6960988 -> 9508.160235 | L115: =Profile!O115/25.515728944797*19502488 -> 4545.772941 | M115: =Profile!O115/25.515728944797*706221 -> 164.6108082 | N115: 508.5348704 | O115: =Profile!O115/25.515728944797*1000000 -> 233.0868216 | P115: 490567.2598
A116: 1 | B116: 5 | C116: 19 | D116: Y010519 | E116: =Profile!B116/1077.03117593519*1068671798.45635 -> 202625.2667 | F116: =Profile!D116/390.985647863949*371911862.77167 -> 54915.16249 | G116: =Profile!J116/1427.26553695905*1469047929.49924 -> 198415.8879 | H116: =Profile!H116/358.09551901307*17602117.1513547 -> 2662.070587 | I116: =Profile!N116/499.485398604002*34191554.8115063 -> 68.272571 | J116: 12900 | K116: =Profile!L116/119.908945705601*82923504.6960988 -> 9187.062333 | L116: =Profile!O116/25.515728944797*19502488 -> 4545.772941 | M116: =Profile!O116/25.515728944797*706221 -> 164.6108082 | N116: 508.5348704 | O116: =Profile!O116/25.515728944797*1000000 -> 233.0868216 | P116: 486225.728
A117: 1 | B117: 5 | C117: 20 | D117: Y010520 | E117: =Profile!B117/1077.03117593519*1068671798.45635 -> 202945.5074 | F117: =Profile!D117/390.985647863949*371911862.77167 -> 52888.57526 | G117: =Profile!J117/1427.26553695905*1469047929.49924 -> 193858.6112 | H117: =Profile!H117/358.09551901307*17602117.1513547 -> 2583.917478 | I117: =Profile!N117/499.485398604002*34191554.8115063 -> 69.24598066 | J117: 12900 | K117: =Profile!L117/119.908945705601*82923504.6960988 -> 8979.183259 | L117: =Profile!O117/25.515728944797*19502488 -> 4545.772941 | M117: =Profile!O117/25.515728944797*706221 -> 164.6108082 | N117: 508.5348704 | O117: =Profile!O117/25.515728944797*1000000 -> 233.0868216 | P117: 479677.046
A118: 1 | B118: 5 | C118: 21 | D118: Y010521 | E118: =Profile!B118/1077.03117593519*1068671798.45635 -> 199728.0884 | F118: =Profile!D118/390.985647863949*371911862.77167 -> 50908.74686 | G118: =Profile!J118/1427.26553695905*1469047929.49924 -> 190149.3272 | H118: =Profile!H118/358.09551901307*17602117.1513547 -> 2513.402242 | I118: =Profile!N118/499.485398604002*34191554.8115063 -> 65.82549306 | J118: 12900 | K118: =Profile!L118/119.908945705601*82923504.6960988 -> 8818.369298 | L118: =Profile!O118/25.515728944797*19502488 -> 4545.772941 | M118: =Profile!O118/25.515728944797*706221 -> 164.6108082 | N118: 508.5348704 | O118: =Profile!O118/25.515728944797*1000000 -> 233.0868216 | P118: 470535.765
A119: 1 | B119: 5 | C119: 22 | D119: Y010522 | E119: =Profile!B119/1077.03117593519*1068671798.45635 -> 190438.2382 | F119: =Profile!D119/390.985647863949*371911862.77167 -> 47479.89826 | G119: =Profile!J119/1427.26553695905*1469047929.49924 -> 182964.1069 | H119: =Profile!H119/358.09551901307*17602117.1513547 -> 2386.609503 | I119: =Profile!N119/499.485398604002*34191554.8115063 -> 66.9024045 | J119: 12900 | K119: =Profile!L119/119.908945705601*82923504.6960988 -> 8584.095522 | L119: =Profile!O119/25.515728944797*19502488 -> 4545.772941 | M119: =Profile!O119/25.515728944797*706221 -> 164.6108082 | N119: 508.5348704 | O119: =Profile!O119/25.515728944797*1000000 -> 233.0868216 | P119: 450271.8562
A120: 1 | B120: 5 | C120: 23 | D120: Y010523 | E120: =Profile!B120/1077.03117593519*1068671798.45635 -> 171614.2571 | F120: =Profile!D120/390.985647863949*371911862.77167 -> 44631.60978 | G120: =Profile!J120/1427.26553695905*1469047929.49924 -> 172684.7327 | H120: =Profile!H120/358.09551901307*17602117.1513547 -> 2249.995569 | I120: =Profile!N120/499.485398604002*34191554.8115063 -> 68.6126483 | J120: 12900 | K120: =Profile!L120/119.908945705601*82923504.6960988 -> 8281.457138 | L120: =Profile!O120/25.515728944797*19502488 -> 4545.772941 | M120: =Profile!O120/25.515728944797*706221 -> 164.6108082 | N120: 508.5348704 | O120: =Profile!O120/25.515728944797*1000000 -> 233.0868216 | P120: 417882.6703
A121: 1 | B121: 5 | C121: 24 | D121: Y010524 | E121: =Profile!B121/1077.03117593519*1068671798.45635 -> 147003.5875 | F121: =Profile!D121/390.985647863949*371911862.77167 -> 42445.70067 | G121: =Profile!J121/1427.26553695905*1469047929.49924 -> 164238.1069 | H121: =Profile!H121/358.09551901307*17602117.1513547 -> 2137.238809 | I121: =Profile!N121/499.485398604002*34191554.8115063 -> 69.81359759 | J121: 12900 | K121: =Profile!L121/119.908945705601*82923504.6960988 -> 7739.506076 | L121: =Profile!O121/25.515728944797*19502488 -> 4545.772941 | M121: =Profile!O121/25.515728944797*706221 -> 164.6108082 | N121: 508.5348704 | O121: =Profile!O121/25.515728944797*1000000 -> 233.0868216 | P121: 381985.959
A122: 1 | B122: 6 | C122: 1 | D122: Y010601 | E122: =Profile!B122/1077.03117593519*1068671798.45635 -> 127032.3917 | F122: =Profile!D122/390.985647863949*371911862.77167 -> 40600.66164 | G122: =Profile!J122/1427.26553695905*1469047929.49924 -> 159487.4167 | H122: =Profile!H122/358.09551901307*17602117.1513547 -> 2059.355178 | I122: =Profile!N122/499.485398604002*34191554.8115063 -> 68.72847173 | J122: 12900 | K122: =Profile!L122/119.908945705601*82923504.6960988 -> 7503.890504 | L122: =Profile!O122/25.515728944797*19502488 -> 4545.772941 | M122: =Profile!O122/25.515728944797*706221 -> 164.6108082 | N122: 508.5348704 | O122: =Profile!O122/25.515728944797*1000000 -> 233.0868216 | P122: 355104.4496
A123: 1 | B123: 6 | C123: 2 | D123: Y010602 | E123: =Profile!B123/1077.03117593519*1068671798.45635 -> 118033.7151 | F123: =Profile!D123/390.985647863949*371911862.77167 -> 40060.53657 | G123: =Profile!J123/1427.26553695905*1469047929.49924 -> 158346.8699 | H123: =Profile!H123/358.09551901307*17602117.1513547 -> 2039.088524 | I123: =Profile!N123/499.485398604002*34191554.8115063 -> 70.05920898 | J123: 12900 | K123: =Profile!L123/119.908945705601*82923504.6960988 -> 7313.907267 | L123: =Profile!O123/25.515728944797*19502488 -> 4545.772941 | M123: =Profile!O123/25.515728944797*706221 -> 164.6108082 | N123: 508.5348704 | O123: =Profile!O123/25.515728944797*1000000 -> 233.0868216 | P123: 344216.182
A124: 1 | B124: 6 | C124: 3 | D124: Y010603 | E124: =Profile!B124/1077.03117593519*1068671798.45635 -> 113749.9125 | F124: =Profile!D124/390.985647863949*371911862.77167 -> 39575.91314 | G124: =Profile!J124/1427.26553695905*1469047929.49924 -> 157149.2432 | H124: =Profile!H124/358.09551901307*17602117.1513547 -> 2019.780415 | I124: =Profile!N124/499.485398604002*34191554.8115063 -> 69.94584988 | J124: 12900 | K124: =Profile!L124/119.908945705601*82923504.6960988 -> 7176.315721 | L124: =Profile!O124/25.515728944797*19502488 -> 4545.772941 | M124: =Profile!O124/25.515728944797*706221 -> 164.6108082 | N124: 508.5348704 | O124: =Profile!O124/25.515728944797*1000000 -> 233.0868216 | P124: 338093.1162
A125: 1 | B125: 6 | C125: 4 | D125: Y010604 | E125: =Profile!B125/1077.03117593519*1068671798.45635 -> 111530.7207 | F125: =Profile!D125/390.985647863949*371911862.77167 -> 39472.8103 | G125: =Profile!J125/1427.26553695905*1469047929.49924 -> 157077.8517 | H125: =Profile!H125/358.09551901307*17602117.1513547 -> 2017.250905 | I125: =Profile!N125/499.485398604002*34191554.8115063 -> 70.01813684 | J125: 12900 | K125: =Profile!L125/119.908945705601*82923504.6960988 -> 7178.909375 | L125: =Profile!O125/25.515728944797*19502488 -> 4545.772941 | M125: =Profile!O125/25.515728944797*706221 -> 164.6108082 | N125: 508.5348704 | O125: =Profile!O125/25.515728944797*1000000 -> 233.0868216 | P125: 335699.5666
A126: 1 | B126: 6 | C126: 5 | D126: Y010605 | E126: =Profile!B126/1077.03117593519*1068671798.45635 -> 111372.3261 | F126: =Profile!D126/390.985647863949*371911862.77167 -> 39384.77447 | G126: =Profile!J126/1427.26553695905*1469047929.49924 -> 158300.2185 | H126: =Profile!H126/358.09551901307*17602117.1513547 -> 2025.455763 | I126: =Profile!N126/499.485398604002*34191554.8115063 -> 70.15038912 | J126: 12900 | K126: =Profile!L126/119.908945705601*82923504.6960988 -> 7253.493314 | L126: =Profile!O126/25.515728944797*19502488 -> 4545.772941 | M126: =Profile!O126/25.515728944797*706221 -> 164.6108082 | N126: 508.5348704 | O126: =Profile!O126/25.515728944797*1000000 -> 233.0868216 | P126: 336758.424
A127: 1 | B127: 6 | C127: 6 | D127: Y010606 | E127: =Profile!B127/1077.03117593519*1068671798.45635 -> 116936.1746 | F127: =Profile!D127/390.985647863949*371911862.77167 -> 39913.83143 | G127: =Profile!J127/1427.26553695905*1469047929.49924 -> 164242.347 | H127: =Profile!H127/358.09551901307*17602117.1513547 -> 2082.22419 | I127: =Profile!N127/499.485398604002*34191554.8115063 -> 76.40649708 | J127: 12900 | K127: =Profile!L127/119.908945705601*82923504.6960988 -> 7642.046787 | L127: =Profile!O127/25.515728944797*19502488 -> 4545.772941 | M127: =Profile!O127/25.515728944797*706221 -> 164.6108082 | N127: 508.5348704 | O127: =Profile!O127/25.515728944797*1000000 -> 233.0868216 | P127: 349245.036
A128: 1 | B128: 6 | C128: 7 | D128: Y010607 | E128: =Profile!B128/1077.03117593519*1068671798.45635 -> 131369.8135 | F128: =Profile!D128/390.985647863949*371911862.77167 -> 42460.61738 | G128: =Profile!J128/1427.26553695905*1469047929.49924 -> 181497.3879 | H128: =Profile!H128/358.09551901307*17602117.1513547 -> 2272.678875 | I128: =Profile!N128/499.485398604002*34191554.8115063 -> 75.24908425 | J128: 12900 | K128: =Profile!L128/119.908945705601*82923504.6960988 -> 8200.195571 | L128: =Profile!O128/25.515728944797*19502488 -> 3591.160626 | M128: =Profile!O128/25.515728944797*706221 -> 130.0425386 | N128: 508.5348704 | O128: =Profile!O128/25.515728944797*1000000 -> 184.1385892 | P128: 383189.8189
A129: 1 | B129: 6 | C129: 8 | D129: Y010608 | E129: =Profile!B129/1077.03117593519*1068671798.45635 -> 146535.8077 | F129: =Profile!D129/390.985647863949*371911862.77167 -> 48109.91496 | G129: =Profile!J129/1427.26553695905*1469047929.49924 -> 201897.9812 | H129: =Profile!H129/358.09551901307*17602117.1513547 -> 2554.103453 | I129: =Profile!N129/499.485398604002*34191554.8115063 -> 69.80127595 | J129: 12900 | K129: =Profile!L129/119.908945705601*82923504.6960988 -> 8734.062904 | L129: =Profile!O129/25.515728944797*19502488 -> 227.2886486 | M129: =Profile!O129/25.515728944797*706221 -> 8.230540466 | N129: 508.5348704 | O129: =Profile!O129/25.515728944797*1000000 -> 11.65434116 | P129: 421557.3799
A130: 1 | B130: 6 | C130: 9 | D130: =DateRef(A130,B130,C130) -> Y010609 | E130: =Profile!B130/1077.03117593519*1068671798.45635 -> 142127.8601 | F130: =Profile!D130/390.985647863949*371911862.77167 -> 52729.5962 | G130: =Profile!J130/1427.26553695905*1469047929.49924 -> 212184.6868 | H130: =Profile!H130/358.09551901307*17602117.1513547 -> 2731.268954 | I130: =Profile!N130/499.485398604002*34191554.8115063 -> 68.41303771 | J130: 12900 | K130: =Profile!L130/119.908945705601*82923504.6960988 -> 9208.799388 | L130: =Profile!O130/25.515728944797*19502488 -> 45.45772818 | M130: =Profile!O130/25.515728944797*706221 -> 1.646108038 | N130: 508.5348704 | O130: =Profile!O130/25.515728944797*1000000 -> 2.330868153 | P130: 432508.5941
A131: 1 | B131: 6 | C131: 10 | D131: Y010610 | E131: =Profile!B131/1077.03117593519*1068671798.45635 -> 132947.582 | F131: =Profile!D131/390.985647863949*371911862.77167 -> 57436.22155 | G131: =Profile!J131/1427.26553695905*1469047929.49924 -> 216018.2491 | H131: =Profile!H131/358.09551901307*17602117.1513547 -> 2860.340221 | I131: =Profile!N131/499.485398604002*34191554.8115063 -> 66.69375804 | J131: 12900 | K131: =Profile!L131/119.908945705601*82923504.6960988 -> 9718.379128 | L131: =Profile!O131/25.515728944797*19502488 -> 45.45772818 | M131: =Profile!O131/25.515728944797*706221 -> 1.646108038 | N131: 508.5348704 | O131: =Profile!O131/25.515728944797*1000000 -> 2.330868153 | P131: =SUM(E131:O131) -> 432505.4354
A132: 1 | B132: 6 | C132: 11 | D132: Y010611 | E132: =Profile!B132/1077.03117593519*1068671798.45635 -> 128948.7741 | F132: =Profile!D132/390.985647863949*371911862.77167 -> 60462.13923 | G132: =Profile!J132/1427.26553695905*1469047929.49924 -> 218781.083 | H132: =Profile!H132/358.09551901307*17602117.1513547 -> 2944.63645 | I132: =Profile!N132/499.485398604002*34191554.8115063 -> 68.53953989 | J132: 12900 | K132: =Profile!L132/119.908945705601*82923504.6960988 -> 9996.642683 | L132: =Profile!O132/25.515728944797*19502488 -> 45.45772818 | M132: =Profile!O132/25.515728944797*706221 -> 1.646108038 | N132: 508.5348704 | O132: =Profile!O132/25.515728944797*1000000 -> 2.330868153 | P132: 434659.7846
A133: 1 | B133: 6 | C133: 12 | D133: Y010612 | E133: =Profile!B133/1077.03117593519*1068671798.45635 -> 129529.4098 | F133: =Profile!D133/390.985647863949*371911862.77167 -> 61713.85045 | G133: =Profile!J133/1427.26553695905*1469047929.49924 -> 217372.7368 | H133: =Profile!H133/358.09551901307*17602117.1513547 -> 2963.406249 | I133: =Profile!N133/499.485398604002*34191554.8115063 -> 68.28571409 | J133: 12900 | K133: =Profile!L133/119.908945705601*82923504.6960988 -> 10135.99277 | L133: =Profile!O133/25.515728944797*19502488 -> 45.45772818 | M133: =Profile!O133/25.515728944797*706221 -> 1.646108038 | N133: 508.5348704 | O133: =Profile!O133/25.515728944797*1000000 -> 2.330868153 | P133: 435241.6514
A134: 1 | B134: 6 | C134: 13 | D134: Y010613 | E134: =Profile!B134/1077.03117593519*1068671798.45635 -> 129376.5331 | F134: =Profile!D134/390.985647863949*371911862.77167 -> 61136.46452 | G134: =Profile!J134/1427.26553695905*1469047929.49924 -> 216019.63 | H134: =Profile!H134/358.09551901307*17602117.1513547 -> 2938.561381 | I134: =Profile!N134/499.485398604002*34191554.8115063 -> 66.8794041 | J134: 12900 | K134: =Profile!L134/119.908945705601*82923504.6960988 -> 10209.34539 | L134: =Profile!O134/25.515728944797*19502488 -> 45.45772818 | M134: =Profile!O134/25.515728944797*706221 -> 1.646108038 | N134: 508.5348704 | O134: =Profile!O134/25.515728944797*1000000 -> 2.330868153 | P134: 433205.3834
A135: 1 | B135: 6 | C135: 14 | D135: Y010614 | E135: =Profile!B135/1077.03117593519*1068671798.45635 -> 129434.5366 | F135: =Profile!D135/390.985647863949*371911862.77167 -> 61312.82342 | G135: =Profile!J135/1427.26553695905*1469047929.49924 -> 216803.0236 | H135: =Profile!H135/358.09551901307*17602117.1513547 -> 2950.984879 | I135: =Profile!N135/499.485398604002*34191554.8115063 -> 66.07192588 | J135: 12900 | K135: =Profile!L135/119.908945705601*82923504.6960988 -> 10240.81815 | L135: =Profile!O135/25.515728944797*19502488 -> 45.45772818 | M135: =Profile!O135/25.515728944797*706221 -> 1.646108038 | N135: 508.5348704 | O135: =Profile!O135/25.515728944797*1000000 -> 2.330868153 | P135: 434266.2282
A136: 1 | B136: 6 | C136: 15 | D136: Y010615 | E136: =Profile!B136/1077.03117593519*1068671798.45635 -> 133044.4758 | F136: =Profile!D136/390.985647863949*371911862.77167 -> 61373.49645 | G136: =Profile!J136/1427.26553695905*1469047929.49924 -> 217641.7975 | H136: =Profile!H136/358.09551901307*17602117.1513547 -> 2958.709075 | I136: =Profile!N136/499.485398604002*34191554.8115063 -> 158.7783114 | J136: 12900 | K136: =Profile!L136/119.908945705601*82923504.6960988 -> 10237.90485 | L136: =Profile!O136/25.515728944797*19502488 -> 45.45772818 | M136: =Profile!O136/25.515728944797*706221 -> 1.646108038 | N136: 508.5348704 | O136: =Profile!O136/25.515728944797*1000000 -> 2.330868153 | P136: 438873.1316
A137: 1 | B137: 6 | C137: 16 | D137: Y010616 | E137: =Profile!B137/1077.03117593519*1068671798.45635 -> 139395.1574 | F137: =Profile!D137/390.985647863949*371911862.77167 -> 60566.20162 | G137: =Profile!J137/1427.26553695905*1469047929.49924 -> 214523.9595 | H137: =Profile!H137/358.09551901307*17602117.1513547 -> 2906.642395 | I137: =Profile!N137/499.485398604002*34191554.8115063 -> 411.0450218 | J137: 12900 | K137: =Profile!L137/119.908945705601*82923504.6960988 -> 10104.21288 | L137: =Profile!O137/25.515728944797*19502488 -> 45.45772818 | M137: =Profile!O137/25.515728944797*706221 -> 1.646108038 | N137: 508.5348704 | O137: =Profile!O137/25.515728944797*1000000 -> 2.330868153 | P137: 441365.1884
A138: 1 | B138: 6 | C138: 17 | D138: Y010617 | E138: =Profile!B138/1077.03117593519*1068671798.45635 -> 157911.8232 | F138: =Profile!D138/390.985647863949*371911862.77167 -> 58720.10165 | G138: =Profile!J138/1427.26553695905*1469047929.49924 -> 208476.9364 | H138: =Profile!H138/358.09551901307*17602117.1513547 -> 2817.464375 | I138: =Profile!N138/499.485398604002*34191554.8115063 -> 77.76844915 | J138: 12900 | K138: =Profile!L138/119.908945705601*82923504.6960988 -> 9846.719409 | L138: =Profile!O138/25.515728944797*19502488 -> 2227.428735 | M138: =Profile!O138/25.515728944797*706221 -> 80.6592958 | N138: 508.5348704 | O138: =Profile!O138/25.515728944797*1000000 -> 114.2125422 | P138: 453681.6489
A139: 1 | B139: 6 | C139: 18 | D139: Y010618 | E139: =Profile!B139/1077.03117593519*1068671798.45635 -> 190537.4779 | F139: =Profile!D139/390.985647863949*371911862.77167 -> 58502.32737 | G139: =Profile!J139/1427.26553695905*1469047929.49924 -> 205410.2178 | H139: =Profile!H139/358.09551901307*17602117.1513547 -> 2790.204783 | I139: =Profile!N139/499.485398604002*34191554.8115063 -> 77.50969469 | J139: 12900 | K139: =Profile!L139/119.908945705601*82923504.6960988 -> 9528.572451 | L139: =Profile!O139/25.515728944797*19502488 -> 4545.772941 | M139: =Profile!O139/25.515728944797*706221 -> 164.6108082 | N139: 508.5348704 | O139: =Profile!O139/25.515728944797*1000000 -> 233.0868216 | P139: 485198.3155
A140: 1 | B140: 6 | C140: 19 | D140: Y010619 | E140: =Profile!B140/1077.03117593519*1068671798.45635 -> 196091.24 | F140: =Profile!D140/390.985647863949*371911862.77167 -> 54874.70236 | G140: =Profile!J140/1427.26553695905*1469047929.49924 -> 199175.8596 | H140: =Profile!H140/358.09551901307*17602117.1513547 -> 2664.261155 | I140: =Profile!N140/499.485398604002*34191554.8115063 -> 72.82582815 | J140: 12900 | K140: =Profile!L140/119.908945705601*82923504.6960988 -> 9275.080659 | L140: =Profile!O140/25.515728944797*19502488 -> 4545.772941 | M140: =Profile!O140/25.515728944797*706221 -> 164.6108082 | N140: 508.5348704 | O140: =Profile!O140/25.515728944797*1000000 -> 233.0868216 | P140: 480505.975
A141: 1 | B141: 6 | C141: 20 | D141: Y010620 | E141: =Profile!B141/1077.03117593519*1068671798.45635 -> 196509.6741 | F141: =Profile!D141/390.985647863949*371911862.77167 -> 53494.67038 | G141: =Profile!J141/1427.26553695905*1469047929.49924 -> 194901.8196 | H141: =Profile!H141/358.09551901307*17602117.1513547 -> 2600.746357 | I141: =Profile!N141/499.485398604002*34191554.8115063 -> 72.31899797 | J141: 12900 | K141: =Profile!L141/119.908945705601*82923504.6960988 -> 9050.733767 | L141: =Profile!O141/25.515728944797*19502488 -> 4545.772941 | M141: =Profile!O141/25.515728944797*706221 -> 164.6108082 | N141: 508.5348704 | O141: =Profile!O141/25.515728944797*1000000 -> 233.0868216 | P141: 474981.9687
A142: 1 | B142: 6 | C142: 21 | D142: Y010621 | E142: =Profile!B142/1077.03117593519*1068671798.45635 -> 195557.5179 | F142: =Profile!D142/390.985647863949*371911862.77167 -> 51033.06559 | G142: =Profile!J142/1427.26553695905*1469047929.49924 -> 190648.827 | H142: =Profile!H142/358.09551901307*17602117.1513547 -> 2515.835549 | I142: =Profile!N142/499.485398604002*34191554.8115063 -> 70.34260672 | J142: 12900 | K142: =Profile!L142/119.908945705601*82923504.6960988 -> 8800.079587 | L142: =Profile!O142/25.515728944797*19502488 -> 4545.772941 | M142: =Profile!O142/25.515728944797*706221 -> 164.6108082 | N142: 508.5348704 | O142: =Profile!O142/25.515728944797*1000000 -> 233.0868216 | P142: 466977.6737
A143: 1 | B143: 6 | C143: 22 | D143: Y010622 | E143: =Profile!B143/1077.03117593519*1068671798.45635 -> 188503.986 | F143: =Profile!D143/390.985647863949*371911862.77167 -> 47234.64142 | G143: =Profile!J143/1427.26553695905*1469047929.49924 -> 182144.3339 | H143: =Profile!H143/358.09551901307*17602117.1513547 -> 2372.315698 | I143: =Profile!N143/499.485398604002*34191554.8115063 -> 68.47546736 | J143: 12900 | K143: =Profile!L143/119.908945705601*82923504.6960988 -> 8613.734649 | L143: =Profile!O143/25.515728944797*19502488 -> 4545.772941 | M143: =Profile!O143/25.515728944797*706221 -> 164.6108082 | N143: 508.5348704 | O143: =Profile!O143/25.515728944797*1000000 -> 233.0868216 | P143: 447289.4926
A144: 1 | B144: 6 | C144: 23 | D144: Y010623 | E144: =Profile!B144/1077.03117593519*1068671798.45635 -> 167644.3751 | F144: =Profile!D144/390.985647863949*371911862.77167 -> 44871.13371 | G144: =Profile!J144/1427.26553695905*1469047929.49924 -> 172888.0639 | H144: =Profile!H144/358.09551901307*17602117.1513547 -> 2252.502208 | I144: =Profile!N144/499.485398604002*34191554.8115063 -> 67.98588748 | J144: 12900 | K144: =Profile!L144/119.908945705601*82923504.6960988 -> 8309.833284 | L144: =Profile!O144/25.515728944797*19502488 -> 4545.772941 | M144: =Profile!O144/25.515728944797*706221 -> 164.6108082 | N144: 508.5348704 | O144: =Profile!O144/25.515728944797*1000000 -> 233.0868216 | P144: 414385.8996
A145: 1 | B145: 6 | C145: 24 | D145: Y010624 | E145: =Profile!B145/1077.03117593519*1068671798.45635 -> 144224.4243 | F145: =Profile!D145/390.985647863949*371911862.77167 -> 42647.50572 | G145: =Profile!J145/1427.26553695905*1469047929.49924 -> 165946.6642 | H145: =Profile!H145/358.09551901307*17602117.1513547 -> 2150.932871 | I145: =Profile!N145/499.485398604002*34191554.8115063 -> 67.6441673 | J145: 12900 | K145: =Profile!L145/119.908945705601*82923504.6960988 -> 7782.996384 | L145: =Profile!O145/25.515728944797*19502488 -> 4545.772941 | M145: =Profile!O145/25.515728944797*706221 -> 164.6108082 | N145: 508.5348704 | O145: =Profile!O145/25.515728944797*1000000 -> 233.0868216 | P145: 381172.1731
A146: 1 | B146: 7 | C146: 1 | D146: Y010701 | E146: =Profile!B146/1077.03117593519*1068671798.45635 -> 126255.5282 | F146: =Profile!D146/390.985647863949*371911862.77167 -> 40784.33964 | G146: =Profile!J146/1427.26553695905*1469047929.49924 -> 159840.4963 | H146: =Profile!H146/358.09551901307*17602117.1513547 -> 2061.860232 | I146: =Profile!N146/499.485398604002*34191554.8115063 -> 68.87222421 | J146: 12900 | K146: =Profile!L146/119.908945705601*82923504.6960988 -> 7523.238197 | L146: =Profile!O146/25.515728944797*19502488 -> 4545.772941 | M146: =Profile!O146/25.515728944797*706221 -> 164.6108082 | N146: 508.5348704 | O146: =Profile!O146/25.515728944797*1000000 -> 233.0868216 | P146: 354886.3403
A147: 1 | B147: 7 | C147: 2 | D147: Y010702 | E147: =Profile!B147/1077.03117593519*1068671798.45635 -> 117802.2342 | F147: =Profile!D147/390.985647863949*371911862.77167 -> 40489.24205 | G147: =Profile!J147/1427.26553695905*1469047929.49924 -> 158065.602 | H147: =Profile!H147/358.09551901307*17602117.1513547 -> 2041.11246 | I147: =Profile!N147/499.485398604002*34191554.8115063 -> 68.57732626 | J147: 12900 | K147: =Profile!L147/119.908945705601*82923504.6960988 -> 7299.150342 | L147: =Profile!O147/25.515728944797*19502488 -> 4545.772941 | M147: =Profile!O147/25.515728944797*706221 -> 164.6108082 | N147: 508.5348704 | O147: =Profile!O147/25.515728944797*1000000 -> 233.0868216 | P147: 344117.9239
A148: 1 | B148: 7 | C148: 3 | D148: Y010703 | E148: =Profile!B148/1077.03117593519*1068671798.45635 -> 113991.8551 | F148: =Profile!D148/390.985647863949*371911862.77167 -> 39890.92422 | G148: =Profile!J148/1427.26553695905*1469047929.49924 -> 156119.4046 | H148: =Profile!H148/358.09551901307*17602117.1513547 -> 2013.839596 | I148: =Profile!N148/499.485398604002*34191554.8115063 -> 67.9554941 | J148: 12900 | K148: =Profile!L148/119.908945705601*82923504.6960988 -> 7218.506738 | L148: =Profile!O148/25.515728944797*19502488 -> 4545.772941 | M148: =Profile!O148/25.515728944797*706221 -> 164.6108082 | N148: 508.5348704 | O148: =Profile!O148/25.515728944797*1000000 -> 233.0868216 | P148: 337654.4912
A149: 1 | B149: 7 | C149: 4 | D149: Y010704 | E149: =Profile!B149/1077.03117593519*1068671798.45635 -> 111562.7538 | F149: =Profile!D149/390.985647863949*371911862.77167 -> 39599.67015 | G149: =Profile!J149/1427.26553695905*1469047929.49924 -> 156081.599 | H149: =Profile!H149/358.09551901307*17602117.1513547 -> 2007.147323 | I149: =Profile!N149/499.485398604002*34191554.8115063 -> 67.64827451 | J149: 12900 | K149: =Profile!L149/119.908945705601*82923504.6960988 -> 7231.510581 | L149: =Profile!O149/25.515728944797*19502488 -> 4545.772941 | M149: =Profile!O149/25.515728944797*706221 -> 164.6108082 | N149: 508.5348704 | O149: =Profile!O149/25.515728944797*1000000 -> 233.0868216 | P149: 334902.3345
A150: 1 | B150: 7 | C150: 5 | D150: Y010705 | E150: =Profile!B150/1077.03117593519*1068671798.45635 -> 112833.8428 | F150: =Profile!D150/390.985647863949*371911862.77167 -> 39765.59764 | G150: =Profile!J150/1427.26553695905*1469047929.49924 -> 156258.9265 | H150: =Profile!H150/358.09551901307*17602117.1513547 -> 2013.011283 | I150: =Profile!N150/499.485398604002*34191554.8115063 -> 69.79963307 | J150: 12900 | K150: =Profile!L150/119.908945705601*82923504.6960988 -> 7287.071553 | L150: =Profile!O150/25.515728944797*19502488 -> 4545.772941 | M150: =Profile!O150/25.515728944797*706221 -> 164.6108082 | N150: 508.5348704 | O150: =Profile!O150/25.515728944797*1000000 -> 233.0868216 | P150: 336580.2549
A151: 1 | B151: 7 | C151: 6 | D151: Y010706 | E151: =Profile!B151/1077.03117593519*1068671798.45635 -> 119531.2311 | F151: =Profile!D151/390.985647863949*371911862.77167 -> 40690.22879 | G151: =Profile!J151/1427.26553695905*1469047929.49924 -> 163376.9399 | H151: =Profile!H151/358.09551901307*17602117.1513547 -> 2090.076336 | I151: =Profile!N151/499.485398604002*34191554.8115063 -> 69.65505914 | J151: 12900 | K151: =Profile!L151/119.908945705601*82923504.6960988 -> 7663.767001 | L151: =Profile!O151/25.515728944797*19502488 -> 4545.772941 | M151: =Profile!O151/25.515728944797*706221 -> 164.6108082 | N151: 508.5348704 | O151: =Profile!O151/25.515728944797*1000000 -> 233.0868216 | P151: 351773.9036
A152: 1 | B152: 7 | C152: 7 | D152: Y010707 | E152: =Profile!B152/1077.03117593519*1068671798.45635 -> 133872.5711 | F152: =Profile!D152/390.985647863949*371911862.77167 -> 43095.5785 | G152: =Profile!J152/1427.26553695905*1469047929.49924 -> 179752.5253 | H152: =Profile!H152/358.09551901307*17602117.1513547 -> 2270.255769 | I152: =Profile!N152/499.485398604002*34191554.8115063 -> 69.90724207 | J152: 12900 | K152: =Profile!L152/119.908945705601*82923504.6960988 -> 8204.29952 | L152: =Profile!O152/25.515728944797*19502488 -> 3591.160626 | M152: =Profile!O152/25.515728944797*706221 -> 130.0425386 | N152: 508.5348704 | O152: =Profile!O152/25.515728944797*1000000 -> 184.1385892 | P152: 384579.014
A153: 1 | B153: 7 | C153: 8 | D153: Y010708 | E153: =Profile!B153/1077.03117593519*1068671798.45635 -> 147564.8524 | F153: =Profile!D153/390.985647863949*371911862.77167 -> 48013.56792 | G153: =Profile!J153/1427.26553695905*1469047929.49924 -> 193843.2273 | H153: =Profile!H153/358.09551901307*17602117.1513547 -> 2487.619813 | I153: =Profile!N153/499.485398604002*34191554.8115063 -> 729.6801989 | J153: 12900 | K153: =Profile!L153/119.908945705601*82923504.6960988 -> 8788.153025 | L153: =Profile!O153/25.515728944797*19502488 -> 227.2886486 | M153: =Profile!O153/25.515728944797*706221 -> 8.230540466 | N153: 508.5348704 | O153: =Profile!O153/25.515728944797*1000000 -> 11.65434116 | P153: 415082.8091
A154: 1 | B154: 7 | C154: 9 | D154: Y010709 | E154: =Profile!B154/1077.03117593519*1068671798.45635 -> 147046.1068 | F154: =Profile!D154/390.985647863949*371911862.77167 -> 52467.62595 | G154: =Profile!J154/1427.26553695905*1469047929.49924 -> 208254.7796 | H154: =Profile!H154/358.09551901307*17602117.1513547 -> 2692.052772 | I154: =Profile!N154/499.485398604002*34191554.8115063 -> 1845.989677 | J154: 12900 | K154: =Profile!L154/119.908945705601*82923504.6960988 -> 9181.306509 | L154: =Profile!O154/25.515728944797*19502488 -> 45.45772818 | M154: =Profile!O154/25.515728944797*706221 -> 1.646108038 | N154: 508.5348704 | O154: =Profile!O154/25.515728944797*1000000 -> 2.330868153 | P154: 434945.8308
A155: 1 | B155: 7 | C155: 10 | D155: Y010710 | E155: =Profile!B155/1077.03117593519*1068671798.45635 -> 142755.1817 | F155: =Profile!D155/390.985647863949*371911862.77167 -> 57083.35189 | G155: =Profile!J155/1427.26553695905*1469047929.49924 -> 213403.2496 | H155: =Profile!H155/358.09551901307*17602117.1513547 -> 2829.949981 | I155: =Profile!N155/499.485398604002*34191554.8115063 -> 65.59548909 | J155: 12900 | K155: =Profile!L155/119.908945705601*82923504.6960988 -> 9600.669061 | L155: =Profile!O155/25.515728944797*19502488 -> 45.45772818 | M155: =Profile!O155/25.515728944797*706221 -> 1.646108038 | N155: 508.5348704 | O155: =Profile!O155/25.515728944797*1000000 -> 2.330868153 | P155: 439195.9672
A156: 1 | B156: 7 | C156: 11 | D156: Y010711 | E156: =Profile!B156/1077.03117593519*1068671798.45635 -> 145974.8839 | F156: =Profile!D156/390.985647863949*371911862.77167 -> 60419.66824 | G156: =Profile!J156/1427.26553695905*1469047929.49924 -> 217332.6006 | H156: =Profile!H156/358.09551901307*17602117.1513547 -> 2931.844354 | I156: =Profile!N156/499.485398604002*34191554.8115063 -> 71.11722723 | J156: 12900 | K156: =Profile!L156/119.908945705601*82923504.6960988 -> 9992.174026 | L156: =Profile!O156/25.515728944797*19502488 -> 45.45772818 | M156: =Profile!O156/25.515728944797*706221 -> 1.646108038 | N156: 508.5348704 | O156: =Profile!O156/25.515728944797*1000000 -> 2.330868153 | P156: 450180.2579
A157: 1 | B157: 7 | C157: 12 | D157: Y010712 | E157: =Profile!B157/1077.03117593519*1068671798.45635 -> 149327.6356 | F157: =Profile!D157/390.985647863949*371911862.77167 -> 61626.11446 | G157: =Profile!J157/1427.26553695905*1469047929.49924 -> 218247.9855 | H157: =Profile!H157/358.09551901307*17602117.1513547 -> 2963.792483 | I157: =Profile!N157/499.485398604002*34191554.8115063 -> 69.37659005 | J157: 12900 | K157: =Profile!L157/119.908945705601*82923504.6960988 -> 10189.06552 | L157: =Profile!O157/25.515728944797*19502488 -> 45.45772818 | M157: =Profile!O157/25.515728944797*706221 -> 1.646108038 | N157: 508.5348704 | O157: =Profile!O157/25.515728944797*1000000 -> 2.330868153 | P157: 455881.9397
A158: 1 | B158: 7 | C158: 13 | D158: Y010713 | E158: =Profile!B158/1077.03117593519*1068671798.45635 -> 152104.7166 | F158: =Profile!D158/390.985647863949*371911862.77167 -> 61588.85739 | G158: =Profile!J158/1427.26553695905*1469047929.49924 -> 217812.5973 | H158: =Profile!H158/358.09551901307*17602117.1513547 -> 2958.304838 | I158: =Profile!N158/499.485398604002*34191554.8115063 -> 70.47239468 | J158: 12900 | K158: =Profile!L158/119.908945705601*82923504.6960988 -> 10234.31708 | L158: =Profile!O158/25.515728944797*19502488 -> 45.45772818 | M158: =Profile!O158/25.515728944797*706221 -> 1.646108038 | N158: 508.5348704 | O158: =Profile!O158/25.515728944797*1000000 -> 2.330868153 | P158: 458227.2352
A159: 1 | B159: 7 | C159: 14 | D159: Y010714 | E159: =Profile!B159/1077.03117593519*1068671798.45635 -> 151608.444 | F159: =Profile!D159/390.985647863949*371911862.77167 -> 61345.89243 | G159: =Profile!J159/1427.26553695905*1469047929.49924 -> 219067.7241 | H159: =Profile!H159/358.09551901307*17602117.1513547 -> 2962.904562 | I159: =Profile!N159/499.485398604002*34191554.8115063 -> 70.35903558 | J159: 12900 | K159: =Profile!L159/119.908945705601*82923504.6960988 -> 10256.27373 | L159: =Profile!O159/25.515728944797*19502488 -> 45.45772818 | M159: =Profile!O159/25.515728944797*706221 -> 1.646108038 | N159: 508.5348704 | O159: =Profile!O159/25.515728944797*1000000 -> 2.330868153 | P159: 458769.5675
A160: 1 | B160: 7 | C160: 15 | D160: Y010715 | E160: =Profile!B160/1077.03117593519*1068671798.45635 -> 151025.4803 | F160: =Profile!D160/390.985647863949*371911862.77167 -> 60641.75186 | G160: =Profile!J160/1427.26553695905*1469047929.49924 -> 215311.0843 | H160: =Profile!H160/358.09551901307*17602117.1513547 -> 2918.993118 | I160: =Profile!N160/499.485398604002*34191554.8115063 -> 70.69829143 | J160: 12900 | K160: =Profile!L160/119.908945705601*82923504.6960988 -> 10220.173 | L160: =Profile!O160/25.515728944797*19502488 -> 45.45772818 | M160: =Profile!O160/25.515728944797*706221 -> 1.646108038 | N160: 508.5348704 | O160: =Profile!O160/25.515728944797*1000000 -> 2.330868153 | P160: 453646.1505
A161: 1 | B161: 7 | C161: 16 | D161: Y010716 | E161: =Profile!B161/1077.03117593519*1068671798.45635 -> 155512.9388 | F161: =Profile!D161/390.985647863949*371911862.77167 -> 59642.72544 | G161: =Profile!J161/1427.26553695905*1469047929.49924 -> 210536.3466 | H161: =Profile!H161/358.09551901307*17602117.1513547 -> 2853.579137 | I161: =Profile!N161/499.485398604002*34191554.8115063 -> 83.63355036 | J161: 12900 | K161: =Profile!L161/119.908945705601*82923504.6960988 -> 10119.19266 | L161: =Profile!O161/25.515728944797*19502488 -> 45.45772818 | M161: =Profile!O161/25.515728944797*706221 -> 1.646108038 | N161: 508.5348704 | O161: =Profile!O161/25.515728944797*1000000 -> 2.330868153 | P161: 452206.3858
A162: 1 | B162: 7 | C162: 17 | D162: Y010717 | E162: =Profile!B162/1077.03117593519*1068671798.45635 -> 174783.3212 | F162: =Profile!D162/390.985647863949*371911862.77167 -> 58115.48119 | G162: =Profile!J162/1427.26553695905*1469047929.49924 -> 205026.5599 | H162: =Profile!H162/358.09551901307*17602117.1513547 -> 2777.569727 | I162: =Profile!N162/499.485398604002*34191554.8115063 -> 88.74949579 | J162: 12900 | K162: =Profile!L162/119.908945705601*82923504.6960988 -> 9896.005861 | L162: =Profile!O162/25.515728944797*19502488 -> 2227.428735 | M162: =Profile!O162/25.515728944797*706221 -> 80.6592958 | N162: 508.5348704 | O162: =Profile!O162/25.515728944797*1000000 -> 114.2125422 | P162: 466518.5228
A163: 1 | B163: 7 | C163: 18 | D163: Y010718 | E163: =Profile!B163/1077.03117593519*1068671798.45635 -> 202944.273 | F163: =Profile!D163/390.985647863949*371911862.77167 -> 56777.63559 | G163: =Profile!J163/1427.26553695905*1469047929.49924 -> 202288.6046 | H163: =Profile!H163/358.09551901307*17602117.1513547 -> 2727.470808 | I163: =Profile!N163/499.485398604002*34191554.8115063 -> 86.84785583 | J163: 12900 | K163: =Profile!L163/119.908945705601*82923504.6960988 -> 9587.274593 | L163: =Profile!O163/25.515728944797*19502488 -> 4545.772941 | M163: =Profile!O163/25.515728944797*706221 -> 164.6108082 | N163: 508.5348704 | O163: =Profile!O163/25.515728944797*1000000 -> 233.0868216 | P163: 492764.1119
A164: 1 | B164: 7 | C164: 19 | D164: Y010719 | E164: =Profile!B164/1077.03117593519*1068671798.45635 -> 209864.176 | F164: =Profile!D164/390.985647863949*371911862.77167 -> 54275.72614 | G164: =Profile!J164/1427.26553695905*1469047929.49924 -> 197329.1452 | H164: =Profile!H164/358.09551901307*17602117.1513547 -> 2636.734224 | I164: =Profile!N164/499.485398604002*34191554.8115063 -> 88.34534596 | J164: 12900 | K164: =Profile!L164/119.908945705601*82923504.6960988 -> 9400.433254 | L164: =Profile!O164/25.515728944797*19502488 -> 4545.772941 | M164: =Profile!O164/25.515728944797*706221 -> 164.6108082 | N164: 508.5348704 | O164: =Profile!O164/25.515728944797*1000000 -> 233.0868216 | P164: 491946.5656
A165: 1 | B165: 7 | C165: 20 | D165: Y010720 | E165: =Profile!B165/1077.03117593519*1068671798.45635 -> 211411.5849 | F165: =Profile!D165/390.985647863949*371911862.77167 -> 52631.50272 | G165: =Profile!J165/1427.26553695905*1469047929.49924 -> 192638.0981 | H165: =Profile!H165/358.09551901307*17602117.1513547 -> 2565.096624 | I165: =Profile!N165/499.485398604002*34191554.8115063 -> 85.798052 | J165: 12900 | K165: =Profile!L165/119.908945705601*82923504.6960988 -> 9158.257954 | L165: =Profile!O165/25.515728944797*19502488 -> 4545.772941 | M165: =Profile!O165/25.515728944797*706221 -> 164.6108082 | N165: 508.5348704 | O165: =Profile!O165/25.515728944797*1000000 -> 233.0868216 | P165: 486842.3439
A166: 1 | B166: 7 | C166: 21 | D166: Y010721 | E166: =Profile!B166/1077.03117593519*1068671798.45635 -> 209072.3449 | F166: =Profile!D166/390.985647863949*371911862.77167 -> 50783.75373 | G166: =Profile!J166/1427.26553695905*1469047929.49924 -> 188883.2556 | H166: =Profile!H166/358.09551901307*17602117.1513547 -> 2497.391856 | I166: =Profile!N166/499.485398604002*34191554.8115063 -> 82.26831252 | J166: 12900 | K166: =Profile!L166/119.908945705601*82923504.6960988 -> 8956.235394 | L166: =Profile!O166/25.515728944797*19502488 -> 4545.772941 | M166: =Profile!O166/25.515728944797*706221 -> 164.6108082 | N166: 508.5348704 | O166: =Profile!O166/25.515728944797*1000000 -> 233.0868216 | P166: 478627.2552
A167: 1 | B167: 7 | C167: 22 | D167: Y010722 | E167: =Profile!B167/1077.03117593519*1068671798.45635 -> 196676.076 | F167: =Profile!D167/390.985647863949*371911862.77167 -> 47801.25739 | G167: =Profile!J167/1427.26553695905*1469047929.49924 -> 182021.2655 | H167: =Profile!H167/358.09551901307*17602117.1513547 -> 2381.956285 | I167: =Profile!N167/499.485398604002*34191554.8115063 -> 73.57991259 | J167: 12900 | K167: =Profile!L167/119.908945705601*82923504.6960988 -> 8761.722002 | L167: =Profile!O167/25.515728944797*19502488 -> 4545.772941 | M167: =Profile!O167/25.515728944797*706221 -> 164.6108082 | N167: 508.5348704 | O167: =Profile!O167/25.515728944797*1000000 -> 233.0868216 | P167: 456067.8625
A168: 1 | B168: 7 | C168: 23 | D168: Y010723 | E168: =Profile!B168/1077.03117593519*1068671798.45635 -> 174868.6268 | F168: =Profile!D168/390.985647863949*371911862.77167 -> 45559.79999 | G168: =Profile!J168/1427.26553695905*1469047929.49924 -> 174038.7342 | H168: =Profile!H168/358.09551901307*17602117.1513547 -> 2274.310231 | I168: =Profile!N168/499.485398604002*34191554.8115063 -> 70.75743531 | J168: 12900 | K168: =Profile!L168/119.908945705601*82923504.6960988 -> 8478.729929 | L168: =Profile!O168/25.515728944797*19502488 -> 4545.772941 | M168: =Profile!O168/25.515728944797*706221 -> 164.6108082 | N168: 508.5348704 | O168: =Profile!O168/25.515728944797*1000000 -> 233.0868216 | P168: 423642.9641
A169: 1 | B169: 7 | C169: 24 | D169: Y010724 | E169: =Profile!B169/1077.03117593519*1068671798.45635 -> 149413.7544 | F169: =Profile!D169/390.985647863949*371911862.77167 -> 43494.47309 | G169: =Profile!J169/1427.26553695905*1469047929.49924 -> 166879.9718 | H169: =Profile!H169/358.09551901307*17602117.1513547 -> 2175.96941 | I169: =Profile!N169/499.485398604002*34191554.8115063 -> 70.06578052 | J169: 12900 | K169: =Profile!L169/119.908945705601*82923504.6960988 -> 7982.350401 | L169: =Profile!O169/25.515728944797*19502488 -> 4545.772941 | M169: =Profile!O169/25.515728944797*706221 -> 164.6108082 | N169: 508.5348704 | O169: =Profile!O169/25.515728944797*1000000 -> 233.0868216 | P169: 388368.5903
A170: 1 | B170: 8 | C170: 1 | D170: Y010801 | E170: =Profile!B170/1077.03117593519*1068671798.45635 -> 130967.9641 | F170: =Profile!D170/390.985647863949*371911862.77167 -> 41655.80617 | G170: =Profile!J170/1427.26553695905*1469047929.49924 -> 161625.8362 | H170: =Profile!H170/358.09551901307*17602117.1513547 -> 2096.311176 | I170: =Profile!N170/499.485398604002*34191554.8115063 -> 71.23880076 | J170: 12900 | K170: =Profile!L170/119.908945705601*82923504.6960988 -> 7736.617349 | L170: =Profile!O170/25.515728944797*19502488 -> 4545.772941 | M170: =Profile!O170/25.515728944797*706221 -> 164.6108082 | N170: 508.5348704 | O170: =Profile!O170/25.515728944797*1000000 -> 233.0868216 | P170: 362505.7793
A171: 1 | B171: 8 | C171: 2 | D171: Y010802 | E171: =Profile!B171/1077.03117593519*1068671798.45635 -> 122468.9037 | F171: =Profile!D171/390.985647863949*371911862.77167 -> 41312.52553 | G171: =Profile!J171/1427.26553695905*1469047929.49924 -> 158814.8786 | H171: =Profile!H171/358.09551901307*17602117.1513547 -> 2066.353273 | I171: =Profile!N171/499.485398604002*34191554.8115063 -> 69.03486987 | J171: 12900 | K171: =Profile!L171/119.908945705601*82923504.6960988 -> 7558.570234 | L171: =Profile!O171/25.515728944797*19502488 -> 4545.772941 | M171: =Profile!O171/25.515728944797*706221 -> 164.6108082 | N171: 508.5348704 | O171: =Profile!O171/25.515728944797*1000000 -> 233.0868216 | P171: 350642.2716
A172: 1 | B172: 8 | C172: 3 | D172: Y010803 | E172: =Profile!B172/1077.03117593519*1068671798.45635 -> 118129.6651 | F172: =Profile!D172/390.985647863949*371911862.77167 -> 40763.97834 | G172: =Profile!J172/1427.26553695905*1469047929.49924 -> 158412.7035 | H172: =Profile!H172/358.09551901307*17602117.1513547 -> 2051.500705 | I172: =Profile!N172/499.485398604002*34191554.8115063 -> 67.61623825 | J172: 12900 | K172: =Profile!L172/119.908945705601*82923504.6960988 -> 7444.315658 | L172: =Profile!O172/25.515728944797*19502488 -> 4545.772941 | M172: =Profile!O172/25.515728944797*706221 -> 164.6108082 | N172: 508.5348704 | O172: =Profile!O172/25.515728944797*1000000 -> 233.0868216 | P172: 345221.785
A173: 1 | B173: 8 | C173: 4 | D173: Y010804 | E173: =Profile!B173/1077.03117593519*1068671798.45635 -> 116621.7163 | F173: =Profile!D173/390.985647863949*371911862.77167 -> 40625.11538 | G173: =Profile!J173/1427.26553695905*1469047929.49924 -> 158479.8236 | H173: =Profile!H173/358.09551901307*17602117.1513547 -> 2048.935506 | I173: =Profile!N173/499.485398604002*34191554.8115063 -> 66.60997088 | J173: 12900 | K173: =Profile!L173/119.908945705601*82923504.6960988 -> 7439.488065 | L173: =Profile!O173/25.515728944797*19502488 -> 4545.772941 | M173: =Profile!O173/25.515728944797*706221 -> 164.6108082 | N173: 508.5348704 | O173: =Profile!O173/25.515728944797*1000000 -> 233.0868216 | P173: 343633.6942
A174: 1 | B174: 8 | C174: 5 | D174: Y010805 | E174: =Profile!B174/1077.03117593519*1068671798.45635 -> 117860.8413 | F174: =Profile!D174/390.985647863949*371911862.77167 -> 40797.58721 | G174: =Profile!J174/1427.26553695905*1469047929.49924 -> 159644.0323 | H174: =Profile!H174/358.09551901307*17602117.1513547 -> 2062.046082 | I174: =Profile!N174/499.485398604002*34191554.8115063 -> 68.73586471 | J174: 12900 | K174: =Profile!L174/119.908945705601*82923504.6960988 -> 7488.382025 | L174: =Profile!O174/25.515728944797*19502488 -> 4545.772941 | M174: =Profile!O174/25.515728944797*706221 -> 164.6108082 | N174: 508.5348704 | O174: =Profile!O174/25.515728944797*1000000 -> 233.0868216 | P174: 346273.6302
A175: 1 | B175: 8 | C175: 6 | D175: Y010806 | E175: =Profile!B175/1077.03117593519*1068671798.45635 -> 123429.3725 | F175: =Profile!D175/390.985647863949*371911862.77167 -> 41438.65148 | G175: =Profile!J175/1427.26553695905*1469047929.49924 -> 165640.1347 | H175: =Profile!H175/358.09551901307*17602117.1513547 -> 2124.942417 | I175: =Profile!N175/499.485398604002*34191554.8115063 -> 69.63534452 | J175: 12900 | K175: =Profile!L175/119.908945705601*82923504.6960988 -> 7802.024733 | L175: =Profile!O175/25.515728944797*19502488 -> 4545.772941 | M175: =Profile!O175/25.515728944797*706221 -> 164.6108082 | N175: 508.5348704 | O175: =Profile!O175/25.515728944797*1000000 -> 233.0868216 | P175: 358856.7666
A176: 1 | B176: 8 | C176: 7 | D176: Y010807 | E176: =Profile!B176/1077.03117593519*1068671798.45635 -> 137833.0812 | F176: =Profile!D176/390.985647863949*371911862.77167 -> 43569.64462 | G176: =Profile!J176/1427.26553695905*1469047929.49924 -> 181868.5649 | H176: =Profile!H176/358.09551901307*17602117.1513547 -> 2296.36024 | I176: =Profile!N176/499.485398604002*34191554.8115063 -> 66.97715579 | J176: 12900 | K176: =Profile!L176/119.908945705601*82923504.6960988 -> 8260.071178 | L176: =Profile!O176/25.515728944797*19502488 -> 3591.160626 | M176: =Profile!O176/25.515728944797*706221 -> 130.0425386 | N176: 508.5348704 | O176: =Profile!O176/25.515728944797*1000000 -> 184.1385892 | P176: 391208.5759
A177: 1 | B177: 8 | C177: 8 | D177: Y010808 | E177: =Profile!B177/1077.03117593519*1068671798.45635 -> 153254.7272 | F177: =Profile!D177/390.985647863949*371911862.77167 -> 48579.15798 | G177: =Profile!J177/1427.26553695905*1469047929.49924 -> 200602.2304 | H177: =Profile!H177/358.09551901307*17602117.1513547 -> 2551.592583 | I177: =Profile!N177/499.485398604002*34191554.8115063 -> 68.54939721 | J177: 12900 | K177: =Profile!L177/119.908945705601*82923504.6960988 -> 8810.459671 | L177: =Profile!O177/25.515728944797*19502488 -> 227.2886486 | M177: =Profile!O177/25.515728944797*706221 -> 8.230540466 | N177: 508.5348704 | O177: =Profile!O177/25.515728944797*1000000 -> 11.65434116 | P177: 427522.4257
A178: 1 | B178: 8 | C178: 9 | D178: Y010809 | E178: =Profile!B178/1077.03117593519*1068671798.45635 -> 147708.7397 | F178: =Profile!D178/390.985647863949*371911862.77167 -> 53047.27856 | G178: =Profile!J178/1427.26553695905*1469047929.49924 -> 211150.443 | H178: =Profile!H178/358.09551901307*17602117.1513547 -> 2727.711995 | I178: =Profile!N178/499.485398604002*34191554.8115063 -> 68.58718357 | J178: 12900 | K178: =Profile!L178/119.908945705601*82923504.6960988 -> 9241.863403 | L178: =Profile!O178/25.515728944797*19502488 -> 45.45772818 | M178: =Profile!O178/25.515728944797*706221 -> 1.646108038 | N178: 508.5348704 | O178: =Profile!O178/25.515728944797*1000000 -> 2.330868153 | P178: 437402.5934
A179: 1 | B179: 8 | C179: 10 | D179: Y010810 | E179: =Profile!B179/1077.03117593519*1068671798.45635 -> 139923.1107 | F179: =Profile!D179/390.985647863949*371911862.77167 -> 58577.04259 | G179: =Profile!J179/1427.26553695905*1469047929.49924 -> 220005.3584 | H179: =Profile!H179/358.09551901307*17602117.1513547 -> 2911.914065 | I179: =Profile!N179/499.485398604002*34191554.8115063 -> 66.33314468 | J179: 12900 | K179: =Profile!L179/119.908945705601*82923504.6960988 -> 9736.299741 | L179: =Profile!O179/25.515728944797*19502488 -> 45.45772818 | M179: =Profile!O179/25.515728944797*706221 -> 1.646108038 | N179: 508.5348704 | O179: =Profile!O179/25.515728944797*1000000 -> 2.330868153 | P179: 444678.0282
A180: 1 | B180: 8 | C180: 11 | D180: Y010811 | E180: =Profile!B180/1077.03117593519*1068671798.45635 -> 136768.5324 | F180: =Profile!D180/390.985647863949*371911862.77167 -> 61681.90577 | G180: =Profile!J180/1427.26553695905*1469047929.49924 -> 223072.4188 | H180: =Profile!H180/358.09551901307*17602117.1513547 -> 3006.022568 | I180: =Profile!N180/499.485398604002*34191554.8115063 -> 652.1450394 | J180: 12900 | K180: =Profile!L180/119.908945705601*82923504.6960988 -> 10091.51229 | L180: =Profile!O180/25.515728944797*19502488 -> 45.45772818 | M180: =Profile!O180/25.515728944797*706221 -> 1.646108038 | N180: 508.5348704 | O180: =Profile!O180/25.515728944797*1000000 -> 2.330868153 | P180: 448730.5065
A181: 1 | B181: 8 | C181: 12 | D181: Y010812 | E181: =Profile!B181/1077.03117593519*1068671798.45635 -> 136759.6273 | F181: =Profile!D181/390.985647863949*371911862.77167 -> 62942.83706 | G181: =Profile!J181/1427.26553695905*1469047929.49924 -> 222364.8495 | H181: =Profile!H181/358.09551901307*17602117.1513547 -> 3027.778523 | I181: =Profile!N181/499.485398604002*34191554.8115063 -> 2922.728615 | J181: 12900 | K181: =Profile!L181/119.908945705601*82923504.6960988 -> 10199.39208 | L181: =Profile!O181/25.515728944797*19502488 -> 45.45772818 | M181: =Profile!O181/25.515728944797*706221 -> 1.646108038 | N181: 508.5348704 | O181: =Profile!O181/25.515728944797*1000000 -> 2.330868153 | P181: 451675.1827
A182: 1 | B182: 8 | C182: 13 | D182: Y010813 | E182: =Profile!B182/1077.03117593519*1068671798.45635 -> 137099.7554 | F182: =Profile!D182/390.985647863949*371911862.77167 -> 62898.54091 | G182: =Profile!J182/1427.26553695905*1469047929.49924 -> 220542.3635 | H182: =Profile!H182/358.09551901307*17602117.1513547 -> 3011.406477 | I182: =Profile!N182/499.485398604002*34191554.8115063 -> 2725.907647 | J182: 12900 | K182: =Profile!L182/119.908945705601*82923504.6960988 -> 10254.01263 | L182: =Profile!O182/25.515728944797*19502488 -> 45.45772818 | M182: =Profile!O182/25.515728944797*706221 -> 1.646108038 | N182: 508.5348704 | O182: =Profile!O182/25.515728944797*1000000 -> 2.330868153 | P182: 449989.9561
A183: 1 | B183: 8 | C183: 14 | D183: Y010814 | E183: =Profile!B183/1077.03117593519*1068671798.45635 -> 136069.4986 | F183: =Profile!D183/390.985647863949*371911862.77167 -> 62762.30419 | G183: =Profile!J183/1427.26553695905*1469047929.49924 -> 220719.9549 | H183: =Profile!H183/358.09551901307*17602117.1513547 -> 3008.47339 | I183: =Profile!N183/499.485398604002*34191554.8115063 -> 2603.867541 | J183: 12900 | K183: =Profile!L183/119.908945705601*82923504.6960988 -> 10256.44839 | L183: =Profile!O183/25.515728944797*19502488 -> 45.45772818 | M183: =Profile!O183/25.515728944797*706221 -> 1.646108038 | N183: 508.5348704 | O183: =Profile!O183/25.515728944797*1000000 -> 2.330868153 | P183: 448878.5166
A184: 1 | B184: 8 | C184: 15 | D184: Y010815 | E184: =Profile!B184/1077.03117593519*1068671798.45635 -> 138620.2753 | F184: =Profile!D184/390.985647863949*371911862.77167 -> 62605.42312 | G184: =Profile!J184/1427.26553695905*1469047929.49924 -> 218825.1626 | H184: =Profile!H184/358.09551901307*17602117.1513547 -> 2989.063935 | I184: =Profile!N184/499.485398604002*34191554.8115063 -> 2814.813217 | J184: 12900 | K184: =Profile!L184/119.908945705601*82923504.6960988 -> 10329.49622 | L184: =Profile!O184/25.515728944797*19502488 -> 45.45772818 | M184: =Profile!O184/25.515728944797*706221 -> 1.646108038 | N184: 508.5348704 | O184: =Profile!O184/25.515728944797*1000000 -> 2.330868153 | P184: 449642.2039
A185: 1 | B185: 8 | C185: 16 | D185: Y010816 | E185: =Profile!B185/1077.03117593519*1068671798.45635 -> 146104.8871 | F185: =Profile!D185/390.985647863949*371911862.77167 -> 61937.11667 | G185: =Profile!J185/1427.26553695905*1469047929.49924 -> 215622.951 | H185: =Profile!H185/358.09551901307*17602117.1513547 -> 2942.646432 | I185: =Profile!N185/499.485398604002*34191554.8115063 -> 2715.104853 | J185: 12900 | K185: =Profile!L185/119.908945705601*82923504.6960988 -> 10206.8552 | L185: =Profile!O185/25.515728944797*19502488 -> 45.45772818 | M185: =Profile!O185/25.515728944797*706221 -> 1.646108038 | N185: 508.5348704 | O185: =Profile!O185/25.515728944797*1000000 -> 2.330868153 | P185: 452987.5308
A186: 1 | B186: 8 | C186: 17 | D186: Y010817 | E186: =Profile!B186/1077.03117593519*1068671798.45635 -> 164933.3625 | F186: =Profile!D186/390.985647863949*371911862.77167 -> 60717.19214 | G186: =Profile!J186/1427.26553695905*1469047929.49924 -> 212483.3702 | H186: =Profile!H186/358.09551901307*17602117.1513547 -> 2889.039043 | I186: =Profile!N186/499.485398604002*34191554.8115063 -> 2530.310629 | J186: 12900 | K186: =Profile!L186/119.908945705601*82923504.6960988 -> 9966.198312 | L186: =Profile!O186/25.515728944797*19502488 -> 2227.428735 | M186: =Profile!O186/25.515728944797*706221 -> 80.6592958 | N186: 508.5348704 | O186: =Profile!O186/25.515728944797*1000000 -> 114.2125422 | P186: 469350.3082
A187: 1 | B187: 8 | C187: 18 | D187: Y010818 | E187: =Profile!B187/1077.03117593519*1068671798.45635 -> 194339.3076 | F187: =Profile!D187/390.985647863949*371911862.77167 -> 60096.38486 | G187: =Profile!J187/1427.26553695905*1469047929.49924 -> 208877.7405 | H187: =Profile!H187/358.09551901307*17602117.1513547 -> 2848.862558 | I187: =Profile!N187/499.485398604002*34191554.8115063 -> 2716.1563 | J187: 12900 | K187: =Profile!L187/119.908945705601*82923504.6960988 -> 9679.471409 | L187: =Profile!O187/25.515728944797*19502488 -> 4545.772941 | M187: =Profile!O187/25.515728944797*706221 -> 164.6108082 | N187: 508.5348704 | O187: =Profile!O187/25.515728944797*1000000 -> 233.0868216 | P187: 496909.9287
A188: 1 | B188: 8 | C188: 19 | D188: Y010819 | E188: =Profile!B188/1077.03117593519*1068671798.45635 -> 201886.3376 | F188: =Profile!D188/390.985647863949*371911862.77167 -> 57523.60686 | G188: =Profile!J188/1427.26553695905*1469047929.49924 -> 203158.5691 | H188: =Profile!H188/358.09551901307*17602117.1513547 -> 2750.723049 | I188: =Profile!N188/499.485398604002*34191554.8115063 -> 2521.588549 | J188: 12900 | K188: =Profile!L188/119.908945705601*82923504.6960988 -> 9409.995937 | L188: =Profile!O188/25.515728944797*19502488 -> 4545.772941 | M188: =Profile!O188/25.515728944797*706221 -> 164.6108082 | N188: 508.5348704 | O188: =Profile!O188/25.515728944797*1000000 -> 233.0868216 | P188: 495602.8266
A189: 1 | B189: 8 | C189: 20 | D189: Y010820 | E189: =Profile!B189/1077.03117593519*1068671798.45635 -> 203602.0879 | F189: =Profile!D189/390.985647863949*371911862.77167 -> 55248.77021 | G189: =Profile!J189/1427.26553695905*1469047929.49924 -> 198131.9258 | H189: =Profile!H189/358.09551901307*17602117.1513547 -> 2663.914396 | I189: =Profile!N189/499.485398604002*34191554.8115063 -> 2429.815323 | J189: 12900 | K189: =Profile!L189/119.908945705601*82923504.6960988 -> 9159.602926 | L189: =Profile!O189/25.515728944797*19502488 -> 4545.772941 | M189: =Profile!O189/25.515728944797*706221 -> 164.6108082 | N189: 508.5348704 | O189: =Profile!O189/25.515728944797*1000000 -> 233.0868216 | P189: 489588.122
A190: 1 | B190: 8 | C190: 21 | D190: Y010821 | E190: =Profile!B190/1077.03117593519*1068671798.45635 -> 202423.2958 | F190: =Profile!D190/390.985647863949*371911862.77167 -> 52631.28096 | G190: =Profile!J190/1427.26553695905*1469047929.49924 -> 192162.5918 | H190: =Profile!H190/358.09551901307*17602117.1513547 -> 2562.759181 | I190: =Profile!N190/499.485398604002*34191554.8115063 -> 2588.355416 | J190: 12900 | K190: =Profile!L190/119.908945705601*82923504.6960988 -> 8899.80216 | L190: =Profile!O190/25.515728944797*19502488 -> 4545.772941 | M190: =Profile!O190/25.515728944797*706221 -> 164.6108082 | N190: 508.5348704 | O190: =Profile!O190/25.515728944797*1000000 -> 233.0868216 | P190: 479620.0908
A191: 1 | B191: 8 | C191: 22 | D191: Y010822 | E191: =Profile!B191/1077.03117593519*1068671798.45635 -> 192815.9101 | F191: =Profile!D191/390.985647863949*371911862.77167 -> 48837.86769 | G191: =Profile!J191/1427.26553695905*1469047929.49924 -> 185046.7751 | H191: =Profile!H191/358.09551901307*17602117.1513547 -> 2428.156746 | I191: =Profile!N191/499.485398604002*34191554.8115063 -> 2742.826903 | J191: 12900 | K191: =Profile!L191/119.908945705601*82923504.6960988 -> 8756.838662 | L191: =Profile!O191/25.515728944797*19502488 -> 4545.772941 | M191: =Profile!O191/25.515728944797*706221 -> 164.6108082 | N191: 508.5348704 | O191: =Profile!O191/25.515728944797*1000000 -> 233.0868216 | P191: 458980.3806
A192: 1 | B192: 8 | C192: 23 | D192: Y010823 | E192: =Profile!B192/1077.03117593519*1068671798.45635 -> 172195.3999 | F192: =Profile!D192/390.985647863949*371911862.77167 -> 45858.86474 | G192: =Profile!J192/1427.26553695905*1469047929.49924 -> 173798.0341 | H192: =Profile!H192/358.09551901307*17602117.1513547 -> 2280.333453 | I192: =Profile!N192/499.485398604002*34191554.8115063 -> 2719.905365 | J192: 12900 | K192: =Profile!L192/119.908945705601*82923504.6960988 -> 8362.912878 | L192: =Profile!O192/25.515728944797*19502488 -> 4545.772941 | M192: =Profile!O192/25.515728944797*706221 -> 164.6108082 | N192: 508.5348704 | O192: =Profile!O192/25.515728944797*1000000 -> 233.0868216 | P192: 423567.4559
A193: 1 | B193: 8 | C193: 24 | D193: Y010824 | E193: =Profile!B193/1077.03117593519*1068671798.45635 -> 147835.4196 | F193: =Profile!D193/390.985647863949*371911862.77167 -> 43609.12163 | G193: =Profile!J193/1427.26553695905*1469047929.49924 -> 166284.9784 | H193: =Profile!H193/358.09551901307*17602117.1513547 -> 2174.719551 | I193: =Profile!N193/499.485398604002*34191554.8115063 -> 2928.124672 | J193: 12900 | K193: =Profile!L193/119.908945705601*82923504.6960988 -> 7850.963814 | L193: =Profile!O193/25.515728944797*19502488 -> 4545.772941 | M193: =Profile!O193/25.515728944797*706221 -> 164.6108082 | N193: 508.5348704 | O193: =Profile!O193/25.515728944797*1000000 -> 233.0868216 | P193: 389035.3331
A194: 1 | B194: 9 | C194: 1 | D194: =DateRef(A194,B194,C194) -> Y010901 | E194: =Profile!B194/1077.03117593519*1068671798.45635 -> 130802.6027 | F194: =Profile!D194/390.985647863949*371911862.77167 -> 42135.4959 | G194: =Profile!J194/1427.26553695905*1469047929.49924 -> 161641.3967 | H194: =Profile!H194/358.09551901307*17602117.1513547 -> 2106.155994 | I194: =Profile!N194/499.485398604002*34191554.8115063 -> 2594.023371 | J194: 12900 | K194: =Profile!L194/119.908945705601*82923504.6960988 -> 7631.200409 | L194: =Profile!O194/25.515728944797*19502488 -> 4545.772941 | M194: =Profile!O194/25.515728944797*706221 -> 164.6108082 | N194: 508.5348704 | O194: =Profile!O194/25.515728944797*1000000 -> 233.0868216 | P194: 365262.8805
A195: 1 | B195: 9 | C195: 2 | D195: Y010902 | E195: =Profile!B195/1077.03117593519*1068671798.45635 -> 120906.608 | F195: =Profile!D195/390.985647863949*371911862.77167 -> 41295.43868 | G195: =Profile!J195/1427.26553695905*1469047929.49924 -> 158013.1241 | H195: =Profile!H195/358.09551901307*17602117.1513547 -> 2060.643339 | I195: =Profile!N195/499.485398604002*34191554.8115063 -> 2598.826347 | J195: 12900 | K195: =Profile!L195/119.908945705601*82923504.6960988 -> 7463.001533 | L195: =Profile!O195/25.515728944797*19502488 -> 4545.772941 | M195: =Profile!O195/25.515728944797*706221 -> 164.6108082 | N195: 508.5348704 | O195: =Profile!O195/25.515728944797*1000000 -> 233.0868216 | P195: =SUM(E195:O195) -> 350689.6474
A196: 1 | B196: 9 | C196: 3 | D196: Y010903 | E196: =Profile!B196/1077.03117593519*1068671798.45635 -> 115449.1239 | F196: =Profile!D196/390.985647863949*371911862.77167 -> 40487.69149 | G196: =Profile!J196/1427.26553695905*1469047929.49924 -> 155929.6339 | H196: =Profile!H196/358.09551901307*17602117.1513547 -> 2027.824457 | I196: =Profile!N196/499.485398604002*34191554.8115063 -> 2741.698241 | J196: 12900 | K196: =Profile!L196/119.908945705601*82923504.6960988 -> 7282.79709 | L196: =Profile!O196/25.515728944797*19502488 -> 4545.772941 | M196: =Profile!O196/25.515728944797*706221 -> 164.6108082 | N196: 508.5348704 | O196: =Profile!O196/25.515728944797*1000000 -> 233.0868216 | P196: 342270.7745
A197: 1 | B197: 9 | C197: 4 | D197: Y010904 | E197: =Profile!B197/1077.03117593519*1068671798.45635 -> 112948.0805 | F197: =Profile!D197/390.985647863949*371911862.77167 -> 40066.06132 | G197: =Profile!J197/1427.26553695905*1469047929.49924 -> 154504.5103 | H197: =Profile!H197/358.09551901307*17602117.1513547 -> 2008.203886 | I197: =Profile!N197/499.485398604002*34191554.8115063 -> 2969.789891 | J197: 12900 | K197: =Profile!L197/119.908945705601*82923504.6960988 -> 7280.357646 | L197: =Profile!O197/25.515728944797*19502488 -> 4545.772941 | M197: =Profile!O197/25.515728944797*706221 -> 164.6108082 | N197: 508.5348704 | O197: =Profile!O197/25.515728944797*1000000 -> 233.0868216 | P197: 338129.0089
A198: 1 | B198: 9 | C198: 5 | D198: Y010905 | E198: =Profile!B198/1077.03117593519*1068671798.45635 -> 113338.3259 | F198: =Profile!D198/390.985647863949*371911862.77167 -> 40016.04136 | G198: =Profile!J198/1427.26553695905*1469047929.49924 -> 156044.7777 | H198: =Profile!H198/358.09551901307*17602117.1513547 -> 2019.435645 | I198: =Profile!N198/499.485398604002*34191554.8115063 -> 2677.904176 | J198: 12900 | K198: =Profile!L198/119.908945705601*82923504.6960988 -> 7339.709513 | L198: =Profile!O198/25.515728944797*19502488 -> 4545.772941 | M198: =Profile!O198/25.515728944797*706221 -> 164.6108082 | N198: 508.5348704 | O198: =Profile!O198/25.515728944797*1000000 -> 233.0868216 | P198: 339788.1997
A199: 1 | B199: 9 | C199: 6 | D199: Y010906 | E199: =Profile!B199/1077.03117593519*1068671798.45635 -> 119306.4477 | F199: =Profile!D199/390.985647863949*371911862.77167 -> 40859.73726 | G199: =Profile!J199/1427.26553695905*1469047929.49924 -> 161940.7134 | H199: =Profile!H199/358.09551901307*17602117.1513547 -> 2086.481786 | I199: =Profile!N199/499.485398604002*34191554.8115063 -> 2724.820057 | J199: 12900 | K199: =Profile!L199/119.908945705601*82923504.6960988 -> 7643.254769 | L199: =Profile!O199/25.515728944797*19502488 -> 4545.772941 | M199: =Profile!O199/25.515728944797*706221 -> 164.6108082 | N199: 508.5348704 | O199: =Profile!O199/25.515728944797*1000000 -> 233.0868216 | P199: 352913.4603
A200: 1 | B200: 9 | C200: 7 | D200: Y010907 | E200: =Profile!B200/1077.03117593519*1068671798.45635 -> 133951.7695 | F200: =Profile!D200/390.985647863949*371911862.77167 -> 43232.75499 | G200: =Profile!J200/1427.26553695905*1469047929.49924 -> 177372.2927 | H200: =Profile!H200/358.09551901307*17602117.1513547 -> 2259.166647 | I200: =Profile!N200/499.485398604002*34191554.8115063 -> 2754.725501 | J200: 12900 | K200: =Profile!L200/119.908945705601*82923504.6960988 -> 8184.414706 | L200: =Profile!O200/25.515728944797*19502488 -> 3591.160626 | M200: =Profile!O200/25.515728944797*706221 -> 130.0425386 | N200: 508.5348704 | O200: =Profile!O200/25.515728944797*1000000 -> 184.1385892 | P200: 385069.0007
... 4300 more rows

Sheet Profile
A1: Time | B1: Residential | C1: Residential Count | D1: GS<50 | E1: GS<50 Count | F1: GS>50 Non-demand | G1: GS>50 Non-demand Count | H1: GS>50 Demand | I1: GS>50 Demand Count | J1: GS>50 Total | K1: GS>50 Demand Load Profile | L1: Large User | M1: Large User Count | N1: CoGen | O1: Street Lighting | P1: System Total Load | Q1: FIT Generation | R1: FIT Count | S1: MicroFIT Generation | T1: MicroFIT Count
A2: 2015-01-01T01:00:00 | B2: 0.1395509486 | C2: 138600 | D2: 0.04127977097 | E2: 12369 | F2: 0.08763429133 | G2: 569 | H2: 0.03662923096 | I2: 925 | J2: =F2+H2 -> 0.1242635223 | K2: 6.613610126e-05 | L2: 0.009877339981 | M2: 3 | N2: 0.005791464 | O2: 0.00594738016 | P2: 0.3351351087 | Q2: 9.713710369e-05 | R2: 18 | S2: 0.001000000047 | T2: 182
A3: 2015-01-01T02:00:00 | B3: 0.1278691724 | C3: 138600 | D3: 0.04047566327 | E3: 12369 | F3: 0.08622370081 | G3: 569 | H3: 0.03597408934 | I3: 925 | J3: 0.1221977901 | K3: 6.495320684e-05 | L3: 0.00981364653 | M3: 3 | N3: 0.005789004 | O3: 0.00594738016 | P3: 0.3198596483 | Q3: 0.0001025453812 | R3: 18 | S3: 0.0005000000237 | T3: 182
A4: 2015-01-01T03:00:00 | B4: 0.1176280295 | C4: 138600 | D4: 0.03948357364 | E4: 12369 | F4: 0.0847781325 | G4: 569 | H4: 0.03521361602 | I4: 925 | J4: 0.1199917485 | K4: 6.358013023e-05 | L4: 0.009717893753 | M4: 3 | N4: 0.005854488 | O4: 0.00594738016 | P4: 0.3054259134 | Q4: 0.0001107858056 | R4: 18 | S4: 0.002000000095 | T4: 182
A5: 2015-01-01T04:00:00 | B5: 0.1107138471 | C5: 138600 | D5: 0.0389615051 | E5: 12369 | F5: 0.08501714354 | G5: 569 | H5: 0.03499432981 | I5: 925 | J5: 0.1200114734 | K5: 6.318419687e-05 | L5: 0.009725157303 | M5: 3 | N5: 0.005992692 | O5: 0.00594738016 | P5: 0.2972176066 | Q5: 0.0001746301468 | R5: 18 | S5: 0.0005000000237 | T5: 182
A6: 2015-01-01T05:00:00 | B6: 0.108156112 | C6: 138600 | D6: 0.03862235613 | E6: 12369 | F6: 0.08515313275 | G6: 569 | H6: 0.03485149818 | I6: 925 | J6: 0.1200046309 | K6: 6.292630645e-05 | L6: 0.009855039566 | M6: 3 | N6: 0.005935644 | O6: 0.00594738016 | P6: 0.2951500126 | Q6: 0.0001885677293 | R6: 18 | S6: 0.001000000047 | T6: 182
A7: 2015-01-01T06:00:00 | B7: 0.1085961029 | C7: 138600 | D7: 0.03862754095 | E7: 12369 | F7: 0.08640035559 | G7: 569 | H7: 0.0350775662 | I7: 925 | J7: 0.1214779218 | K7: 6.333448476e-05 | L7: 0.0102809617 | M7: 3 | N7: 0.006093528 | O7: 0.00594738016 | P7: 0.2972042143 | Q7: 0.0001184268149 | R7: 18 | S7: 0.0005000000237 | T7: 182
A8: 2015-01-01T07:00:00 | B8: 0.1106923252 | C8: 138600 | D8: 0.039091182 | E8: 12369 | F8: 0.0909580644 | G8: 569 | H8: 0.03613327412 | I8: 925 | J8: 0.1270913385 | K8: 6.524062376e-05 | L8: 0.01070206277 | M8: 3 | N8: 0.005979828 | O8: 0.00469843033 | P8: 0.3060766606 | Q8: 0.0001029408691 | R8: 18 | S8: 0.001500000071 | T8: 182
A9: 2015-01-01T08:00:00 | B9: 0.1147188766 | C9: 138600 | D9: 0.03925152338 | E9: 12369 | F9: 0.09277008578 | G9: 569 | H9: 0.03654152865 | I9: 925 | J9: 0.1293116144 | K9: 6.597774988e-05 | L9: 0.01104413638 | M9: 3 | N9: 0.006073128 | O9: 0.00029736901 | P9: 0.3136695732 | Q9: 9.884370911e-05 | R9: 18 | S9: 0.2125000078 | T9: 182
A10: 2015-01-01T09:00:00 | B10: 0.1247044115 | C10: 138600 | D10: 0.03757746053 | E10: 12369 | F10: 0.09182791406 | G10: 569 | H10: 0.03553106398 | I10: 925 | J10: 0.127358978 | K10: 6.415330008e-05 | L10: 0.01092241795 | M10: 3 | N10: 0.006017448 | O10: 5.94738e-05 | P10: 0.3174776496 | Q10: 33.50778654 | R10: 18 | S10: 15.41250063 | T10: 182
A11: 2015-01-01T10:00:00 | B11: 0.1386717126 | C11: 138600 | D11: 0.03727516666 | E11: 12369 | F11: 0.09211286859 | G11: 569 | H11: 0.03542967475 | I11: 925 | J11: 0.1275425433 | K11: 6.397023621e-05 | L11: 0.01091685712 | M11: 3 | N11: 0.006241524 | O11: 5.94738e-05 | P11: 0.331530297 | Q11: 233.1607856 | R11: 18 | S11: 85.3064033 | T11: 182
A12: 2015-01-01T11:00:00 | B12: 0.1503915122 | C12: 138600 | D12: 0.0378076062 | E12: 12369 | F12: 0.09303960942 | G12: 569 | H12: 0.03586280598 | I12: 925 | J12: 0.1289024154 | K12: 6.47522786e-05 | L12: 0.01095529893 | M12: 3 | N12: 0.006577164 | O12: 5.94738e-05 | P12: 0.3453929166 | Q12: 825.4270853 | R12: 18 | S12: 314.6869125 | T12: 182
A13: 2015-01-01T12:00:00 | B13: 0.158280398 | C13: 138600 | D13: 0.0385425388 | E13: 12369 | F13: 0.09355709908 | G13: 569 | H13: 0.03632344509 | I13: 925 | J13: 0.1298805442 | K13: 6.558398798e-05 | L13: 0.01089736928 | M13: 3 | N13: 0.006065304 | O13: 5.94738e-05 | P13: 0.3540430864 | Q13: 1363.342969 | R13: 18 | S13: 510.3670192 | T13: 182
A14: 2015-01-01T13:00:00 | B14: 0.1657395577 | C14: 138600 | D14: 0.03896733836 | E14: 12369 | F14: 0.09381386533 | G14: 569 | H14: 0.03658083861 | I14: 925 | J14: 0.1303947039 | K14: 6.604872619e-05 | L14: 0.01088209598 | M14: 3 | N14: 0.00609204 | O14: 5.94738e-05 | P14: 0.3634213969 | Q14: 850.254108 | R14: 18 | S14: 331.3020128 | T14: 182
A15: 2015-01-01T14:00:00 | B15: 0.170839719 | C15: 138600 | D15: 0.03912698226 | E15: 12369 | F15: 0.09403518701 | G15: 569 | H15: 0.03670172398 | I15: 925 | J15: 0.130736911 | K15: 6.626699142e-05 | L15: 0.01085815134 | M15: 3 | N15: 0.006206712 | O15: 5.94738e-05 | P15: 0.3710801644 | Q15: 454.7076954 | R15: 18 | S15: 168.7733063 | T15: 182
A16: 2015-01-01T15:00:00 | B16: 0.1713713873 | C16: 138600 | D16: 0.03918505061 | E16: 12369 | F16: 0.09361592371 | G16: 569 | H16: 0.03665339207 | I16: 925 | J16: 0.1302693158 | K16: 6.617972548e-05 | L16: 0.01088532718 | M16: 3 | N16: 0.00608886 | O16: 5.94738e-05 | P16: 0.3716943783 | Q16: 378.73392 | R16: 18 | S16: 144.7477054 | T16: 182
A17: 2015-01-01T16:00:00 | B17: 0.1731545507 | C17: 138600 | D17: 0.03912051952 | E17: 12369 | F17: 0.09327423285 | G17: 569 | H17: 0.03656042071 | I17: 925 | J17: 0.1298346536 | K17: 6.601186055e-05 | L17: 0.01094955644 | M17: 3 | N17: 0.006229344 | O17: 5.94738e-05 | P17: 0.3736121587 | Q17: 187.4003707 | R17: 18 | S17: 72.26220273 | T17: 182
A18: 2015-01-01T17:00:00 | B18: 0.1834729244 | C18: 138600 | D18: 0.04071461475 | E18: 12369 | F18: 0.09458225187 | G18: 569 | H18: 0.03759382487 | I18: 925 | J18: 0.1321760767 | K18: 6.787772888e-05 | L18: 0.01102225615 | M18: 3 | N18: 0.006200424 | O18: 0.00291421627 | P18: 0.3894615124 | Q18: 34.91492312 | R18: 18 | S18: 16.02860061 | T18: 182
A19: 2015-01-01T18:00:00 | B19: 0.1989735937 | C19: 138600 | D19: 0.04460837907 | E19: 12369 | F19: 0.09589973239 | G19: 569 | H19: 0.03978330698 | I19: 925 | J19: 0.1356830394 | K19: 7.183095986e-05 | L19: 0.01105914424 | M19: 3 | N19: 0.00645588 | O19: 0.00594738016 | P19: 0.4181179837 | Q19: 0 | R19: 18 | S19: 0.0105000005 | T19: 182
A20: 2015-01-01T19:00:00 | B20: 0.1948834606 | C20: 138600 | D20: 0.04449217292 | E20: 12369 | F20: 0.09433510916 | G20: 569 | H20: 0.03944342333 | I20: 925 | J20: 0.1337785325 | K20: 7.121728115e-05 | L20: 0.0108945079 | M20: 3 | N20: 0.006243204 | O20: 0.00594738016 | P20: 0.4116710086 | Q20: 0 | R20: 18 | S20: 0.001000000047 | T20: 182
A21: 2015-01-01T20:00:00 | B21: 0.189338156 | C21: 138600 | D21: 0.04395704647 | E21: 12369 | F21: 0.09272643389 | G21: 569 | H21: 0.03888537704 | I21: 925 | J21: 0.1316118109 | K21: 7.020969773e-05 | L21: 0.01076909584 | M21: 3 | N21: 0.006249132 | O21: 0.00594738016 | P21: 0.4022187236 | Q21: 0 | R21: 18 | S21: 0.002000000095 | T21: 182
A22: 2015-01-01T21:00:00 | B22: 0.1835946554 | C22: 138600 | D22: 0.04329008208 | E22: 12369 | F22: 0.09196980023 | G22: 569 | H22: 0.03841538728 | I22: 925 | J22: 0.1303851875 | K22: 6.936110523e-05 | L22: 0.01065457034 | M22: 3 | N22: 0.006701844 | O22: 0.00594738016 | P22: 0.3934850049 | Q22: 0 | R22: 18 | S22: 0.001000000047 | T22: 182
A23: 2015-01-01T22:00:00 | B23: 0.1739744346 | C23: 138600 | D23: 0.04219532163 | E23: 12369 | F23: 0.09143498187 | G23: 569 | H23: 0.03777145899 | I23: 925 | J23: 0.1292064409 | K23: 6.819845711e-05 | L23: 0.01059567488 | M23: 3 | N23: 0.00639312 | O23: 0.00594738016 | P23: 0.3807233205 | Q23: 0 | R23: 18 | S23: 0.001000000047 | T23: 182
A24: 2015-01-01T23:00:00 | B24: 0.1574637927 | C24: 138600 | D24: 0.04101881092 | E24: 12369 | F24: 0.08974846033 | G24: 569 | H24: 0.03688033238 | I24: 925 | J24: 0.1266287927 | K24: 6.658947875e-05 | L24: 0.010392989 | M24: 3 | N24: 0.006350088 | O24: 0.00594738016 | P24: 0.3589701924 | Q24: 0 | R24: 18 | S24: 0.0005000000237 | T24: 182
A25: 2015-01-02 | B25: 0.1360889499 | C25: 138600 | D25: 0.03960935618 | E25: 12369 | F25: 0.08823602959 | G25: 569 | H25: 0.03591084972 | I25: 925 | J25: 0.1241468793 | K25: 6.483902421e-05 | L25: 0.009899099472 | M25: 3 | N25: 0.006982416 | O25: 0.00594738016 | P25: 0.3316777241 | Q25: 1.582753519e-07 | R25: 18 | S25: 0.001500000071 | T25: 182
A26: 2015-01-02T01:00:00 | B26: 0.118241155 | C26: 138599 | D26: 0.0384753475 | E26: 12368 | F26: 0.08752454836 | G26: 567 | H26: 0.03523686698 | I26: 925 | J26: 0.1227614153 | K26: 6.362211113e-05 | L26: 0.009742436478 | M26: 3 | N26: 0.005691552 | O26: 0.00594738016 | P26: 0.3098593964 | Q26: 0 | R26: 18 | S26: 0.0005000000237 | T26: 182
A27: 2015-01-02T02:00:00 | B27: 0.1064267182 | C27: 138599 | D27: 0.03765763841 | E27: 12368 | F27: 0.08648940658 | G27: 567 | H27: 0.03463972943 | I27: 925 | J27: 0.121129136 | K27: 6.254394627e-05 | L27: 0.009764336899 | M27: 3 | N27: 0.005613528 | O27: 0.00594738016 | P27: 0.2954596572 | Q27: 0 | R27: 18 | S27: 0.0005000000237 | T27: 182
A28: 2015-01-02T03:00:00 | B28: 0.1005767534 | C28: 138599 | D28: 0.03744990932 | E28: 12368 | F28: 0.08564000829 | G28: 567 | H28: 0.03438122351 | I28: 925 | J28: 0.1200212318 | K28: 6.207719955e-05 | L28: 0.009654680618 | M28: 3 | N28: 0.005726028 | O28: 0.00594738016 | P28: 0.2866730746 | Q28: 9.646319299e-08 | R28: 18 | S28: 0 | T28: 182
A29: 2015-01-02T04:00:00 | B29: 0.0971426672 | C29: 138599 | D29: 0.03707645358 | E29: 12368 | F29: 0.08570559112 | G29: 567 | H29: 0.03420610041 | I29: 925 | J29: 0.1199116915 | K29: 6.17610051e-05 | L29: 0.009682119965 | M29: 3 | N29: 0.005842824 | O29: 0.00594738016 | P29: 0.2828726019 | Q29: 9.643042276e-08 | R29: 18 | S29: 0 | T29: 182
A30: 2015-01-02T05:00:00 | B30: 0.0965572642 | C30: 138602 | D30: 0.03722749941 | E30: 12368 | F30: 0.08667202244 | G30: 567 | H30: 0.03446063896 | I30: 925 | J30: 0.1211326614 | K30: 6.222058853e-05 | L30: 0.009833384521 | M30: 3 | N30: 0.005809584 | O30: 0.00594738016 | P30: 0.2834901137 | Q30: 9.318083727e-08 | R30: 18 | S30: 0.0005000000237 | T30: 182
A31: 2015-01-02T06:00:00 | B31: 0.0993849246 | C31: 138602 | D31: 0.03774489237 | E31: 12368 | F31: 0.0895842577 | G31: 567 | H31: 0.03536058708 | I31: 925 | J31: 0.1249448448 | K31: 6.384549461e-05 | L31: 0.01019909203 | M31: 3 | N31: 0.0059676 | O31: 0.00594738016 | P31: 0.2924959565 | Q31: 1.876101052e-07 | R31: 18 | S31: 0 | T31: 182
A32: 2015-01-02T07:00:00 | B32: 0.106738623 | C32: 138602 | D32: 0.039818527 | E32: 12368 | F32: 0.09872920897 | G32: 567 | H32: 0.03819940094 | I32: 925 | J32: 0.1369286099 | K32: 6.897112995e-05 | L32: 0.01067713918 | M32: 3 | N32: 0.006154692 | O32: 0.00469843033 | P32: 0.3165183419 | Q32: 1.269826175e-06 | R32: 18 | S32: 0.001500000013 | T32: 182
A33: 2015-01-02T08:00:00 | B33: 0.1144789529 | C33: 138602 | D33: 0.04332262342 | E33: 12368 | F33: 0.1075556026 | G33: 567 | H33: 0.04171091453 | I33: 925 | J33: 0.1492665171 | K33: 7.531136185e-05 | L33: 0.01119463254 | M33: 3 | N33: 0.006106824 | O33: 0.00029736901 | P33: 0.3425210437 | Q33: 0.006102620561 | R33: 18 | S33: 4.080100131 | T33: 182
A34: 2015-01-02T09:00:00 | B34: 0.121343428 | C34: 138602 | D34: 0.04536321187 | E34: 12368 | F34: 0.110242351 | G34: 567 | H34: 0.04330743311 | I34: 925 | J34: 0.1535497841 | K34: 7.81813324e-05 | L34: 0.01122151608 | M34: 3 | N34: 0.006124524 | O34: 5.94738e-05 | P34: 0.3522216364 | Q34: 123.3758097 | R34: 18 | S34: 115.0436045 | T34: 182
A35: 2015-01-02T10:00:00 | B35: 0.1238301672 | C35: 138602 | D35: 0.0488398018 | E35: 12368 | F35: 0.1118293238 | G35: 567 | H35: 0.04530854014 | I35: 925 | J35: 0.157137864 | K35: 8.179785163e-05 | L35: 0.01129792526 | M35: 3 | N35: 0.00615738 | O35: 5.94738e-05 | P35: 0.3598457184 | Q35: 692.8472522 | R35: 18 | S35: 406.781116 | T35: 182
A36: 2015-01-02T11:00:00 | B36: 0.1272905631 | C36: 138602 | D36: 0.0525306435 | E36: 12368 | F36: 0.1138254119 | G36: 567 | H36: 0.04756843295 | I36: 925 | J36: 0.1613938449 | K36: 8.586737233e-05 | L36: 0.01137016524 | M36: 3 | N36: 0.006223008 | O36: 5.94738e-05 | P36: 0.3700043492 | Q36: 1108.580588 | R36: 18 | S36: 471.5457184 | T36: 182
A37: 2015-01-02T12:00:00 | B37: 0.1327890194 | C37: 138602 | D37: 0.05391820074 | E37: 12368 | F37: 0.1140252672 | G37: 567 | H37: 0.04825404592 | I37: 925 | J37: 0.1622793132 | K37: 8.713312746e-05 | L37: 0.01136647769 | M37: 3 | N37: 0.006128424 | O37: 5.94738e-05 | P37: 0.3793407229 | Q37: 776.066361 | R37: 18 | S37: 325.7651127 | T37: 182
A38: 2015-01-02T13:00:00 | B38: 0.136183792 | C38: 138602 | D38: 0.05380526207 | E38: 12368 | F38: 0.1131777659 | G38: 567 | H38: 0.04791968764 | I38: 925 | J38: 0.1610974536 | K38: 8.65683459e-05 | L38: 0.01140321745 | M38: 3 | N38: 0.005986584 | O38: 5.94738e-05 | P38: 0.3807650704 | Q38: 928.567049 | R38: 18 | S38: 395.325415 | T38: 182
A39: 2015-01-02T14:00:00 | B39: 0.1327082072 | C39: 138602 | D39: 0.05349902971 | E39: 12368 | F39: 0.1126762528 | G39: 567 | H39: 0.04765936361 | I39: 925 | J39: 0.1603356164 | K39: 8.615924548e-05 | L39: 0.01138844 | M39: 3 | N39: 0.006166044 | O39: 5.94738e-05 | P39: 0.3750376787 | Q39: 1463.489221 | R39: 18 | S39: 529.9924196 | T39: 182
A40: 2015-01-02T15:00:00 | B40: 0.1302634357 | C40: 138602 | D40: 0.05286349559 | E40: 12368 | F40: 0.1119547339 | G40: 567 | H40: 0.04719885806 | I40: 925 | J40: 0.159153592 | K40: 8.524298024e-05 | L40: 0.011466263 | M40: 3 | N40: 0.006010272 | O40: 5.94738e-05 | P40: 0.3706787781 | Q40: 1189.324861 | R40: 18 | S40: 486.6229183 | T40: 182
A41: 2015-01-02T16:00:00 | B41: 0.1344042544 | C41: 138602 | D41: 0.05197106845 | E41: 12368 | F41: 0.1101253488 | G41: 567 | H41: 0.04627859594 | I41: 925 | J41: 0.1564039447 | K41: 8.361912943e-05 | L41: 0.01146726727 | M41: 3 | N41: 0.005496996 | O41: 5.94738e-05 | P41: 0.3722379769 | Q41: 368.3866392 | R41: 18 | S41: 191.8733072 | T41: 182
A42: 2015-01-02T17:00:00 | B42: 0.1512434631 | C42: 138602 | D42: 0.05278734875 | E42: 12368 | F42: 0.110992405 | G42: 567 | H42: 0.04678050591 | I42: 925 | J42: 0.1577729109 | K42: 8.453386263e-05 | L42: 0.01150052776 | M42: 3 | N42: 0.001016112 | O42: 0.00291421627 | P42: 0.3901881178 | Q42: 34.45043843 | R42: 18 | S42: 22.46780087 | T42: 182
A43: 2015-01-02T18:00:00 | B43: 0.1751371384 | C43: 138602 | D43: 0.05376120537 | E43: 12368 | F43: 0.1121446938 | G43: 567 | H43: 0.04747429649 | I43: 925 | J43: 0.1596189903 | K43: 8.578756428e-05 | L43: 0.01140199245 | M43: 3 | N43: 0.001021284 | O43: 0.00594738016 | P43: 0.4103135118 | Q43: 0 | R43: 18 | S43: 0.0250000009 | T43: 182
A44: 2015-01-02T19:00:00 | B44: 0.1779929323 | C44: 138602 | D44: 0.05191571137 | E44: 12368 | F44: 0.1095525325 | G44: 567 | H44: 0.0460762837 | I44: 925 | J44: 0.1556288162 | K44: 8.326131069e-05 | L44: 0.01101608266 | M44: 3 | N44: 0.000991896 | O44: 0.00594738016 | P44: 0.4057057027 | Q44: 0 | R44: 18 | S44: 0.001500000071 | T44: 182
A45: 2015-01-02T20:00:00 | B45: 0.1766017382 | C45: 138602 | D45: 0.05051175865 | E45: 12368 | F45: 0.1067891538 | G45: 567 | H45: 0.04487515597 | I45: 925 | J45: 0.1516643098 | K45: 8.109083466e-05 | L45: 0.01088399069 | M45: 3 | N45: 0.001006248 | O45: 0.00594738016 | P45: 0.3966354903 | Q45: 3.390214756e-07 | R45: 18 | S45: 0.001500000071 | T45: 182
A46: 2015-01-02T21:00:00 | B46: 0.1751588438 | C46: 138602 | D46: 0.04860117274 | E46: 12368 | F46: 0.1050286165 | G46: 567 | H46: 0.04357622521 | I46: 925 | J46: 0.1486048417 | K46: 7.878353421e-05 | L46: 0.01072575941 | M46: 3 | N46: 0.00102816 | O46: 0.00594738016 | P46: 0.3896397196 | Q46: 2.098188986e-06 | R46: 18 | S46: 0.0005000000237 | T46: 182
A47: 2015-01-02T22:00:00 | B47: 0.1687103445 | C47: 138602 | D47: 0.04561683444 | E47: 12368 | F47: 0.1018344286 | G47: 567 | H47: 0.04151581695 | I47: 925 | J47: 0.1433502456 | K47: 7.505842394e-05 | L47: 0.0107057323 | M47: 3 | N47: 0.001022172 | O47: 0.00594738016 | P47: 0.3747799167 | Q47: 3.194781286e-06 | R47: 18 | S47: 0.001800000085 | T47: 182
A48: 2015-01-02T23:00:00 | B48: 0.1562882248 | C48: 138602 | D48: 0.04302106999 | E48: 12368 | F48: 0.09707498009 | G48: 567 | H48: 0.03935497856 | I48: 925 | J48: 0.1364299586 | K48: 7.115174123e-05 | L48: 0.01051716333 | M48: 3 | N48: 0.0010041 | O48: 0.00594738016 | P48: 0.3509896582 | Q48: 5.714011095e-06 | R48: 18 | S48: 0.001000000047 | T48: 182
A49: 2015-01-03 | B49: 0.1364193878 | C49: 138602 | D49: 0.04072201262 | E49: 12370 | F49: 0.09348060162 | G49: 568 | H49: 0.03752331296 | I49: 925 | J49: 0.1310039146 | K49: 6.784018571e-05 | L49: 0.009987146301 | M49: 3 | N49: 0.000990816 | O49: 0.00594738016 | P49: 0.3231567755 | Q49: 9.109403948e-06 | R49: 18 | S49: 0.0005000000237 | T49: 182
A50: 2015-01-03T01:00:00 | B50: 0.1198842668 | C50: 138602 | D50: 0.03976538535 | E50: 12370 | F50: 0.09069498235 | G50: 568 | H50: 0.03640806811 | I50: 926 | J50: 0.1271030505 | K50: 6.57815534e-05 | L50: 0.009795870041 | M50: 3 | N50: 0.001301184 | O50: 0.00594738016 | P50: 0.2965022829 | Q50: 1.557728319e-05 | R50: 18 | S50: 0 | T50: 182
A51: 2015-01-03T02:00:00 | B51: 0.1086589658 | C51: 138602 | D51: 0.0388603295 | E51: 12370 | F51: 0.08944068894 | G51: 568 | H51: 0.03572171843 | I51: 926 | J51: 0.1251624074 | K51: 6.454146706e-05 | L51: 0.009745022385 | M51: 3 | N51: 0.0083055 | O51: 0.00594738016 | P51: 0.2849051306 | Q51: 1.174029939e-05 | R51: 18 | S51: 0.0003000000142 | T51: 182
A52: 2015-01-03T03:00:00 | B52: 0.1017037799 | C52: 138602 | D52: 0.03828595872 | E52: 12370 | F52: 0.08845010661 | G52: 568 | H52: 0.03525668286 | I52: 926 | J52: 0.1237067895 | K52: 6.370124773e-05 | L52: 0.009691097382 | M52: 3 | N52: 0.008185488 | O52: 0.00594738016 | P52: 0.2873192768 | Q52: 1.680756463e-05 | R52: 18 | S52: 0.0005000000237 | T52: 182
A53: 2015-01-03T04:00:00 | B53: 0.0976978412 | C53: 138602 | D53: 0.03763809193 | E53: 12370 | F53: 0.08827566814 | G53: 568 | H53: 0.0349031375 | I53: 926 | J53: 0.1231788056 | K53: 6.306246726e-05 | L53: 0.009698473434 | M53: 3 | N53: 0.008083692 | O53: 0.00594738016 | P53: 0.28299982 | Q53: 2.478200327e-05 | R53: 18 | S53: 0.0005000000237 | T53: 182
A54: 2015-01-03T05:00:00 | B54: 0.0969427935 | C54: 138602 | D54: 0.03754847202 | E54: 12370 | F54: 0.08810466237 | G54: 568 | H54: 0.03482624668 | I54: 926 | J54: 0.122930909 | K54: 6.292354207e-05 | L54: 0.009803995544 | M54: 3 | N54: 0.007953804 | O54: 0.00594738016 | P54: 0.2825014916 | Q54: 3.761553876e-05 | R54: 18 | S54: 0.001800000085 | T54: 182
A55: 2015-01-03T06:00:00 | B55: 0.0983503288 | C55: 138602 | D55: 0.03759194162 | E55: 12370 | F55: 0.089667154 | G55: 568 | H55: 0.03513247596 | I55: 926 | J55: 0.12479963 | K55: 6.347683256e-05 | L55: 0.009915095886 | M55: 3 | N55: 0.005909844 | O55: 0.00594738016 | P55: 0.2864272569 | Q55: 1.733994824e-05 | R55: 18 | S55: 0.0005000000237 | T55: 182
A56: 2015-01-03T07:00:00 | B56: 0.1026006328 | C56: 138602 | D56: 0.03820717975 | E56: 12370 | F56: 0.09343002288 | G56: 568 | H56: 0.0361737549 | I56: 926 | J56: 0.1296037778 | K56: 6.53581998e-05 | L56: 0.0100396436 | M56: 3 | N56: 0.005819328 | O56: 0.00469843033 | P56: 0.2989442999 | Q56: 3.85461292e-06 | R56: 18 | S56: 0.0005000000237 | T56: 182
A57: 2015-01-03T08:00:00 | B57: 0.110585074 | C57: 138602 | D57: 0.03938633065 | E57: 12370 | F57: 0.09816936913 | G57: 568 | H57: 0.0376789404 | I57: 926 | J57: 0.1358483095 | K57: 6.807774646e-05 | L57: 0.01023281534 | M57: 3 | N57: 0.005957256 | O57: 0.00029736901 | P57: 0.3169771489 | Q57: 3.395355348e-07 | R57: 18 | S57: 0.03800000157 | T57: 182
A58: 2015-01-03T09:00:00 | B58: 0.1238654186 | C58: 138602 | D58: 0.04085570855 | E58: 12370 | F58: 0.1001481643 | G58: 568 | H58: 0.03876322107 | I58: 926 | J58: 0.1389113854 | K58: 7.003680858e-05 | L58: 0.01029653716 | M58: 3 | N58: 0.005939496 | O58: 5.94738e-05 | P58: 0.3327404212 | Q58: 5.242468165 | R58: 18 | S58: 3.542000141 | T58: 182
A59: 2015-01-03T10:00:00 | B59: 0.1366917253 | C59: 138602 | D59: 0.04433203195 | E59: 12370 | F59: 0.1026322405 | G59: 568 | H59: 0.04094700911 | I59: 926 | J59: 0.1435792496 | K59: 7.398244417e-05 | L59: 0.01037247374 | M59: 3 | N59: 0.005808156 | O59: 5.94738e-05 | P59: 0.3527013483 | Q59: 18.58831907 | R59: 18 | S59: 9.625000404 | T59: 182
A60: 2015-01-03T11:00:00 | B60: 0.1475528121 | C60: 138602 | D60: 0.04677457979 | E60: 12370 | F60: 0.1042777833 | G60: 568 | H60: 0.04246474807 | I60: 926 | J60: 0.1467425314 | K60: 7.672467223e-05 | L60: 0.01046464156 | M60: 3 | N60: 0.005985108 | O60: 5.94738e-05 | P60: 0.3677442651 | Q60: 6.298009169 | R60: 18 | S60: 7.055100263 | T60: 182
A61: 2015-01-03T12:00:00 | B61: 0.1572023866 | C61: 138602 | D61: 0.04796117666 | E61: 12370 | F61: 0.1047525914 | G61: 568 | H61: 0.04314551809 | I61: 926 | J61: 0.1478981095 | K61: 7.795467734e-05 | L61: 0.01058236946 | M61: 3 | N61: 0.005794476 | O61: 5.94738e-05 | P61: 0.3802537161 | Q61: 4.389978014 | R61: 18 | S61: 7.106400263 | T61: 182
A62: 2015-01-03T13:00:00 | B62: 0.1644236039 | C62: 138602 | D62: 0.04806873702 | E62: 12370 | F62: 0.1050732001 | G62: 568 | H62: 0.04325624262 | I62: 926 | J62: 0.1483294427 | K62: 7.815473276e-05 | L62: 0.01055396371 | M62: 3 | N62: 0.005948436 | O62: 5.94738e-05 | P62: 0.3887450921 | Q62: 6.830755087 | R62: 18 | S62: 7.778900261 | T62: 182
A63: 2015-01-03T14:00:00 | B63: 0.1661770633 | C63: 138602 | D63: 0.04776317763 | E63: 12370 | F63: 0.1052402897 | G63: 568 | H63: 0.0431336594 | I63: 926 | J63: 0.1483739491 | K63: 7.793325123e-05 | L63: 0.01057405031 | M63: 3 | N63: 0.005829384 | O63: 5.94738e-05 | P63: 0.3908575605 | Q63: 8.593420469 | R63: 18 | S63: 8.059000282 | T63: 182
A64: 2015-01-03T15:00:00 | B64: 0.1663495179 | C64: 138602 | D64: 0.04711108725 | E64: 12370 | F64: 0.1049462631 | G64: 568 | H64: 0.04273142311 | I64: 926 | J64: 0.1476776862 | K64: 7.720649671e-05 | L64: 0.01060742078 | M64: 3 | N64: 0.005928588 | O64: 5.94738e-05 | P64: 0.3914519456 | Q64: 5.350388127 | R64: 18 | S64: 5.829200202 | T64: 182
A65: 2015-01-03T16:00:00 | B65: 0.1692546681 | C65: 138602 | D65: 0.04702136043 | E65: 12370 | F65: 0.1051434763 | G65: 568 | H65: 0.04263877515 | I65: 926 | J65: 0.1477822515 | K65: 7.703910178e-05 | L65: 0.01055724539 | M65: 3 | N65: 0.014973228 | O65: 5.94738e-05 | P65: 0.3946267195 | Q65: 1.271161294 | R65: 18 | S65: 1.711300057 | T65: 182
A66: 2015-01-03T17:00:00 | B66: 0.1805177334 | C66: 138602 | D66: 0.04809459686 | E66: 12370 | F66: 0.1056731854 | G66: 568 | H66: 0.04327097717 | I66: 926 | J66: =F66+H66 -> 0.1489441626 | K66: 7.818135493e-05 | L66: 0.01047340565 | M66: 3 | N66: 0.094583328 | O66: 0.00291421627 | P66: 0.4110554917 | Q66: 0.08227159129 | R66: 18 | S66: 0.1504000039 | T66: 182
A67: 2015-01-03T18:00:00 | B67: 0.195391618 | C67: 138602 | D67: 0.04990331 | E67: 12370 | F67: 0.106506399 | G67: 568 | H67: 0.04432927211 | I67: 926 | J67: 0.1508356711 | K67: 8.009346642e-05 | L67: 0.01069979466 | M67: 3 | N67: 0.092503128 | O67: 0.00594738016 | P67: 0.4421716471 | Q67: 0 | R67: 18 | S67: 0 | T67: 182
A68: 2015-01-03T19:00:00 | B68: 0.1913754936 | C68: 138602 | D68: 0.04811267389 | E68: 12370 | F68: 0.1036332957 | G68: 568 | H68: 0.04291528234 | I68: 926 | J68: 0.146548578 | K68: 7.753869084e-05 | L68: 0.01057374834 | M68: 3 | N68: 0.090034728 | O68: 0.00594738016 | P68: 0.4320671228 | Q68: 0 | R68: 18 | S68: 0.0005000000237 | T68: 182
A69: 2015-01-03T20:00:00 | B69: 0.1820033909 | C69: 138602 | D69: 0.04669933181 | E69: 12370 | F69: 0.102092784 | G69: 568 | H69: 0.04193000182 | I69: 926 | J69: 0.1440227858 | K69: 7.57585007e-05 | L69: 0.01045034724 | M69: 3 | N69: 0.087555624 | O69: 0.00594738016 | P69: 0.4170416101 | Q69: 0 | R69: 18 | S69: 0.001500000071 | T69: 182
A70: 2015-01-03T21:00:00 | B70: 0.1731399043 | C70: 138602 | D70: 0.04527687947 | E70: 12370 | F70: 0.09932519844 | G70: 568 | H70: 0.04071924734 | I70: 926 | J70: 0.1400444458 | K70: 7.35709276e-05 | L70: 0.01033027512 | M70: 3 | N70: 0.064732392 | O70: 0.00594738016 | P70: 0.40203357 | Q70: 0 | R70: 18 | S70: 0.001000000047 | T70: 182
A71: 2015-01-03T22:00:00 | B71: 0.164182918 | C71: 138602 | D71: 0.04365725309 | E71: 12370 | F71: 0.09640208859 | G71: 568 | H71: 0.03938188925 | I71: 926 | J71: 0.1357839778 | K71: 7.115460899e-05 | L71: 0.01029975755 | M71: 3 | N71: 0.029799528 | O71: 0.00594738016 | P71: 0.3844198715 | Q71: 0 | R71: 18 | S71: 0.001000000047 | T71: 182
A72: 2015-01-03T23:00:00 | B72: 0.1502816038 | C72: 138602 | D72: 0.04153248952 | E72: 12370 | F72: 0.09266651773 | G72: 568 | H72: 0.03764736601 | I72: 926 | J72: 0.1303138837 | K72: 6.802069833e-05 | L72: 0.01015448425 | M72: 3 | N72: 0.029557608 | O72: 0.00594738016 | P72: 0.3578338676 | Q72: 0 | R72: 18 | S72: 0.001800000085 | T72: 182
A73: 2015-01-04 | B73: 0.1316993178 | C73: 138602 | D73: 0.0396255995 | E73: 12370 | F73: 0.09008884035 | G73: 568 | H73: 0.03622980063 | I73: 926 | J73: 0.126318641 | K73: 6.545946238e-05 | L73: 0.009808895462 | M73: 3 | N73: 0.02960148 | O73: 0.00594738016 | P73: 0.3314229927 | Q73: 0 | R73: 18 | S73: 0.001500000071 | T73: 182
A74: 2015-01-04T01:00:00 | B74: 0.1141899763 | C74: 138602 | D74: 0.03809846099 | E74: 12369 | F74: 0.0877580365 | G74: 568 | H74: 0.0350450943 | I74: 926 | J74: 0.1228031308 | K74: 6.331895268e-05 | L74: 0.009597501587 | M74: 3 | N74: 0.028859712 | O74: 0.00594738016 | P74: 0.3075595206 | Q74: 0 | R74: 18 | S74: 0 | T74: 182
A75: 2015-01-04T02:00:00 | B75: 0.1021219538 | C75: 138602 | D75: 0.03731563461 | E75: 12369 | F75: 0.08740046768 | G75: 568 | H75: 0.03458921499 | I75: 926 | J75: 0.1219896827 | K75: 6.249527676e-05 | L75: 0.009590935181 | M75: 3 | N75: 0.028211844 | O75: 0.00594738016 | P75: 0.2924185084 | Q75: 0 | R75: 18 | S75: 0.000800000038 | T75: 182
A76: 2015-01-04T03:00:00 | B76: 0.0942469707 | C76: 138602 | D76: 0.03657213113 | E76: 12369 | F76: 0.08596581336 | G76: 568 | H76: 0.03395644918 | I76: 926 | J76: 0.1199222625 | K76: 6.135200495e-05 | L76: 0.009494431046 | M76: 3 | N76: 0.028937292 | O76: 0.00594738016 | P76: 0.2810565424 | Q76: 0 | R76: 18 | S76: 0 | T76: 182
A77: 2015-01-04T04:00:00 | B77: 0.0900110939 | C77: 138602 | D77: 0.03583958814 | E77: 12369 | F77: 0.0854207941 | G77: 568 | H77: 0.03349419914 | I77: 926 | J77: 0.1189149932 | K77: 6.051681848e-05 | L77: 0.009490144363 | M77: 3 | N77: 0.029340876 | O77: 0.00594738016 | P77: 0.2750280648 | Q77: 0 | R77: 18 | S77: 0.0005000000237 | T77: 182
A78: 2015-01-04T05:00:00 | B78: 0.0882451031 | C78: 138602 | D78: 0.03571483978 | E78: 12369 | F78: 0.08553618066 | G78: 568 | H78: 0.03345191169 | I78: 926 | J78: 0.1189880924 | K78: 6.044041415e-05 | L78: 0.009614826706 | M78: 3 | N78: 0.030444432 | O78: 0.00594738016 | P78: 0.2733172509 | Q78: 0 | R78: 18 | S78: 0.0003000000142 | T78: 182
A79: 2015-01-04T06:00:00 | B79: 0.0896704277 | C79: 138602 | D79: 0.03577260025 | E79: 12369 | F79: 0.08716365795 | G79: 568 | H79: 0.03377506053 | I79: 926 | J79: 0.1209387185 | K79: 6.102427465e-05 | L79: 0.009722217957 | M79: 3 | N79: 0.03429618 | O79: 0.00594738016 | P79: 0.2779463644 | Q79: 0 | R79: 18 | S79: 0 | T79: 182
A80: 2015-01-04T07:00:00 | B80: 0.0937999229 | C80: 138602 | D80: 0.0364179471 | E80: 12369 | F80: 0.09042587928 | G80: 568 | H80: 0.03468785462 | I80: 926 | J80: 0.1251137339 | K80: 6.267349737e-05 | L80: 0.009961545578 | M80: 3 | N80: 0.036262812 | O80: 0.00469843033 | P80: 0.2878182335 | Q80: 0 | R80: 18 | S80: 0.0003000000142 | T80: 182
A81: 2015-01-04T08:00:00 | B81: 0.1017817297 | C81: 138602 | D81: 0.03689910698 | E81: 12369 | F81: 0.09334155423 | G81: 568 | H81: 0.03545391134 | I81: 926 | J81: 0.1287954656 | K81: 6.40575972e-05 | L81: 0.01014281325 | M81: 3 | N81: 0.032053944 | O81: 0.00029736901 | P81: 0.301827941 | Q81: 0 | R81: 18 | S81: 0.08400000329 | T81: 182
A82: 2015-01-04T09:00:00 | B82: 0.1152414884 | C82: 138602 | D82: 0.03600574926 | E82: 12369 | F82: 0.09599106461 | G82: 568 | H82: 0.03548230246 | I82: 926 | J82: 0.1314733671 | K82: 6.410889385e-05 | L82: 0.01021853754 | M82: 3 | N82: 0.031148592 | O82: 5.94738e-05 | P82: 0.3159037425 | Q82: 13.74026111 | R82: 18 | S82: 7.694900296 | T82: 182
A83: 2015-01-04T10:00:00 | B83: 0.1298803034 | C83: 138602 | D83: 0.03714507414 | E83: 12369 | F83: 0.0977751139 | G83: 568 | H83: 0.03637109023 | I83: 926 | J83: 0.1341462041 | K83: 6.571474231e-05 | L83: 0.01019478101 | M83: 3 | N83: 0.031561536 | O83: 5.94738e-05 | P83: 0.3337080241 | Q83: 64.39818789 | R83: 18 | S83: 30.05900114 | T83: 182
A84: 2015-01-04T11:00:00 | B84: 0.1403632391 | C84: 138602 | D84: 0.03938960853 | E84: 12369 | F84: 0.09938940529 | G84: 568 | H84: 0.0377830895 | I84: 926 | J84: 0.1371724948 | K84: 6.826592149e-05 | L84: 0.01028702698 | M84: 3 | N84: 0.034735272 | O84: 5.94738e-05 | P84: 0.350014684 | Q84: 160.1378478 | R84: 18 | S84: 69.12240257 | T84: 182
A85: 2015-01-04T12:00:00 | B85: 0.1517056262 | C85: 138602 | D85: 0.04208167722 | E85: 12369 | F85: 0.1010831273 | G85: 568 | H85: 0.03943234963 | I85: 926 | J85: 0.1405154769 | K85: 7.124578005e-05 | L85: 0.01042739609 | M85: 3 | N85: 0.032530632 | O85: 5.94738e-05 | P85: 0.367616398 | Q85: 142.0426872 | R85: 18 | S85: 58.96690218 | T85: 182
A86: 2015-01-04T13:00:00 | B86: 0.161396396 | C86: 138602 | D86: 0.0429294104 | E86: 12369 | F86: 0.1018907565 | G86: 568 | H86: 0.04000178557 | I86: 926 | J86: 0.1418925421 | K86: 7.22746284e-05 | L86: 0.01049460857 | M86: 3 | N86: 0.031924356 | O86: 5.94738e-05 | P86: 0.3783138208 | Q86: 175.5207191 | R86: 18 | S86: 68.18260257 | T86: 182
A87: 2015-01-04T14:00:00 | B87: 0.1632947542 | C87: 138602 | D87: 0.0428736587 | E87: 12369 | F87: 0.1026507884 | G87: 568 | H87: 0.04011153022 | I87: 926 | J87: 0.1427623187 | K87: 7.24729134e-05 | L87: 0.01057474295 | M87: 3 | N87: 0.030909768 | O87: 5.94738e-05 | P87: 0.3824065319 | Q87: 220.6311549 | R87: 18 | S87: 81.36380304 | T87: 182
A88: 2015-01-04T15:00:00 | B88: 0.1681823668 | C88: 138602 | D88: 0.04308110033 | E88: 12369 | F88: 0.1033286246 | G88: 568 | H88: 0.04033905048 | I88: 926 | J88: 0.1436676751 | K88: 7.28839936e-05 | L88: 0.01069714632 | M88: 3 | N88: 0.02890596 | O88: 5.94738e-05 | P88: 0.3889641098 | Q88: 86.02259484 | R88: 18 | S88: 34.34360134 | T88: 182
A89: 2015-01-04T16:00:00 | B89: 0.172627491 | C89: 138602 | D89: 0.04309320265 | E89: 12369 | F89: 0.1031249964 | G89: 568 | H89: 0.04030852758 | I89: 926 | J89: 0.1434335239 | K89: 7.282884529e-05 | L89: 0.0107680722 | M89: 3 | N89: 0.028611264 | O89: 5.94738e-05 | P89: 0.3933361454 | Q89: 38.11793168 | R89: 18 | S89: 18.93750068 | T89: 182
A90: 2015-01-04T17:00:00 | B90: 0.1899869763 | C90: 138602 | D90: 0.04543767835 | E90: 12369 | F90: 0.1046499697 | G90: 568 | H90: 0.04175787392 | I90: 926 | J90: 0.1464078436 | K90: 7.544750258e-05 | L90: 0.01089357216 | M90: 3 | N90: 0.028148388 | O90: 0.00291421627 | P90: 0.4189533107 | Q90: 0.1910859931 | R90: 18 | S90: 0.739900027 | T90: 182
A91: 2015-01-04T18:00:00 | B91: 0.2067323927 | C91: 138602 | D91: 0.04684609254 | E91: 12369 | F91: 0.1049075104 | G91: 568 | H91: 0.04251067409 | I91: 926 | J91: 0.1474181845 | K91: 7.680765069e-05 | L91: 0.01107981505 | M91: 3 | N91: 0.027514632 | O91: 0.00594738016 | P91: 0.4447554308 | Q91: 0 | R91: 18 | S91: 0.001500000071 | T91: 182
A92: 2015-01-04T19:00:00 | B92: 0.2050073239 | C92: 138602 | D92: 0.04568682648 | E92: 12369 | F92: 0.1044608047 | G92: 568 | H92: 0.04185178727 | I92: 926 | J92: 0.146312592 | K92: 7.561718383e-05 | L92: 0.0109840956 | M92: 3 | N92: 0.025837584 | O92: 0.00594738016 | P92: 0.439255236 | Q92: 0 | R92: 18 | S92: 0.001500000071 | T92: 182
A93: 2015-01-04T20:00:00 | B93: 0.1988819665 | C93: 138602 | D93: 0.0453839748 | E93: 12369 | F93: 0.1035618088 | G93: 568 | H93: 0.0415390089 | I93: 926 | J93: 0.1451008177 | K93: 7.505206055e-05 | L93: 0.01095551343 | M93: 3 | N93: 0.023027148 | O93: 0.00594738016 | P93: 0.4304753123 | Q93: 0 | R93: 18 | S93: 0.001500000071 | T93: 182
A94: 2015-01-04T21:00:00 | B94: 0.1957332432 | C94: 138602 | D94: 0.04479370909 | E94: 12369 | F94: 0.1038793768 | G94: 568 | H94: 0.04130085513 | I94: 926 | J94: 0.1451802319 | K94: 7.462176787e-05 | L94: 0.01087143198 | M94: 3 | N94: 0.021829224 | O94: 0.00594738016 | P94: 0.4232220428 | Q94: 0 | R94: 18 | S94: 0.002500000119 | T94: 182
A95: 2015-01-04T22:00:00 | B95: 0.1816957673 | C95: 138602 | D95: 0.04333766451 | E95: 12369 | F95: 0.1039660711 | G95: 568 | H95: 0.04059014221 | I95: 926 | J95: 0.1445562133 | K95: 7.333766239e-05 | L95: 0.01080558194 | M95: 3 | N95: 0.011920176 | O95: 0.00594738016 | P95: 0.4073413846 | Q95: 0 | R95: 18 | S95: 0.001300000062 | T95: 182
A96: 2015-01-04T23:00:00 | B96: 0.1610293231 | C96: 138602 | D96: 0.0417074087 | E96: 12369 | F96: 0.1032121147 | G96: 568 | H96: 0.03964039336 | I96: 926 | J96: 0.142852508 | K96: 7.162167035e-05 | L96: 0.01078913188 | M96: 3 | N96: 0.006039552 | O96: 0.00594738016 | P96: 0.3834380424 | Q96: 2.255811467e-07 | R96: 18 | S96: 0.002000000095 | T96: 182
A97: 2015-01-05 | B97: 0.13729535 | C97: 138602 | D97: 0.04071872405 | E97: 12370 | F97: 0.1024068114 | G97: 568 | H97: 0.03900398971 | I97: 925 | J97: 0.1414108011 | K97: 7.049195996e-05 | L97: 0.01037302879 | M97: 3 | N97: 0.00575304 | O97: 0.00594738016 | P97: 0.3512387106 | Q97: 3.415955163e-08 | R97: 18 | S97: 0.001300000062 | T97: 182
A98: 2015-01-05T01:00:00 | B98: 0.1190040002 | C98: 138602 | D98: 0.03957372282 | E98: 12370 | F98: 0.102566209 | G98: 568 | H98: 0.03848580795 | I98: 926 | J98: 0.1410520169 | K98: 6.954383893e-05 | L98: 0.01029020514 | M98: 3 | N98: 0.005937576 | O98: 0.00594738016 | P98: 0.3293730402 | Q98: 4.885716294e-07 | R98: 18 | S98: 0.000800000038 | T98: 182
A99: 2015-01-05T02:00:00 | B99: 0.1103913472 | C99: 138602 | D99: 0.03968528973 | E99: 12370 | F99: 0.1028188819 | G99: 568 | H99: 0.0385862209 | I99: 926 | J99: 0.1414051028 | K99: 6.97252851e-05 | L99: 0.01015725349 | M99: 3 | N99: 0.005813904 | O99: 0.00594738016 | P99: 0.3196307685 | Q99: 3.729745993e-06 | R99: 18 | S99: 0.0003000000142 | T99: 182
A100: 2015-01-05T03:00:00 | B100: 0.1054927401 | C100: 138602 | D100: 0.03898208408 | E100: 12370 | F100: 0.1018855301 | G100: 568 | H100: 0.0380662834 | I100: 926 | J100: 0.1399518135 | K100: 6.878575825e-05 | L100: 0.01006046365 | M100: 3 | N100: 0.00631956 | O100: 0.00594738016 | P100: 0.3113430781 | Q100: 1.272847464e-05 | R100: 18 | S100: 0.0003000000142 | T100: 182
A101: 2015-01-05T04:00:00 | B101: 0.1027709704 | C101: 138602 | D101: 0.03878050001 | E101: 12370 | F101: 0.1031595215 | G101: 568 | H101: 0.03819691023 | I101: 926 | J101: 0.1413564318 | K101: 6.902180087e-05 | L101: 0.01002532277 | M101: 3 | N101: 0.006040908 | O101: 0.00594738016 | P101: 0.3103814463 | Q101: 2.678275621e-05 | R101: 18 | S101: 0.001300000062 | T101: 182
A102: 2015-01-05T05:00:00 | B102: 0.1047269138 | C102: 138655 | D102: 0.03919576431 | E102: 12370 | F102: 0.1058042419 | G102: 569 | H102: 0.03890975194 | I102: 926 | J102: 0.1447139938 | K102: 7.030990555e-05 | L102: 0.01013176178 | M102: 3 | N102: 0.005892456 | O102: 0.00594738016 | P102: 0.3157060006 | Q102: 5.453239282e-05 | R102: 18 | S102: 0.0003000000142 | T102: 182
A103: 2015-01-05T06:00:00 | B103: 0.1116862209 | C103: 138655 | D103: 0.04011375625 | E103: 12370 | F103: 0.1121977183 | G103: 569 | H103: 0.04059962877 | I103: 926 | J103: 0.1527973471 | K103: 7.336351228e-05 | L103: 0.01064386092 | M103: 3 | N103: 0.006025992 | O103: 0.00594738016 | P103: 0.3337982187 | Q103: 0.0001102308893 | R103: 18 | S103: 0 | T103: 182
A104: 2015-01-05T07:00:00 | B104: 0.130186237 | C104: 138655 | D104: 0.04317515313 | E104: 12370 | F104: 0.1255479702 | G104: 569 | H104: 0.04477982273 | I104: 926 | J104: 0.170327793 | K104: 8.091712102e-05 | L104: 0.01146225256 | M104: 3 | N104: 0.006100164 | O104: 0.00469843033 | P104: 0.3770419266 | Q104: 0.0002676790155 | R104: 18 | S104: 0.001800000027 | T104: 182
A105: 2015-01-05T08:00:00 | B105: 0.1469006895 | C105: 138655 | D105: 0.04908329039 | E105: 12370 | F105: 0.139574049 | G105: 569 | H105: 0.0504540815 | I105: 926 | J105: 0.1900281305 | K105: 9.117050424e-05 | L105: 0.01223128651 | M105: 3 | N105: 0.006259272 | O105: 0.00029736901 | P105: 0.4241522058 | Q105: 0.0001316548305 | R105: 18 | S105: 0.3624000155 | T105: 182
A106: 2015-01-05T09:00:00 | B106: 0.142768947 | C106: 138655 | D106: 0.05409821614 | E106: 12370 | F106: 0.1467375287 | G106: 569 | H106: 0.05427125911 | I106: 926 | J106: 0.2010087878 | K106: 9.806814261e-05 | L106: 0.01292156729 | M106: 3 | N106: 0.0062826 | O106: 5.94738e-05 | P106: 0.4342457745 | Q106: 57.82713516 | R106: 18 | S106: 28.21730103 | T106: 182
A107: 2015-01-05T10:00:00 | B107: 0.1366786565 | C107: 138655 | D107: 0.06019919494 | E107: 12370 | F107: 0.1480917742 | G107: 569 | H107: 0.05761797317 | I107: 926 | J107: 0.2057097474 | K107: 0.0001040674743 | L107: 0.01374906689 | M107: 3 | N107: 0.006172332 | O107: 5.94738e-05 | P107: 0.4383879928 | Q107: 301.5550314 | R107: 18 | S107: 114.6936042 | T107: 182
A108: 2015-01-05T11:00:00 | B108: 0.1360102233 | C108: 138655 | D108: 0.06332919641 | E108: 12370 | F108: 0.1504193457 | G108: 569 | H108: 0.05958317114 | I108: 926 | J108: 0.2100025169 | K108: 0.0001076436693 | L108: 0.01418864285 | M108: 3 | N108: 0.00624594 | O108: 5.94738e-05 | P108: 0.4448565458 | Q108: 645.9674104 | R108: 18 | S108: 220.749908 | T108: 182
A109: 2015-01-05T12:00:00 | B109: 0.1375378165 | C109: 138655 | D109: 0.06437122593 | E109: 12370 | F109: 0.1490642392 | G109: 569 | H109: 0.05977912144 | I109: 926 | J109: 0.2088433607 | K109: 0.0001081003362 | L109: 0.01434647531 | M109: 3 | N109: 0.006671568 | O109: 5.94738e-05 | P109: 0.4455925392 | Q109: 997.81135 | R109: 18 | S109: 343.5893127 | T109: 182
A110: 2015-01-05T13:00:00 | B110: 0.1384258952 | C110: 138655 | D110: 0.06437972917 | E110: 12370 | F110: 0.1487675233 | G110: 569 | H110: 0.05962658914 | I110: 926 | J110: 0.2083941124 | K110: 0.000107901515 | L110: 0.0144524892 | M110: 3 | N110: 0.001870944 | O110: 5.94738e-05 | P110: 0.4454773557 | Q110: 1238.230652 | R110: 18 | S110: 406.2552152 | T110: 182
A111: 2015-01-05T14:00:00 | B111: 0.1356579598 | C111: 138655 | D111: 0.06415518943 | E111: 12370 | F111: 0.14995818 | G111: 569 | H111: 0.05973792909 | I111: 926 | J111: 0.2096961091 | K111: 0.0001081181781 | L111: 0.01441589697 | M111: 3 | N111: 0.001012872 | O111: 5.94738e-05 | P111: 0.4414516941 | Q111: 1442.072813 | R111: 18 | S111: 466.8193168 | T111: 182
A112: 2015-01-05T15:00:00 | B112: 0.1352326702 | C112: 138655 | D112: 0.0636735843 | E112: 12369 | F112: 0.1471682157 | G112: 569 | H112: 0.05891859769 | I112: 926 | J112: 0.2060868134 | K112: 0.000106665415 | L112: 0.01456313748 | M112: 3 | N112: 0.001026252 | O112: 5.94738e-05 | P112: 0.4270722661 | Q112: 1106.934022 | R112: 18 | S112: 404.5696148 | T112: 182
A113: 2015-01-05T16:00:00 | B113: 0.1430774539 | C113: 138655 | D113: 0.06287750957 | E113: 12370 | F113: 0.1453098608 | G113: 569 | H113: 0.0580373058 | I113: 926 | J113: 0.2033471666 | K113: 0.0001050582921 | L113: 0.01447864523 | M113: 3 | N113: 0.001129824 | O113: 5.94738e-05 | P113: 0.4287716205 | Q113: 524.6281058 | R113: 18 | S113: 183.7613071 | T113: 182
A114: 2015-01-05T17:00:00 | B114: 0.1638404276 | C114: 138655 | D114: 0.06137322572 | E114: 12370 | F114: 0.1432842696 | G114: 569 | H114: 0.05682485841 | I114: 926 | J114: 0.200109128 | K114: 0.0001028532529 | L114: 0.01417238928 | M114: 3 | N114: 0.00102918 | O114: 0.00291421627 | P114: 0.4460688822 | Q114: 62.88541046 | R114: 18 | S114: 31.45280118 | T114: 182
A115: 2015-01-05T18:00:00 | B115: 0.1991456111 | C115: 138655 | D115: 0.06108553484 | E115: 12370 | F115: 0.1419294886 | G115: 569 | H115: 0.05642186719 | I115: 926 | J115: 0.1983513558 | K115: 0.000102123837 | L115: 0.01374897833 | M115: 3 | N115: 0.001025784 | O115: 0.00594738016 | P115: 0.4778648351 | Q115: 0.0003531613329 | R115: 18 | S115: 0.06740000262 | T115: 182
A116: 2015-01-05T19:00:00 | B116: 0.2042102445 | C116: 138655 | D116: 0.05773152871 | E116: 12370 | F116: 0.1386157107 | G116: 569 | H116: 0.05415686876 | I116: 926 | J116: 0.1927725795 | K116: 9.802417946e-05 | L116: 0.01328466473 | M116: 3 | N116: 0.000997356 | O116: 0.00594738016 | P116: 0.4780442086 | Q116: 0.0008104560657 | R116: 18 | S116: 0.001500000071 | T116: 182
A117: 2015-01-05T20:00:00 | B117: 0.2045329902 | C117: 138655 | D117: 0.0556010064 | E117: 12370 | F117: 0.1357779895 | G117: 569 | H117: 0.05256693058 | I117: 926 | J117: 0.18834492 | K117: 9.51631973e-05 | L117: 0.01298406769 | M117: 3 | N117: 0.001011576 | O117: 0.00594738016 | P117: 0.4711556478 | Q117: 0.001185638197 | R117: 18 | S117: 0.001500000071 | T117: 182
A118: 2015-01-05T21:00:00 | B118: 0.2012904039 | C118: 138655 | D118: 0.05351964098 | E118: 12370 | F118: 0.1336087584 | G118: 569 | H118: 0.05113237643 | I118: 926 | J118: 0.1847411348 | K118: 9.256618892e-05 | L118: 0.01275152768 | M118: 3 | N118: 0.000961608 | O118: 0.00594738016 | P118: 0.4610211232 | Q118: 0.001138976768 | R118: 18 | S118: 0.001000000047 | T118: 182
A119: 2015-01-05T22:00:00 | B119: 0.1919278865 | C119: 138655 | D119: 0.04991494126 | E119: 12370 | F119: 0.1292073562 | G119: 569 | H119: 0.04855291901 | I119: 926 | J119: 0.1777602752 | K119: 8.78965342e-05 | L119: 0.0124127634 | M119: 3 | N119: 0.00097734 | O119: 0.00594738016 | P119: 0.4400219421 | Q119: 0.001394265193 | R119: 18 | S119: 0.001500000071 | T119: 182
A120: 2015-01-05T23:00:00 | B120: 0.1729566602 | C120: 138655 | D120: 0.04692057612 | E120: 12370 | F120: 0.1219996048 | G120: 569 | H120: 0.04577366029 | I120: 926 | J120: 0.1677732651 | K120: 8.286517431e-05 | L120: 0.01197514261 | M120: 3 | N120: 0.001002324 | O120: 0.00594738016 | P120: 0.4048405708 | Q120: 0.001589599648 | R120: 18 | S120: 0.000800000038 | T120: 182
A121: 2015-01-06 | B121: 0.1481534807 | C121: 138655 | D121: 0.04462256098 | E121: 12370 | F121: 0.1160871275 | G121: 569 | H121: 0.04347974927 | I121: 924 | J121: 0.1595668767 | K121: 7.87963894e-05 | L121: 0.01119147119 | M121: 3 | N121: 0.001019868 | O121: 0.00594738016 | P121: 0.365854387 | Q121: 0.001481893603 | R121: 18 | S121: 0.0005000000237 | T121: 182
A122: 2015-01-06T01:00:00 | B122: 0.128026066 | C122: 138652 | D122: 0.04268289771 | E122: 12370 | F122: 0.1130560114 | G122: 566 | H122: 0.04189529333 | I122: 925 | J122: 0.1549513047 | K122: 7.590865663e-05 | L122: 0.01085076665 | M122: 3 | N122: 0.001004016 | O122: 0.00594738016 | P122: 0.3374012549 | Q122: 0.00141797281 | R122: 18 | S122: 0.0005000000237 | T122: 182
A123: 2015-01-06T02:00:00 | B123: 0.1189569999 | C123: 138652 | D123: 0.04211507191 | E123: 12370 | F123: 0.1123602064 | G123: 566 | H123: 0.04148299078 | I123: 925 | J123: 0.1538431972 | K123: 7.516161965e-05 | L123: 0.01057604732 | M123: 3 | N123: 0.001023456 | O123: 0.00594738016 | P123: 0.3234005847 | Q123: 0.001472096032 | R123: 18 | S123: 0.001300000062 | T123: 182
A124: 2015-01-06T03:00:00 | B124: 0.1146396884 | C124: 138652 | D124: 0.0416055942 | E124: 12370 | F124: 0.1115894444 | G124: 566 | H124: 0.04109018874 | I124: 925 | J124: 0.1526796331 | K124: 7.444991501e-05 | L124: 0.01037708736 | M124: 3 | N124: 0.0010218 | O124: 0.00594738016 | P124: 0.3195409487 | Q124: 0.001451333097 | R124: 18 | S124: 0 | T124: 182
A125: 2015-01-06T04:00:00 | B125: 0.1124031377 | C125: 138652 | D125: 0.04149720364 | E125: 12370 | F125: 0.1115715435 | G125: 566 | H125: 0.04103872867 | I125: 925 | J125: 0.1526102722 | K125: 7.435667626e-05 | L125: 0.01038083783 | M125: 3 | N125: 0.001022856 | O125: 0.00594738016 | P125: 0.3172529097 | Q125: 0.001508777001 | R125: 18 | S125: 0 | T125: 182
A126: 2015-01-06T05:00:00 | B126: 0.1122435041 | C126: 138660 | D126: 0.04140465283 | E126: 12372 | F126: 0.1125922252 | G126: 567 | H126: 0.0412056474 | I126: 925 | J126: 0.1537978726 | K126: 7.465911062e-05 | L126: 0.01048868761 | M126: 3 | N126: 0.001024788 | O126: 0.00594738016 | P126: 0.3194607944 | Q126: 0.001627481091 | R126: 18 | S126: 0.0003000000142 | T126: 182
A127: 2015-01-06T06:00:00 | B127: 0.1178508742 | C127: 138660 | D127: 0.04196084288 | E127: 12372 | F127: 0.1172104583 | G127: 567 | H127: 0.04236053797 | I127: 925 | J127: 0.1595709962 | K127: 7.675161756e-05 | L127: 0.01105054323 | M127: 3 | N127: 0.00111618 | O127: 0.00594738016 | P127: 0.3335614633 | Q127: 0.001414563769 | R127: 18 | S127: 0 | T127: 182
A128: 2015-01-06T07:00:00 | B128: 0.132397416 | C128: 138660 | D128: 0.0446382427 | E128: 12372 | F128: 0.1301001454 | G128: 567 | H128: 0.04623512697 | I128: 925 | J128: 0.1763352724 | K128: 8.377185354e-05 | L128: 0.01185763686 | M128: 3 | N128: 0.001099272 | O128: 0.00469843033 | P128: 0.3724604761 | Q128: 0.001471415904 | R128: 18 | S128: 0.0005000000237 | T128: 182
A129: 2015-01-06T08:00:00 | B129: 0.1476820419 | C129: 138660 | D129: 0.05057726885 | E129: 12372 | F129: 0.1441952384 | G129: 567 | H129: 0.05196039736 | I129: 925 | J129: 0.1961556357 | K129: 9.414527618e-05 | L129: 0.01262961905 | M129: 3 | N129: 0.001019688 | O129: 0.00029736901 | P129: 0.418218431 | Q129: 0.0009302821309 | R129: 18 | S129: 0.5488000218 | T129: 182
A130: 2015-01-06T09:00:00 | B130: 0.1432396144 | C130: 138660 | D130: 0.05543387398 | E130: 12372 | F130: 0.1505851361 | G130: 567 | H130: 0.05556463266 | I130: 925 | J130: =F130+H130 -> 0.2061497687 | K130: 0.0001006756675 | L130: 0.01331609692 | M130: 3 | N130: 0.000999408 | O130: 5.94738e-05 | P130: 0.4251230005 | Q130: 10.75700634 | R130: 18 | S130: 10.65340045 | T130: 182
A131: 2015-01-06T10:00:00 | B131: 0.1339875262 | C131: 138660 | D131: 0.06038188222 | E131: 12372 | F131: 0.1516838534 | G131: 567 | H131: 0.0581904442 | I131: 925 | J131: 0.2098742976 | K131: 0.0001054332861 | L131: 0.0140529588 | M131: 3 | N131: 0.000974292 | O131: 5.94738e-05 | P131: 0.4247471033 | Q131: 116.9779199 | R131: 18 | S131: 85.60350289 | T131: 182
A132: 2015-01-06T11:00:00 | B132: 0.1299574388 | C132: 138660 | D132: 0.06356298641 | E132: 12372 | F132: 0.1526531941 | G132: 567 | H132: 0.05990535734 | I132: 925 | J132: 0.2125585515 | K132: 0.0001086317545 | L132: 0.01445533313 | M132: 3 | N132: 0.001001256 | O132: 5.94738e-05 | P132: 0.4243282098 | Q132: 337.9982516 | R132: 18 | S132: 205.5295073 | T132: 182
A133: 2015-01-06T12:00:00 | B133: 0.1305426163 | C133: 138660 | D133: 0.06487889259 | E133: 12372 | F133: 0.1509030532 | G133: 567 | H133: 0.06028720804 | I133: 925 | J133: 0.2111902612 | K133: 0.0001092750382 | L133: 0.01465683597 | M133: 3 | N133: 0.000997548 | O133: 5.94738e-05 | P133: 0.425259714 | Q133: 447.4183328 | R133: 18 | S133: 255.7976099 | T133: 182
A134: 2015-01-06T13:00:00 | B134: 0.1303885438 | C134: 138660 | D134: 0.06427189498 | E134: 12372 | F134: 0.1500938724 | G134: 567 | H134: 0.0597817668 | I134: 925 | J134: 0.2098756392 | K134: 0.0001083330207 | L134: 0.01476290524 | M134: 3 | N134: 0.000977004 | O134: 5.94738e-05 | P134: 0.4228123698 | Q134: 544.2685337 | R134: 18 | S134: 318.2431115 | T134: 182
A135: 2015-01-06T14:00:00 | B135: 0.130447001 | C135: 138660 | D135: 0.06445729859 | E135: 12372 | F135: 0.1506022426 | G135: 567 | H135: 0.06003450907 | I135: 925 | J135: 0.2106367517 | K135: 0.0001088515253 | L135: 0.01480841544 | M135: 3 | N135: 0.000965208 | O135: 5.94738e-05 | P135: 0.4240065302 | Q135: 526.330732 | R135: 18 | S135: 262.0044095 | T135: 182
A136: 2015-01-06T15:00:00 | B136: 0.1340851779 | C136: 138660 | D136: 0.06452108328 | E136: 12372 | F136: 0.1512600201 | G136: 567 | H136: 0.06019164927 | I136: 925 | J136: 0.2114516693 | K136: 0.0001091554587 | L136: 0.01480420276 | M136: 3 | N136: 0.002319504 | O136: 5.94738e-05 | P136: 0.4287588379 | Q136: 218.5331125 | R136: 18 | S136: 115.4115046 | T136: 182
A137: 2015-01-06T16:00:00 | B137: 0.1404855359 | C137: 138660 | D137: 0.06367238571 | E137: 12372 | F137: 0.1492900978 | G137: 567 | H137: 0.0591324105 | I137: 925 | J137: 0.2084225083 | K137: 0.0001072370566 | L137: 0.01461088165 | M137: 3 | N137: 0.006004728 | O137: 5.94738e-05 | P137: 0.4315504989 | Q137: 131.4382193 | R137: 18 | S137: 74.14020292 | T137: 182
A138: 2015-01-06T17:00:00 | B138: 0.159147043 | C138: 138660 | D138: 0.0617316071 | E138: 12372 | F138: 0.1452292907 | G138: 567 | H138: 0.05731818274 | I138: 925 | J138: 0.2025474735 | K138: 0.0001039469414 | L138: 0.01423854126 | M138: 3 | N138: 0.001136076 | O138: 0.00291421627 | P138: 0.4455514118 | Q138: 13.4137752 | R138: 18 | S138: 10.65210041 | T138: 182
A139: 2015-01-06T18:00:00 | B139: 0.1920279025 | C139: 138660 | D139: 0.0615026641 | E139: 12372 | F139: 0.1428043613 | G139: 567 | H139: 0.05676361664 | I139: 925 | J139: 0.1995679779 | K139: 0.0001029412317 | L139: 0.01377849478 | M139: 3 | N139: 0.001132296 | O139: 0.00594738016 | P139: 0.4774461045 | Q139: 0.0001619361447 | R139: 18 | S139: 0.01020000025 | T139: 182
A140: 2015-01-06T19:00:00 | B140: 0.1976251073 | C140: 138660 | D140: 0.05768899355 | E140: 12372 | F140: 0.1393095028 | G140: 567 | H140: 0.05420143343 | I140: 925 | J140: 0.1935109362 | K140: 9.829469384e-05 | L140: 0.01341194089 | M140: 3 | N140: 0.001063872 | O140: 0.00594738016 | P140: 0.4755992127 | Q140: 0.0003063423374 | R140: 18 | S140: 0 | T140: 182
A141: 2015-01-06T20:00:00 | B141: 0.1980468145 | C141: 138660 | D141: 0.05623818557 | E141: 12372 | F141: 0.1364491622 | G141: 567 | H141: 0.05290929544 | I141: 925 | J141: 0.1893584577 | K141: 9.595139218e-05 | L141: 0.01308753107 | M141: 3 | N141: 0.001056468 | O141: 0.00594738016 | P141: 0.468493856 | Q141: 0.0003690276244 | R141: 18 | S141: 0.001500000071 | T141: 182
A142: 2015-01-06T21:00:00 | B142: 0.1970872103 | C142: 138660 | D142: 0.05365033549 | E142: 12372 | F142: 0.1340445486 | G142: 567 | H142: 0.05118187937 | I142: 925 | J142: 0.1852264279 | K142: 9.281871058e-05 | L142: 0.01272508041 | M142: 3 | N142: 0.001027596 | O142: 0.00594738016 | P142: 0.4602372524 | Q142: 0.0005539153026 | R142: 18 | S142: 0.001500000071 | T142: 182
A143: 2015-01-06T22:00:00 | B143: 0.1899785042 | C143: 138660 | D143: 0.04965710622 | E143: 12372 | F143: 0.1287016906 | G143: 567 | H143: 0.04826212744 | I143: 925 | J143: 0.1769638181 | K143: 8.751635357e-05 | L143: 0.01245562213 | M143: 3 | N143: 0.00100032 | O143: 0.00594738016 | P143: 0.4394359935 | Q143: 0.0004456344304 | R143: 18 | S143: 0.001000000047 | T143: 182
A144: 2015-01-06T23:00:00 | B144: 0.168955725 | C144: 138660 | D144: 0.04717238422 | E144: 12372 | F144: 0.1221461581 | G144: 567 | H144: 0.04582465508 | I144: 925 | J144: 0.1679708132 | K144: 8.309635172e-05 | L144: 0.01201617505 | M144: 3 | N144: 0.000993168 | O144: 0.00594738016 | P144: 0.4022572748 | Q144: 0.000722562454 | R144: 18 | S144: 0.001000000047 | T144: 182
A145: 2015-01-07 | B145: 0.1453525783 | C145: 138663 | D145: 0.04483471576 | E145: 12375 | F145: 0.1174684998 | G145: 567 | H145: 0.04375833977 | I145: 922 | J145: 0.1612268395 | K145: 7.939366416e-05 | L145: 0.01125435899 | M145: 3 | N145: 0.000988176 | O145: 0.00594738016 | P145: 0.366435179 | Q145: 0.0007417954439 | R145: 18 | S145: 0 | T145: 182
A146: 2015-01-07T01:00:00 | B146: 0.1272431257 | C146: 138663 | D146: 0.04287599578 | E146: 12374 | F146: 0.1133480863 | G146: 567 | H146: 0.04194625588 | I146: 922 | J146: 0.1552943422 | K146: 7.610587993e-05 | L146: 0.01087874377 | M146: 3 | N146: 0.001006116 | O146: 0.00594738016 | P146: 0.3382327906 | Q146: 0.0008424301304 | R146: 18 | S146: 0.000800000038 | T146: 182
A147: 2015-01-07T02:00:00 | B147: 0.1187237083 | C147: 138663 | D147: 0.04256576388 | E147: 12374 | F147: 0.1120457636 | G147: 567 | H147: 0.0415241655 | I147: 922 | J147: 0.1535699291 | K147: 7.53400533e-05 | L147: 0.01055470853 | M147: 3 | N147: 0.001001808 | O147: 0.00594738016 | P147: 0.3245272913 | Q147: 0.0009794584912 | R147: 18 | S147: 0 | T147: 182
A148: 2015-01-07T03:00:00 | B148: 0.1148835236 | C148: 138663 | D148: 0.04193676086 | E148: 12374 | F148: 0.1107097556 | G148: 567 | H148: 0.04096932939 | I148: 922 | J148: 0.151679085 | K148: 7.433337726e-05 | L148: 0.01043809636 | M148: 3 | N148: 0.000992724 | O148: 0.00594738016 | P148: 0.3178265234 | Q148: 0.001248764427 | R148: 18 | S148: 0 | T148: 182
A149: 2015-01-07T04:00:00 | B149: 0.1124354213 | C149: 138663 | D149: 0.0416305696 | E149: 12374 | F149: 0.1108091722 | G149: 567 | H149: 0.04083318252 | I149: 922 | J149: 0.1516423547 | K149: 7.408635695e-05 | L149: 0.01045690016 | M149: 3 | N149: 0.000988236 | O149: 0.00594738016 | P149: 0.3160877205 | Q149: 0.001525433516 | R149: 18 | S149: 0.001500000071 | T149: 182
A150: 2015-01-07T05:00:00 | B150: 0.1137164531 | C150: 138663 | D150: 0.04180500681 | E150: 12374 | F150: 0.1108621604 | G150: 567 | H150: 0.04095247827 | I150: 922 | J150: 0.1518146387 | K150: 7.430280316e-05 | L150: 0.01053724237 | M150: 3 | N150: 0.001019664 | O150: 0.00594738016 | P150: 0.3185397348 | Q150: 0.001722371991 | R150: 18 | S150: 0.001300000062 | T150: 182
A151: 2015-01-07T06:00:00 | B151: 0.1204662297 | C151: 138663 | D151: 0.04277705837 | E151: 12374 | F151: 0.1162099217 | G151: 567 | H151: 0.04252028116 | I151: 922 | J151: 0.1587302028 | K151: 7.714737214e-05 | L151: 0.01108195107 | M151: 3 | N151: 0.001017552 | O151: 0.00594738016 | P151: 0.33520075 | Q151: 0.0006885287403 | R151: 18 | S151: 0 | T151: 182
A152: 2015-01-07T07:00:00 | B152: 0.1349197507 | C152: 138663 | D152: 0.04530576829 | E152: 12374 | F152: 0.1284542053 | G152: 567 | H152: 0.04618583156 | I152: 922 | J152: 0.1746400369 | K152: 8.379802387e-05 | L152: 0.01186357124 | M152: 3 | N152: 0.001021236 | O152: 0.00469843033 | P152: 0.3722645295 | Q152: 0.0005629514453 | R152: 18 | S152: 0 | T152: 182
A153: 2015-01-07T08:00:00 | B153: 0.148719136 | C153: 138663 | D153: 0.05047598057 | E153: 12374 | F153: 0.1377221121 | G153: 567 | H153: 0.05060786157 | I153: 922 | J153: 0.1883299737 | K153: 9.18212068e-05 | L153: 0.01270783438 | M153: 3 | N153: 0.010659492 | O153: 0.00029736901 | P153: 0.4101780335 | Q153: 0.001143077934 | R153: 18 | S153: 0.003000000142 | T153: 182
A154: 2015-01-07T09:00:00 | B154: 0.1481963326 | C154: 138663 | D154: 0.05515846839 | E154: 12374 | F154: 0.1475648122 | G154: 567 | H154: 0.05476682301 | I154: 922 | J154: 0.2023316352 | K154: 9.936708697e-05 | L154: 0.01327634171 | M154: 3 | N154: 0.026967036 | O154: 5.94738e-05 | P154: 0.4269963987 | Q154: 0.001551902234 | R154: 18 | S154: 0.1036000038 | T154: 182
A155: 2015-01-07T10:00:00 | B155: 0.143871843 | C155: 138663 | D155: 0.06001091537 | E155: 12374 | F155: 0.1497614848 | G155: 567 | H155: 0.05757218854 | I155: 922 | J155: 0.2073336734 | K155: 0.0001044570481 | L155: 0.01388274783 | M155: 3 | N155: 0.000958248 | O155: 5.94738e-05 | P155: 0.4331810445 | Q155: 0 | R155: 18 | S155: 1.478100058 | T155: 182
A156: 2015-01-07T11:00:00 | B156: 0.1471167304 | C156: 138663 | D156: 0.06351833726 | E156: 12374 | F156: 0.1515061502 | G156: 567 | H156: 0.05964511635 | I156: 922 | J156: 0.2111512665 | K156: 0.0001082154692 | L156: 0.01444887137 | M156: 3 | N156: 0.001038912 | O156: 5.94738e-05 | P156: 0.4417229474 | Q156: 0.002217098139 | R156: 18 | S156: 2.530700088 | T156: 182
A157: 2015-01-07T12:00:00 | B157: 0.150495708 | C157: 138663 | D157: 0.064786657 | E157: 12374 | F157: 0.1517455507 | G157: 567 | H157: 0.06029506556 | I157: 922 | J157: 0.2120406162 | K157: 0.0001093966919 | L157: 0.01473358017 | M157: 3 | N157: 0.001013484 | O157: 5.94738e-05 | P157: 0.4478389407 | Q157: 0.07518659203 | R157: 18 | S157: 3.925200098 | T157: 182
A158: 2015-01-07T13:00:00 | B158: 0.153294512 | C158: 138663 | D158: 0.06474748918 | E158: 12374 | F158: 0.1514341857 | G158: 567 | H158: 0.06018342551 | I158: 922 | J158: 0.2116176112 | K158: 0.0001091948193 | L158: 0.01479901477 | M158: 3 | N158: 0.001029492 | O158: 5.94738e-05 | P158: 0.4495807146 | Q158: 0.01946255099 | R158: 18 | S158: 4.139500116 | T158: 182
A159: 2015-01-07T14:00:00 | B159: 0.1527943574 | C159: 138662 | D159: 0.06449206357 | E159: 12374 | F159: 0.1525600382 | G159: 567 | H159: 0.06027700178 | I159: 922 | J159: 0.21283704 | K159: 0.000109364601 | L159: 0.0148307645 | M159: 3 | N159: 0.001027836 | O159: 5.94738e-05 | P159: 0.4498837677 | Q159: 0 | R159: 18 | S159: 3.614700092 | T159: 182
A160: 2015-01-07T15:00:00 | B160: 0.1522068336 | C160: 138663 | D160: 0.06375181061 | E160: 12374 | F160: 0.1498035736 | G160: 567 | H160: 0.05938367223 | I160: 922 | J160: 0.2091872459 | K160: 0.0001077437734 | L160: 0.01477856216 | M160: 3 | N160: 0.001032792 | O160: 5.94738e-05 | P160: 0.4454497019 | Q160: 0 | R160: 18 | S160: 3.806900093 | T160: 182
A161: 2015-01-07T16:00:00 | B161: 0.156729394 | C161: 138663 | D161: 0.06270154835 | E161: 12374 | F161: 0.1464954129 | G161: 567 | H161: 0.05805289746 | I161: 922 | J161: 0.2045483104 | K161: 0.0001053292596 | L161: 0.01463254269 | M161: 3 | N161: 0.001221756 | O161: 5.94738e-05 | P161: 0.4439310686 | Q161: 0 | R161: 18 | S161: 1.389300045 | T161: 182
A162: 2015-01-07T17:00:00 | B162: 0.1761505134 | C162: 138663 | D162: 0.06109597821 | E162: 12374 | F162: 0.1426886615 | G162: 567 | H162: 0.05650657045 | I162: 922 | J162: 0.1991952319 | K162: 0.000102523655 | L162: 0.01430981039 | M162: 3 | N162: 0.001296492 | O162: 0.00291421627 | P162: 0.4582031574 | Q162: 0.0005822443709 | R162: 18 | S162: 0.1450000046 | T162: 182
A163: 2015-01-07T18:00:00 | B163: 0.2045317461 | C163: 138663 | D163: 0.05968952017 | E163: 12374 | F163: 0.1410477855 | G163: 567 | H163: 0.05548736361 | I163: 922 | J163: 0.1965351491 | K163: 0.0001006744397 | L163: 0.01386337918 | M163: 3 | N163: 0.001268712 | O163: 0.00594738016 | P163: 0.4871124425 | Q163: 0.001468735027 | R163: 18 | S163: 0.0005000000237 | T163: 182
A164: 2015-01-07T19:00:00 | B164: 0.2115057781 | C164: 138663 | D164: 0.05705929838 | E164: 12374 | F164: 0.1380753172 | G164: 567 | H164: 0.05364142861 | I164: 922 | J164: 0.1917167458 | K164: 9.732523625e-05 | L164: 0.01359320309 | M164: 3 | N164: 0.001290588 | O164: 0.00594738016 | P164: 0.4881547465 | Q164: 0.001272865142 | R164: 18 | S164: 0.0003000000142 | T164: 182
A165: 2015-01-07T20:00:00 | B165: 0.2130652912 | C165: 138663 | D165: 0.0553307497 | E165: 12374 | F165: 0.1349750794 | G165: 567 | H165: 0.05218404122 | I165: 922 | J165: 0.1871591206 | K165: 9.46810007e-05 | L165: 0.01324301306 | M165: 3 | N165: 0.001253376 | O165: 0.00594738016 | P165: 0.4821810184 | Q165: 0.001105714102 | R165: 18 | S165: 0.001000000047 | T165: 182
A166: 2015-01-07T21:00:00 | B166: 0.2107077531 | C166: 138663 | D166: 0.05338823749 | E166: 12374 | F166: 0.1327044097 | G166: 567 | H166: 0.05080666292 | I166: 922 | J166: 0.1835110726 | K166: 9.218193101e-05 | L166: 0.01295088464 | M166: 3 | N166: 0.001201812 | O166: 0.00594738016 | P166: 0.4732741833 | Q166: 0.001239523728 | R166: 18 | S166: 0.001500000071 | T166: 182
A167: 2015-01-07T22:00:00 | B167: 0.198214518 | C167: 138663 | D167: 0.05025278153 | E167: 12374 | F167: 0.1283859955 | G167: 567 | H167: 0.04845825447 | I167: 922 | J167: 0.1768442499 | K167: 8.792105629e-05 | L167: 0.01266961462 | M167: 3 | N167: 0.001074888 | O167: 0.00594738016 | P167: 0.4491372992 | Q167: 0.001380853129 | R167: 18 | S167: 0.001300000062 | T167: 182
A168: 2015-01-07T23:00:00 | B168: 0.1762364863 | C168: 138663 | D168: 0.04789636928 | E168: 12374 | F168: 0.1228204413 | G168: 567 | H168: 0.04626831509 | I168: 922 | J168: 0.1690887564 | K168: 8.394770262e-05 | L168: 0.01226040277 | M168: 3 | N168: 0.001033656 | O168: 0.00594738016 | P168: 0.4134513639 | Q168: 0.002065165012 | R168: 18 | S168: 0.001500000071 | T168: 182
A169: 2015-01-08 | B169: 0.1505825005 | C169: 138663 | D169: 0.0457251205 | E169: 12374 | F169: 0.1178659218 | G169: 568 | H169: 0.04426768033 | I169: 921 | J169: 0.1621336021 | K169: 8.034556817e-05 | L169: 0.01154262865 | M169: 3 | N169: 0.001023552 | O169: 0.00594738016 | P169: 0.3760596456 | Q169: 0.001949402489 | R169: 18 | S169: 0.002300000109 | T169: 182
A170: 2015-01-08T01:00:00 | B170: 0.1319924233 | C170: 138660 | D170: 0.04379215613 | E170: 12372 | F170: 0.1143817817 | G170: 568 | H170: 0.04264712205 | I170: 922 | J170: 0.1570289038 | K170: 7.733525316e-05 | L170: 0.01118729404 | M170: 3 | N170: 0.001040688 | O170: 0.00594738016 | P170: 0.3472324079 | Q170: 0.001949542406 | R170: 18 | S170: 0.0003000000142 | T170: 182
A171: 2015-01-08T02:00:00 | B171: 0.1234268814 | C171: 138660 | D171: 0.04343127008 | E171: 12372 | F171: 0.112260233 | G171: 568 | H171: 0.0420376618 | I171: 922 | J171: 0.1542978948 | K171: 7.623007277e-05 | L171: 0.01092983456 | M171: 3 | N171: 0.001008492 | O171: 0.00594738016 | P171: 0.3340823803 | Q171: 0.002028106974 | R171: 18 | S171: 0.0005000000237 | T171: 182
A172: 2015-01-08T03:00:00 | B172: 0.1190537004 | C172: 138660 | D172: 0.04285459023 | E172: 12372 | F172: 0.1121716556 | G172: 568 | H172: 0.0417355028 | I172: 922 | J172: 0.1539071584 | K172: 7.5682145e-05 | L172: 0.0107646203 | M172: 3 | N172: 0.000987768 | O172: 0.00594738016 | P172: 0.3279137726 | Q172: 0.002182713695 | R172: 18 | S172: 0.0003000000142 | T172: 182
A173: 2015-01-08T04:00:00 | B173: 0.1175339561 | C173: 138660 | D173: 0.04270860558 | E173: 12372 | F173: 0.1122890527 | G173: 568 | H173: 0.04168331668 | I173: 922 | J173: 0.1539723694 | K173: 7.558751194e-05 | L173: 0.01075763951 | M173: 3 | N173: 0.000973068 | O173: 0.00594738016 | P173: 0.3263011997 | Q173: 0.002282787973 | R173: 18 | S173: 0 | T173: 182
A174: 2015-01-08T05:00:00 | B174: 0.1187827738 | C174: 138670 | D174: 0.04288992276 | E174: 12373 | F174: 0.1131534291 | G174: 568 | H174: 0.04195003677 | I174: 922 | J174: 0.1551034659 | K174: 7.607117568e-05 | L174: 0.01082834109 | M174: 3 | N174: 0.001004124 | O174: 0.00594738016 | P174: 0.3293684269 | Q174: 0.002293737416 | R174: 18 | S174: 0.0003000000142 | T174: 182
A175: 2015-01-08T06:00:00 | B175: 0.1243948632 | C175: 138670 | D175: 0.0435638645 | E175: 12373 | F175: 0.1176994355 | G175: 568 | H175: 0.04322959284 | I175: 922 | J175: 0.1609290283 | K175: 7.839149151e-05 | L175: 0.01128187434 | M175: 3 | N175: 0.001017264 | O175: 0.00594738016 | P175: 0.3435142684 | Q175: 0.002137713018 | R175: 18 | S175: 0 | T175: 182
A176: 2015-01-08T07:00:00 | B176: 0.1389112408 | C176: 138670 | D176: 0.04580414725 | E176: 12373 | F176: 0.1299789944 | G176: 568 | H176: 0.04671689803 | I176: 922 | J176: 0.1766958925 | K176: 8.471528587e-05 | L176: 0.01194421811 | M176: 3 | N176: 0.000978432 | O176: 0.00469843033 | P176: 0.3793603552 | Q176: 0.001974065701 | R176: 18 | S176: 0.002800000133 | T176: 182
A177: 2015-01-08T08:00:00 | B177: 0.1544535182 | C177: 138670 | D177: 0.05107057735 | E177: 12373 | F177: 0.142987422 | G177: 568 | H177: 0.0519093165 | I177: 922 | J177: 0.1948967385 | K177: 9.413109113e-05 | L177: 0.01274009021 | M177: 3 | N177: 0.0010014 | O177: 0.00029736901 | P177: 0.4229496457 | Q177: 0.001914692926 | R177: 18 | S177: 0.4075000132 | T177: 182
A178: 2015-01-08T09:00:00 | B178: 0.1488641488 | C178: 138670 | D178: 0.05576784892 | E178: 12373 | F178: 0.1496526704 | G178: 568 | H178: 0.05549227028 | I178: 922 | J178: 0.2051449407 | K178: 0.0001006283323 | L178: 0.01336390811 | M178: 3 | N178: 0.001001952 | O178: 5.94738e-05 | P178: 0.4297638813 | Q178: 0.07602733387 | R178: 18 | S178: 5.013000207 | T178: 182
A179: 2015-01-08T10:00:00 | B179: 0.1410176189 | C179: 138670 | D179: 0.06158121114 | E179: 12373 | F179: 0.1545083495 | G179: 568 | H179: 0.05923965676 | I179: 922 | J179: 0.2137480062 | K179: 0.0001074237518 | L179: 0.01407887234 | M179: 3 | N179: 0.000969024 | O179: 5.94738e-05 | P179: 0.4365568493 | Q179: 5.350299156 | R179: 18 | S179: 26.00530109 | T179: 182
A180: 2015-01-08T11:00:00 | B180: 0.1378383649 | C180: 138670 | D180: 0.06484530961 | E180: 12373 | F180: 0.1555736442 | G180: 568 | H180: 0.06115418972 | I180: 922 | J180: 0.2167278339 | K180: 0.0001108955192 | L180: 0.01459251636 | M180: 3 | N180: 0.009526824 | O180: 5.94738e-05 | P180: 0.4394578547 | Q180: 30.45166999 | R180: 18 | S180: 53.93030231 | T180: 182
A181: 2015-01-08T12:00:00 | B181: 0.1378293901 | C181: 138670 | D181: 0.06617090873 | E181: 12373 | F181: 0.1544435987 | G181: 568 | H181: 0.06159679045 | I181: 922 | J181: 0.2160403892 | K181: 0.0001117454418 | L181: 0.01474851257 | M181: 3 | N181: 0.042696516 | O181: 5.94738e-05 | P181: 0.440630515 | Q181: 72.72697482 | R181: 18 | S181: 68.84990274 | T181: 182
A182: 2015-01-08T13:00:00 | B182: 0.1381721788 | C182: 138670 | D182: 0.06612434082 | E182: 12373 | F182: 0.1530060186 | G182: 568 | H182: 0.06126371936 | I182: 922 | J182: 0.2142697379 | K182: 0.0001111494511 | L182: 0.0148274949 | M182: 3 | N182: 0.039821268 | O182: 5.94738e-05 | P182: 0.4419152936 | Q182: 112.1242684 | R182: 18 | S182: 73.47470251 | T182: 182
A183: 2015-01-08T14:00:00 | B183: 0.1371338631 | C183: 138670 | D183: 0.06598111709 | E183: 12373 | F183: 0.1532382293 | G183: 568 | H183: 0.06120404898 | I183: 922 | J183: 0.2144422783 | K183: 0.0001110428022 | L183: 0.01483101706 | M183: 3 | N183: 0.038038452 | O183: 5.94738e-05 | P183: 0.4405775538 | Q183: 113.3608446 | R183: 18 | S183: 59.80220219 | T183: 182
A184: 2015-01-08T15:00:00 | B184: 0.1397045925 | C184: 138670 | D184: 0.06581619025 | E184: 12373 | F184: 0.1517921921 | G184: 568 | H184: 0.06080918517 | I184: 922 | J184: 0.2126013773 | K184: 0.0001103293901 | L184: 0.0149366456 | M184: 3 | N184: 0.04112004 | O184: 5.94738e-05 | P184: 0.4406160722 | Q184: 74.19904789 | R184: 18 | S184: 35.21160129 | T184: 182
A185: 2015-01-08T16:00:00 | B185: 0.1472477505 | C185: 138670 | D185: 0.0651136092 | E185: 12373 | F185: 0.1496253698 | G185: 568 | H185: 0.05986487262 | I185: 922 | J185: 0.2094902425 | K185: 0.0001086086152 | L185: 0.01475930438 | M185: 3 | N185: 0.039663456 | O185: 5.94738e-05 | P185: 0.4439983714 | Q185: 30.6501337 | R185: 18 | S185: 12.42970044 | T185: 182
A186: 2015-01-08T17:00:00 | B186: 0.1662235062 | C186: 138670 | D186: 0.06383111991 | E186: 12373 | F186: 0.1476656672 | G186: 568 | H186: 0.05877428985 | I186: 922 | J186: 0.206439957 | K186: 0.0001066062911 | L186: 0.01441131 | M186: 3 | N186: 0.0369639 | O186: 0.00291421627 | P186: 0.4601225157 | Q186: 1.79386429 | R186: 18 | S186: 1.87950007 | T186: 182
A187: 2015-01-08T18:00:00 | B187: 0.1958594709 | C187: 138670 | D187: 0.06317847404 | E187: 12373 | F187: 0.1449799341 | G187: 568 | H187: 0.0579569439 | I187: 922 | J187: 0.202936878 | K187: 0.0001051237683 | L187: 0.01399669751 | M187: 3 | N187: 0.039678816 | O187: 0.00594738016 | P187: 0.4899467173 | Q187: 0.0005691384695 | R187: 18 | S187: 0.005300000135 | T187: 182
A188: 2015-01-08T19:00:00 | B188: 0.2034655354 | C188: 138670 | D188: 0.06047374915 | E188: 12373 | F188: 0.1414199656 | G188: 568 | H188: 0.05596040461 | I188: 922 | J188: 0.1973803702 | K188: 0.000101502395 | L188: 0.01360703091 | M188: 3 | N188: 0.036836484 | O188: 0.00594738016 | P188: 0.4923939563 | Q188: 0.001055585606 | R188: 18 | S188: 0.0005000000237 | T188: 182
A189: 2015-01-08T20:00:00 | B189: 0.2051947066 | C189: 138670 | D189: 0.05808224576 | E189: 12373 | F189: 0.1383023148 | G189: 568 | H189: 0.05419437901 | I189: 922 | J189: 0.1924966938 | K189: 9.829913315e-05 | L189: 0.01324495792 | M189: 3 | N189: 0.03549582 | O189: 0.00594738016 | P189: 0.4863145475 | Q189: 0.001063014119 | R189: 18 | S189: 0 | T189: 182
A190: 2015-01-08T21:00:00 | B190: 0.2040066938 | C190: 138670 | D190: 0.05533051657 | E190: 12373 | F190: 0.13456065 | G190: 568 | H190: 0.05213648854 | I190: 922 | J190: 0.1866971385 | K190: 9.456647945e-05 | L190: 0.01286928113 | M190: 3 | N190: 0.037811844 | O190: 0.00594738016 | P190: 0.475485881 | Q190: 0.001117815315 | R190: 18 | S190: 0.001800000085 | T190: 182
A191: 2015-01-08T22:00:00 | B191: 0.194324157 | C191: 138670 | D191: 0.05134255519 | E191: 12373 | F191: 0.1303855571 | G191: 568 | H191: 0.04939815152 | I191: 922 | J191: 0.1797837086 | K191: 8.959961461e-05 | L191: 0.01266255322 | M191: 3 | N191: 0.040068432 | O191: 0.00594738016 | P191: 0.4528945041 | Q191: 0.001165187168 | R191: 18 | S191: 0.002500000119 | T191: 182
A192: 2015-01-08T23:00:00 | B192: 0.1735423488 | C192: 138670 | D192: 0.04821077179 | E192: 12373 | F192: 0.1224640514 | G192: 568 | H192: 0.04639085084 | I192: 922 | J192: 0.1688549022 | K192: 8.41448967e-05 | L192: 0.01209292914 | M192: 3 | N192: 0.039733584 | O192: 0.00594738016 | P192: 0.4152939051 | Q192: 0.0009176352105 | R192: 18 | S192: 0.0005000000237 | T192: 182
A193: 2015-01-09 | B193: 0.1489918196 | C193: 138673 | D193: 0.04584564888 | E193: 12374 | F193: 0.1173132781 | G193: 568 | H193: 0.04424225334 | I193: 921 | J193: 0.1615555315 | K193: 8.027851218e-05 | L193: 0.01135264117 | M193: 3 | N193: 0.042775344 | O193: 0.00594738016 | P193: 0.3775376363 | Q193: 0.0008376066835 | R193: 18 | S193: 0.002300000109 | T193: 182
A194: 2015-01-09T01:00:00 | B194: 0.1318257684 | C194: 138673 | D194: 0.04429644712 | E194: 12374 | F194: 0.1141966177 | G194: 567 | H194: 0.04284740393 | I194: 922 | J194: =F194+H194 -> 0.1570440216 | K194: 7.771757728e-05 | L194: 0.01103485916 | M194: 3 | N194: 0.037894644 | O194: 0.00594738016 | P194: 0.35169622 | Q194: 0.0007528511705 | R194: 18 | S194: 0.001500000071 | T194: 182
A195: 2015-01-09T02:00:00 | B195: 0.1218523651 | C195: 138673 | D195: 0.04341330692 | E195: 12374 | F195: 0.1115974442 | G195: 567 | H195: 0.04192149953 | I195: 922 | J195: 0.1535189437 | K195: 7.603815121e-05 | L195: 0.01079164043 | M195: 3 | N195: 0.037964808 | O195: 0.00594738016 | P195: 0.335561647 | Q195: 0.0007508149938 | R195: 18 | S195: 0.001000000047 | T195: 182
A196: 2015-01-09T03:00:00 | B196: 0.1163521914 | C196: 138673 | D196: 0.04256413379 | E196: 12374 | F196: 0.110240876 | G196: 567 | H196: 0.04125383585 | I196: 922 | J196: 0.1514947118 | K196: 7.482712794e-05 | L196: 0.01053106142 | M196: 3 | N196: 0.040051944 | O196: 0.00594738016 | P196: 0.3271216378 | Q196: 0.0007202355737 | R196: 18 | S196: 0.000800000038 | T196: 182
A197: 2015-01-09T04:00:00 | B197: 0.1138315843 | C197: 138673 | D197: 0.04212088 | E197: 12374 | F197: 0.1092554441 | G197: 567 | H197: 0.04085467712 | I197: 922 | J197: 0.1501101212 | K197: 7.410312493e-05 | L197: 0.01052753394 | M197: 3 | N197: 0.043384008 | O197: 0.00594738016 | P197: 0.3232276406 | Q197: 0.0006176590105 | R197: 18 | S197: 0 | T197: 182
A198: 2015-01-09T05:00:00 | B198: 0.1142248823 | C198: 138673 | D198: 0.04206829473 | E198: 12376 | F198: 0.1105234059 | G198: 567 | H198: 0.04108317477 | I198: 922 | J198: 0.1516065806 | K198: 7.451757907e-05 | L198: 0.01061335785 | M198: 3 | N198: 0.039120012 | O198: 0.00594738016 | P198: 0.3259576157 | Q198: 0.0004885275921 | R198: 18 | S198: 0.0005000000237 | T198: 182
A199: 2015-01-09T06:00:00 | B199: 0.120239688 | C199: 138673 | D199: 0.04295526022 | E199: 12376 | F199: 0.1148876712 | G199: 567 | H199: 0.04244715404 | I199: 922 | J199: 0.1573348252 | K199: 7.69915951e-05 | L199: 0.01105228999 | M199: 3 | N199: 0.03980538 | O199: 0.00594738016 | P199: 0.3398027458 | Q199: 0.0006706236127 | R199: 18 | S199: 0.0005000000237 | T199: 182
A200: 2015-01-09T07:00:00 | B200: 0.1349995687 | C200: 138673 | D200: 0.04544997998 | E200: 12376 | F200: 0.1263672667 | G200: 567 | H200: 0.04596023569 | I200: 922 | J200: 0.1723275024 | K200: 8.336370098e-05 | L200: 0.01183481743 | M200: 3 | N200: 0.040242252 | O200: 0.00469843033 | P200: 0.376523714 | Q200: 0.001208011396 | R200: 18 | S200: 0.006300000474 | T200: 182
... 4300 more rows

Sheet Profile kWh
A1: Time | B1: Month | C1: Day | D1: Year | E1: Hour | F1: Residential | G1: Residential Count | H1: GS<50 | I1: GS<50 Count | J1: GS>50 Non-demand | K1: GS>50 Non-demand Count | L1: GS>50 Demand | M1: GS>50 Demand Count | N1: GS>50 Total | O1: GS>50 Demand Load Profile | P1: Large User | Q1: Large User Count | R1: CoGen | S1: Street Lighting | T1: System Total Load | U1: FIT Generation | V1: FIT Count | W1: MicroFIT Generation | X1: MicroFIT Count
A2: 2015-01-01T01:00:00 | B2: 1 | C2: 1 | D2: 2015 | E2: 1 | F2: 139550.9486 | G2: 138600 | H2: 41279.77097 | I2: 12369 | J2: 87634.29133 | K2: 569 | L2: 36629.23096 | M2: 925 | N2: 124263.5223 | O2: 6.613610126e-05 | P2: 9877.339981 | Q2: 3 | R2: 5791.464 | S2: 5947.38016 | T2: 335135.1087 | U2: 9.713710369e-05 | V2: 18 | W2: 0.001000000047 | X2: 182
A3: 2015-01-01T02:00:00 | B3: 1 | C3: 1 | D3: 2015 | E3: 2 | F3: 127869.1724 | G3: 138600 | H3: 40475.66327 | I3: 12369 | J3: 86223.70081 | K3: 569 | L3: 35974.08934 | M3: 925 | N3: 122197.7901 | O3: 6.495320684e-05 | P3: 9813.64653 | Q3: 3 | R3: 5789.004 | S3: 5947.38016 | T3: 319859.6483 | U3: 0.0001025453812 | V3: 18 | W3: 0.0005000000237 | X3: 182
A4: 2015-01-01T03:00:00 | B4: 1 | C4: 1 | D4: 2015 | E4: 3 | F4: 117628.0295 | G4: 138600 | H4: 39483.57364 | I4: 12369 | J4: 84778.1325 | K4: 569 | L4: 35213.61602 | M4: 925 | N4: 119991.7485 | O4: 6.358013023e-05 | P4: 9717.893753 | Q4: 3 | R4: 5854.488 | S4: 5947.38016 | T4: 305425.9134 | U4: 0.0001107858056 | V4: 18 | W4: 0.002000000095 | X4: 182
A5: 2015-01-01T04:00:00 | B5: 1 | C5: 1 | D5: 2015 | E5: 4 | F5: 110713.8471 | G5: 138600 | H5: 38961.5051 | I5: 12369 | J5: 85017.14354 | K5: 569 | L5: 34994.32981 | M5: 925 | N5: 120011.4734 | O5: 6.318419687e-05 | P5: 9725.157303 | Q5: 3 | R5: 5992.692 | S5: 5947.38016 | T5: 297217.6066 | U5: 0.0001746301468 | V5: 18 | W5: 0.0005000000237 | X5: 182
A6: 2015-01-01T05:00:00 | B6: 1 | C6: 1 | D6: 2015 | E6: 5 | F6: 108156.112 | G6: 138600 | H6: 38622.35613 | I6: 12369 | J6: 85153.13275 | K6: 569 | L6: 34851.49818 | M6: 925 | N6: 120004.6309 | O6: 6.292630645e-05 | P6: 9855.039566 | Q6: 3 | R6: 5935.644 | S6: 5947.38016 | T6: 295150.0126 | U6: 0.0001885677293 | V6: 18 | W6: 0.001000000047 | X6: 182
A7: 2015-01-01T06:00:00 | B7: 1 | C7: 1 | D7: 2015 | E7: 6 | F7: 108596.1029 | G7: 138600 | H7: 38627.54095 | I7: 12369 | J7: 86400.35559 | K7: 569 | L7: 35077.5662 | M7: 925 | N7: 121477.9218 | O7: 6.333448476e-05 | P7: 10280.9617 | Q7: 3 | R7: 6093.528 | S7: 5947.38016 | T7: 297204.2143 | U7: 0.0001184268149 | V7: 18 | W7: 0.0005000000237 | X7: 182
A8: 2015-01-01T07:00:00 | B8: 1 | C8: 1 | D8: 2015 | E8: 7 | F8: 110692.3252 | G8: 138600 | H8: 39091.182 | I8: 12369 | J8: 90958.0644 | K8: 569 | L8: 36133.27412 | M8: 925 | N8: 127091.3385 | O8: 6.524062376e-05 | P8: 10702.06277 | Q8: 3 | R8: 5979.828 | S8: 4698.43033 | T8: 306076.6606 | U8: 0.0001029408691 | V8: 18 | W8: 0.001500000071 | X8: 182
A9: 2015-01-01T08:00:00 | B9: 1 | C9: 1 | D9: 2015 | E9: 8 | F9: 114718.8766 | G9: 138600 | H9: 39251.52338 | I9: 12369 | J9: 92770.08578 | K9: 569 | L9: 36541.52865 | M9: 925 | N9: 129311.6144 | O9: 6.597774988e-05 | P9: 11044.13638 | Q9: 3 | R9: 6073.128 | S9: 297.36901 | T9: 313669.5732 | U9: 9.884370911e-05 | V9: 18 | W9: 0.2125000078 | X9: 182
A10: 2015-01-01T09:00:00 | B10: 1 | C10: 1 | D10: 2015 | E10: 9 | F10: 124704.4115 | G10: 138600 | H10: 37577.46053 | I10: 12369 | J10: 91827.91406 | K10: 569 | L10: 35531.06398 | M10: 925 | N10: 127358.978 | O10: 6.415330008e-05 | P10: 10922.41795 | Q10: 3 | R10: 6017.448 | S10: 59.4738 | T10: 317477.6496 | U10: 33.50778654 | V10: 18 | W10: 15.41250063 | X10: 182
A11: 2015-01-01T10:00:00 | B11: 1 | C11: 1 | D11: 2015 | E11: 10 | F11: 138671.7126 | G11: 138600 | H11: 37275.16666 | I11: 12369 | J11: 92112.86859 | K11: 569 | L11: 35429.67475 | M11: 925 | N11: 127542.5433 | O11: 6.397023621e-05 | P11: 10916.85712 | Q11: 3 | R11: 6241.524 | S11: 59.4738 | T11: 331530.297 | U11: 233.1607856 | V11: 18 | W11: 85.3064033 | X11: 182
A12: 2015-01-01T11:00:00 | B12: 1 | C12: 1 | D12: 2015 | E12: 11 | F12: 150391.5122 | G12: 138600 | H12: 37807.6062 | I12: 12369 | J12: 93039.60942 | K12: 569 | L12: 35862.80598 | M12: 925 | N12: 128902.4154 | O12: 6.47522786e-05 | P12: 10955.29893 | Q12: 3 | R12: 6577.164 | S12: 59.4738 | T12: 345392.9166 | U12: 825.4270853 | V12: 18 | W12: 314.6869125 | X12: 182
A13: 2015-01-01T12:00:00 | B13: 1 | C13: 1 | D13: 2015 | E13: 12 | F13: 158280.398 | G13: 138600 | H13: 38542.5388 | I13: 12369 | J13: 93557.09908 | K13: 569 | L13: 36323.44509 | M13: 925 | N13: 129880.5442 | O13: 6.558398798e-05 | P13: 10897.36928 | Q13: 3 | R13: 6065.304 | S13: 59.4738 | T13: 354043.0864 | U13: 1363.342969 | V13: 18 | W13: 510.3670192 | X13: 182
A14: 2015-01-01T13:00:00 | B14: 1 | C14: 1 | D14: 2015 | E14: 13 | F14: 165739.5577 | G14: 138600 | H14: 38967.33836 | I14: 12369 | J14: 93813.86533 | K14: 569 | L14: 36580.83861 | M14: 925 | N14: 130394.7039 | O14: 6.604872619e-05 | P14: 10882.09598 | Q14: 3 | R14: 6092.04 | S14: 59.4738 | T14: 363421.3969 | U14: 850.254108 | V14: 18 | W14: 331.3020128 | X14: 182
A15: 2015-01-01T14:00:00 | B15: 1 | C15: 1 | D15: 2015 | E15: 14 | F15: 170839.719 | G15: 138600 | H15: 39126.98226 | I15: 12369 | J15: 94035.18701 | K15: 569 | L15: 36701.72398 | M15: 925 | N15: 130736.911 | O15: 6.626699142e-05 | P15: 10858.15134 | Q15: 3 | R15: 6206.712 | S15: 59.4738 | T15: 371080.1644 | U15: 454.7076954 | V15: 18 | W15: 168.7733063 | X15: 182
A16: 2015-01-01T15:00:00 | B16: 1 | C16: 1 | D16: 2015 | E16: 15 | F16: 171371.3873 | G16: 138600 | H16: 39185.05061 | I16: 12369 | J16: 93615.92371 | K16: 569 | L16: 36653.39207 | M16: 925 | N16: 130269.3158 | O16: 6.617972548e-05 | P16: 10885.32718 | Q16: 3 | R16: 6088.86 | S16: 59.4738 | T16: 371694.3783 | U16: 378.73392 | V16: 18 | W16: 144.7477054 | X16: 182
A17: 2015-01-01T16:00:00 | B17: 1 | C17: 1 | D17: 2015 | E17: 16 | F17: 173154.5507 | G17: 138600 | H17: 39120.51952 | I17: 12369 | J17: 93274.23285 | K17: 569 | L17: 36560.42071 | M17: 925 | N17: 129834.6536 | O17: 6.601186055e-05 | P17: 10949.55644 | Q17: 3 | R17: 6229.344 | S17: 59.4738 | T17: 373612.1587 | U17: 187.4003707 | V17: 18 | W17: 72.26220273 | X17: 182
A18: 2015-01-01T17:00:00 | B18: 1 | C18: 1 | D18: 2015 | E18: 17 | F18: 183472.9244 | G18: 138600 | H18: 40714.61475 | I18: 12369 | J18: 94582.25187 | K18: 569 | L18: 37593.82487 | M18: 925 | N18: 132176.0767 | O18: 6.787772888e-05 | P18: 11022.25615 | Q18: 3 | R18: 6200.424 | S18: 2914.21627 | T18: 389461.5124 | U18: 34.91492312 | V18: 18 | W18: 16.02860061 | X18: 182
A19: 2015-01-01T18:00:00 | B19: 1 | C19: 1 | D19: 2015 | E19: 18 | F19: 198973.5937 | G19: 138600 | H19: 44608.37907 | I19: 12369 | J19: 95899.73239 | K19: 569 | L19: 39783.30698 | M19: 925 | N19: 135683.0394 | O19: 7.183095986e-05 | P19: 11059.14424 | Q19: 3 | R19: 6455.88 | S19: 5947.38016 | T19: 418117.9837 | U19: 0 | V19: 18 | W19: 0.0105000005 | X19: 182
A20: 2015-01-01T19:00:00 | B20: 1 | C20: 1 | D20: 2015 | E20: 19 | F20: 194883.4606 | G20: 138600 | H20: 44492.17292 | I20: 12369 | J20: 94335.10916 | K20: 569 | L20: 39443.42333 | M20: 925 | N20: 133778.5325 | O20: 7.121728115e-05 | P20: 10894.5079 | Q20: 3 | R20: 6243.204 | S20: 5947.38016 | T20: 411671.0086 | U20: 0 | V20: 18 | W20: 0.001000000047 | X20: 182
A21: 2015-01-01T20:00:00 | B21: 1 | C21: 1 | D21: 2015 | E21: 20 | F21: 189338.156 | G21: 138600 | H21: 43957.04647 | I21: 12369 | J21: 92726.43389 | K21: 569 | L21: 38885.37704 | M21: 925 | N21: 131611.8109 | O21: 7.020969773e-05 | P21: 10769.09584 | Q21: 3 | R21: 6249.132 | S21: 5947.38016 | T21: 402218.7236 | U21: 0 | V21: 18 | W21: 0.002000000095 | X21: 182
A22: 2015-01-01T21:00:00 | B22: 1 | C22: 1 | D22: 2015 | E22: 21 | F22: 183594.6554 | G22: 138600 | H22: 43290.08208 | I22: 12369 | J22: 91969.80023 | K22: 569 | L22: 38415.38728 | M22: 925 | N22: 130385.1875 | O22: 6.936110523e-05 | P22: 10654.57034 | Q22: 3 | R22: 6701.844 | S22: 5947.38016 | T22: 393485.0049 | U22: 0 | V22: 18 | W22: 0.001000000047 | X22: 182
A23: 2015-01-01T22:00:00 | B23: 1 | C23: 1 | D23: 2015 | E23: 22 | F23: 173974.4346 | G23: 138600 | H23: 42195.32163 | I23: 12369 | J23: 91434.98187 | K23: 569 | L23: 37771.45899 | M23: 925 | N23: 129206.4409 | O23: 6.819845711e-05 | P23: 10595.67488 | Q23: 3 | R23: 6393.12 | S23: 5947.38016 | T23: 380723.3205 | U23: 0 | V23: 18 | W23: 0.001000000047 | X23: 182
A24: 2015-01-01T23:00:00 | B24: 1 | C24: 1 | D24: 2015 | E24: 23 | F24: 157463.7927 | G24: 138600 | H24: 41018.81092 | I24: 12369 | J24: 89748.46033 | K24: 569 | L24: 36880.33238 | M24: 925 | N24: 126628.7927 | O24: 6.658947875e-05 | P24: 10392.989 | Q24: 3 | R24: 6350.088 | S24: 5947.38016 | T24: 358970.1924 | U24: 0 | V24: 18 | W24: 0.0005000000237 | X24: 182
A25: 2015-01-02 | B25: 1 | C25: 1 | D25: 2015 | E25: 24 | F25: 136088.9499 | G25: 138600 | H25: 39609.35618 | I25: 12369 | J25: 88236.02959 | K25: 569 | L25: 35910.84972 | M25: 925 | N25: 124146.8793 | O25: 6.483902421e-05 | P25: 9899.099472 | Q25: 3 | R25: 6982.416 | S25: 5947.38016 | T25: 331677.7241 | U25: 1.582753519e-07 | V25: 18 | W25: 0.001500000071 | X25: 182
A26: 2015-01-02T01:00:00 | B26: 1 | C26: 2 | D26: 2015 | E26: 1 | F26: 118241.155 | G26: 138599 | H26: 38475.3475 | I26: 12368 | J26: 87524.54836 | K26: 567 | L26: 35236.86698 | M26: 925 | N26: 122761.4153 | O26: 6.362211113e-05 | P26: 9742.436478 | Q26: 3 | R26: 5691.552 | S26: 5947.38016 | T26: 309859.3964 | U26: 0 | V26: 18 | W26: 0.0005000000237 | X26: 182
A27: 2015-01-02T02:00:00 | B27: 1 | C27: 2 | D27: 2015 | E27: 2 | F27: 106426.7182 | G27: 138599 | H27: 37657.63841 | I27: 12368 | J27: 86489.40658 | K27: 567 | L27: 34639.72943 | M27: 925 | N27: 121129.136 | O27: 6.254394627e-05 | P27: 9764.336899 | Q27: 3 | R27: 5613.528 | S27: 5947.38016 | T27: 295459.6572 | U27: 0 | V27: 18 | W27: 0.0005000000237 | X27: 182
A28: 2015-01-02T03:00:00 | B28: 1 | C28: 2 | D28: 2015 | E28: 3 | F28: 100576.7534 | G28: 138599 | H28: 37449.90932 | I28: 12368 | J28: 85640.00829 | K28: 567 | L28: 34381.22351 | M28: 925 | N28: 120021.2318 | O28: 6.207719955e-05 | P28: 9654.680618 | Q28: 3 | R28: 5726.028 | S28: 5947.38016 | T28: 286673.0746 | U28: 9.646319299e-08 | V28: 18 | W28: 0 | X28: 182
A29: 2015-01-02T04:00:00 | B29: 1 | C29: 2 | D29: 2015 | E29: 4 | F29: 97142.6672 | G29: 138599 | H29: 37076.45358 | I29: 12368 | J29: 85705.59112 | K29: 567 | L29: 34206.10041 | M29: 925 | N29: 119911.6915 | O29: 6.17610051e-05 | P29: 9682.119965 | Q29: 3 | R29: 5842.824 | S29: 5947.38016 | T29: 282872.6019 | U29: 9.643042276e-08 | V29: 18 | W29: 0 | X29: 182
A30: 2015-01-02T05:00:00 | B30: 1 | C30: 2 | D30: 2015 | E30: 5 | F30: 96557.2642 | G30: 138602 | H30: 37227.49941 | I30: 12368 | J30: 86672.02244 | K30: 567 | L30: 34460.63896 | M30: 925 | N30: 121132.6614 | O30: 6.222058853e-05 | P30: 9833.384521 | Q30: 3 | R30: 5809.584 | S30: 5947.38016 | T30: 283490.1137 | U30: 9.318083727e-08 | V30: 18 | W30: 0.0005000000237 | X30: 182
A31: 2015-01-02T06:00:00 | B31: 1 | C31: 2 | D31: 2015 | E31: 6 | F31: 99384.9246 | G31: 138602 | H31: 37744.89237 | I31: 12368 | J31: 89584.2577 | K31: 567 | L31: 35360.58708 | M31: 925 | N31: 124944.8448 | O31: 6.384549461e-05 | P31: 10199.09203 | Q31: 3 | R31: 5967.6 | S31: 5947.38016 | T31: 292495.9565 | U31: 1.876101052e-07 | V31: 18 | W31: 0 | X31: 182
A32: 2015-01-02T07:00:00 | B32: 1 | C32: 2 | D32: 2015 | E32: 7 | F32: 106738.623 | G32: 138602 | H32: 39818.527 | I32: 12368 | J32: 98729.20897 | K32: 567 | L32: 38199.40094 | M32: 925 | N32: 136928.6099 | O32: 6.897112995e-05 | P32: 10677.13918 | Q32: 3 | R32: 6154.692 | S32: 4698.43033 | T32: 316518.3419 | U32: 1.269826175e-06 | V32: 18 | W32: 0.001500000013 | X32: 182
A33: 2015-01-02T08:00:00 | B33: 1 | C33: 2 | D33: 2015 | E33: 8 | F33: 114478.9529 | G33: 138602 | H33: 43322.62342 | I33: 12368 | J33: 107555.6026 | K33: 567 | L33: 41710.91453 | M33: 925 | N33: 149266.5171 | O33: 7.531136185e-05 | P33: 11194.63254 | Q33: 3 | R33: 6106.824 | S33: 297.36901 | T33: 342521.0437 | U33: 0.006102620561 | V33: 18 | W33: 4.080100131 | X33: 182
A34: 2015-01-02T09:00:00 | B34: 1 | C34: 2 | D34: 2015 | E34: 9 | F34: 121343.428 | G34: 138602 | H34: 45363.21187 | I34: 12368 | J34: 110242.351 | K34: 567 | L34: 43307.43311 | M34: 925 | N34: 153549.7841 | O34: 7.81813324e-05 | P34: 11221.51608 | Q34: 3 | R34: 6124.524 | S34: 59.4738 | T34: 352221.6364 | U34: 123.3758097 | V34: 18 | W34: 115.0436045 | X34: 182
A35: 2015-01-02T10:00:00 | B35: 1 | C35: 2 | D35: 2015 | E35: 10 | F35: 123830.1672 | G35: 138602 | H35: 48839.8018 | I35: 12368 | J35: 111829.3238 | K35: 567 | L35: 45308.54014 | M35: 925 | N35: 157137.864 | O35: 8.179785163e-05 | P35: 11297.92526 | Q35: 3 | R35: 6157.38 | S35: 59.4738 | T35: 359845.7184 | U35: 692.8472522 | V35: 18 | W35: 406.781116 | X35: 182
A36: 2015-01-02T11:00:00 | B36: 1 | C36: 2 | D36: 2015 | E36: 11 | F36: 127290.5631 | G36: 138602 | H36: 52530.6435 | I36: 12368 | J36: 113825.4119 | K36: 567 | L36: 47568.43295 | M36: 925 | N36: 161393.8449 | O36: 8.586737233e-05 | P36: 11370.16524 | Q36: 3 | R36: 6223.008 | S36: 59.4738 | T36: 370004.3492 | U36: 1108.580588 | V36: 18 | W36: 471.5457184 | X36: 182
A37: 2015-01-02T12:00:00 | B37: 1 | C37: 2 | D37: 2015 | E37: 12 | F37: 132789.0194 | G37: 138602 | H37: 53918.20074 | I37: 12368 | J37: 114025.2672 | K37: 567 | L37: 48254.04592 | M37: 925 | N37: 162279.3132 | O37: 8.713312746e-05 | P37: 11366.47769 | Q37: 3 | R37: 6128.424 | S37: 59.4738 | T37: 379340.7229 | U37: 776.066361 | V37: 18 | W37: 325.7651127 | X37: 182
A38: 2015-01-02T13:00:00 | B38: 1 | C38: 2 | D38: 2015 | E38: 13 | F38: 136183.792 | G38: 138602 | H38: 53805.26207 | I38: 12368 | J38: 113177.7659 | K38: 567 | L38: 47919.68764 | M38: 925 | N38: 161097.4536 | O38: 8.65683459e-05 | P38: 11403.21745 | Q38: 3 | R38: 5986.584 | S38: 59.4738 | T38: 380765.0704 | U38: 928.567049 | V38: 18 | W38: 395.325415 | X38: 182
A39: 2015-01-02T14:00:00 | B39: 1 | C39: 2 | D39: 2015 | E39: 14 | F39: 132708.2072 | G39: 138602 | H39: 53499.02971 | I39: 12368 | J39: 112676.2528 | K39: 567 | L39: 47659.36361 | M39: 925 | N39: 160335.6164 | O39: 8.615924548e-05 | P39: 11388.44 | Q39: 3 | R39: 6166.044 | S39: 59.4738 | T39: 375037.6787 | U39: 1463.489221 | V39: 18 | W39: 529.9924196 | X39: 182
A40: 2015-01-02T15:00:00 | B40: 1 | C40: 2 | D40: 2015 | E40: 15 | F40: 130263.4357 | G40: 138602 | H40: 52863.49559 | I40: 12368 | J40: 111954.7339 | K40: 567 | L40: 47198.85806 | M40: 925 | N40: 159153.592 | O40: 8.524298024e-05 | P40: 11466.263 | Q40: 3 | R40: 6010.272 | S40: 59.4738 | T40: 370678.7781 | U40: 1189.324861 | V40: 18 | W40: 486.6229183 | X40: 182
A41: 2015-01-02T16:00:00 | B41: 1 | C41: 2 | D41: 2015 | E41: 16 | F41: 134404.2544 | G41: 138602 | H41: 51971.06845 | I41: 12368 | J41: 110125.3488 | K41: 567 | L41: 46278.59594 | M41: 925 | N41: 156403.9447 | O41: 8.361912943e-05 | P41: 11467.26727 | Q41: 3 | R41: 5496.996 | S41: 59.4738 | T41: 372237.9769 | U41: 368.3866392 | V41: 18 | W41: 191.8733072 | X41: 182
A42: 2015-01-02T17:00:00 | B42: 1 | C42: 2 | D42: 2015 | E42: 17 | F42: 151243.4631 | G42: 138602 | H42: 52787.34875 | I42: 12368 | J42: 110992.405 | K42: 567 | L42: 46780.50591 | M42: 925 | N42: 157772.9109 | O42: 8.453386263e-05 | P42: 11500.52776 | Q42: 3 | R42: 1016.112 | S42: 2914.21627 | T42: 390188.1178 | U42: 34.45043843 | V42: 18 | W42: 22.46780087 | X42: 182
A43: 2015-01-02T18:00:00 | B43: 1 | C43: 2 | D43: 2015 | E43: 18 | F43: 175137.1384 | G43: 138602 | H43: 53761.20537 | I43: 12368 | J43: 112144.6938 | K43: 567 | L43: 47474.29649 | M43: 925 | N43: 159618.9903 | O43: 8.578756428e-05 | P43: 11401.99245 | Q43: 3 | R43: 1021.284 | S43: 5947.38016 | T43: 410313.5118 | U43: 0 | V43: 18 | W43: 0.0250000009 | X43: 182
A44: 2015-01-02T19:00:00 | B44: 1 | C44: 2 | D44: 2015 | E44: 19 | F44: 177992.9323 | G44: 138602 | H44: 51915.71137 | I44: 12368 | J44: 109552.5325 | K44: 567 | L44: 46076.2837 | M44: 925 | N44: 155628.8162 | O44: 8.326131069e-05 | P44: 11016.08266 | Q44: 3 | R44: 991.896 | S44: 5947.38016 | T44: 405705.7027 | U44: 0 | V44: 18 | W44: 0.001500000071 | X44: 182
A45: 2015-01-02T20:00:00 | B45: 1 | C45: 2 | D45: 2015 | E45: 20 | F45: 176601.7382 | G45: 138602 | H45: 50511.75865 | I45: 12368 | J45: 106789.1538 | K45: 567 | L45: 44875.15597 | M45: 925 | N45: 151664.3098 | O45: 8.109083466e-05 | P45: 10883.99069 | Q45: 3 | R45: 1006.248 | S45: 5947.38016 | T45: 396635.4903 | U45: 3.390214756e-07 | V45: 18 | W45: 0.001500000071 | X45: 182
A46: 2015-01-02T21:00:00 | B46: 1 | C46: 2 | D46: 2015 | E46: 21 | F46: 175158.8438 | G46: 138602 | H46: 48601.17274 | I46: 12368 | J46: 105028.6165 | K46: 567 | L46: 43576.22521 | M46: 925 | N46: 148604.8417 | O46: 7.878353421e-05 | P46: 10725.75941 | Q46: 3 | R46: 1028.16 | S46: 5947.38016 | T46: 389639.7196 | U46: 2.098188986e-06 | V46: 18 | W46: 0.0005000000237 | X46: 182
A47: 2015-01-02T22:00:00 | B47: 1 | C47: 2 | D47: 2015 | E47: 22 | F47: 168710.3445 | G47: 138602 | H47: 45616.83444 | I47: 12368 | J47: 101834.4286 | K47: 567 | L47: 41515.81695 | M47: 925 | N47: 143350.2456 | O47: 7.505842394e-05 | P47: 10705.7323 | Q47: 3 | R47: 1022.172 | S47: 5947.38016 | T47: 374779.9167 | U47: 3.194781286e-06 | V47: 18 | W47: 0.001800000085 | X47: 182
A48: 2015-01-02T23:00:00 | B48: 1 | C48: 2 | D48: 2015 | E48: 23 | F48: 156288.2248 | G48: 138602 | H48: 43021.06999 | I48: 12368 | J48: 97074.98009 | K48: 567 | L48: 39354.97856 | M48: 925 | N48: 136429.9586 | O48: 7.115174123e-05 | P48: 10517.16333 | Q48: 3 | R48: 1004.1 | S48: 5947.38016 | T48: 350989.6582 | U48: 5.714011095e-06 | V48: 18 | W48: 0.001000000047 | X48: 182
A49: 2015-01-03 | B49: 1 | C49: 2 | D49: 2015 | E49: 24 | F49: 136419.3878 | G49: 138602 | H49: 40722.01262 | I49: 12370 | J49: 93480.60162 | K49: 568 | L49: 37523.31296 | M49: 925 | N49: 131003.9146 | O49: 6.784018571e-05 | P49: 9987.146301 | Q49: 3 | R49: 990.816 | S49: 5947.38016 | T49: 323156.7755 | U49: 9.109403948e-06 | V49: 18 | W49: 0.0005000000237 | X49: 182
A50: 2015-01-03T01:00:00 | B50: 1 | C50: 3 | D50: 2015 | E50: 1 | F50: 119884.2668 | G50: 138602 | H50: 39765.38535 | I50: 12370 | J50: 90694.98235 | K50: 568 | L50: 36408.06811 | M50: 926 | N50: 127103.0505 | O50: 6.57815534e-05 | P50: 9795.870041 | Q50: 3 | R50: 1301.184 | S50: 5947.38016 | T50: 296502.2829 | U50: 1.557728319e-05 | V50: 18 | W50: 0 | X50: 182
A51: 2015-01-03T02:00:00 | B51: 1 | C51: 3 | D51: 2015 | E51: 2 | F51: 108658.9658 | G51: 138602 | H51: 38860.3295 | I51: 12370 | J51: 89440.68894 | K51: 568 | L51: 35721.71843 | M51: 926 | N51: 125162.4074 | O51: 6.454146706e-05 | P51: 9745.022385 | Q51: 3 | R51: 8305.5 | S51: 5947.38016 | T51: 284905.1306 | U51: 1.174029939e-05 | V51: 18 | W51: 0.0003000000142 | X51: 182
A52: 2015-01-03T03:00:00 | B52: 1 | C52: 3 | D52: 2015 | E52: 3 | F52: 101703.7799 | G52: 138602 | H52: 38285.95872 | I52: 12370 | J52: 88450.10661 | K52: 568 | L52: 35256.68286 | M52: 926 | N52: 123706.7895 | O52: 6.370124773e-05 | P52: 9691.097382 | Q52: 3 | R52: 8185.488 | S52: 5947.38016 | T52: 287319.2768 | U52: 1.680756463e-05 | V52: 18 | W52: 0.0005000000237 | X52: 182
A53: 2015-01-03T04:00:00 | B53: 1 | C53: 3 | D53: 2015 | E53: 4 | F53: 97697.8412 | G53: 138602 | H53: 37638.09193 | I53: 12370 | J53: 88275.66814 | K53: 568 | L53: 34903.1375 | M53: 926 | N53: 123178.8056 | O53: 6.306246726e-05 | P53: 9698.473434 | Q53: 3 | R53: 8083.692 | S53: 5947.38016 | T53: 282999.82 | U53: 2.478200327e-05 | V53: 18 | W53: 0.0005000000237 | X53: 182
A54: 2015-01-03T05:00:00 | B54: 1 | C54: 3 | D54: 2015 | E54: 5 | F54: 96942.7935 | G54: 138602 | H54: 37548.47202 | I54: 12370 | J54: 88104.66237 | K54: 568 | L54: 34826.24668 | M54: 926 | N54: 122930.909 | O54: 6.292354207e-05 | P54: 9803.995544 | Q54: 3 | R54: 7953.804 | S54: 5947.38016 | T54: 282501.4916 | U54: 3.761553876e-05 | V54: 18 | W54: 0.001800000085 | X54: 182
A55: 2015-01-03T06:00:00 | B55: 1 | C55: 3 | D55: 2015 | E55: 6 | F55: 98350.3288 | G55: 138602 | H55: 37591.94162 | I55: 12370 | J55: 89667.154 | K55: 568 | L55: 35132.47596 | M55: 926 | N55: 124799.63 | O55: 6.347683256e-05 | P55: 9915.095886 | Q55: 3 | R55: 5909.844 | S55: 5947.38016 | T55: 286427.2569 | U55: 1.733994824e-05 | V55: 18 | W55: 0.0005000000237 | X55: 182
A56: 2015-01-03T07:00:00 | B56: 1 | C56: 3 | D56: 2015 | E56: 7 | F56: 102600.6328 | G56: 138602 | H56: 38207.17975 | I56: 12370 | J56: 93430.02288 | K56: 568 | L56: 36173.7549 | M56: 926 | N56: 129603.7778 | O56: 6.53581998e-05 | P56: 10039.6436 | Q56: 3 | R56: 5819.328 | S56: 4698.43033 | T56: 298944.2999 | U56: 3.85461292e-06 | V56: 18 | W56: 0.0005000000237 | X56: 182
A57: 2015-01-03T08:00:00 | B57: 1 | C57: 3 | D57: 2015 | E57: 8 | F57: 110585.074 | G57: 138602 | H57: 39386.33065 | I57: 12370 | J57: 98169.36913 | K57: 568 | L57: 37678.9404 | M57: 926 | N57: 135848.3095 | O57: 6.807774646e-05 | P57: 10232.81534 | Q57: 3 | R57: 5957.256 | S57: 297.36901 | T57: 316977.1489 | U57: 3.395355348e-07 | V57: 18 | W57: 0.03800000157 | X57: 182
A58: 2015-01-03T09:00:00 | B58: 1 | C58: 3 | D58: 2015 | E58: 9 | F58: 123865.4186 | G58: 138602 | H58: 40855.70855 | I58: 12370 | J58: 100148.1643 | K58: 568 | L58: 38763.22107 | M58: 926 | N58: 138911.3854 | O58: 7.003680858e-05 | P58: 10296.53716 | Q58: 3 | R58: 5939.496 | S58: 59.4738 | T58: 332740.4212 | U58: 5.242468165 | V58: 18 | W58: 3.542000141 | X58: 182
A59: 2015-01-03T10:00:00 | B59: 1 | C59: 3 | D59: 2015 | E59: 10 | F59: 136691.7253 | G59: 138602 | H59: 44332.03195 | I59: 12370 | J59: 102632.2405 | K59: 568 | L59: 40947.00911 | M59: 926 | N59: 143579.2496 | O59: 7.398244417e-05 | P59: 10372.47374 | Q59: 3 | R59: 5808.156 | S59: 59.4738 | T59: 352701.3483 | U59: 18.58831907 | V59: 18 | W59: 9.625000404 | X59: 182
A60: 2015-01-03T11:00:00 | B60: 1 | C60: 3 | D60: 2015 | E60: 11 | F60: 147552.8121 | G60: 138602 | H60: 46774.57979 | I60: 12370 | J60: 104277.7833 | K60: 568 | L60: 42464.74807 | M60: 926 | N60: 146742.5314 | O60: 7.672467223e-05 | P60: 10464.64156 | Q60: 3 | R60: 5985.108 | S60: 59.4738 | T60: 367744.2651 | U60: 6.298009169 | V60: 18 | W60: 7.055100263 | X60: 182
A61: 2015-01-03T12:00:00 | B61: 1 | C61: 3 | D61: 2015 | E61: 12 | F61: 157202.3866 | G61: 138602 | H61: 47961.17666 | I61: 12370 | J61: 104752.5914 | K61: 568 | L61: 43145.51809 | M61: 926 | N61: 147898.1095 | O61: 7.795467734e-05 | P61: 10582.36946 | Q61: 3 | R61: 5794.476 | S61: 59.4738 | T61: 380253.7161 | U61: 4.389978014 | V61: 18 | W61: 7.106400263 | X61: 182
A62: 2015-01-03T13:00:00 | B62: 1 | C62: 3 | D62: 2015 | E62: 13 | F62: 164423.6039 | G62: 138602 | H62: 48068.73702 | I62: 12370 | J62: 105073.2001 | K62: 568 | L62: 43256.24262 | M62: 926 | N62: 148329.4427 | O62: 7.815473276e-05 | P62: 10553.96371 | Q62: 3 | R62: 5948.436 | S62: 59.4738 | T62: 388745.0921 | U62: 6.830755087 | V62: 18 | W62: 7.778900261 | X62: 182
A63: 2015-01-03T14:00:00 | B63: 1 | C63: 3 | D63: 2015 | E63: 14 | F63: 166177.0633 | G63: 138602 | H63: 47763.17763 | I63: 12370 | J63: 105240.2897 | K63: 568 | L63: 43133.6594 | M63: 926 | N63: 148373.9491 | O63: 7.793325123e-05 | P63: 10574.05031 | Q63: 3 | R63: 5829.384 | S63: 59.4738 | T63: 390857.5605 | U63: 8.593420469 | V63: 18 | W63: 8.059000282 | X63: 182
A64: 2015-01-03T15:00:00 | B64: 1 | C64: 3 | D64: 2015 | E64: 15 | F64: 166349.5179 | G64: 138602 | H64: 47111.08725 | I64: 12370 | J64: 104946.2631 | K64: 568 | L64: 42731.42311 | M64: 926 | N64: 147677.6862 | O64: 7.720649671e-05 | P64: 10607.42078 | Q64: 3 | R64: 5928.588 | S64: 59.4738 | T64: 391451.9456 | U64: 5.350388127 | V64: 18 | W64: 5.829200202 | X64: 182
A65: 2015-01-03T16:00:00 | B65: 1 | C65: 3 | D65: 2015 | E65: 16 | F65: 169254.6681 | G65: 138602 | H65: 47021.36043 | I65: 12370 | J65: 105143.4763 | K65: 568 | L65: 42638.77515 | M65: 926 | N65: 147782.2515 | O65: 7.703910178e-05 | P65: 10557.24539 | Q65: 3 | R65: 14973.228 | S65: 59.4738 | T65: 394626.7195 | U65: 1.271161294 | V65: 18 | W65: 1.711300057 | X65: 182
A66: 2015-01-03T17:00:00 | B66: 1 | C66: 3 | D66: 2015 | E66: 17 | F66: 180517.7334 | G66: 138602 | H66: 48094.59686 | I66: 12370 | J66: 105673.1854 | K66: 568 | L66: 43270.97717 | M66: 926 | N66: 148944.1626 | O66: 7.818135493e-05 | P66: 10473.40565 | Q66: 3 | R66: 94583.328 | S66: 2914.21627 | T66: 411055.4917 | U66: 0.08227159129 | V66: 18 | W66: 0.1504000039 | X66: 182
A67: 2015-01-03T18:00:00 | B67: 1 | C67: 3 | D67: 2015 | E67: 18 | F67: 195391.618 | G67: 138602 | H67: 49903.31 | I67: 12370 | J67: 106506.399 | K67: 568 | L67: 44329.27211 | M67: 926 | N67: 150835.6711 | O67: 8.009346642e-05 | P67: 10699.79466 | Q67: 3 | R67: 92503.128 | S67: 5947.38016 | T67: 442171.6471 | U67: 0 | V67: 18 | W67: 0 | X67: 182
A68: 2015-01-03T19:00:00 | B68: 1 | C68: 3 | D68: 2015 | E68: 19 | F68: 191375.4936 | G68: 138602 | H68: 48112.67389 | I68: 12370 | J68: 103633.2957 | K68: 568 | L68: 42915.28234 | M68: 926 | N68: 146548.578 | O68: 7.753869084e-05 | P68: 10573.74834 | Q68: 3 | R68: 90034.728 | S68: 5947.38016 | T68: 432067.1228 | U68: 0 | V68: 18 | W68: 0.0005000000237 | X68: 182
A69: 2015-01-03T20:00:00 | B69: 1 | C69: 3 | D69: 2015 | E69: 20 | F69: 182003.3909 | G69: 138602 | H69: 46699.33181 | I69: 12370 | J69: 102092.784 | K69: 568 | L69: 41930.00182 | M69: 926 | N69: 144022.7858 | O69: 7.57585007e-05 | P69: 10450.34724 | Q69: 3 | R69: 87555.624 | S69: 5947.38016 | T69: 417041.6101 | U69: 0 | V69: 18 | W69: 0.001500000071 | X69: 182
A70: 2015-01-03T21:00:00 | B70: 1 | C70: 3 | D70: 2015 | E70: 21 | F70: 173139.9043 | G70: 138602 | H70: 45276.87947 | I70: 12370 | J70: 99325.19844 | K70: 568 | L70: 40719.24734 | M70: 926 | N70: 140044.4458 | O70: 7.35709276e-05 | P70: 10330.27512 | Q70: 3 | R70: 64732.392 | S70: 5947.38016 | T70: 402033.57 | U70: 0 | V70: 18 | W70: 0.001000000047 | X70: 182
A71: 2015-01-03T22:00:00 | B71: 1 | C71: 3 | D71: 2015 | E71: 22 | F71: 164182.918 | G71: 138602 | H71: 43657.25309 | I71: 12370 | J71: 96402.08859 | K71: 568 | L71: 39381.88925 | M71: 926 | N71: 135783.9778 | O71: 7.115460899e-05 | P71: 10299.75755 | Q71: 3 | R71: 29799.528 | S71: 5947.38016 | T71: 384419.8715 | U71: 0 | V71: 18 | W71: 0.001000000047 | X71: 182
A72: 2015-01-03T23:00:00 | B72: 1 | C72: 3 | D72: 2015 | E72: 23 | F72: 150281.6038 | G72: 138602 | H72: 41532.48952 | I72: 12370 | J72: 92666.51773 | K72: 568 | L72: 37647.36601 | M72: 926 | N72: 130313.8837 | O72: 6.802069833e-05 | P72: 10154.48425 | Q72: 3 | R72: 29557.608 | S72: 5947.38016 | T72: 357833.8676 | U72: 0 | V72: 18 | W72: 0.001800000085 | X72: 182
A73: 2015-01-04 | B73: 1 | C73: 3 | D73: 2015 | E73: 24 | F73: 131699.3178 | G73: 138602 | H73: 39625.5995 | I73: 12370 | J73: 90088.84035 | K73: 568 | L73: 36229.80063 | M73: 926 | N73: 126318.641 | O73: 6.545946238e-05 | P73: 9808.895462 | Q73: 3 | R73: 29601.48 | S73: 5947.38016 | T73: 331422.9927 | U73: 0 | V73: 18 | W73: 0.001500000071 | X73: 182
A74: 2015-01-04T01:00:00 | B74: 1 | C74: 4 | D74: 2015 | E74: 1 | F74: 114189.9763 | G74: 138602 | H74: 38098.46099 | I74: 12369 | J74: 87758.0365 | K74: 568 | L74: 35045.0943 | M74: 926 | N74: 122803.1308 | O74: 6.331895268e-05 | P74: 9597.501587 | Q74: 3 | R74: 28859.712 | S74: 5947.38016 | T74: 307559.5206 | U74: 0 | V74: 18 | W74: 0 | X74: 182
A75: 2015-01-04T02:00:00 | B75: 1 | C75: 4 | D75: 2015 | E75: 2 | F75: 102121.9538 | G75: 138602 | H75: 37315.63461 | I75: 12369 | J75: 87400.46768 | K75: 568 | L75: 34589.21499 | M75: 926 | N75: 121989.6827 | O75: 6.249527676e-05 | P75: 9590.935181 | Q75: 3 | R75: 28211.844 | S75: 5947.38016 | T75: 292418.5084 | U75: 0 | V75: 18 | W75: 0.000800000038 | X75: 182
A76: 2015-01-04T03:00:00 | B76: 1 | C76: 4 | D76: 2015 | E76: 3 | F76: 94246.9707 | G76: 138602 | H76: 36572.13113 | I76: 12369 | J76: 85965.81336 | K76: 568 | L76: 33956.44918 | M76: 926 | N76: 119922.2625 | O76: 6.135200495e-05 | P76: 9494.431046 | Q76: 3 | R76: 28937.292 | S76: 5947.38016 | T76: 281056.5424 | U76: 0 | V76: 18 | W76: 0 | X76: 182
A77: 2015-01-04T04:00:00 | B77: 1 | C77: 4 | D77: 2015 | E77: 4 | F77: 90011.0939 | G77: 138602 | H77: 35839.58814 | I77: 12369 | J77: 85420.7941 | K77: 568 | L77: 33494.19914 | M77: 926 | N77: 118914.9932 | O77: 6.051681848e-05 | P77: 9490.144363 | Q77: 3 | R77: 29340.876 | S77: 5947.38016 | T77: 275028.0648 | U77: 0 | V77: 18 | W77: 0.0005000000237 | X77: 182
A78: 2015-01-04T05:00:00 | B78: 1 | C78: 4 | D78: 2015 | E78: 5 | F78: 88245.1031 | G78: 138602 | H78: 35714.83978 | I78: 12369 | J78: 85536.18066 | K78: 568 | L78: 33451.91169 | M78: 926 | N78: 118988.0924 | O78: 6.044041415e-05 | P78: 9614.826706 | Q78: 3 | R78: 30444.432 | S78: 5947.38016 | T78: 273317.2509 | U78: 0 | V78: 18 | W78: 0.0003000000142 | X78: 182
A79: 2015-01-04T06:00:00 | B79: 1 | C79: 4 | D79: 2015 | E79: 6 | F79: 89670.4277 | G79: 138602 | H79: 35772.60025 | I79: 12369 | J79: 87163.65795 | K79: 568 | L79: 33775.06053 | M79: 926 | N79: 120938.7185 | O79: 6.102427465e-05 | P79: 9722.217957 | Q79: 3 | R79: 34296.18 | S79: 5947.38016 | T79: 277946.3644 | U79: 0 | V79: 18 | W79: 0 | X79: 182
A80: 2015-01-04T07:00:00 | B80: 1 | C80: 4 | D80: 2015 | E80: 7 | F80: 93799.9229 | G80: 138602 | H80: 36417.9471 | I80: 12369 | J80: 90425.87928 | K80: 568 | L80: 34687.85462 | M80: 926 | N80: 125113.7339 | O80: 6.267349737e-05 | P80: 9961.545578 | Q80: 3 | R80: 36262.812 | S80: 4698.43033 | T80: 287818.2335 | U80: 0 | V80: 18 | W80: 0.0003000000142 | X80: 182
A81: 2015-01-04T08:00:00 | B81: 1 | C81: 4 | D81: 2015 | E81: 8 | F81: 101781.7297 | G81: 138602 | H81: 36899.10698 | I81: 12369 | J81: 93341.55423 | K81: 568 | L81: 35453.91134 | M81: 926 | N81: 128795.4656 | O81: 6.40575972e-05 | P81: 10142.81325 | Q81: 3 | R81: 32053.944 | S81: 297.36901 | T81: 301827.941 | U81: 0 | V81: 18 | W81: 0.08400000329 | X81: 182
A82: 2015-01-04T09:00:00 | B82: 1 | C82: 4 | D82: 2015 | E82: 9 | F82: 115241.4884 | G82: 138602 | H82: 36005.74926 | I82: 12369 | J82: 95991.06461 | K82: 568 | L82: 35482.30246 | M82: 926 | N82: 131473.3671 | O82: 6.410889385e-05 | P82: 10218.53754 | Q82: 3 | R82: 31148.592 | S82: 59.4738 | T82: 315903.7425 | U82: 13.74026111 | V82: 18 | W82: 7.694900296 | X82: 182
A83: 2015-01-04T10:00:00 | B83: 1 | C83: 4 | D83: 2015 | E83: 10 | F83: 129880.3034 | G83: 138602 | H83: 37145.07414 | I83: 12369 | J83: 97775.1139 | K83: 568 | L83: 36371.09023 | M83: 926 | N83: 134146.2041 | O83: 6.571474231e-05 | P83: 10194.78101 | Q83: 3 | R83: 31561.536 | S83: 59.4738 | T83: 333708.0241 | U83: 64.39818789 | V83: 18 | W83: 30.05900114 | X83: 182
A84: 2015-01-04T11:00:00 | B84: 1 | C84: 4 | D84: 2015 | E84: 11 | F84: 140363.2391 | G84: 138602 | H84: 39389.60853 | I84: 12369 | J84: 99389.40529 | K84: 568 | L84: 37783.0895 | M84: 926 | N84: 137172.4948 | O84: 6.826592149e-05 | P84: 10287.02698 | Q84: 3 | R84: 34735.272 | S84: 59.4738 | T84: 350014.684 | U84: 160.1378478 | V84: 18 | W84: 69.12240257 | X84: 182
A85: 2015-01-04T12:00:00 | B85: 1 | C85: 4 | D85: 2015 | E85: 12 | F85: 151705.6262 | G85: 138602 | H85: 42081.67722 | I85: 12369 | J85: 101083.1273 | K85: 568 | L85: 39432.34963 | M85: 926 | N85: 140515.4769 | O85: 7.124578005e-05 | P85: 10427.39609 | Q85: 3 | R85: 32530.632 | S85: 59.4738 | T85: 367616.398 | U85: 142.0426872 | V85: 18 | W85: 58.96690218 | X85: 182
A86: 2015-01-04T13:00:00 | B86: 1 | C86: 4 | D86: 2015 | E86: 13 | F86: 161396.396 | G86: 138602 | H86: 42929.4104 | I86: 12369 | J86: 101890.7565 | K86: 568 | L86: 40001.78557 | M86: 926 | N86: 141892.5421 | O86: 7.22746284e-05 | P86: 10494.60857 | Q86: 3 | R86: 31924.356 | S86: 59.4738 | T86: 378313.8208 | U86: 175.5207191 | V86: 18 | W86: 68.18260257 | X86: 182
A87: 2015-01-04T14:00:00 | B87: 1 | C87: 4 | D87: 2015 | E87: 14 | F87: 163294.7542 | G87: 138602 | H87: 42873.6587 | I87: 12369 | J87: 102650.7884 | K87: 568 | L87: 40111.53022 | M87: 926 | N87: 142762.3187 | O87: 7.24729134e-05 | P87: 10574.74295 | Q87: 3 | R87: 30909.768 | S87: 59.4738 | T87: 382406.5319 | U87: 220.6311549 | V87: 18 | W87: 81.36380304 | X87: 182
A88: 2015-01-04T15:00:00 | B88: 1 | C88: 4 | D88: 2015 | E88: 15 | F88: 168182.3668 | G88: 138602 | H88: 43081.10033 | I88: 12369 | J88: 103328.6246 | K88: 568 | L88: 40339.05048 | M88: 926 | N88: 143667.6751 | O88: 7.28839936e-05 | P88: 10697.14632 | Q88: 3 | R88: 28905.96 | S88: 59.4738 | T88: 388964.1098 | U88: 86.02259484 | V88: 18 | W88: 34.34360134 | X88: 182
A89: 2015-01-04T16:00:00 | B89: 1 | C89: 4 | D89: 2015 | E89: 16 | F89: 172627.491 | G89: 138602 | H89: 43093.20265 | I89: 12369 | J89: 103124.9964 | K89: 568 | L89: 40308.52758 | M89: 926 | N89: 143433.5239 | O89: 7.282884529e-05 | P89: 10768.0722 | Q89: 3 | R89: 28611.264 | S89: 59.4738 | T89: 393336.1454 | U89: 38.11793168 | V89: 18 | W89: 18.93750068 | X89: 182
A90: 2015-01-04T17:00:00 | B90: 1 | C90: 4 | D90: 2015 | E90: 17 | F90: 189986.9763 | G90: 138602 | H90: 45437.67835 | I90: 12369 | J90: 104649.9697 | K90: 568 | L90: 41757.87392 | M90: 926 | N90: 146407.8436 | O90: 7.544750258e-05 | P90: 10893.57216 | Q90: 3 | R90: 28148.388 | S90: 2914.21627 | T90: 418953.3107 | U90: 0.1910859931 | V90: 18 | W90: 0.739900027 | X90: 182
A91: 2015-01-04T18:00:00 | B91: 1 | C91: 4 | D91: 2015 | E91: 18 | F91: 206732.3927 | G91: 138602 | H91: 46846.09254 | I91: 12369 | J91: 104907.5104 | K91: 568 | L91: 42510.67409 | M91: 926 | N91: 147418.1845 | O91: 7.680765069e-05 | P91: 11079.81505 | Q91: 3 | R91: 27514.632 | S91: 5947.38016 | T91: 444755.4308 | U91: 0 | V91: 18 | W91: 0.001500000071 | X91: 182
A92: 2015-01-04T19:00:00 | B92: 1 | C92: 4 | D92: 2015 | E92: 19 | F92: 205007.3239 | G92: 138602 | H92: 45686.82648 | I92: 12369 | J92: 104460.8047 | K92: 568 | L92: 41851.78727 | M92: 926 | N92: 146312.592 | O92: 7.561718383e-05 | P92: 10984.0956 | Q92: 3 | R92: 25837.584 | S92: 5947.38016 | T92: 439255.236 | U92: 0 | V92: 18 | W92: 0.001500000071 | X92: 182
A93: 2015-01-04T20:00:00 | B93: 1 | C93: 4 | D93: 2015 | E93: 20 | F93: 198881.9665 | G93: 138602 | H93: 45383.9748 | I93: 12369 | J93: 103561.8088 | K93: 568 | L93: 41539.0089 | M93: 926 | N93: 145100.8177 | O93: 7.505206055e-05 | P93: 10955.51343 | Q93: 3 | R93: 23027.148 | S93: 5947.38016 | T93: 430475.3123 | U93: 0 | V93: 18 | W93: 0.001500000071 | X93: 182
A94: 2015-01-04T21:00:00 | B94: 1 | C94: 4 | D94: 2015 | E94: 21 | F94: 195733.2432 | G94: 138602 | H94: 44793.70909 | I94: 12369 | J94: 103879.3768 | K94: 568 | L94: 41300.85513 | M94: 926 | N94: 145180.2319 | O94: 7.462176787e-05 | P94: 10871.43198 | Q94: 3 | R94: 21829.224 | S94: 5947.38016 | T94: 423222.0428 | U94: 0 | V94: 18 | W94: 0.002500000119 | X94: 182
A95: 2015-01-04T22:00:00 | B95: 1 | C95: 4 | D95: 2015 | E95: 22 | F95: 181695.7673 | G95: 138602 | H95: 43337.66451 | I95: 12369 | J95: 103966.0711 | K95: 568 | L95: 40590.14221 | M95: 926 | N95: 144556.2133 | O95: 7.333766239e-05 | P95: 10805.58194 | Q95: 3 | R95: 11920.176 | S95: 5947.38016 | T95: 407341.3846 | U95: 0 | V95: 18 | W95: 0.001300000062 | X95: 182
A96: 2015-01-04T23:00:00 | B96: 1 | C96: 4 | D96: 2015 | E96: 23 | F96: 161029.3231 | G96: 138602 | H96: 41707.4087 | I96: 12369 | J96: 103212.1147 | K96: 568 | L96: 39640.39336 | M96: 926 | N96: 142852.508 | O96: 7.162167035e-05 | P96: 10789.13188 | Q96: 3 | R96: 6039.552 | S96: 5947.38016 | T96: 383438.0424 | U96: 2.255811467e-07 | V96: 18 | W96: 0.002000000095 | X96: 182
A97: 2015-01-05 | B97: 1 | C97: 4 | D97: 2015 | E97: 24 | F97: 137295.35 | G97: 138602 | H97: 40718.72405 | I97: 12370 | J97: 102406.8114 | K97: 568 | L97: 39003.98971 | M97: 925 | N97: 141410.8011 | O97: 7.049195996e-05 | P97: 10373.02879 | Q97: 3 | R97: 5753.04 | S97: 5947.38016 | T97: 351238.7106 | U97: 3.415955163e-08 | V97: 18 | W97: 0.001300000062 | X97: 182
A98: 2015-01-05T01:00:00 | B98: 1 | C98: 5 | D98: 2015 | E98: 1 | F98: 119004.0002 | G98: 138602 | H98: 39573.72282 | I98: 12370 | J98: 102566.209 | K98: 568 | L98: 38485.80795 | M98: 926 | N98: 141052.0169 | O98: 6.954383893e-05 | P98: 10290.20514 | Q98: 3 | R98: 5937.576 | S98: 5947.38016 | T98: 329373.0402 | U98: 4.885716294e-07 | V98: 18 | W98: 0.000800000038 | X98: 182
A99: 2015-01-05T02:00:00 | B99: 1 | C99: 5 | D99: 2015 | E99: 2 | F99: 110391.3472 | G99: 138602 | H99: 39685.28973 | I99: 12370 | J99: 102818.8819 | K99: 568 | L99: 38586.2209 | M99: 926 | N99: 141405.1028 | O99: 6.97252851e-05 | P99: 10157.25349 | Q99: 3 | R99: 5813.904 | S99: 5947.38016 | T99: 319630.7685 | U99: 3.729745993e-06 | V99: 18 | W99: 0.0003000000142 | X99: 182
A100: 2015-01-05T03:00:00 | B100: 1 | C100: 5 | D100: 2015 | E100: 3 | F100: 105492.7401 | G100: 138602 | H100: 38982.08408 | I100: 12370 | J100: 101885.5301 | K100: 568 | L100: 38066.2834 | M100: 926 | N100: 139951.8135 | O100: 6.878575825e-05 | P100: 10060.46365 | Q100: 3 | R100: 6319.56 | S100: 5947.38016 | T100: 311343.0781 | U100: 1.272847464e-05 | V100: 18 | W100: 0.0003000000142 | X100: 182
A101: 2015-01-05T04:00:00 | B101: 1 | C101: 5 | D101: 2015 | E101: 4 | F101: 102770.9704 | G101: 138602 | H101: 38780.50001 | I101: 12370 | J101: 103159.5215 | K101: 568 | L101: 38196.91023 | M101: 926 | N101: 141356.4318 | O101: 6.902180087e-05 | P101: 10025.32277 | Q101: 3 | R101: 6040.908 | S101: 5947.38016 | T101: 310381.4463 | U101: 2.678275621e-05 | V101: 18 | W101: 0.001300000062 | X101: 182
A102: 2015-01-05T05:00:00 | B102: 1 | C102: 5 | D102: 2015 | E102: 5 | F102: 104726.9138 | G102: 138655 | H102: 39195.76431 | I102: 12370 | J102: 105804.2419 | K102: 569 | L102: 38909.75194 | M102: 926 | N102: 144713.9938 | O102: 7.030990555e-05 | P102: 10131.76178 | Q102: 3 | R102: 5892.456 | S102: 5947.38016 | T102: 315706.0006 | U102: 5.453239282e-05 | V102: 18 | W102: 0.0003000000142 | X102: 182
A103: 2015-01-05T06:00:00 | B103: 1 | C103: 5 | D103: 2015 | E103: 6 | F103: 111686.2209 | G103: 138655 | H103: 40113.75625 | I103: 12370 | J103: 112197.7183 | K103: 569 | L103: 40599.62877 | M103: 926 | N103: 152797.3471 | O103: 7.336351228e-05 | P103: 10643.86092 | Q103: 3 | R103: 6025.992 | S103: 5947.38016 | T103: 333798.2187 | U103: 0.0001102308893 | V103: 18 | W103: 0 | X103: 182
A104: 2015-01-05T07:00:00 | B104: 1 | C104: 5 | D104: 2015 | E104: 7 | F104: 130186.237 | G104: 138655 | H104: 43175.15313 | I104: 12370 | J104: 125547.9702 | K104: 569 | L104: 44779.82273 | M104: 926 | N104: 170327.793 | O104: 8.091712102e-05 | P104: 11462.25256 | Q104: 3 | R104: 6100.164 | S104: 4698.43033 | T104: 377041.9266 | U104: 0.0002676790155 | V104: 18 | W104: 0.001800000027 | X104: 182
A105: 2015-01-05T08:00:00 | B105: 1 | C105: 5 | D105: 2015 | E105: 8 | F105: 146900.6895 | G105: 138655 | H105: 49083.29039 | I105: 12370 | J105: 139574.049 | K105: 569 | L105: 50454.0815 | M105: 926 | N105: 190028.1305 | O105: 9.117050424e-05 | P105: 12231.28651 | Q105: 3 | R105: 6259.272 | S105: 297.36901 | T105: 424152.2058 | U105: 0.0001316548305 | V105: 18 | W105: 0.3624000155 | X105: 182
A106: 2015-01-05T09:00:00 | B106: 1 | C106: 5 | D106: 2015 | E106: 9 | F106: 142768.947 | G106: 138655 | H106: 54098.21614 | I106: 12370 | J106: 146737.5287 | K106: 569 | L106: 54271.25911 | M106: 926 | N106: 201008.7878 | O106: 9.806814261e-05 | P106: 12921.56729 | Q106: 3 | R106: 6282.6 | S106: 59.4738 | T106: 434245.7745 | U106: 57.82713516 | V106: 18 | W106: 28.21730103 | X106: 182
A107: 2015-01-05T10:00:00 | B107: 1 | C107: 5 | D107: 2015 | E107: 10 | F107: 136678.6565 | G107: 138655 | H107: 60199.19494 | I107: 12370 | J107: 148091.7742 | K107: 569 | L107: 57617.97317 | M107: 926 | N107: 205709.7474 | O107: 0.0001040674743 | P107: 13749.06689 | Q107: 3 | R107: 6172.332 | S107: 59.4738 | T107: 438387.9928 | U107: 301.5550314 | V107: 18 | W107: 114.6936042 | X107: 182
A108: 2015-01-05T11:00:00 | B108: 1 | C108: 5 | D108: 2015 | E108: 11 | F108: 136010.2233 | G108: 138655 | H108: 63329.19641 | I108: 12370 | J108: 150419.3457 | K108: 569 | L108: 59583.17114 | M108: 926 | N108: 210002.5169 | O108: 0.0001076436693 | P108: 14188.64285 | Q108: 3 | R108: 6245.94 | S108: 59.4738 | T108: 444856.5458 | U108: 645.9674104 | V108: 18 | W108: 220.749908 | X108: 182
A109: 2015-01-05T12:00:00 | B109: 1 | C109: 5 | D109: 2015 | E109: 12 | F109: 137537.8165 | G109: 138655 | H109: 64371.22593 | I109: 12370 | J109: 149064.2392 | K109: 569 | L109: 59779.12144 | M109: 926 | N109: 208843.3607 | O109: 0.0001081003362 | P109: 14346.47531 | Q109: 3 | R109: 6671.568 | S109: 59.4738 | T109: 445592.5392 | U109: 997.81135 | V109: 18 | W109: 343.5893127 | X109: 182
A110: 2015-01-05T13:00:00 | B110: 1 | C110: 5 | D110: 2015 | E110: 13 | F110: 138425.8952 | G110: 138655 | H110: 64379.72917 | I110: 12370 | J110: 148767.5233 | K110: 569 | L110: 59626.58914 | M110: 926 | N110: 208394.1124 | O110: 0.000107901515 | P110: 14452.4892 | Q110: 3 | R110: 1870.944 | S110: 59.4738 | T110: 445477.3557 | U110: 1238.230652 | V110: 18 | W110: 406.2552152 | X110: 182
A111: 2015-01-05T14:00:00 | B111: 1 | C111: 5 | D111: 2015 | E111: 14 | F111: 135657.9598 | G111: 138655 | H111: 64155.18943 | I111: 12370 | J111: 149958.18 | K111: 569 | L111: 59737.92909 | M111: 926 | N111: 209696.1091 | O111: 0.0001081181781 | P111: 14415.89697 | Q111: 3 | R111: 1012.872 | S111: 59.4738 | T111: 441451.6941 | U111: 1442.072813 | V111: 18 | W111: 466.8193168 | X111: 182
A112: 2015-01-05T15:00:00 | B112: 1 | C112: 5 | D112: 2015 | E112: 15 | F112: 135232.6702 | G112: 138655 | H112: 63673.5843 | I112: 12369 | J112: 147168.2157 | K112: 569 | L112: 58918.59769 | M112: 926 | N112: 206086.8134 | O112: 0.000106665415 | P112: 14563.13748 | Q112: 3 | R112: 1026.252 | S112: 59.4738 | T112: 427072.2661 | U112: 1106.934022 | V112: 18 | W112: 404.5696148 | X112: 182
A113: 2015-01-05T16:00:00 | B113: 1 | C113: 5 | D113: 2015 | E113: 16 | F113: 143077.4539 | G113: 138655 | H113: 62877.50957 | I113: 12370 | J113: 145309.8608 | K113: 569 | L113: 58037.3058 | M113: 926 | N113: 203347.1666 | O113: 0.0001050582921 | P113: 14478.64523 | Q113: 3 | R113: 1129.824 | S113: 59.4738 | T113: 428771.6205 | U113: 524.6281058 | V113: 18 | W113: 183.7613071 | X113: 182
A114: 2015-01-05T17:00:00 | B114: 1 | C114: 5 | D114: 2015 | E114: 17 | F114: 163840.4276 | G114: 138655 | H114: 61373.22572 | I114: 12370 | J114: 143284.2696 | K114: 569 | L114: 56824.85841 | M114: 926 | N114: 200109.128 | O114: 0.0001028532529 | P114: 14172.38928 | Q114: 3 | R114: 1029.18 | S114: 2914.21627 | T114: 446068.8822 | U114: 62.88541046 | V114: 18 | W114: 31.45280118 | X114: 182
A115: 2015-01-05T18:00:00 | B115: 1 | C115: 5 | D115: 2015 | E115: 18 | F115: 199145.6111 | G115: 138655 | H115: 61085.53484 | I115: 12370 | J115: 141929.4886 | K115: 569 | L115: 56421.86719 | M115: 926 | N115: 198351.3558 | O115: 0.000102123837 | P115: 13748.97833 | Q115: 3 | R115: 1025.784 | S115: 5947.38016 | T115: 477864.8351 | U115: 0.0003531613329 | V115: 18 | W115: 0.06740000262 | X115: 182
A116: 2015-01-05T19:00:00 | B116: 1 | C116: 5 | D116: 2015 | E116: 19 | F116: 204210.2445 | G116: 138655 | H116: 57731.52871 | I116: 12370 | J116: 138615.7107 | K116: 569 | L116: 54156.86876 | M116: 926 | N116: 192772.5795 | O116: 9.802417946e-05 | P116: 13284.66473 | Q116: 3 | R116: 997.356 | S116: 5947.38016 | T116: 478044.2086 | U116: 0.0008104560657 | V116: 18 | W116: 0.001500000071 | X116: 182
A117: 2015-01-05T20:00:00 | B117: 1 | C117: 5 | D117: 2015 | E117: 20 | F117: 204532.9902 | G117: 138655 | H117: 55601.0064 | I117: 12370 | J117: 135777.9895 | K117: 569 | L117: 52566.93058 | M117: 926 | N117: 188344.92 | O117: 9.51631973e-05 | P117: 12984.06769 | Q117: 3 | R117: 1011.576 | S117: 5947.38016 | T117: 471155.6478 | U117: 0.001185638197 | V117: 18 | W117: 0.001500000071 | X117: 182
A118: 2015-01-05T21:00:00 | B118: 1 | C118: 5 | D118: 2015 | E118: 21 | F118: 201290.4039 | G118: 138655 | H118: 53519.64098 | I118: 12370 | J118: 133608.7584 | K118: 569 | L118: 51132.37643 | M118: 926 | N118: 184741.1348 | O118: 9.256618892e-05 | P118: 12751.52768 | Q118: 3 | R118: 961.608 | S118: 5947.38016 | T118: 461021.1232 | U118: 0.001138976768 | V118: 18 | W118: 0.001000000047 | X118: 182
A119: 2015-01-05T22:00:00 | B119: 1 | C119: 5 | D119: 2015 | E119: 22 | F119: 191927.8865 | G119: 138655 | H119: 49914.94126 | I119: 12370 | J119: 129207.3562 | K119: 569 | L119: 48552.91901 | M119: 926 | N119: 177760.2752 | O119: 8.78965342e-05 | P119: 12412.7634 | Q119: 3 | R119: 977.34 | S119: 5947.38016 | T119: 440021.9421 | U119: 0.001394265193 | V119: 18 | W119: 0.001500000071 | X119: 182
A120: 2015-01-05T23:00:00 | B120: 1 | C120: 5 | D120: 2015 | E120: 23 | F120: 172956.6602 | G120: 138655 | H120: 46920.57612 | I120: 12370 | J120: 121999.6048 | K120: 569 | L120: 45773.66029 | M120: 926 | N120: 167773.2651 | O120: 8.286517431e-05 | P120: 11975.14261 | Q120: 3 | R120: 1002.324 | S120: 5947.38016 | T120: 404840.5708 | U120: 0.001589599648 | V120: 18 | W120: 0.000800000038 | X120: 182
A121: 2015-01-06 | B121: 1 | C121: 5 | D121: 2015 | E121: 24 | F121: 148153.4807 | G121: 138655 | H121: 44622.56098 | I121: 12370 | J121: 116087.1275 | K121: 569 | L121: 43479.74927 | M121: 924 | N121: 159566.8767 | O121: 7.87963894e-05 | P121: 11191.47119 | Q121: 3 | R121: 1019.868 | S121: 5947.38016 | T121: 365854.387 | U121: 0.001481893603 | V121: 18 | W121: 0.0005000000237 | X121: 182
A122: 2015-01-06T01:00:00 | B122: 1 | C122: 6 | D122: 2015 | E122: 1 | F122: 128026.066 | G122: 138652 | H122: 42682.89771 | I122: 12370 | J122: 113056.0114 | K122: 566 | L122: 41895.29333 | M122: 925 | N122: 154951.3047 | O122: 7.590865663e-05 | P122: 10850.76665 | Q122: 3 | R122: 1004.016 | S122: 5947.38016 | T122: 337401.2549 | U122: 0.00141797281 | V122: 18 | W122: 0.0005000000237 | X122: 182
A123: 2015-01-06T02:00:00 | B123: 1 | C123: 6 | D123: 2015 | E123: 2 | F123: 118956.9999 | G123: 138652 | H123: 42115.07191 | I123: 12370 | J123: 112360.2064 | K123: 566 | L123: 41482.99078 | M123: 925 | N123: 153843.1972 | O123: 7.516161965e-05 | P123: 10576.04732 | Q123: 3 | R123: 1023.456 | S123: 5947.38016 | T123: 323400.5847 | U123: 0.001472096032 | V123: 18 | W123: 0.001300000062 | X123: 182
A124: 2015-01-06T03:00:00 | B124: 1 | C124: 6 | D124: 2015 | E124: 3 | F124: 114639.6884 | G124: 138652 | H124: 41605.5942 | I124: 12370 | J124: 111589.4444 | K124: 566 | L124: 41090.18874 | M124: 925 | N124: 152679.6331 | O124: 7.444991501e-05 | P124: 10377.08736 | Q124: 3 | R124: 1021.8 | S124: 5947.38016 | T124: 319540.9487 | U124: 0.001451333097 | V124: 18 | W124: 0 | X124: 182
A125: 2015-01-06T04:00:00 | B125: 1 | C125: 6 | D125: 2015 | E125: 4 | F125: 112403.1377 | G125: 138652 | H125: 41497.20364 | I125: 12370 | J125: 111571.5435 | K125: 566 | L125: 41038.72867 | M125: 925 | N125: 152610.2722 | O125: 7.435667626e-05 | P125: 10380.83783 | Q125: 3 | R125: 1022.856 | S125: 5947.38016 | T125: 317252.9097 | U125: 0.001508777001 | V125: 18 | W125: 0 | X125: 182
A126: 2015-01-06T05:00:00 | B126: 1 | C126: 6 | D126: 2015 | E126: 5 | F126: 112243.5041 | G126: 138660 | H126: 41404.65283 | I126: 12372 | J126: 112592.2252 | K126: 567 | L126: 41205.6474 | M126: 925 | N126: 153797.8726 | O126: 7.465911062e-05 | P126: 10488.68761 | Q126: 3 | R126: 1024.788 | S126: 5947.38016 | T126: 319460.7944 | U126: 0.001627481091 | V126: 18 | W126: 0.0003000000142 | X126: 182
A127: 2015-01-06T06:00:00 | B127: 1 | C127: 6 | D127: 2015 | E127: 6 | F127: 117850.8742 | G127: 138660 | H127: 41960.84288 | I127: 12372 | J127: 117210.4583 | K127: 567 | L127: 42360.53797 | M127: 925 | N127: 159570.9962 | O127: 7.675161756e-05 | P127: 11050.54323 | Q127: 3 | R127: 1116.18 | S127: 5947.38016 | T127: 333561.4633 | U127: 0.001414563769 | V127: 18 | W127: 0 | X127: 182
A128: 2015-01-06T07:00:00 | B128: 1 | C128: 6 | D128: 2015 | E128: 7 | F128: 132397.416 | G128: 138660 | H128: 44638.2427 | I128: 12372 | J128: 130100.1454 | K128: 567 | L128: 46235.12697 | M128: 925 | N128: 176335.2724 | O128: 8.377185354e-05 | P128: 11857.63686 | Q128: 3 | R128: 1099.272 | S128: 4698.43033 | T128: 372460.4761 | U128: 0.001471415904 | V128: 18 | W128: 0.0005000000237 | X128: 182
A129: 2015-01-06T08:00:00 | B129: 1 | C129: 6 | D129: 2015 | E129: 8 | F129: 147682.0419 | G129: 138660 | H129: 50577.26885 | I129: 12372 | J129: 144195.2384 | K129: 567 | L129: 51960.39736 | M129: 925 | N129: 196155.6357 | O129: 9.414527618e-05 | P129: 12629.61905 | Q129: 3 | R129: 1019.688 | S129: 297.36901 | T129: 418218.431 | U129: 0.0009302821309 | V129: 18 | W129: 0.5488000218 | X129: 182
A130: 2015-01-06T09:00:00 | B130: 1 | C130: 6 | D130: 2015 | E130: 9 | F130: 143239.6144 | G130: 138660 | H130: 55433.87398 | I130: 12372 | J130: 150585.1361 | K130: 567 | L130: 55564.63266 | M130: 925 | N130: 206149.7687 | O130: 0.0001006756675 | P130: 13316.09692 | Q130: 3 | R130: 999.408 | S130: 59.4738 | T130: 425123.0005 | U130: 10.75700634 | V130: 18 | W130: 10.65340045 | X130: 182
A131: 2015-01-06T10:00:00 | B131: 1 | C131: 6 | D131: 2015 | E131: 10 | F131: 133987.5262 | G131: 138660 | H131: 60381.88222 | I131: 12372 | J131: 151683.8534 | K131: 567 | L131: 58190.4442 | M131: 925 | N131: 209874.2976 | O131: 0.0001054332861 | P131: 14052.9588 | Q131: 3 | R131: 974.292 | S131: 59.4738 | T131: 424747.1033 | U131: 116.9779199 | V131: 18 | W131: 85.60350289 | X131: 182
A132: 2015-01-06T11:00:00 | B132: 1 | C132: 6 | D132: 2015 | E132: 11 | F132: 129957.4388 | G132: 138660 | H132: 63562.98641 | I132: 12372 | J132: 152653.1941 | K132: 567 | L132: 59905.35734 | M132: 925 | N132: 212558.5515 | O132: 0.0001086317545 | P132: 14455.33313 | Q132: 3 | R132: 1001.256 | S132: 59.4738 | T132: 424328.2098 | U132: 337.9982516 | V132: 18 | W132: 205.5295073 | X132: 182
A133: 2015-01-06T12:00:00 | B133: 1 | C133: 6 | D133: 2015 | E133: 12 | F133: 130542.6163 | G133: 138660 | H133: 64878.89259 | I133: 12372 | J133: 150903.0532 | K133: 567 | L133: 60287.20804 | M133: 925 | N133: 211190.2612 | O133: 0.0001092750382 | P133: 14656.83597 | Q133: 3 | R133: 997.548 | S133: 59.4738 | T133: 425259.714 | U133: 447.4183328 | V133: 18 | W133: 255.7976099 | X133: 182
A134: 2015-01-06T13:00:00 | B134: 1 | C134: 6 | D134: 2015 | E134: 13 | F134: 130388.5438 | G134: 138660 | H134: 64271.89498 | I134: 12372 | J134: 150093.8724 | K134: 567 | L134: 59781.7668 | M134: 925 | N134: 209875.6392 | O134: 0.0001083330207 | P134: 14762.90524 | Q134: 3 | R134: 977.004 | S134: 59.4738 | T134: 422812.3698 | U134: 544.2685337 | V134: 18 | W134: 318.2431115 | X134: 182
A135: 2015-01-06T14:00:00 | B135: 1 | C135: 6 | D135: 2015 | E135: 14 | F135: 130447.001 | G135: 138660 | H135: 64457.29859 | I135: 12372 | J135: 150602.2426 | K135: 567 | L135: 60034.50907 | M135: 925 | N135: 210636.7517 | O135: 0.0001088515253 | P135: 14808.41544 | Q135: 3 | R135: 965.208 | S135: 59.4738 | T135: 424006.5302 | U135: 526.330732 | V135: 18 | W135: 262.0044095 | X135: 182
A136: 2015-01-06T15:00:00 | B136: 1 | C136: 6 | D136: 2015 | E136: 15 | F136: 134085.1779 | G136: 138660 | H136: 64521.08328 | I136: 12372 | J136: 151260.0201 | K136: 567 | L136: 60191.64927 | M136: 925 | N136: 211451.6693 | O136: 0.0001091554587 | P136: 14804.20276 | Q136: 3 | R136: 2319.504 | S136: 59.4738 | T136: 428758.8379 | U136: 218.5331125 | V136: 18 | W136: 115.4115046 | X136: 182
A137: 2015-01-06T16:00:00 | B137: 1 | C137: 6 | D137: 2015 | E137: 16 | F137: 140485.5359 | G137: 138660 | H137: 63672.38571 | I137: 12372 | J137: 149290.0978 | K137: 567 | L137: 59132.4105 | M137: 925 | N137: 208422.5083 | O137: 0.0001072370566 | P137: 14610.88165 | Q137: 3 | R137: 6004.728 | S137: 59.4738 | T137: 431550.4989 | U137: 131.4382193 | V137: 18 | W137: 74.14020292 | X137: 182
A138: 2015-01-06T17:00:00 | B138: 1 | C138: 6 | D138: 2015 | E138: 17 | F138: 159147.043 | G138: 138660 | H138: 61731.6071 | I138: 12372 | J138: 145229.2907 | K138: 567 | L138: 57318.18274 | M138: 925 | N138: 202547.4735 | O138: 0.0001039469414 | P138: 14238.54126 | Q138: 3 | R138: 1136.076 | S138: 2914.21627 | T138: 445551.4118 | U138: 13.4137752 | V138: 18 | W138: 10.65210041 | X138: 182
A139: 2015-01-06T18:00:00 | B139: 1 | C139: 6 | D139: 2015 | E139: 18 | F139: 192027.9025 | G139: 138660 | H139: 61502.6641 | I139: 12372 | J139: 142804.3613 | K139: 567 | L139: 56763.61664 | M139: 925 | N139: 199567.9779 | O139: 0.0001029412317 | P139: 13778.49478 | Q139: 3 | R139: 1132.296 | S139: 5947.38016 | T139: 477446.1045 | U139: 0.0001619361447 | V139: 18 | W139: 0.01020000025 | X139: 182
A140: 2015-01-06T19:00:00 | B140: 1 | C140: 6 | D140: 2015 | E140: 19 | F140: 197625.1073 | G140: 138660 | H140: 57688.99355 | I140: 12372 | J140: 139309.5028 | K140: 567 | L140: 54201.43343 | M140: 925 | N140: 193510.9362 | O140: 9.829469384e-05 | P140: 13411.94089 | Q140: 3 | R140: 1063.872 | S140: 5947.38016 | T140: 475599.2127 | U140: 0.0003063423374 | V140: 18 | W140: 0 | X140: 182
A141: 2015-01-06T20:00:00 | B141: 1 | C141: 6 | D141: 2015 | E141: 20 | F141: 198046.8145 | G141: 138660 | H141: 56238.18557 | I141: 12372 | J141: 136449.1622 | K141: 567 | L141: 52909.29544 | M141: 925 | N141: 189358.4577 | O141: 9.595139218e-05 | P141: 13087.53107 | Q141: 3 | R141: 1056.468 | S141: 5947.38016 | T141: 468493.856 | U141: 0.0003690276244 | V141: 18 | W141: 0.001500000071 | X141: 182
A142: 2015-01-06T21:00:00 | B142: 1 | C142: 6 | D142: 2015 | E142: 21 | F142: 197087.2103 | G142: 138660 | H142: 53650.33549 | I142: 12372 | J142: 134044.5486 | K142: 567 | L142: 51181.87937 | M142: 925 | N142: 185226.4279 | O142: 9.281871058e-05 | P142: 12725.08041 | Q142: 3 | R142: 1027.596 | S142: 5947.38016 | T142: 460237.2524 | U142: 0.0005539153026 | V142: 18 | W142: 0.001500000071 | X142: 182
A143: 2015-01-06T22:00:00 | B143: 1 | C143: 6 | D143: 2015 | E143: 22 | F143: 189978.5042 | G143: 138660 | H143: 49657.10622 | I143: 12372 | J143: 128701.6906 | K143: 567 | L143: 48262.12744 | M143: 925 | N143: 176963.8181 | O143: 8.751635357e-05 | P143: 12455.62213 | Q143: 3 | R143: 1000.32 | S143: 5947.38016 | T143: 439435.9935 | U143: 0.0004456344304 | V143: 18 | W143: 0.001000000047 | X143: 182
A144: 2015-01-06T23:00:00 | B144: 1 | C144: 6 | D144: 2015 | E144: 23 | F144: 168955.725 | G144: 138660 | H144: 47172.38422 | I144: 12372 | J144: 122146.1581 | K144: 567 | L144: 45824.65508 | M144: 925 | N144: 167970.8132 | O144: 8.309635172e-05 | P144: 12016.17505 | Q144: 3 | R144: 993.168 | S144: 5947.38016 | T144: 402257.2748 | U144: 0.000722562454 | V144: 18 | W144: 0.001000000047 | X144: 182
A145: 2015-01-07 | B145: 1 | C145: 6 | D145: 2015 | E145: 24 | F145: 145352.5783 | G145: 138663 | H145: 44834.71576 | I145: 12375 | J145: 117468.4998 | K145: 567 | L145: 43758.33977 | M145: 922 | N145: 161226.8395 | O145: 7.939366416e-05 | P145: 11254.35899 | Q145: 3 | R145: 988.176 | S145: 5947.38016 | T145: 366435.179 | U145: 0.0007417954439 | V145: 18 | W145: 0 | X145: 182
A146: 2015-01-07T01:00:00 | B146: 1 | C146: 7 | D146: 2015 | E146: 1 | F146: 127243.1257 | G146: 138663 | H146: 42875.99578 | I146: 12374 | J146: 113348.0863 | K146: 567 | L146: 41946.25588 | M146: 922 | N146: 155294.3422 | O146: 7.610587993e-05 | P146: 10878.74377 | Q146: 3 | R146: 1006.116 | S146: 5947.38016 | T146: 338232.7906 | U146: 0.0008424301304 | V146: 18 | W146: 0.000800000038 | X146: 182
A147: 2015-01-07T02:00:00 | B147: 1 | C147: 7 | D147: 2015 | E147: 2 | F147: 118723.7083 | G147: 138663 | H147: 42565.76388 | I147: 12374 | J147: 112045.7636 | K147: 567 | L147: 41524.1655 | M147: 922 | N147: 153569.9291 | O147: 7.53400533e-05 | P147: 10554.70853 | Q147: 3 | R147: 1001.808 | S147: 5947.38016 | T147: 324527.2913 | U147: 0.0009794584912 | V147: 18 | W147: 0 | X147: 182
A148: 2015-01-07T03:00:00 | B148: 1 | C148: 7 | D148: 2015 | E148: 3 | F148: 114883.5236 | G148: 138663 | H148: 41936.76086 | I148: 12374 | J148: 110709.7556 | K148: 567 | L148: 40969.32939 | M148: 922 | N148: 151679.085 | O148: 7.433337726e-05 | P148: 10438.09636 | Q148: 3 | R148: 992.724 | S148: 5947.38016 | T148: 317826.5234 | U148: 0.001248764427 | V148: 18 | W148: 0 | X148: 182
A149: 2015-01-07T04:00:00 | B149: 1 | C149: 7 | D149: 2015 | E149: 4 | F149: 112435.4213 | G149: 138663 | H149: 41630.5696 | I149: 12374 | J149: 110809.1722 | K149: 567 | L149: 40833.18252 | M149: 922 | N149: 151642.3547 | O149: 7.408635695e-05 | P149: 10456.90016 | Q149: 3 | R149: 988.236 | S149: 5947.38016 | T149: 316087.7205 | U149: 0.001525433516 | V149: 18 | W149: 0.001500000071 | X149: 182
A150: 2015-01-07T05:00:00 | B150: 1 | C150: 7 | D150: 2015 | E150: 5 | F150: 113716.4531 | G150: 138663 | H150: 41805.00681 | I150: 12374 | J150: 110862.1604 | K150: 567 | L150: 40952.47827 | M150: 922 | N150: 151814.6387 | O150: 7.430280316e-05 | P150: 10537.24237 | Q150: 3 | R150: 1019.664 | S150: 5947.38016 | T150: 318539.7348 | U150: 0.001722371991 | V150: 18 | W150: 0.001300000062 | X150: 182
A151: 2015-01-07T06:00:00 | B151: 1 | C151: 7 | D151: 2015 | E151: 6 | F151: 120466.2297 | G151: 138663 | H151: 42777.05837 | I151: 12374 | J151: 116209.9217 | K151: 567 | L151: 42520.28116 | M151: 922 | N151: 158730.2028 | O151: 7.714737214e-05 | P151: 11081.95107 | Q151: 3 | R151: 1017.552 | S151: 5947.38016 | T151: 335200.75 | U151: 0.0006885287403 | V151: 18 | W151: 0 | X151: 182
A152: 2015-01-07T07:00:00 | B152: 1 | C152: 7 | D152: 2015 | E152: 7 | F152: 134919.7507 | G152: 138663 | H152: 45305.76829 | I152: 12374 | J152: 128454.2053 | K152: 567 | L152: 46185.83156 | M152: 922 | N152: 174640.0369 | O152: 8.379802387e-05 | P152: 11863.57124 | Q152: 3 | R152: 1021.236 | S152: 4698.43033 | T152: 372264.5295 | U152: 0.0005629514453 | V152: 18 | W152: 0 | X152: 182
A153: 2015-01-07T08:00:00 | B153: 1 | C153: 7 | D153: 2015 | E153: 8 | F153: 148719.136 | G153: 138663 | H153: 50475.98057 | I153: 12374 | J153: 137722.1121 | K153: 567 | L153: 50607.86157 | M153: 922 | N153: 188329.9737 | O153: 9.18212068e-05 | P153: 12707.83438 | Q153: 3 | R153: 10659.492 | S153: 297.36901 | T153: 410178.0335 | U153: 0.001143077934 | V153: 18 | W153: 0.003000000142 | X153: 182
A154: 2015-01-07T09:00:00 | B154: 1 | C154: 7 | D154: 2015 | E154: 9 | F154: 148196.3326 | G154: 138663 | H154: 55158.46839 | I154: 12374 | J154: 147564.8122 | K154: 567 | L154: 54766.82301 | M154: 922 | N154: 202331.6352 | O154: 9.936708697e-05 | P154: 13276.34171 | Q154: 3 | R154: 26967.036 | S154: 59.4738 | T154: 426996.3987 | U154: 0.001551902234 | V154: 18 | W154: 0.1036000038 | X154: 182
A155: 2015-01-07T10:00:00 | B155: 1 | C155: 7 | D155: 2015 | E155: 10 | F155: 143871.843 | G155: 138663 | H155: 60010.91537 | I155: 12374 | J155: 149761.4848 | K155: 567 | L155: 57572.18854 | M155: 922 | N155: 207333.6734 | O155: 0.0001044570481 | P155: 13882.74783 | Q155: 3 | R155: 958.248 | S155: 59.4738 | T155: 433181.0445 | U155: 0 | V155: 18 | W155: 1.478100058 | X155: 182
A156: 2015-01-07T11:00:00 | B156: 1 | C156: 7 | D156: 2015 | E156: 11 | F156: 147116.7304 | G156: 138663 | H156: 63518.33726 | I156: 12374 | J156: 151506.1502 | K156: 567 | L156: 59645.11635 | M156: 922 | N156: 211151.2665 | O156: 0.0001082154692 | P156: 14448.87137 | Q156: 3 | R156: 1038.912 | S156: 59.4738 | T156: 441722.9474 | U156: 0.002217098139 | V156: 18 | W156: 2.530700088 | X156: 182
A157: 2015-01-07T12:00:00 | B157: 1 | C157: 7 | D157: 2015 | E157: 12 | F157: 150495.708 | G157: 138663 | H157: 64786.657 | I157: 12374 | J157: 151745.5507 | K157: 567 | L157: 60295.06556 | M157: 922 | N157: 212040.6162 | O157: 0.0001093966919 | P157: 14733.58017 | Q157: 3 | R157: 1013.484 | S157: 59.4738 | T157: 447838.9407 | U157: 0.07518659203 | V157: 18 | W157: 3.925200098 | X157: 182
A158: 2015-01-07T13:00:00 | B158: 1 | C158: 7 | D158: 2015 | E158: 13 | F158: 153294.512 | G158: 138663 | H158: 64747.48918 | I158: 12374 | J158: 151434.1857 | K158: 567 | L158: 60183.42551 | M158: 922 | N158: 211617.6112 | O158: 0.0001091948193 | P158: 14799.01477 | Q158: 3 | R158: 1029.492 | S158: 59.4738 | T158: 449580.7146 | U158: 0.01946255099 | V158: 18 | W158: 4.139500116 | X158: 182
A159: 2015-01-07T14:00:00 | B159: 1 | C159: 7 | D159: 2015 | E159: 14 | F159: 152794.3574 | G159: 138662 | H159: 64492.06357 | I159: 12374 | J159: 152560.0382 | K159: 567 | L159: 60277.00178 | M159: 922 | N159: 212837.04 | O159: 0.000109364601 | P159: 14830.7645 | Q159: 3 | R159: 1027.836 | S159: 59.4738 | T159: 449883.7677 | U159: 0 | V159: 18 | W159: 3.614700092 | X159: 182
A160: 2015-01-07T15:00:00 | B160: 1 | C160: 7 | D160: 2015 | E160: 15 | F160: 152206.8336 | G160: 138663 | H160: 63751.81061 | I160: 12374 | J160: 149803.5736 | K160: 567 | L160: 59383.67223 | M160: 922 | N160: 209187.2459 | O160: 0.0001077437734 | P160: 14778.56216 | Q160: 3 | R160: 1032.792 | S160: 59.4738 | T160: 445449.7019 | U160: 0 | V160: 18 | W160: 3.806900093 | X160: 182
A161: 2015-01-07T16:00:00 | B161: 1 | C161: 7 | D161: 2015 | E161: 16 | F161: 156729.394 | G161: 138663 | H161: 62701.54835 | I161: 12374 | J161: 146495.4129 | K161: 567 | L161: 58052.89746 | M161: 922 | N161: 204548.3104 | O161: 0.0001053292596 | P161: 14632.54269 | Q161: 3 | R161: 1221.756 | S161: 59.4738 | T161: 443931.0686 | U161: 0 | V161: 18 | W161: 1.389300045 | X161: 182
A162: 2015-01-07T17:00:00 | B162: 1 | C162: 7 | D162: 2015 | E162: 17 | F162: 176150.5134 | G162: 138663 | H162: 61095.97821 | I162: 12374 | J162: 142688.6615 | K162: 567 | L162: 56506.57045 | M162: 922 | N162: 199195.2319 | O162: 0.000102523655 | P162: 14309.81039 | Q162: 3 | R162: 1296.492 | S162: 2914.21627 | T162: 458203.1574 | U162: 0.0005822443709 | V162: 18 | W162: 0.1450000046 | X162: 182
A163: 2015-01-07T18:00:00 | B163: 1 | C163: 7 | D163: 2015 | E163: 18 | F163: 204531.7461 | G163: 138663 | H163: 59689.52017 | I163: 12374 | J163: 141047.7855 | K163: 567 | L163: 55487.36361 | M163: 922 | N163: 196535.1491 | O163: 0.0001006744397 | P163: 13863.37918 | Q163: 3 | R163: 1268.712 | S163: 5947.38016 | T163: 487112.4425 | U163: 0.001468735027 | V163: 18 | W163: 0.0005000000237 | X163: 182
A164: 2015-01-07T19:00:00 | B164: 1 | C164: 7 | D164: 2015 | E164: 19 | F164: 211505.7781 | G164: 138663 | H164: 57059.29838 | I164: 12374 | J164: 138075.3172 | K164: 567 | L164: 53641.42861 | M164: 922 | N164: 191716.7458 | O164: 9.732523625e-05 | P164: 13593.20309 | Q164: 3 | R164: 1290.588 | S164: 5947.38016 | T164: 488154.7465 | U164: 0.001272865142 | V164: 18 | W164: 0.0003000000142 | X164: 182
A165: 2015-01-07T20:00:00 | B165: 1 | C165: 7 | D165: 2015 | E165: 20 | F165: 213065.2912 | G165: 138663 | H165: 55330.7497 | I165: 12374 | J165: 134975.0794 | K165: 567 | L165: 52184.04122 | M165: 922 | N165: 187159.1206 | O165: 9.46810007e-05 | P165: 13243.01306 | Q165: 3 | R165: 1253.376 | S165: 5947.38016 | T165: 482181.0184 | U165: 0.001105714102 | V165: 18 | W165: 0.001000000047 | X165: 182
A166: 2015-01-07T21:00:00 | B166: 1 | C166: 7 | D166: 2015 | E166: 21 | F166: 210707.7531 | G166: 138663 | H166: 53388.23749 | I166: 12374 | J166: 132704.4097 | K166: 567 | L166: 50806.66292 | M166: 922 | N166: 183511.0726 | O166: 9.218193101e-05 | P166: 12950.88464 | Q166: 3 | R166: 1201.812 | S166: 5947.38016 | T166: 473274.1833 | U166: 0.001239523728 | V166: 18 | W166: 0.001500000071 | X166: 182
A167: 2015-01-07T22:00:00 | B167: 1 | C167: 7 | D167: 2015 | E167: 22 | F167: 198214.518 | G167: 138663 | H167: 50252.78153 | I167: 12374 | J167: 128385.9955 | K167: 567 | L167: 48458.25447 | M167: 922 | N167: 176844.2499 | O167: 8.792105629e-05 | P167: 12669.61462 | Q167: 3 | R167: 1074.888 | S167: 5947.38016 | T167: 449137.2992 | U167: 0.001380853129 | V167: 18 | W167: 0.001300000062 | X167: 182
A168: 2015-01-07T23:00:00 | B168: 1 | C168: 7 | D168: 2015 | E168: 23 | F168: 176236.4863 | G168: 138663 | H168: 47896.36928 | I168: 12374 | J168: 122820.4413 | K168: 567 | L168: 46268.31509 | M168: 922 | N168: 169088.7564 | O168: 8.394770262e-05 | P168: 12260.40277 | Q168: 3 | R168: 1033.656 | S168: 5947.38016 | T168: 413451.3639 | U168: 0.002065165012 | V168: 18 | W168: 0.001500000071 | X168: 182
A169: 2015-01-08 | B169: 1 | C169: 7 | D169: 2015 | E169: 24 | F169: 150582.5005 | G169: 138663 | H169: 45725.1205 | I169: 12374 | J169: 117865.9218 | K169: 568 | L169: 44267.68033 | M169: 921 | N169: 162133.6021 | O169: 8.034556817e-05 | P169: 11542.62865 | Q169: 3 | R169: 1023.552 | S169: 5947.38016 | T169: 376059.6456 | U169: 0.001949402489 | V169: 18 | W169: 0.002300000109 | X169: 182
A170: 2015-01-08T01:00:00 | B170: 1 | C170: 8 | D170: 2015 | E170: 1 | F170: 131992.4233 | G170: 138660 | H170: 43792.15613 | I170: 12372 | J170: 114381.7817 | K170: 568 | L170: 42647.12205 | M170: 922 | N170: 157028.9038 | O170: 7.733525316e-05 | P170: 11187.29404 | Q170: 3 | R170: 1040.688 | S170: 5947.38016 | T170: 347232.4079 | U170: 0.001949542406 | V170: 18 | W170: 0.0003000000142 | X170: 182
A171: 2015-01-08T02:00:00 | B171: 1 | C171: 8 | D171: 2015 | E171: 2 | F171: 123426.8814 | G171: 138660 | H171: 43431.27008 | I171: 12372 | J171: 112260.233 | K171: 568 | L171: 42037.6618 | M171: 922 | N171: 154297.8948 | O171: 7.623007277e-05 | P171: 10929.83456 | Q171: 3 | R171: 1008.492 | S171: 5947.38016 | T171: 334082.3803 | U171: 0.002028106974 | V171: 18 | W171: 0.0005000000237 | X171: 182
A172: 2015-01-08T03:00:00 | B172: 1 | C172: 8 | D172: 2015 | E172: 3 | F172: 119053.7004 | G172: 138660 | H172: 42854.59023 | I172: 12372 | J172: 112171.6556 | K172: 568 | L172: 41735.5028 | M172: 922 | N172: 153907.1584 | O172: 7.5682145e-05 | P172: 10764.6203 | Q172: 3 | R172: 987.768 | S172: 5947.38016 | T172: 327913.7726 | U172: 0.002182713695 | V172: 18 | W172: 0.0003000000142 | X172: 182
A173: 2015-01-08T04:00:00 | B173: 1 | C173: 8 | D173: 2015 | E173: 4 | F173: 117533.9561 | G173: 138660 | H173: 42708.60558 | I173: 12372 | J173: 112289.0527 | K173: 568 | L173: 41683.31668 | M173: 922 | N173: 153972.3694 | O173: 7.558751194e-05 | P173: 10757.63951 | Q173: 3 | R173: 973.068 | S173: 5947.38016 | T173: 326301.1997 | U173: 0.002282787973 | V173: 18 | W173: 0 | X173: 182
A174: 2015-01-08T05:00:00 | B174: 1 | C174: 8 | D174: 2015 | E174: 5 | F174: 118782.7738 | G174: 138670 | H174: 42889.92276 | I174: 12373 | J174: 113153.4291 | K174: 568 | L174: 41950.03677 | M174: 922 | N174: 155103.4659 | O174: 7.607117568e-05 | P174: 10828.34109 | Q174: 3 | R174: 1004.124 | S174: 5947.38016 | T174: 329368.4269 | U174: 0.002293737416 | V174: 18 | W174: 0.0003000000142 | X174: 182
A175: 2015-01-08T06:00:00 | B175: 1 | C175: 8 | D175: 2015 | E175: 6 | F175: 124394.8632 | G175: 138670 | H175: 43563.8645 | I175: 12373 | J175: 117699.4355 | K175: 568 | L175: 43229.59284 | M175: 922 | N175: 160929.0283 | O175: 7.839149151e-05 | P175: 11281.87434 | Q175: 3 | R175: 1017.264 | S175: 5947.38016 | T175: 343514.2684 | U175: 0.002137713018 | V175: 18 | W175: 0 | X175: 182
A176: 2015-01-08T07:00:00 | B176: 1 | C176: 8 | D176: 2015 | E176: 7 | F176: 138911.2408 | G176: 138670 | H176: 45804.14725 | I176: 12373 | J176: 129978.9944 | K176: 568 | L176: 46716.89803 | M176: 922 | N176: 176695.8925 | O176: 8.471528587e-05 | P176: 11944.21811 | Q176: 3 | R176: 978.432 | S176: 4698.43033 | T176: 379360.3552 | U176: 0.001974065701 | V176: 18 | W176: 0.002800000133 | X176: 182
A177: 2015-01-08T08:00:00 | B177: 1 | C177: 8 | D177: 2015 | E177: 8 | F177: 154453.5182 | G177: 138670 | H177: 51070.57735 | I177: 12373 | J177: 142987.422 | K177: 568 | L177: 51909.3165 | M177: 922 | N177: 194896.7385 | O177: 9.413109113e-05 | P177: 12740.09021 | Q177: 3 | R177: 1001.4 | S177: 297.36901 | T177: 422949.6457 | U177: 0.001914692926 | V177: 18 | W177: 0.4075000132 | X177: 182
A178: 2015-01-08T09:00:00 | B178: 1 | C178: 8 | D178: 2015 | E178: 9 | F178: 148864.1488 | G178: 138670 | H178: 55767.84892 | I178: 12373 | J178: 149652.6704 | K178: 568 | L178: 55492.27028 | M178: 922 | N178: 205144.9407 | O178: 0.0001006283323 | P178: 13363.90811 | Q178: 3 | R178: 1001.952 | S178: 59.4738 | T178: 429763.8813 | U178: 0.07602733387 | V178: 18 | W178: 5.013000207 | X178: 182
A179: 2015-01-08T10:00:00 | B179: 1 | C179: 8 | D179: 2015 | E179: 10 | F179: 141017.6189 | G179: 138670 | H179: 61581.21114 | I179: 12373 | J179: 154508.3495 | K179: 568 | L179: 59239.65676 | M179: 922 | N179: 213748.0062 | O179: 0.0001074237518 | P179: 14078.87234 | Q179: 3 | R179: 969.024 | S179: 59.4738 | T179: 436556.8493 | U179: 5.350299156 | V179: 18 | W179: 26.00530109 | X179: 182
A180: 2015-01-08T11:00:00 | B180: 1 | C180: 8 | D180: 2015 | E180: 11 | F180: 137838.3649 | G180: 138670 | H180: 64845.30961 | I180: 12373 | J180: 155573.6442 | K180: 568 | L180: 61154.18972 | M180: 922 | N180: 216727.8339 | O180: 0.0001108955192 | P180: 14592.51636 | Q180: 3 | R180: 9526.824 | S180: 59.4738 | T180: 439457.8547 | U180: 30.45166999 | V180: 18 | W180: 53.93030231 | X180: 182
A181: 2015-01-08T12:00:00 | B181: 1 | C181: 8 | D181: 2015 | E181: 12 | F181: 137829.3901 | G181: 138670 | H181: 66170.90873 | I181: 12373 | J181: 154443.5987 | K181: 568 | L181: 61596.79045 | M181: 922 | N181: 216040.3892 | O181: 0.0001117454418 | P181: 14748.51257 | Q181: 3 | R181: 42696.516 | S181: 59.4738 | T181: 440630.515 | U181: 72.72697482 | V181: 18 | W181: 68.84990274 | X181: 182
A182: 2015-01-08T13:00:00 | B182: 1 | C182: 8 | D182: 2015 | E182: 13 | F182: 138172.1788 | G182: 138670 | H182: 66124.34082 | I182: 12373 | J182: 153006.0186 | K182: 568 | L182: 61263.71936 | M182: 922 | N182: 214269.7379 | O182: 0.0001111494511 | P182: 14827.4949 | Q182: 3 | R182: 39821.268 | S182: 59.4738 | T182: 441915.2936 | U182: 112.1242684 | V182: 18 | W182: 73.47470251 | X182: 182
A183: 2015-01-08T14:00:00 | B183: 1 | C183: 8 | D183: 2015 | E183: 14 | F183: 137133.8631 | G183: 138670 | H183: 65981.11709 | I183: 12373 | J183: 153238.2293 | K183: 568 | L183: 61204.04898 | M183: 922 | N183: 214442.2783 | O183: 0.0001110428022 | P183: 14831.01706 | Q183: 3 | R183: 38038.452 | S183: 59.4738 | T183: 440577.5538 | U183: 113.3608446 | V183: 18 | W183: 59.80220219 | X183: 182
A184: 2015-01-08T15:00:00 | B184: 1 | C184: 8 | D184: 2015 | E184: 15 | F184: 139704.5925 | G184: 138670 | H184: 65816.19025 | I184: 12373 | J184: 151792.1921 | K184: 568 | L184: 60809.18517 | M184: 922 | N184: 212601.3773 | O184: 0.0001103293901 | P184: 14936.6456 | Q184: 3 | R184: 41120.04 | S184: 59.4738 | T184: 440616.0722 | U184: 74.19904789 | V184: 18 | W184: 35.21160129 | X184: 182
A185: 2015-01-08T16:00:00 | B185: 1 | C185: 8 | D185: 2015 | E185: 16 | F185: 147247.7505 | G185: 138670 | H185: 65113.6092 | I185: 12373 | J185: 149625.3698 | K185: 568 | L185: 59864.87262 | M185: 922 | N185: 209490.2425 | O185: 0.0001086086152 | P185: 14759.30438 | Q185: 3 | R185: 39663.456 | S185: 59.4738 | T185: 443998.3714 | U185: 30.6501337 | V185: 18 | W185: 12.42970044 | X185: 182
A186: 2015-01-08T17:00:00 | B186: 1 | C186: 8 | D186: 2015 | E186: 17 | F186: 166223.5062 | G186: 138670 | H186: 63831.11991 | I186: 12373 | J186: 147665.6672 | K186: 568 | L186: 58774.28985 | M186: 922 | N186: 206439.957 | O186: 0.0001066062911 | P186: 14411.31 | Q186: 3 | R186: 36963.9 | S186: 2914.21627 | T186: 460122.5157 | U186: 1.79386429 | V186: 18 | W186: 1.87950007 | X186: 182
A187: 2015-01-08T18:00:00 | B187: 1 | C187: 8 | D187: 2015 | E187: 18 | F187: 195859.4709 | G187: 138670 | H187: 63178.47404 | I187: 12373 | J187: 144979.9341 | K187: 568 | L187: 57956.9439 | M187: 922 | N187: 202936.878 | O187: 0.0001051237683 | P187: 13996.69751 | Q187: 3 | R187: 39678.816 | S187: 5947.38016 | T187: 489946.7173 | U187: 0.0005691384695 | V187: 18 | W187: 0.005300000135 | X187: 182
A188: 2015-01-08T19:00:00 | B188: 1 | C188: 8 | D188: 2015 | E188: 19 | F188: 203465.5354 | G188: 138670 | H188: 60473.74915 | I188: 12373 | J188: 141419.9656 | K188: 568 | L188: 55960.40461 | M188: 922 | N188: 197380.3702 | O188: 0.000101502395 | P188: 13607.03091 | Q188: 3 | R188: 36836.484 | S188: 5947.38016 | T188: 492393.9563 | U188: 0.001055585606 | V188: 18 | W188: 0.0005000000237 | X188: 182
A189: 2015-01-08T20:00:00 | B189: 1 | C189: 8 | D189: 2015 | E189: 20 | F189: 205194.7066 | G189: 138670 | H189: 58082.24576 | I189: 12373 | J189: 138302.3148 | K189: 568 | L189: 54194.37901 | M189: 922 | N189: 192496.6938 | O189: 9.829913315e-05 | P189: 13244.95792 | Q189: 3 | R189: 35495.82 | S189: 5947.38016 | T189: 486314.5475 | U189: 0.001063014119 | V189: 18 | W189: 0 | X189: 182
A190: 2015-01-08T21:00:00 | B190: 1 | C190: 8 | D190: 2015 | E190: 21 | F190: 204006.6938 | G190: 138670 | H190: 55330.51657 | I190: 12373 | J190: 134560.65 | K190: 568 | L190: 52136.48854 | M190: 922 | N190: 186697.1385 | O190: 9.456647945e-05 | P190: 12869.28113 | Q190: 3 | R190: 37811.844 | S190: 5947.38016 | T190: 475485.881 | U190: 0.001117815315 | V190: 18 | W190: 0.001800000085 | X190: 182
A191: 2015-01-08T22:00:00 | B191: 1 | C191: 8 | D191: 2015 | E191: 22 | F191: 194324.157 | G191: 138670 | H191: 51342.55519 | I191: 12373 | J191: 130385.5571 | K191: 568 | L191: 49398.15152 | M191: 922 | N191: 179783.7086 | O191: 8.959961461e-05 | P191: 12662.55322 | Q191: 3 | R191: 40068.432 | S191: 5947.38016 | T191: 452894.5041 | U191: 0.001165187168 | V191: 18 | W191: 0.002500000119 | X191: 182
A192: 2015-01-08T23:00:00 | B192: 1 | C192: 8 | D192: 2015 | E192: 23 | F192: 173542.3488 | G192: 138670 | H192: 48210.77179 | I192: 12373 | J192: 122464.0514 | K192: 568 | L192: 46390.85084 | M192: 922 | N192: 168854.9022 | O192: 8.41448967e-05 | P192: 12092.92914 | Q192: 3 | R192: 39733.584 | S192: 5947.38016 | T192: 415293.9051 | U192: 0.0009176352105 | V192: 18 | W192: 0.0005000000237 | X192: 182
A193: 2015-01-09 | B193: 1 | C193: 8 | D193: 2015 | E193: 24 | F193: 148991.8196 | G193: 138673 | H193: 45845.64888 | I193: 12374 | J193: 117313.2781 | K193: 568 | L193: 44242.25334 | M193: 921 | N193: 161555.5315 | O193: 8.027851218e-05 | P193: 11352.64117 | Q193: 3 | R193: 42775.344 | S193: 5947.38016 | T193: 377537.6363 | U193: 0.0008376066835 | V193: 18 | W193: 0.002300000109 | X193: 182
A194: 2015-01-09T01:00:00 | B194: 1 | C194: 9 | D194: 2015 | E194: 1 | F194: 131825.7684 | G194: 138673 | H194: 44296.44712 | I194: 12374 | J194: 114196.6177 | K194: 567 | L194: 42847.40393 | M194: 922 | N194: 157044.0216 | O194: 7.771757728e-05 | P194: 11034.85916 | Q194: 3 | R194: 37894.644 | S194: 5947.38016 | T194: 351696.22 | U194: 0.0007528511705 | V194: 18 | W194: 0.001500000071 | X194: 182
A195: 2015-01-09T02:00:00 | B195: 1 | C195: 9 | D195: 2015 | E195: 2 | F195: 121852.3651 | G195: 138673 | H195: 43413.30692 | I195: 12374 | J195: 111597.4442 | K195: 567 | L195: 41921.49953 | M195: 922 | N195: 153518.9437 | O195: 7.603815121e-05 | P195: 10791.64043 | Q195: 3 | R195: 37964.808 | S195: 5947.38016 | T195: 335561.647 | U195: 0.0007508149938 | V195: 18 | W195: 0.001000000047 | X195: 182
A196: 2015-01-09T03:00:00 | B196: 1 | C196: 9 | D196: 2015 | E196: 3 | F196: 116352.1914 | G196: 138673 | H196: 42564.13379 | I196: 12374 | J196: 110240.876 | K196: 567 | L196: 41253.83585 | M196: 922 | N196: 151494.7118 | O196: 7.482712794e-05 | P196: 10531.06142 | Q196: 3 | R196: 40051.944 | S196: 5947.38016 | T196: 327121.6378 | U196: 0.0007202355737 | V196: 18 | W196: 0.000800000038 | X196: 182
A197: 2015-01-09T04:00:00 | B197: 1 | C197: 9 | D197: 2015 | E197: 4 | F197: 113831.5843 | G197: 138673 | H197: 42120.88 | I197: 12374 | J197: 109255.4441 | K197: 567 | L197: 40854.67712 | M197: 922 | N197: 150110.1212 | O197: 7.410312493e-05 | P197: 10527.53394 | Q197: 3 | R197: 43384.008 | S197: 5947.38016 | T197: 323227.6406 | U197: 0.0006176590105 | V197: 18 | W197: 0 | X197: 182
A198: 2015-01-09T05:00:00 | B198: 1 | C198: 9 | D198: 2015 | E198: 5 | F198: 114224.8823 | G198: 138673 | H198: 42068.29473 | I198: 12376 | J198: 110523.4059 | K198: 567 | L198: 41083.17477 | M198: 922 | N198: 151606.5806 | O198: 7.451757907e-05 | P198: 10613.35785 | Q198: 3 | R198: 39120.012 | S198: 5947.38016 | T198: 325957.6157 | U198: 0.0004885275921 | V198: 18 | W198: 0.0005000000237 | X198: 182
A199: 2015-01-09T06:00:00 | B199: 1 | C199: 9 | D199: 2015 | E199: 6 | F199: 120239.688 | G199: 138673 | H199: 42955.26022 | I199: 12376 | J199: 114887.6712 | K199: 567 | L199: 42447.15404 | M199: 922 | N199: 157334.8252 | O199: 7.69915951e-05 | P199: 11052.28999 | Q199: 3 | R199: 39805.38 | S199: 5947.38016 | T199: 339802.7458 | U199: 0.0006706236127 | V199: 18 | W199: 0.0005000000237 | X199: 182
A200: 2015-01-09T07:00:00 | B200: 1 | C200: 9 | D200: 2015 | E200: 7 | F200: 134999.5687 | G200: 138673 | H200: 45449.97998 | I200: 12376 | J200: 126367.2667 | K200: 567 | L200: 45960.23569 | M200: 922 | N200: 172327.5024 | O200: 8.336370098e-05 | P200: 11834.81743 | Q200: 3 | R200: 40242.252 | S200: 4698.43033 | T200: 376523.714 | U200: 0.001208011396 | V200: 18 | W200: 0.006300000474 | X200: 182
... 2050 more rows

Sheet Consumption PT
A1: Year | B1: (All)
A3: Total Consumption | B3: Column Labels
A4: Row Labels | B4: Residential | C4: GS<50 | D4: GS>50 Demand | E4: GS>50 Non-demand | F4: GS>50 Total | G4: Large User | H4: CoGen | I4: Street Lighting | J4: System Total Load
A5: 1 | B5: 213082271.9 | C5: 73951452.52 | D5: 69712953.99 | E5: 181966996.1 | F5: 251679950.1 | G5: 18250593.88 | H5: 7858404.228 | I5: 2656754.191 | J5: 1433042635
A6: 2 | B6: 197491036.3 | C6: 69274198.83 | D6: 63889807.12 | E6: 169472367.6 | F6: 233362174.7 | G6: 16698097.22 | H6: 2483056.416 | I6: 2238250.814 | J6: 1305306501
A7: 3 | B7: 185165584.5 | C7: 69554948.05 | D7: 64611590.14 | E7: 179553421.3 | F7: 244165011.5 | G7: 18386093.27 | H7: 10222108.22 | I7: 2204774.741 | J7: 1361579441
A8: 4 | B8: 152838792.2 | C8: 60066385.13 | D8: 56704504.22 | E8: 166193836.9 | F8: 222898341.1 | G8: 17322549.11 | H8: 32729443.76 | I8: 1912672.245 | J8: 1213583614
A9: 5 | B9: 158898377.1 | C9: 61926579.68 | D9: 58835623.05 | E9: 178846119 | F9: 237681742 | G9: 21396199.29 | H9: 50468391.04 | I9: 1703877.122 | J9: 1291097917
A10: 6 | B10: 168159598.5 | C10: 63236741.09 | D10: 59579705.42 | E10: 182235721.6 | F10: 241815427 | G10: 22345477.56 | H10: 54102918.43 | I10: 1561186.141 | J10: 1331035018
